Workbook

Sheet ordner
A1: Themenkiste US Roggwil.ma2 | B1: =IF(A1="","",LEFT(A1,LEN(A1)-(LEN(A1)-FIND(".",A1)+1))) -> Themenkiste US Roggwil
B2: =IF(A2="","",LEFT(A2,LEN(A2)-(LEN(A2)-FIND(".",A2)+1))) -> 

Sheet sfx

Sheet konstr
A1: Bereich von | D1: bis
A2: zeile | B2: spalte | D2: zeile | E2: spalte | G2: Kopierformel | H2: löschen
A3: 7 | B3: 5 | D3: 34 | E3: 8 | G3: ="Sheets(Ziel).Range(Sheets(Ziel).Cells("&$A3&", "&$B3&"), Sheets(Ziel).Cells("&$D3&", "&$E3&")).Value = Sheets(Quelle).Range(Sheets(Quelle).Cells("&$A3&", "&$B3&"), Sheets(Quelle).Cells("&$D3&", "&$E3&")).Value" -> Sheets(Ziel).Range(Sheets(Ziel).Cells(7, 5), Sheets(Ziel).Cells(34, 8)).Value = Sheets(Quelle).Range(Sheets(Quelle).Cells(7, 5), Sheets(Quelle).Cells(34, 8)).Value | H3: ="Sheets(Ziel).Range(Sheets(Ziel).Cells("&$A3&", "&$B3&"), Sheets(Ziel).Cells("&$D3&", "&$E3&")).Value = """"" -> Sheets(Ziel).Range(Sheets(Ziel).Cells(7, 5), Sheets(Ziel).Cells(34, 8)).Value = ""
A7: Einzelzellen
A8: zeile | B8: spalte
A9: 7 | B9: 4 | G9: ="Sheets(Ziel).Cells("&$A9&", "&$B9&").Value = Sheets(Quelle).Cells("&$A9&", "&$B9&").Value" -> Sheets(Ziel).Cells(7, 4).Value = Sheets(Quelle).Cells(7, 4).Value | H9: ="Sheets(Ziel).Cells("&$A9&", "&$B9&").Value = """"" -> Sheets(Ziel).Cells(7, 4).Value = ""

Sheet impressum
B2: Impressum Dez2018
B4: Worum es geht | C4: Eine Vielfalt von "Werkzeugen" zur nichtgewinnorientierten freien Nutzung in der pädagogischen Arbeit.
B6: Grundfunktionen | C6: Datensicherheit | E6: Programm und Persönliche Daten sind getrennt gespeichert, damit die Programmdatei (z.B. schulfix2018.xlsm) jederzeit durch eine neuere Version ersetzt werden kann, ohne dass Eingabedaten verloren gehen. Bei jedem Öffnen bzw. Schliessen eines "Werkzeugs" werden die Eingabedaten als Textfile im Unterordner "...\persdaten" geöffnet bzw. gespeichert.
C7: Druckexport (Spinnendiagramme) | E7: Für das Drucken der Spinnendiagramme in besserer Auflösung und als Klassensatz empfiehlt sich der jeweilige Export-Schalter. Im Ordner "...\spinnenexport" entstehen Bitmaps (jpg), die durch die Standarddruckfunktion in jeder Grösse und auf jedem Gerät gedruckt werden können. (Jpg-Gruppe oder Einzelbild markieren > rechte Maustaste > Drucken)
C8: Gruppeneinteilung | E8: Im "Werkzeug" Gruppeneinteilung kann die Eingabe der Daten (Namen, Geschlecht, Klasse) manuell geschehen oder über die Import-Schalter. Um den Auswahlvorgang organisatorisch zu vereinfachen besteht eine "Schüleroberfläche", die das Auswahlangebot mit Bildern so darstellt, dass jedes Kind die eigene Auswahl selber eingeben kann. Die dazugehörigen Bilder nimmt das Programm aus dem Verzeichnis "...\persdaten\gruppendaten" entsprechend der Atelier-Nummer (z.B. 1.jpg).
E9: Das Programm kann die Atelierzahl automatisch reduzieren, damit möglichst nur volle Ateliers entstehen und die Lehrpersonenzahl für die Betreuung nicht zu hoch wird. Auch die Durchmischung (Mädchen, Jungs) kann in den Optionen als Standard eingestellt werden.
B12: bei Ärger, neuen Ideen… | C12: dani@akkordeonwerkstatt.ch | E12: Programmaktualisierung: www.akkordeonwerkstatt.ch/bildung.html
B14: Änderungen | C14: 2018-05-01 | D14: Lehrplan21 | E14: • Druckansicht bei Stufe1 repariert (für Mac kleiner Schalter rechts)
D15: Lehrplan21 | E15: • 50 statt 20 Unterrichtsthemen/-elemente
C16: 2018-08-01 | D16: Lehrplan21 | E16: • Neu: Überfachliche Kompetenzen
D17: Spinnenanzeige | E17: • Neu: Menueliste
C18: 2018-09-01 | D18: Kalender | E18: • Ferienplanfehler korrigiert
D19: Mathe | E19: • Neu: Individuelle Division mit Rest
C20: 2018-10-01 | D20: Lehrplan21 | E20: • Titel auf Ausdruck (vgl. Druckvorschau)
C21: 2018-11-01 | D21: Lehrplan21 | E21: • Neu: Menueliste
D22: Lehrplan21 | E22: • Neu: Löschtaste im Auswahlmenue
D23: Lehrplan21 | E23: • Neu: Zyklus3 (NT und RZG)
D24: Gruppeneinteilung | E24: • Neu: Menueliste
C25: 2018-12-01 | D25: Lehrplan21 | E25: • A3/A4-Ausdruck und Pdf-Export

Sheet Index
A1: w | P1: aktive Tabelle: | R1: moveafterreturn: | S1: f
P2: sfx:
P3: pfad:
P5: Löschfunktion:
B23: Speicherort:
B24: C:\Users\dani\Desktop\in Arbeit dani\progs\web_schulfix

Sheet Klasse
B2: Meine Klasse
C7: Klasse: | D7: 4 | E7: 2 | F7: . Halbjahr | AL7: Bildschirm
C8: Lehrperson/en: | D8: Frau Muster | AL8: 1280
C9: Schuljahr: | D9: 2017 | E9: ="/" -> / | F9: =RIGHT(D9+1,2) -> 18 | AL9: 800
C12: Name
B13: =IF(C13="","",B12+1) -> 1 | C13: Hans
B14: =IF(C14="","",B13+1) -> 2 | C14: Elisabeth
B15: 3 | C15: Kunigunde
B16: 4 | C16: Adalbert
B17: 5 | C17: Lanzelot
B18: 6 | C18: Waltraud
B19: 7 | C19: Romeo
B20: 8 | C20: Alfred
B21: 9 | C21: Siglinde
B22: 10 | C22: Kunibert
B23: 11 | C23: Albertine
B24: 12 | C24: Hagrid
B25: 13 | C25: Rosalinde
B26: 14 | C26: Dagobert
B27: 15 | C27: Gutemine
B28: 16 | C28: Asterix
B29: 17 | C29: Obelix
B30: 18 | C30: Winnifred
B31: =IF(C31="","",B30+1) -> 
A42: Anz. | B42: =MAX(B13:B40) -> 18
E54: Datenimport
A69: Programmier-Werkzeuge:
E71: Datenimport
E88: Datenimport-Funktion für alte Versionen

Sheet Ferien
K2: Ferienplan
K7: Kalenderjahre | L7: 2018 | N7: 2019 | P7: 2020 | AT7: Bildschirm
AT8: 1280
K9: Schulstart: | L9: 2018-01-08 | N9: 2019-01-07 | AT9: 800
J12: Winterferien | K12: Ferienanfang: | L12: 2018-01-27 | N12: 2019-01-26
J13: (Sportwoche) | K13: Schulstart: | L13: 2018-02-05 | N13: 2019-02-04
J15: Frühlingsferien | K15: Ferienanfang: | L15: 2018-04-07 | N15: 2019-04-06
K16: Schulstart: | L16: 2018-04-23 | N16: 2019-04-23
J18: Sommerferien | K18: Ferienanfang: | L18: 2018-07-07 | N18: 2019-07-06
K19: Schulstart: | L19: 2018-08-13 | N19: 2019-08-12
J21: Herbstferien | K21: Ferienanfang: | L21: 2018-09-29 | N21: 2019-09-28
K22: Schulstart: | L22: 2018-10-22 | N22: 2019-10-21
J24: Weihnachtferien | K24: Ferienanfang: | L24: 2018-12-22 | N24: 2019-12-21
J27: Anleitung: | K27: Z.B. 2019.sfx in Ordner …\persdaten\ einfügen (bei Dani beziehen)
K28: oder Daten hier manuell einfügen

Sheet Liste
A1: Klassenliste | E1: =Klasse!D8 -> Frau Muster | I1: =Klasse!D7&". Klasse" -> 4. Klasse | K1: =Klasse!E7&". Halbjahr" -> 2. Halbjahr | N1: =Klasse!D9&"/"&Klasse!F9 -> 2017/18
R2: ab | S2: 1 | U2: =S2 -> 1 | V2: =U2+1 -> 2 | W2: =V2+1 -> 3 | X2: 4 | Y2: 5 | Z2: 6 | AA2: 7 | AB2: 8 | AC2: 9 | AD2: 10 | AE2: 11 | AF2: 12
C4: 1 | D4: 2 | E4: 3 | F4: 4 | G4: 5 | H4: 6 | I4: 7 | J4: 8 | K4: 9 | L4: 10 | M4: 11 | N4: 12 | R4: ab | S4: sep | U4: =S4 -> sep | V4: =VLOOKUP($S$4,$U$6:$AF$16,2,0) -> okt | W4: =VLOOKUP($S$4,$U$6:$AF$16,3,0) -> nov | X4: =VLOOKUP($S$4,$U$6:$AF$16,4,0) -> dez | Y4: =VLOOKUP($S$4,$U$6:$AF$16,5,0) -> jan | Z4: =VLOOKUP($S$4,$U$6:$AF$16,6,0) -> feb | AA4: =VLOOKUP($S$4,$U$6:$AF$16,7,0) -> mrz | AB4: =VLOOKUP($S$4,$U$6:$AF$16,8,0) -> apr | AC4: =VLOOKUP($S$4,$U$6:$AF$16,9,0) -> mai | AD4: =VLOOKUP($S$4,$U$6:$AF$16,10,0) -> jun | AE4: =VLOOKUP($S$4,$U$6:$AF$16,11,0) -> jul | AF4: =VLOOKUP($S$4,$U$6:$AF$16,12,0) -> aug
A5: =IF(Klasse!B13="","",Klasse!B13) -> 1 | B5: =IF(Klasse!C13="","",Klasse!C13) -> Hans | U5: jan | V5: feb | W5: mrz | X5: apr | Y5: mai | Z5: jun | AA5: jul | AB5: aug | AC5: sep | AD5: okt | AE5: nov | AF5: dez | AG5: jan | AH5: feb | AI5: mrz | AJ5: apr | AK5: mai | AL5: jun | AM5: jul | AN5: aug | AO5: sep | AP5: okt | AQ5: nov | AR5: dez
A6: =IF(Klasse!B14="","",Klasse!B14) -> 2 | B6: =IF(Klasse!C14="","",Klasse!C14) -> Elisabeth | U6: =V5 -> feb | V6: =W5 -> mrz | W6: apr | X6: mai | Y6: jun | Z6: jul | AA6: aug | AB6: sep | AC6: okt | AD6: nov | AE6: dez | AF6: jan
A7: =IF(Klasse!B15="","",Klasse!B15) -> 3 | B7: =IF(Klasse!C15="","",Klasse!C15) -> Kunigunde | U7: =W5 -> mrz | V7: =X5 -> apr | W7: mai | X7: jun | Y7: jul | Z7: aug | AA7: sep | AB7: okt | AC7: nov | AD7: dez | AE7: jan | AF7: feb
A8: =IF(Klasse!B16="","",Klasse!B16) -> 4 | B8: =IF(Klasse!C16="","",Klasse!C16) -> Adalbert | U8: =X5 -> apr | V8: =Y5 -> mai | W8: jun | X8: jul | Y8: aug | Z8: sep | AA8: okt | AB8: nov | AC8: dez | AD8: jan | AE8: feb | AF8: mrz
A9: =IF(Klasse!B17="","",Klasse!B17) -> 5 | B9: =IF(Klasse!C17="","",Klasse!C17) -> Lanzelot | U9: =Y5 -> mai | V9: =Z5 -> jun | W9: jul | X9: aug | Y9: sep | Z9: okt | AA9: nov | AB9: dez | AC9: jan | AD9: feb | AE9: mrz | AF9: apr
A10: =IF(Klasse!B18="","",Klasse!B18) -> 6 | B10: =IF(Klasse!C18="","",Klasse!C18) -> Waltraud | U10: =Z5 -> jun | V10: =AA5 -> jul | W10: aug | X10: sep | Y10: okt | Z10: nov | AA10: dez | AB10: jan | AC10: feb | AD10: mrz | AE10: apr | AF10: mai
A11: =IF(Klasse!B19="","",Klasse!B19) -> 7 | B11: =IF(Klasse!C19="","",Klasse!C19) -> Romeo | U11: =AA5 -> jul | V11: =AB5 -> aug | W11: sep | X11: okt | Y11: nov | Z11: dez | AA11: jan | AB11: feb | AC11: mrz | AD11: apr | AE11: mai | AF11: jun
A12: =IF(Klasse!B20="","",Klasse!B20) -> 8 | B12: =IF(Klasse!C20="","",Klasse!C20) -> Alfred | U12: =AB5 -> aug | V12: =AC5 -> sep | W12: okt | X12: nov | Y12: dez | Z12: jan | AA12: feb | AB12: mrz | AC12: apr | AD12: mai | AE12: jun | AF12: jul
A13: =IF(Klasse!B21="","",Klasse!B21) -> 9 | B13: =IF(Klasse!C21="","",Klasse!C21) -> Siglinde | U13: =AC5 -> sep | V13: =AD5 -> okt | W13: nov | X13: dez | Y13: jan | Z13: feb | AA13: mrz | AB13: apr | AC13: mai | AD13: jun | AE13: jul | AF13: aug
A14: =IF(Klasse!B22="","",Klasse!B22) -> 10 | B14: =IF(Klasse!C22="","",Klasse!C22) -> Kunibert | U14: =AD5 -> okt | V14: =AE5 -> nov | W14: dez | X14: jan | Y14: feb | Z14: mrz | AA14: apr | AB14: mai | AC14: jun | AD14: jul | AE14: aug | AF14: sep
A15: =IF(Klasse!B23="","",Klasse!B23) -> 11 | B15: =IF(Klasse!C23="","",Klasse!C23) -> Albertine | U15: =AE5 -> nov | V15: =AF5 -> dez | W15: jan | X15: feb | Y15: mrz | Z15: apr | AA15: mai | AB15: jun | AC15: jul | AD15: aug | AE15: sep | AF15: okt
A16: =IF(Klasse!B24="","",Klasse!B24) -> 12 | B16: =IF(Klasse!C24="","",Klasse!C24) -> Hagrid | U16: =AF5 -> dez | V16: =AG5 -> jan | W16: feb | X16: mrz | Y16: apr | Z16: mai | AA16: jun | AB16: jul | AC16: aug | AD16: sep | AE16: okt | AF16: nov
A17: =IF(Klasse!B25="","",Klasse!B25) -> 13 | B17: =IF(Klasse!C25="","",Klasse!C25) -> Rosalinde
A18: =IF(Klasse!B26="","",Klasse!B26) -> 14 | B18: =IF(Klasse!C26="","",Klasse!C26) -> Dagobert
A19: =IF(Klasse!B27="","",Klasse!B27) -> 15 | B19: =IF(Klasse!C27="","",Klasse!C27) -> Gutemine
A20: =IF(Klasse!B28="","",Klasse!B28) -> 16 | B20: =IF(Klasse!C28="","",Klasse!C28) -> Asterix
A21: =IF(Klasse!B29="","",Klasse!B29) -> 17 | B21: =IF(Klasse!C29="","",Klasse!C29) -> Obelix
A22: =IF(Klasse!B30="","",Klasse!B30) -> 18 | B22: =IF(Klasse!C30="","",Klasse!C30) -> Winnifred
A23: =IF(Klasse!B31="","",Klasse!B31) ->  | B23: =IF(Klasse!C31="","",Klasse!C31) -> 
A24: =IF(Klasse!B32="","",Klasse!B32) ->  | B24: =IF(Klasse!C32="","",Klasse!C32) -> 
A25: =IF(Klasse!B33="","",Klasse!B33) ->  | B25: =IF(Klasse!C33="","",Klasse!C33) -> 
A26: =IF(Klasse!B34="","",Klasse!B34) ->  | B26: =IF(Klasse!C34="","",Klasse!C34) -> 
A27: =IF(Klasse!B35="","",Klasse!B35) ->  | B27: =IF(Klasse!C35="","",Klasse!C35) -> 
A28: =IF(Klasse!B36="","",Klasse!B36) ->  | B28: =IF(Klasse!C36="","",Klasse!C36) -> 
A29: =IF(Klasse!B37="","",Klasse!B37) ->  | B29: =IF(Klasse!C37="","",Klasse!C37) -> 
A30: =IF(Klasse!B38="","",Klasse!B38) ->  | B30: =IF(Klasse!C38="","",Klasse!C38) -> 
A31: =IF(Klasse!B39="","",Klasse!B39) ->  | B31: =IF(Klasse!C39="","",Klasse!C39) -> 
A32: =IF(Klasse!B40="","",Klasse!B40) ->  | B32: =IF(Klasse!C40="","",Klasse!C40) -> 

Sheet Aemtliplan
B1: Klassenliste mit Zufallsstart | F1: Zahlen-Zuordnung mit def. Pers. Und Ämtli mit Leerabstand | Y1: Einbezug von Klassengrösse (Max) = fertige Funktion | AS1: Namen-Zuteilung | BJ1: Namentrennung ---> | BL1: Verteilungsmuster | BN1: Ämtliverteilung | BT1: =Liste!E1 -> Frau Muster | BW1: =Liste!I1 -> 4. Klasse | BY1: =Liste!N1 -> 2017/18 | CG1: Verteilungsmuster
H2: =IF($CI16="","",$CI16) -> Bücherecke | I2: =IF($CI17="","",$CI17) -> Blumen giessen | J2: =IF($CI18="","",$CI18) -> Verteilen (rechts) | K2: =IF($CI19="","",$CI19) -> Wandtafel (Trocknen) | L2: =IF($CI20="","",$CI20) -> Verteilen (links) | M2: =IF($CI21="","",$CI21) -> Wandtafel (Schwamm) | N2: =IF($CI22="","",$CI22) -> Boden+ Brünneli | O2: =IF($CI23="","",$CI23) -> Finken | P2: =IF($CI24="","",$CI24) -> Karteikarten erstellen | Q2: =IF($CI25="","",$CI25) ->  | R2: =IF($CI26="","",$CI26) ->  | S2: =IF($CI27="","",$CI27) ->  | T2: =IF($CI28="","",$CI28) ->  | U2: =IF($CI29="","",$CI29) ->  | V2: =IF($CI30="","",$CI30) ->  | W2: =IF($CI31="","",$CI31) ->  | AA2: =H2 -> Bücherecke | AB2: Blumen giessen | AC2: Verteilen (rechts) | AD2: Wandtafel (Trocknen) | AE2: Verteilen (links) | AF2: Wandtafel (Schwamm) | AG2: Boden+ Brünneli | AH2: Finken | AI2: =P2 -> Karteikarten erstellen | AU2: =H2 -> Bücherecke | AV2: Blumen giessen | AW2: Verteilen (rechts) | AX2: Wandtafel (Trocknen) | AY2: Verteilen (links) | AZ2: Wandtafel (Schwamm) | BA2: Boden+ Brünneli | BB2: Finken | BC2: Karteikarten erstellen | BP2: =H2 -> Bücherecke | BQ2: Blumen giessen | BR2: Verteilen (rechts) | BS2: Wandtafel (Trocknen) | BT2: Verteilen (links) | BU2: Wandtafel (Schwamm) | BV2: Boden+ Brünneli | BW2: Finken | BX2: Karteikarten erstellen | CC2: =U2 ->  | CH2: erste Wochen-Nr. | CI2: 9
CH3: Anz. Wochen | CI3: 32
CH5: Startzahl (Schülernr.) | CI5: 15
B6: Max
B7: =MAX(B9:B36) -> 18 | CH7: Verteilungsschlüssel | CI7: 4
H8: =IF(H2="","",G8+1) -> 1 | I8: 2 | J8: 3 | K8: 4 | L8: 5 | M8: 6 | N8: 7 | O8: 8 | P8: 9 | AA8: =H8 -> 1 | AB8: =I8 -> 2 | AC8: 3 | AD8: 4 | AE8: 5 | AF8: 6 | AG8: 7 | AH8: 8 | AI8: 9 | AU8: =H8 -> 1 | AV8: 2 | AW8: 3 | AX8: 4 | AY8: 5 | AZ8: 6 | BA8: 7 | BB8: 8 | BC8: 9 | BP8: =AU8 -> 1 | BQ8: 2 | BR8: 3 | BS8: 4 | BT8: 5 | BU8: 6 | BV8: =BA8 -> 7 | BW8: 8 | BX8: 9 | CB8: =BG8 ->  | CH8: (Zahl) | CI8: =IF(AQ50=0,"OK","Achtung: Doppelämtli !!!") -> OK
B9: =IF(Klasse!B13=0,"",Klasse!B13) -> 1 | C9: =CI5 -> 15 | D9: =IF(Klasse!C13=0,"",Klasse!C13) -> Hans | F9: =IF(G9=0,"","Woche") -> Woche | G9: =IF(OR(CI2="",CI2=0),1,CI2) -> 9 | H9: =IF(H$8="","",($G9-1)+H$8+G$8*$CI$7) -> 9 | I9: 14 | J9: 19 | K9: 24 | L9: 29 | M9: 34 | N9: 39 | O9: 44 | P9: 49 | Q9: =IF(Q$8="","",(($G9-1)*7)+Q$8+P$8*$CI$7) ->  | Y9: =F9 -> Woche | Z9: =G9 -> 9 | AA9: =IF(OR(AA$8="",$Z9=""),"",IF(MOD(H9,$B$7)=0,$B$7,IF(H9>$B$7,H9-(INT(H9/$B$7)*$B$7),H9))) -> 9 | AB9: =IF(OR(AB$8="",$Z9=""),"",IF(MOD(I9,$B$7)=0,$B$7,IF(I9>$B$7,I9-(INT(I9/$B$7)*$B$7),I9))) -> 14 | AC9: =IF(OR(AC$8="",$Z9=""),"",IF(MOD(J9,$B$7)=0,$B$7,IF(J9>$B$7,J9-(INT(J9/$B$7)*$B$7),J9))) -> 1 | AD9: =IF(OR(AD$8="",$Z9=""),"",IF(MOD(K9,$B$7)=0,$B$7,IF(K9>$B$7,K9-(INT(K9/$B$7)*$B$7),K9))) -> 6 | AE9: =IF(OR(AE$8="",$Z9=""),"",IF(MOD(L9,$B$7)=0,$B$7,IF(L9>$B$7,L9-(INT(L9/$B$7)*$B$7),L9))) -> 11 | AF9: =IF(OR(AF$8="",$Z9=""),"",IF(MOD(M9,$B$7)=0,$B$7,IF(M9>$B$7,M9-(INT(M9/$B$7)*$B$7),M9))) -> 16 | AG9: =IF(OR(AG$8="",$Z9=""),"",IF(MOD(N9,$B$7)=0,$B$7,IF(N9>$B$7,N9-(INT(N9/$B$7)*$B$7),N9))) -> 3 | AH9: =IF(OR(AH$8="",$Z9=""),"",IF(MOD(O9,$B$7)=0,$B$7,IF(O9>$B$7,O9-(INT(O9/$B$7)*$B$7),O9))) -> 8 | AI9: =IF(OR(AI$8="",$Z9=""),"",IF(MOD(P9,$B$7)=0,$B$7,IF(P9>$B$7,P9-(INT(P9/$B$7)*$B$7),P9))) -> 13 | AJ9: =IF(OR(AJ$8="",$Z9=""),"",IF(MOD(Q9,$B$7)=0,$B$7,IF(Q9>$B$7,Q9-(INT(Q9/$B$7)*$B$7),Q9))) ->  | AK9: =IF(OR(AK$8="",$Z9=""),"",IF(MOD(R9,$B$7)=0,$B$7,IF(R9>$B$7,R9-(INT(R9/$B$7)*$B$7),R9))) ->  | AL9: =IF(OR(AL$8="",$Z9=""),"",IF(MOD(S9,$B$7)=0,$B$7,IF(S9>$B$7,S9-(INT(S9/$B$7)*$B$7),S9))) ->  | AM9: =IF(OR(AM$8="",$Z9=""),"",IF(MOD(T9,$B$7)=0,$B$7,IF(T9>$B$7,T9-(INT(T9/$B$7)*$B$7),T9))) ->  | AN9: =IF(OR(AN$8="",$Z9=""),"",IF(MOD(U9,$B$7)=0,$B$7,IF(U9>$B$7,U9-(INT(U9/$B$7)*$B$7),U9))) ->  | AO9: =IF(OR(AO$8="",$Z9=""),"",IF(MOD(V9,$B$7)=0,$B$7,IF(V9>$B$7,V9-(INT(V9/$B$7)*$B$7),V9))) ->  | AP9: =IF(OR(AP$8="",$Z9=""),"",IF(MOD(W9,$B$7)=0,$B$7,IF(W9>$B$7,W9-(INT(W9/$B$7)*$B$7),W9))) ->  | AQ9: =COUNT(AA9:AP9)-SUM(IF(AA9:AP9="",0,1/COUNTIF(AA9:AP9,AA9:AP9))) -> 0 | AS9: =F9 -> Woche | AT9: =G9 -> 9 | AU9: =IF(AA9="","",VLOOKUP(AA9,$C$9:$D$36,2,0)) -> Rosalinde | AV9: =IF(AB9="","",VLOOKUP(AB9,$C$9:$D$36,2,0)) -> Winnifred | AW9: =IF(AC9="","",VLOOKUP(AC9,$C$9:$D$36,2,0)) -> Lanzelot | AX9: =IF(AD9="","",VLOOKUP(AD9,$C$9:$D$36,2,0)) -> Kunibert | AY9: =IF(AE9="","",VLOOKUP(AE9,$C$9:$D$36,2,0)) -> Gutemine | AZ9: =IF(AF9="","",VLOOKUP(AF9,$C$9:$D$36,2,0)) -> Elisabeth | BA9: =IF(AG9="","",VLOOKUP(AG9,$C$9:$D$36,2,0)) -> Romeo | BB9: =IF(AH9="","",VLOOKUP(AH9,$C$9:$D$36,2,0)) -> Hagrid | BC9: =IF(AI9="","",VLOOKUP(AI9,$C$9:$D$36,2,0)) -> Obelix | BD9: =IF(AJ9="","",VLOOKUP(AJ9,$C$9:$D$36,2,0)) ->  | BE9: =IF(AK9="","",VLOOKUP(AK9,$C$9:$D$36,2,0)) ->  | BF9: =IF(AL9="","",VLOOKUP(AL9,$C$9:$D$36,2,0)) ->  | BG9: =IF(AM9="","",VLOOKUP(AM9,$C$9:$D$36,2,0)) ->  | BH9: =IF(AN9="","",VLOOKUP(AN9,$C$9:$D$36,2,0)) ->  | BI9: =IF(AO9="","",VLOOKUP(AO9,$C$9:$D$36,2,0)) ->  | BJ9: =IF(AP9="","",VLOOKUP(AP9,$C$9:$D$36,2,0)) ->  | BL9: =IF(BO9="","",COUNTIF(BP9:CE9,$BP$9)) -> 1 | BN9: =F9 -> Woche | BO9: =G9 -> 9 | BP9: =IF(AU9="","",IF($CI$12="Ja",MID(AU9,1,FIND(" ",AU9)+1),AU9)) -> Rosalinde | BQ9: =IF(AV9="","",IF($CI$12="Ja",MID(AV9,1,FIND(" ",AV9)+1),AV9)) -> Winnifred | BR9: =IF(AW9="","",IF($CI$12="Ja",MID(AW9,1,FIND(" ",AW9)+1),AW9)) -> Lanzelot | BS9: =IF(AX9="","",IF($CI$12="Ja",MID(AX9,1,FIND(" ",AX9)+1),AX9)) -> Kunibert | BT9: =IF(AY9="","",IF($CI$12="Ja",MID(AY9,1,FIND(" ",AY9)+1),AY9)) -> Gutemine | BU9: =IF(AZ9="","",IF($CI$12="Ja",MID(AZ9,1,FIND(" ",AZ9)+1),AZ9)) -> Elisabeth | BV9: =IF(BA9="","",IF($CI$12="Ja",MID(BA9,1,FIND(" ",BA9)+1),BA9)) -> Romeo | BW9: =IF(BB9="","",IF($CI$12="Ja",MID(BB9,1,FIND(" ",BB9)+1),BB9)) -> Hagrid | BX9: =IF(BC9="","",IF($CI$12="Ja",MID(BC9,1,FIND(" ",BC9)+1),BC9)) -> Obelix | BY9: =IF(BD9="","",IF($CI$12="Ja",MID(BD9,1,FIND(" ",BD9)+1),BD9)) ->  | BZ9: =IF(BE9="","",IF($CI$12="Ja",MID(BE9,1,FIND(" ",BE9)+1),BE9)) ->  | CA9: =IF(BF9="","",IF($CI$12="Ja",MID(BF9,1,FIND(" ",BF9)+1),BF9)) ->  | CB9: =IF(BG9="","",IF($CI$12="Ja",MID(BG9,1,FIND(" ",BG9)+1),BG9)) ->  | CC9: =IF(BH9="","",IF($CI$12="Ja",MID(BH9,1,FIND(" ",BH9)+1),BH9)) ->  | CD9: =IF(BI9="","",IF($CI$12="Ja",MID(BI9,1,FIND(" ",BI9)+1),BI9)) ->  | CE9: =IF(BJ9="","",IF($CI$12="Ja",MID(BJ9,1,FIND(" ",BJ9)+1),BJ9)) -> 
B10: =IF(Klasse!B14=0,"",Klasse!B14) -> 2 | C10: =IF(D10="","",IF(C9="","",IF(C9<MAX($B$9:$B$36),C9+1,1))) -> 16 | D10: =IF(Klasse!C14=0,"",Klasse!C14) -> Elisabeth | G10: =IF(G9="","",IF(G9<$CI$3+$G$9-1,G9+1,"")) -> 10 | H10: =IF(OR($G10="",H$8=""),"",H9+1) -> 10 | I10: =IF(OR($G10="",I$8=""),"",I9+1) -> 15 | J10: =IF(OR($G10="",J$8=""),"",J9+1) -> 20 | K10: =IF(OR($G10="",K$8=""),"",K9+1) -> 25 | L10: =IF(OR($G10="",L$8=""),"",L9+1) -> 30 | M10: =IF(OR($G10="",M$8=""),"",M9+1) -> 35 | N10: =IF(OR($G10="",N$8=""),"",N9+1) -> 40 | O10: =IF(OR($G10="",O$8=""),"",O9+1) -> 45 | P10: =IF(OR($G10="",P$8=""),"",P9+1) -> 50 | Q10: =IF(OR($G10="",Q$8=""),"",Q9+1) ->  | R10: =IF(OR($G10="",R$8=""),"",R9+1) ->  | S10: =IF(OR($G10="",S$8=""),"",S9+1) ->  | T10: =IF(OR($G10="",T$8=""),"",T9+1) ->  | U10: =IF(OR($G10="",U$8=""),"",U9+1) ->  | V10: =IF(OR($G10="",V$8=""),"",V9+1) ->  | W10: =IF(OR($G10="",W$8=""),"",W9+1) ->  | Z10: =G10 -> 10 | AA10: 10 | AB10: 15 | AC10: 2 | AD10: 7 | AE10: 12 | AF10: 17 | AG10: 4 | AH10: 9 | AI10: 14 | AQ10: =COUNT(AA10:AP10)-SUM(IF(AA10:AP10="",0,1/COUNTIF(AA10:AP10,AA10:AP10))) -> 0 | AT10: =G10 -> 10 | AU10: =IF(AA10="","",VLOOKUP(AA10,$C$9:$D$36,2,0)) -> Dagobert | AV10: Hans | AW10: Waltraud | AX10: Albertine | AY10: Asterix | AZ10: Kunigunde | BA10: Alfred | BB10: Rosalinde | BC10: Winnifred | BL10: 1 | BO10: =G10 -> 10 | BP10: =IF(AU10="","",IF($CI$12="Ja",MID(AU10,1,FIND(" ",AU10)+1),AU10)) -> Dagobert | BQ10: Hans | BR10: Waltraud | BS10: Albertine | BT10: Asterix | BU10: Kunigunde | BV10: Alfred | BW10: Rosalinde | BX10: Winnifred
B11: =IF(Klasse!B15=0,"",Klasse!B15) -> 3 | C11: 17 | D11: =IF(Klasse!C15=0,"",Klasse!C15) -> Kunigunde | G11: 11 | H11: =IF(OR($G11="",H$8=""),"",H10+1) -> 11 | I11: 16 | J11: 21 | K11: 26 | L11: 31 | M11: 36 | N11: 41 | O11: 46 | P11: 51 | Z11: 11 | AA11: 11 | AB11: 16 | AC11: 3 | AD11: 8 | AE11: 13 | AF11: 18 | AG11: 5 | AH11: 10 | AI11: 15 | AQ11: =COUNT(AA11:AP11)-SUM(IF(AA11:AP11="",0,1/COUNTIF(AA11:AP11,AA11:AP11))) -> 0 | AT11: 11 | AU11: Gutemine | AV11: Elisabeth | AW11: Romeo | AX11: Hagrid | AY11: Obelix | AZ11: Adalbert | BA11: Siglinde | BB11: Dagobert | BC11: Hans | BL11: 0 | BO11: 11 | BP11: Gutemine | BQ11: Elisabeth | BR11: Romeo | BS11: Hagrid | BT11: Obelix | BU11: Adalbert | BV11: Siglinde | BW11: Dagobert | BX11: Hans
B12: =IF(Klasse!B16=0,"",Klasse!B16) -> 4 | C12: 18 | D12: =IF(Klasse!C16=0,"",Klasse!C16) -> Adalbert | G12: 12 | H12: 12 | I12: 17 | J12: 22 | K12: 27 | L12: 32 | M12: 37 | N12: 42 | O12: 47 | P12: 52 | Z12: 12 | AA12: 12 | AB12: 17 | AC12: 4 | AD12: 9 | AE12: 14 | AF12: 1 | AG12: 6 | AH12: 11 | AI12: 16 | AQ12: =COUNT(AA12:AP12)-SUM(IF(AA12:AP12="",0,1/COUNTIF(AA12:AP12,AA12:AP12))) -> 0 | AT12: 12 | AU12: Asterix | AV12: Kunigunde | AW12: Alfred | AX12: Rosalinde | AY12: Winnifred | AZ12: Lanzelot | BA12: Kunibert | BB12: Gutemine | BC12: Elisabeth | BL12: 1 | BO12: 12 | BP12: Asterix | BQ12: Kunigunde | BR12: Alfred | BS12: Rosalinde | BT12: Winnifred | BU12: Lanzelot | BV12: Kunibert | BW12: Gutemine | BX12: Elisabeth | CH12: Namen kürzen | CI12: nein
B13: =IF(Klasse!B17=0,"",Klasse!B17) -> 5 | C13: 1 | D13: =IF(Klasse!C17=0,"",Klasse!C17) -> Lanzelot | G13: 13 | H13: 13 | I13: 18 | J13: 23 | K13: 28 | L13: 33 | M13: 38 | N13: 43 | O13: 48 | P13: 53 | Z13: 13 | AA13: 13 | AB13: 18 | AC13: 5 | AD13: 10 | AE13: 15 | AF13: 2 | AG13: 7 | AH13: 12 | AI13: 17 | AQ13: =COUNT(AA13:AP13)-SUM(IF(AA13:AP13="",0,1/COUNTIF(AA13:AP13,AA13:AP13))) -> 0 | AT13: 13 | AU13: Obelix | AV13: Adalbert | AW13: Siglinde | AX13: Dagobert | AY13: Hans | AZ13: Waltraud | BA13: Albertine | BB13: Asterix | BC13: Kunigunde | BL13: 0 | BO13: 13 | BP13: =IF(AU13="","",IF($CI$12="Ja",MID(AU13,1,FIND(" ",AU13)+1),AU13)) -> Obelix | BQ13: Adalbert | BR13: Siglinde | BS13: Dagobert | BT13: Hans | BU13: Waltraud | BV13: Albertine | BW13: Asterix | BX13: Kunigunde
B14: =IF(Klasse!B18=0,"",Klasse!B18) -> 6 | C14: 2 | D14: =IF(Klasse!C18=0,"",Klasse!C18) -> Waltraud | G14: 14 | H14: 14 | I14: 19 | J14: 24 | K14: 29 | L14: 34 | M14: 39 | N14: 44 | O14: 49 | P14: 54 | Z14: 14 | AA14: 14 | AB14: 1 | AC14: 6 | AD14: 11 | AE14: 16 | AF14: 3 | AG14: 8 | AH14: 13 | AI14: 18 | AQ14: =COUNT(AA14:AP14)-SUM(IF(AA14:AP14="",0,1/COUNTIF(AA14:AP14,AA14:AP14))) -> 0 | AT14: 14 | AU14: Winnifred | AV14: Lanzelot | AW14: Kunibert | AX14: Gutemine | AY14: Elisabeth | AZ14: Romeo | BA14: Hagrid | BB14: Obelix | BC14: Adalbert | BL14: 0 | BO14: 14 | BP14: Winnifred | BQ14: Lanzelot | BR14: Kunibert | BS14: Gutemine | BT14: Elisabeth | BU14: Romeo | BV14: Hagrid | BW14: Obelix | BX14: Adalbert
B15: =IF(Klasse!B19=0,"",Klasse!B19) -> 7 | C15: 3 | D15: =IF(Klasse!C19=0,"",Klasse!C19) -> Romeo | G15: 15 | H15: 15 | I15: 20 | J15: 25 | K15: 30 | L15: 35 | M15: 40 | N15: 45 | O15: 50 | P15: 55 | Z15: 15 | AA15: 15 | AB15: 2 | AC15: 7 | AD15: 12 | AE15: 17 | AF15: 4 | AG15: 9 | AH15: 14 | AI15: 1 | AQ15: =COUNT(AA15:AP15)-SUM(IF(AA15:AP15="",0,1/COUNTIF(AA15:AP15,AA15:AP15))) -> 0 | AT15: 15 | AU15: Hans | AV15: Waltraud | AW15: Albertine | AX15: Asterix | AY15: Kunigunde | AZ15: Alfred | BA15: Rosalinde | BB15: Winnifred | BC15: Lanzelot | BL15: 1 | BO15: 15 | BP15: Hans | BQ15: Waltraud | BR15: Albertine | BS15: Asterix | BT15: Kunigunde | BU15: Alfred | BV15: Rosalinde | BW15: Winnifred | BX15: Lanzelot | CI15: Ämtli
B16: =IF(Klasse!B20=0,"",Klasse!B20) -> 8 | C16: 4 | D16: =IF(Klasse!C20=0,"",Klasse!C20) -> Alfred | G16: 16 | H16: 16 | I16: 21 | J16: 26 | K16: 31 | L16: 36 | M16: 41 | N16: 46 | O16: 51 | P16: 56 | Z16: 16 | AA16: 16 | AB16: 3 | AC16: 8 | AD16: 13 | AE16: 18 | AF16: 5 | AG16: 10 | AH16: 15 | AI16: 2 | AQ16: =COUNT(AA16:AP16)-SUM(IF(AA16:AP16="",0,1/COUNTIF(AA16:AP16,AA16:AP16))) -> 0 | AT16: 16 | AU16: Elisabeth | AV16: Romeo | AW16: Hagrid | AX16: Obelix | AY16: Adalbert | AZ16: Siglinde | BA16: Dagobert | BB16: Hans | BC16: Waltraud | BL16: 0 | BO16: 16 | BP16: Elisabeth | BQ16: Romeo | BR16: Hagrid | BS16: Obelix | BT16: Adalbert | BU16: Siglinde | BV16: Dagobert | BW16: Hans | BX16: Waltraud | CH16: =IF(CI16=0,"",MAX(CH$2:CH2)+1) -> 1 | CI16: Bücherecke
B17: =IF(Klasse!B21=0,"",Klasse!B21) -> 9 | C17: 5 | D17: =IF(Klasse!C21=0,"",Klasse!C21) -> Siglinde | G17: 17 | H17: 17 | I17: 22 | J17: 27 | K17: 32 | L17: 37 | M17: 42 | N17: 47 | O17: 52 | P17: 57 | Z17: 17 | AA17: 17 | AB17: 4 | AC17: 9 | AD17: 14 | AE17: 1 | AF17: 6 | AG17: 11 | AH17: 16 | AI17: 3 | AQ17: =COUNT(AA17:AP17)-SUM(IF(AA17:AP17="",0,1/COUNTIF(AA17:AP17,AA17:AP17))) -> 0 | AT17: 17 | AU17: Kunigunde | AV17: Alfred | AW17: Rosalinde | AX17: Winnifred | AY17: Lanzelot | AZ17: Kunibert | BA17: Gutemine | BB17: Elisabeth | BC17: Romeo | BL17: 1 | BO17: 17 | BP17: Kunigunde | BQ17: Alfred | BR17: Rosalinde | BS17: Winnifred | BT17: Lanzelot | BU17: Kunibert | BV17: Gutemine | BW17: Elisabeth | BX17: Romeo | CH17: =IF(CI17=0,"",MAX(CH$2:CH16)+1) -> 2 | CI17: Blumen giessen
B18: =IF(Klasse!B22=0,"",Klasse!B22) -> 10 | C18: 6 | D18: =IF(Klasse!C22=0,"",Klasse!C22) -> Kunibert | G18: 18 | H18: 18 | I18: 23 | J18: 28 | K18: 33 | L18: 38 | M18: 43 | N18: 48 | O18: 53 | P18: 58 | Z18: 18 | AA18: 18 | AB18: 5 | AC18: 10 | AD18: 15 | AE18: 2 | AF18: 7 | AG18: 12 | AH18: 17 | AI18: 4 | AQ18: =COUNT(AA18:AP18)-SUM(IF(AA18:AP18="",0,1/COUNTIF(AA18:AP18,AA18:AP18))) -> 0 | AT18: 18 | AU18: Adalbert | AV18: Siglinde | AW18: Dagobert | AX18: Hans | AY18: Waltraud | AZ18: Albertine | BA18: Asterix | BB18: Kunigunde | BC18: Alfred | BL18: 0 | BO18: 18 | BP18: Adalbert | BQ18: Siglinde | BR18: Dagobert | BS18: Hans | BT18: Waltraud | BU18: Albertine | BV18: Asterix | BW18: Kunigunde | BX18: Alfred | CH18: =IF(CI18=0,"",MAX(CH$2:CH17)+1) -> 3 | CI18: Verteilen (rechts)
B19: =IF(Klasse!B23=0,"",Klasse!B23) -> 11 | C19: 7 | D19: =IF(Klasse!C23=0,"",Klasse!C23) -> Albertine | G19: 19 | H19: 19 | I19: 24 | J19: 29 | K19: 34 | L19: 39 | M19: 44 | N19: 49 | O19: 54 | P19: 59 | Z19: 19 | AA19: 1 | AB19: 6 | AC19: 11 | AD19: 16 | AE19: 3 | AF19: 8 | AG19: 13 | AH19: 18 | AI19: 5 | AQ19: =COUNT(AA19:AP19)-SUM(IF(AA19:AP19="",0,1/COUNTIF(AA19:AP19,AA19:AP19))) -> 0 | AT19: 19 | AU19: Lanzelot | AV19: Kunibert | AW19: Gutemine | AX19: Elisabeth | AY19: Romeo | AZ19: Hagrid | BA19: Obelix | BB19: Adalbert | BC19: Siglinde | BL19: 0 | BO19: 19 | BP19: Lanzelot | BQ19: Kunibert | BR19: Gutemine | BS19: Elisabeth | BT19: Romeo | BU19: Hagrid | BV19: Obelix | BW19: Adalbert | BX19: Siglinde | CH19: =IF(CI19=0,"",MAX(CH$2:CH18)+1) -> 4 | CI19: Wandtafel (Trocknen)
B20: =IF(Klasse!B24=0,"",Klasse!B24) -> 12 | C20: 8 | D20: =IF(Klasse!C24=0,"",Klasse!C24) -> Hagrid | G20: 20 | H20: 20 | I20: 25 | J20: 30 | K20: 35 | L20: 40 | M20: 45 | N20: 50 | O20: 55 | P20: 60 | Z20: 20 | AA20: 2 | AB20: 7 | AC20: 12 | AD20: 17 | AE20: 4 | AF20: 9 | AG20: 14 | AH20: 1 | AI20: 6 | AQ20: =COUNT(AA20:AP20)-SUM(IF(AA20:AP20="",0,1/COUNTIF(AA20:AP20,AA20:AP20))) -> 0 | AT20: 20 | AU20: Waltraud | AV20: Albertine | AW20: Asterix | AX20: Kunigunde | AY20: Alfred | AZ20: Rosalinde | BA20: Winnifred | BB20: Lanzelot | BC20: Kunibert | BL20: 1 | BO20: 20 | BP20: Waltraud | BQ20: Albertine | BR20: Asterix | BS20: Kunigunde | BT20: Alfred | BU20: Rosalinde | BV20: Winnifred | BW20: Lanzelot | BX20: Kunibert | CH20: =IF(CI20=0,"",MAX(CH$2:CH19)+1) -> 5 | CI20: Verteilen (links)
B21: =IF(Klasse!B25=0,"",Klasse!B25) -> 13 | C21: 9 | D21: =IF(Klasse!C25=0,"",Klasse!C25) -> Rosalinde | G21: 21 | H21: 21 | I21: 26 | J21: 31 | K21: 36 | L21: 41 | M21: 46 | N21: 51 | O21: 56 | P21: 61 | Z21: 21 | AA21: 3 | AB21: 8 | AC21: 13 | AD21: 18 | AE21: 5 | AF21: 10 | AG21: 15 | AH21: 2 | AI21: 7 | AQ21: =COUNT(AA21:AP21)-SUM(IF(AA21:AP21="",0,1/COUNTIF(AA21:AP21,AA21:AP21))) -> 0 | AT21: 21 | AU21: Romeo | AV21: Hagrid | AW21: Obelix | AX21: Adalbert | AY21: Siglinde | AZ21: Dagobert | BA21: Hans | BB21: Waltraud | BC21: Albertine | BL21: 0 | BO21: 21 | BP21: Romeo | BQ21: Hagrid | BR21: Obelix | BS21: Adalbert | BT21: Siglinde | BU21: Dagobert | BV21: Hans | BW21: Waltraud | BX21: Albertine | CH21: =IF(CI21=0,"",MAX(CH$2:CH20)+1) -> 6 | CI21: Wandtafel (Schwamm)
B22: =IF(Klasse!B26=0,"",Klasse!B26) -> 14 | C22: 10 | D22: =IF(Klasse!C26=0,"",Klasse!C26) -> Dagobert | G22: 22 | H22: 22 | I22: 27 | J22: 32 | K22: 37 | L22: 42 | M22: 47 | N22: 52 | O22: 57 | P22: 62 | Z22: 22 | AA22: 4 | AB22: 9 | AC22: 14 | AD22: 1 | AE22: 6 | AF22: 11 | AG22: 16 | AH22: 3 | AI22: 8 | AQ22: =COUNT(AA22:AP22)-SUM(IF(AA22:AP22="",0,1/COUNTIF(AA22:AP22,AA22:AP22))) -> 0 | AT22: 22 | AU22: Alfred | AV22: Rosalinde | AW22: Winnifred | AX22: Lanzelot | AY22: Kunibert | AZ22: Gutemine | BA22: Elisabeth | BB22: Romeo | BC22: Hagrid | BL22: 1 | BO22: 22 | BP22: Alfred | BQ22: Rosalinde | BR22: Winnifred | BS22: Lanzelot | BT22: Kunibert | BU22: Gutemine | BV22: Elisabeth | BW22: Romeo | BX22: Hagrid | CH22: =IF(CI22=0,"",MAX(CH$2:CH21)+1) -> 7 | CI22: Boden+ Brünneli
B23: =IF(Klasse!B27=0,"",Klasse!B27) -> 15 | C23: 11 | D23: =IF(Klasse!C27=0,"",Klasse!C27) -> Gutemine | G23: 23 | H23: 23 | I23: 28 | J23: 33 | K23: 38 | L23: 43 | M23: 48 | N23: 53 | O23: 58 | P23: 63 | Z23: 23 | AA23: 5 | AB23: 10 | AC23: 15 | AD23: 2 | AE23: 7 | AF23: 12 | AG23: 17 | AH23: 4 | AI23: 9 | AQ23: =COUNT(AA23:AP23)-SUM(IF(AA23:AP23="",0,1/COUNTIF(AA23:AP23,AA23:AP23))) -> 0 | AT23: 23 | AU23: Siglinde | AV23: Dagobert | AW23: Hans | AX23: Waltraud | AY23: Albertine | AZ23: Asterix | BA23: Kunigunde | BB23: Alfred | BC23: Rosalinde | BL23: 1 | BO23: 23 | BP23: Siglinde | BQ23: Dagobert | BR23: Hans | BS23: Waltraud | BT23: Albertine | BU23: Asterix | BV23: Kunigunde | BW23: Alfred | BX23: Rosalinde | CH23: =IF(CI23=0,"",MAX(CH$2:CH22)+1) -> 8 | CI23: Finken
B24: =IF(Klasse!B28=0,"",Klasse!B28) -> 16 | C24: 12 | D24: =IF(Klasse!C28=0,"",Klasse!C28) -> Asterix | G24: 24 | H24: 24 | I24: 29 | J24: 34 | K24: 39 | L24: 44 | M24: 49 | N24: 54 | O24: 59 | P24: 64 | Z24: 24 | AA24: 6 | AB24: 11 | AC24: 16 | AD24: 3 | AE24: 8 | AF24: 13 | AG24: 18 | AH24: 5 | AI24: 10 | AQ24: =COUNT(AA24:AP24)-SUM(IF(AA24:AP24="",0,1/COUNTIF(AA24:AP24,AA24:AP24))) -> 0 | AT24: 24 | AU24: Kunibert | AV24: Gutemine | AW24: Elisabeth | AX24: Romeo | AY24: Hagrid | AZ24: Obelix | BA24: Adalbert | BB24: Siglinde | BC24: Dagobert | BL24: 0 | BO24: 24 | BP24: Kunibert | BQ24: Gutemine | BR24: Elisabeth | BS24: Romeo | BT24: Hagrid | BU24: Obelix | BV24: Adalbert | BW24: Siglinde | BX24: Dagobert | CH24: =IF(CI24=0,"",MAX(CH$2:CH23)+1) -> 9 | CI24: Karteikarten erstellen
B25: =IF(Klasse!B29=0,"",Klasse!B29) -> 17 | C25: 13 | D25: =IF(Klasse!C29=0,"",Klasse!C29) -> Obelix | G25: 25 | H25: 25 | I25: 30 | J25: 35 | K25: 40 | L25: 45 | M25: 50 | N25: 55 | O25: 60 | P25: 65 | Z25: 25 | AA25: 7 | AB25: 12 | AC25: 17 | AD25: 4 | AE25: 9 | AF25: 14 | AG25: 1 | AH25: 6 | AI25: 11 | AQ25: =COUNT(AA25:AP25)-SUM(IF(AA25:AP25="",0,1/COUNTIF(AA25:AP25,AA25:AP25))) -> 0 | AT25: 25 | AU25: Albertine | AV25: Asterix | AW25: Kunigunde | AX25: Alfred | AY25: Rosalinde | AZ25: Winnifred | BA25: Lanzelot | BB25: Kunibert | BC25: Gutemine | BL25: 1 | BO25: 25 | BP25: Albertine | BQ25: Asterix | BR25: Kunigunde | BS25: Alfred | BT25: Rosalinde | BU25: Winnifred | BV25: Lanzelot | BW25: Kunibert | BX25: Gutemine | CH25: =IF(CI25=0,"",MAX(CH$2:CH24)+1) -> 
B26: =IF(Klasse!B30=0,"",Klasse!B30) -> 18 | C26: 14 | D26: =IF(Klasse!C30=0,"",Klasse!C30) -> Winnifred | G26: 26 | H26: 26 | I26: 31 | J26: 36 | K26: 41 | L26: 46 | M26: 51 | N26: 56 | O26: 61 | P26: 66 | Z26: 26 | AA26: 8 | AB26: 13 | AC26: 18 | AD26: 5 | AE26: 10 | AF26: 15 | AG26: 2 | AH26: 7 | AI26: 12 | AQ26: =COUNT(AA26:AP26)-SUM(IF(AA26:AP26="",0,1/COUNTIF(AA26:AP26,AA26:AP26))) -> 0 | AT26: 26 | AU26: Hagrid | AV26: Obelix | AW26: Adalbert | AX26: Siglinde | AY26: Dagobert | AZ26: Hans | BA26: Waltraud | BB26: Albertine | BC26: Asterix | BL26: 0 | BO26: 26 | BP26: Hagrid | BQ26: Obelix | BR26: Adalbert | BS26: Siglinde | BT26: Dagobert | BU26: Hans | BV26: Waltraud | BW26: Albertine | BX26: Asterix | CH26: =IF(CI26=0,"",MAX(CH$2:CH25)+1) -> 
B27: =IF(Klasse!B31=0,"",Klasse!B31) ->  | D27: =IF(Klasse!C31=0,"",Klasse!C31) ->  | G27: 27 | H27: 27 | I27: 32 | J27: 37 | K27: 42 | L27: 47 | M27: 52 | N27: 57 | O27: 62 | P27: 67 | Z27: 27 | AA27: 9 | AB27: 14 | AC27: 1 | AD27: 6 | AE27: 11 | AF27: 16 | AG27: 3 | AH27: 8 | AI27: 13 | AQ27: =COUNT(AA27:AP27)-SUM(IF(AA27:AP27="",0,1/COUNTIF(AA27:AP27,AA27:AP27))) -> 0 | AT27: 27 | AU27: Rosalinde | AV27: Winnifred | AW27: Lanzelot | AX27: Kunibert | AY27: Gutemine | AZ27: Elisabeth | BA27: Romeo | BB27: Hagrid | BC27: Obelix | BL27: 1 | BO27: 27 | BP27: Rosalinde | BQ27: Winnifred | BR27: Lanzelot | BS27: Kunibert | BT27: Gutemine | BU27: Elisabeth | BV27: Romeo | BW27: Hagrid | BX27: Obelix | CH27: =IF(CI27=0,"",MAX(CH$2:CH26)+1) -> 
B28: =IF(Klasse!B32=0,"",Klasse!B32) ->  | D28: =IF(Klasse!C32=0,"",Klasse!C32) ->  | G28: 28 | H28: 28 | I28: 33 | J28: 38 | K28: 43 | L28: 48 | M28: 53 | N28: 58 | O28: 63 | P28: 68 | Z28: 28 | AA28: 10 | AB28: 15 | AC28: 2 | AD28: 7 | AE28: 12 | AF28: 17 | AG28: 4 | AH28: 9 | AI28: 14 | AQ28: =COUNT(AA28:AP28)-SUM(IF(AA28:AP28="",0,1/COUNTIF(AA28:AP28,AA28:AP28))) -> 0 | AT28: 28 | AU28: Dagobert | AV28: Hans | AW28: Waltraud | AX28: Albertine | AY28: Asterix | AZ28: Kunigunde | BA28: Alfred | BB28: Rosalinde | BC28: Winnifred | BL28: 1 | BO28: 28 | BP28: Dagobert | BQ28: Hans | BR28: Waltraud | BS28: Albertine | BT28: Asterix | BU28: Kunigunde | BV28: Alfred | BW28: Rosalinde | BX28: Winnifred | CH28: =IF(CI28=0,"",MAX(CH$2:CH27)+1) -> 
B29: =IF(Klasse!B33=0,"",Klasse!B33) ->  | D29: =IF(Klasse!C33=0,"",Klasse!C33) ->  | G29: 29 | H29: 29 | I29: 34 | J29: 39 | K29: 44 | L29: 49 | M29: 54 | N29: 59 | O29: 64 | P29: 69 | Z29: 29 | AA29: 11 | AB29: 16 | AC29: 3 | AD29: 8 | AE29: 13 | AF29: 18 | AG29: 5 | AH29: 10 | AI29: 15 | AQ29: =COUNT(AA29:AP29)-SUM(IF(AA29:AP29="",0,1/COUNTIF(AA29:AP29,AA29:AP29))) -> 0 | AT29: 29 | AU29: Gutemine | AV29: Elisabeth | AW29: Romeo | AX29: Hagrid | AY29: Obelix | AZ29: Adalbert | BA29: Siglinde | BB29: Dagobert | BC29: Hans | BL29: 0 | BO29: 29 | BP29: Gutemine | BQ29: Elisabeth | BR29: Romeo | BS29: Hagrid | BT29: Obelix | BU29: Adalbert | BV29: Siglinde | BW29: Dagobert | BX29: Hans | CH29: =IF(CI29=0,"",MAX(CH$2:CH28)+1) -> 
B30: =IF(Klasse!B34=0,"",Klasse!B34) ->  | D30: =IF(Klasse!C34=0,"",Klasse!C34) ->  | G30: 30 | H30: 30 | I30: 35 | J30: 40 | K30: 45 | L30: 50 | M30: 55 | N30: 60 | O30: 65 | P30: 70 | Z30: 30 | AA30: 12 | AB30: 17 | AC30: 4 | AD30: 9 | AE30: 14 | AF30: 1 | AG30: 6 | AH30: 11 | AI30: 16 | AQ30: =COUNT(AA30:AP30)-SUM(IF(AA30:AP30="",0,1/COUNTIF(AA30:AP30,AA30:AP30))) -> 0 | AT30: 30 | AU30: Asterix | AV30: Kunigunde | AW30: Alfred | AX30: Rosalinde | AY30: Winnifred | AZ30: Lanzelot | BA30: Kunibert | BB30: Gutemine | BC30: Elisabeth | BL30: 1 | BO30: 30 | BP30: Asterix | BQ30: Kunigunde | BR30: Alfred | BS30: Rosalinde | BT30: Winnifred | BU30: Lanzelot | BV30: Kunibert | BW30: Gutemine | BX30: Elisabeth | CH30: =IF(CI30=0,"",MAX(CH$2:CH29)+1) -> 
B31: =IF(Klasse!B35=0,"",Klasse!B35) ->  | D31: =IF(Klasse!C35=0,"",Klasse!C35) ->  | G31: 31 | H31: 31 | I31: 36 | J31: 41 | K31: 46 | L31: 51 | M31: 56 | N31: 61 | O31: 66 | P31: 71 | Z31: 31 | AA31: 13 | AB31: 18 | AC31: 5 | AD31: 10 | AE31: 15 | AF31: 2 | AG31: 7 | AH31: 12 | AI31: 17 | AQ31: =COUNT(AA31:AP31)-SUM(IF(AA31:AP31="",0,1/COUNTIF(AA31:AP31,AA31:AP31))) -> 0 | AT31: 31 | AU31: Obelix | AV31: Adalbert | AW31: Siglinde | AX31: Dagobert | AY31: Hans | AZ31: Waltraud | BA31: Albertine | BB31: Asterix | BC31: Kunigunde | BL31: 0 | BO31: 31 | BP31: Obelix | BQ31: Adalbert | BR31: Siglinde | BS31: Dagobert | BT31: Hans | BU31: Waltraud | BV31: Albertine | BW31: Asterix | BX31: Kunigunde | CH31: =IF(CI31=0,"",MAX(CH$2:CH30)+1) -> 
B32: =IF(Klasse!B36=0,"",Klasse!B36) ->  | D32: =IF(Klasse!C36=0,"",Klasse!C36) ->  | G32: 32 | H32: 32 | I32: 37 | J32: 42 | K32: 47 | L32: 52 | M32: 57 | N32: 62 | O32: 67 | P32: 72 | Z32: 32 | AA32: 14 | AB32: 1 | AC32: 6 | AD32: 11 | AE32: 16 | AF32: 3 | AG32: 8 | AH32: 13 | AI32: 18 | AQ32: =COUNT(AA32:AP32)-SUM(IF(AA32:AP32="",0,1/COUNTIF(AA32:AP32,AA32:AP32))) -> 0 | AT32: 32 | AU32: Winnifred | AV32: Lanzelot | AW32: Kunibert | AX32: Gutemine | AY32: Elisabeth | AZ32: Romeo | BA32: Hagrid | BB32: Obelix | BC32: Adalbert | BL32: 0 | BO32: 32 | BP32: Winnifred | BQ32: Lanzelot | BR32: Kunibert | BS32: Gutemine | BT32: Elisabeth | BU32: Romeo | BV32: Hagrid | BW32: Obelix | BX32: Adalbert
B33: =IF(Klasse!B37=0,"",Klasse!B37) ->  | D33: =IF(Klasse!C37=0,"",Klasse!C37) ->  | G33: 33 | H33: 33 | I33: 38 | J33: 43 | K33: 48 | L33: 53 | M33: 58 | N33: 63 | O33: 68 | P33: 73 | Z33: 33 | AA33: 15 | AB33: 2 | AC33: 7 | AD33: 12 | AE33: 17 | AF33: 4 | AG33: 9 | AH33: 14 | AI33: 1 | AQ33: =COUNT(AA33:AP33)-SUM(IF(AA33:AP33="",0,1/COUNTIF(AA33:AP33,AA33:AP33))) -> 0 | AT33: 33 | AU33: Hans | AV33: Waltraud | AW33: Albertine | AX33: Asterix | AY33: Kunigunde | AZ33: Alfred | BA33: Rosalinde | BB33: Winnifred | BC33: Lanzelot | BL33: 1 | BO33: 33 | BP33: Hans | BQ33: Waltraud | BR33: Albertine | BS33: Asterix | BT33: Kunigunde | BU33: Alfred | BV33: Rosalinde | BW33: Winnifred | BX33: Lanzelot
B34: =IF(Klasse!B38=0,"",Klasse!B38) ->  | D34: =IF(Klasse!C38=0,"",Klasse!C38) ->  | G34: 34 | H34: 34 | I34: 39 | J34: 44 | K34: 49 | L34: 54 | M34: 59 | N34: 64 | O34: 69 | P34: 74 | Z34: 34 | AA34: 16 | AB34: 3 | AC34: 8 | AD34: 13 | AE34: 18 | AF34: 5 | AG34: 10 | AH34: 15 | AI34: 2 | AQ34: =COUNT(AA34:AP34)-SUM(IF(AA34:AP34="",0,1/COUNTIF(AA34:AP34,AA34:AP34))) -> 0 | AT34: 34 | AU34: Elisabeth | AV34: Romeo | AW34: Hagrid | AX34: Obelix | AY34: Adalbert | AZ34: Siglinde | BA34: Dagobert | BB34: Hans | BC34: Waltraud | BL34: 0 | BO34: 34 | BP34: Elisabeth | BQ34: Romeo | BR34: Hagrid | BS34: Obelix | BT34: Adalbert | BU34: Siglinde | BV34: Dagobert | BW34: Hans | BX34: Waltraud
B35: =IF(Klasse!B39=0,"",Klasse!B39) ->  | D35: =IF(Klasse!C39=0,"",Klasse!C39) ->  | G35: 35 | H35: 35 | I35: 40 | J35: 45 | K35: 50 | L35: 55 | M35: 60 | N35: 65 | O35: 70 | P35: 75 | Z35: 35 | AA35: 17 | AB35: 4 | AC35: 9 | AD35: 14 | AE35: 1 | AF35: 6 | AG35: 11 | AH35: 16 | AI35: 3 | AQ35: =COUNT(AA35:AP35)-SUM(IF(AA35:AP35="",0,1/COUNTIF(AA35:AP35,AA35:AP35))) -> 0 | AT35: 35 | AU35: Kunigunde | AV35: Alfred | AW35: Rosalinde | AX35: Winnifred | AY35: Lanzelot | AZ35: Kunibert | BA35: Gutemine | BB35: Elisabeth | BC35: Romeo | BL35: 1 | BO35: 35 | BP35: Kunigunde | BQ35: Alfred | BR35: Rosalinde | BS35: Winnifred | BT35: Lanzelot | BU35: Kunibert | BV35: Gutemine | BW35: Elisabeth | BX35: Romeo
B36: =IF(Klasse!B40=0,"",Klasse!B40) ->  | D36: =IF(Klasse!C40=0,"",Klasse!C40) ->  | G36: 36 | H36: 36 | I36: 41 | J36: 46 | K36: 51 | L36: 56 | M36: 61 | N36: 66 | O36: 71 | P36: 76 | Z36: 36 | AA36: 18 | AB36: 5 | AC36: 10 | AD36: 15 | AE36: 2 | AF36: 7 | AG36: 12 | AH36: 17 | AI36: 4 | AQ36: =COUNT(AA36:AP36)-SUM(IF(AA36:AP36="",0,1/COUNTIF(AA36:AP36,AA36:AP36))) -> 0 | AT36: 36 | AU36: Adalbert | AV36: Siglinde | AW36: Dagobert | AX36: Hans | AY36: Waltraud | AZ36: Albertine | BA36: Asterix | BB36: Kunigunde | BC36: Alfred | BL36: 0 | BO36: 36 | BP36: Adalbert | BQ36: Siglinde | BR36: Dagobert | BS36: Hans | BT36: Waltraud | BU36: Albertine | BV36: Asterix | BW36: Kunigunde | BX36: Alfred
G37: 37 | H37: 37 | I37: 42 | J37: 47 | K37: 52 | L37: 57 | M37: 62 | N37: 67 | O37: 72 | P37: 77 | Z37: 37 | AA37: 1 | AB37: 6 | AC37: 11 | AD37: 16 | AE37: 3 | AF37: 8 | AG37: 13 | AH37: 18 | AI37: 5 | AQ37: =COUNT(AA37:AP37)-SUM(IF(AA37:AP37="",0,1/COUNTIF(AA37:AP37,AA37:AP37))) -> 0 | AT37: 37 | AU37: Lanzelot | AV37: Kunibert | AW37: Gutemine | AX37: Elisabeth | AY37: Romeo | AZ37: Hagrid | BA37: Obelix | BB37: Adalbert | BC37: Siglinde | BL37: 0 | BO37: 37 | BP37: Lanzelot | BQ37: Kunibert | BR37: Gutemine | BS37: Elisabeth | BT37: Romeo | BU37: Hagrid | BV37: Obelix | BW37: Adalbert | BX37: Siglinde
G38: 38 | H38: 38 | I38: 43 | J38: 48 | K38: 53 | L38: 58 | M38: 63 | N38: 68 | O38: 73 | P38: 78 | Z38: 38 | AA38: 2 | AB38: 7 | AC38: 12 | AD38: 17 | AE38: 4 | AF38: 9 | AG38: 14 | AH38: 1 | AI38: 6 | AQ38: =COUNT(AA38:AP38)-SUM(IF(AA38:AP38="",0,1/COUNTIF(AA38:AP38,AA38:AP38))) -> 0 | AT38: 38 | AU38: Waltraud | AV38: Albertine | AW38: Asterix | AX38: Kunigunde | AY38: Alfred | AZ38: Rosalinde | BA38: Winnifred | BB38: Lanzelot | BC38: Kunibert | BL38: 1 | BO38: 38 | BP38: Waltraud | BQ38: Albertine | BR38: Asterix | BS38: Kunigunde | BT38: Alfred | BU38: Rosalinde | BV38: Winnifred | BW38: Lanzelot | BX38: Kunibert
G39: 39 | H39: 39 | I39: 44 | J39: 49 | K39: 54 | L39: 59 | M39: 64 | N39: 69 | O39: 74 | P39: 79 | Z39: 39 | AA39: 3 | AB39: 8 | AC39: 13 | AD39: 18 | AE39: 5 | AF39: 10 | AG39: 15 | AH39: 2 | AI39: 7 | AQ39: =COUNT(AA39:AP39)-SUM(IF(AA39:AP39="",0,1/COUNTIF(AA39:AP39,AA39:AP39))) -> 0 | AT39: 39 | AU39: Romeo | AV39: Hagrid | AW39: Obelix | AX39: Adalbert | AY39: Siglinde | AZ39: Dagobert | BA39: Hans | BB39: Waltraud | BC39: Albertine | BL39: 0 | BO39: 39 | BP39: Romeo | BQ39: Hagrid | BR39: Obelix | BS39: Adalbert | BT39: Siglinde | BU39: Dagobert | BV39: Hans | BW39: Waltraud | BX39: Albertine
C40: ="Zufallszahl (1-"&MAX($H$8:$AR$8)&")" -> Zufallszahl (1-9) | D40: =INT(RAND()*(MAX($H$8:$AR$8)-1)+1) -> 3 | G40: 40 | H40: 40 | I40: 45 | J40: 50 | K40: 55 | L40: 60 | M40: 65 | N40: 70 | O40: 75 | P40: 80 | Z40: 40 | AA40: 4 | AB40: 9 | AC40: 14 | AD40: 1 | AE40: 6 | AF40: 11 | AG40: 16 | AH40: 3 | AI40: 8 | AQ40: =COUNT(AA40:AP40)-SUM(IF(AA40:AP40="",0,1/COUNTIF(AA40:AP40,AA40:AP40))) -> 0 | AT40: 40 | AU40: Alfred | AV40: Rosalinde | AW40: Winnifred | AX40: Lanzelot | AY40: Kunibert | AZ40: Gutemine | BA40: Elisabeth | BB40: Romeo | BC40: Hagrid | BL40: 1 | BO40: 40 | BP40: Alfred | BQ40: Rosalinde | BR40: Winnifred | BS40: Lanzelot | BT40: Kunibert | BU40: Gutemine | BV40: Elisabeth | BW40: Romeo | BX40: Hagrid
AQ41: =COUNT(AA41:AP41)-SUM(IF(AA41:AP41="",0,1/COUNTIF(AA41:AP41,AA41:AP41))) -> 0
AQ42: =COUNT(AA42:AP42)-SUM(IF(AA42:AP42="",0,1/COUNTIF(AA42:AP42,AA42:AP42))) -> 0
AQ43: =COUNT(AA43:AP43)-SUM(IF(AA43:AP43="",0,1/COUNTIF(AA43:AP43,AA43:AP43))) -> 0
AQ44: =COUNT(AA44:AP44)-SUM(IF(AA44:AP44="",0,1/COUNTIF(AA44:AP44,AA44:AP44))) -> 0
AQ45: =COUNT(AA45:AP45)-SUM(IF(AA45:AP45="",0,1/COUNTIF(AA45:AP45,AA45:AP45))) -> 0
AQ46: =COUNT(AA46:AP46)-SUM(IF(AA46:AP46="",0,1/COUNTIF(AA46:AP46,AA46:AP46))) -> 0
AQ47: =COUNT(AA47:AP47)-SUM(IF(AA47:AP47="",0,1/COUNTIF(AA47:AP47,AA47:AP47))) -> 0
AQ48: =COUNT(AA48:AP48)-SUM(IF(AA48:AP48="",0,1/COUNTIF(AA48:AP48,AA48:AP48))) -> 0
AP50: Kontrollsumme: | AQ50: =SUM(AQ9:AQ48) -> 0

Sheet Pruefungsbewertung
A1: Prüfungs-Bewertung | E1: Datum: | F1: Dez 2017 | Q1: test | R1: Runden | Z1: Kurvenberechnung | AK1: Lineare Berechnung | AZ1: Verteilungs-Diagramm
F2: GM Abstand
E3: Thema:
D5: Punktemaximum | F5: 101
D6: davon Zusatzpunkte | F6: 6
D7: Lernziel (%) | F7: 0.6 | G7: =IF(F7="","",(F5-F6)*F7) -> 57 | H7: =IF(G7="","","Punkte") -> Punkte
D9: Kurve | F9: 0.6
D10: Notenschritte: | F10: 0.25
R11: runden
F12: Punkte | K12: =IF(F12="Note","","Kurve") -> Kurve | N12: =IF(F12="Note","","Unterschied") -> Unterschied | R12: vorher | S12: nachher | U12: 0.1 | V12: 0.25 | W12: 0.5 | X12: 1
C13: =IF(Klasse!B13="","",Klasse!B13) -> 1 | D13: =IF(Klasse!C13="","",Klasse!C13) -> Hans | F13: 70 | H13: =IF(C13="","",IF($F$12="Note",F13,IF(S13>0,S13,""))) -> 4.5 | K13: =IF($K$12="","",AI21) -> 4.572867244 | N13: =IF(COUNT(K13:L13)<2,"",ROUND(K13-L13,1)) ->  | R13: =IF($F$12="note",H13,IF($D$9="kurve",K13,L13)) -> 4.572867244 | S13: =IF($F$10=$U$12,U13,IF($F$10=$V$12,V13,IF($F$10=$W$12,W13,X13))) -> 4.5 | U13: =IF(R13="","",ROUND(R13,1)) -> 4.6 | V13: =IF(R13="","",ROUND(R13*4,0)/4) -> 4.5 | W13: =IF(R13="","",ROUND(R13*2,0)/2) -> 4.5 | X13: =IF(R13="","",ROUND(R13,0)) -> 5 | Z13: Punktemaximum | AA13: =F5 -> 101
C14: =IF(Klasse!B14="","",Klasse!B14) -> 2 | D14: =IF(Klasse!C14="","",Klasse!C14) -> Elisabeth | F14: 48 | H14: =IF(C14="","",IF($F$12="Note",F14,IF(S14>0,S14,""))) -> 3.75 | K14: =IF($K$12="","",AI22) -> 3.658141708 | R14: =IF($F$12="note",H14,IF($D$9="kurve",K14,L14)) -> 3.658141708 | S14: 3.75 | U14: =IF(R14="","",ROUND(R14,1)) -> 3.7 | V14: =IF(R14="","",ROUND(R14*4,0)/4) -> 3.75 | W14: =IF(R14="","",ROUND(R14*2,0)/2) -> 3.5 | X14: =IF(R14="","",ROUND(R14,0)) -> 4 | Z14: davon Zusatzpunkte | AA14: =F6 -> 6 | AL14: Punktemaximum | AM14: =F5 -> 101
C15: =IF(Klasse!B15="","",Klasse!B15) -> 3 | D15: =IF(Klasse!C15="","",Klasse!C15) -> Kunigunde | F15: 92 | H15: 5.75 | K15: 5.802370133 | R15: 5.802370133 | S15: 5.75 | U15: 5.8 | V15: 5.75 | W15: 6 | X15: 6 | Z15: Lernziel | AA15: =F7 -> 0.6 | AB15: =AA15*AA18 -> 57 | AL15: davon Zusatzpunkte: | AM15: =F6 -> 6
C16: =IF(Klasse!B16="","",Klasse!B16) -> 4 | D16: =IF(Klasse!C16="","",Klasse!C16) -> Adalbert | F16: 69 | H16: 4.5 | K16: 4.525159359 | R16: 4.525159359 | S16: 4.5 | U16: 4.5 | V16: 4.5 | W16: 4.5 | X16: 5 | Z16: kurve | AA16: =F9 -> 0.6 | AL16: Lernziel: | AM16: =F7 -> 0.6 | AN16: =ROUND((AM14-AM15)*AM16*2,0)/2 -> 57
C17: =IF(Klasse!B17="","",Klasse!B17) -> 5 | D17: =IF(Klasse!C17="","",Klasse!C17) -> Lanzelot | F17: 70 | H17: 4.5 | K17: 4.572867244 | R17: 4.572867244 | S17: 4.5 | U17: 4.6 | V17: 4.5 | W17: 4.5 | X17: 5 | AL17: Notenschritt pro 1/2 Punkt: | AM17: =(20/((AL23-AN16)*2))/10 -> 0.02631578947
C18: =IF(Klasse!B18="","",Klasse!B18) -> 6 | D18: =IF(Klasse!C18="","",Klasse!C18) -> Waltraud | F18: 92 | H18: 5.75 | K18: 5.802370133 | R18: 5.802370133 | S18: 5.75 | U18: 5.8 | V18: 5.75 | W18: 6 | X18: 6 | Z18: P(max) | AA18: =AA13-AA14 -> 95
C19: =IF(Klasse!B19="","",Klasse!B19) -> 7 | D19: =IF(Klasse!C19="","",Klasse!C19) -> Romeo | F19: 92 | H19: 5.75 | K19: 5.802370133 | R19: 5.802370133 | S19: 5.75 | U19: 5.8 | V19: 5.75 | W19: 6 | X19: 6
C20: =IF(Klasse!B20="","",Klasse!B20) -> 8 | D20: =IF(Klasse!C20="","",Klasse!C20) -> Alfred | F20: 61 | H20: 4.25 | K20: 4.165729146 | R20: 4.165729146 | S20: 4.25 | U20: 4.2 | V20: 4.25 | W20: 4 | X20: 4 | AC20: Punkte | AD20: Note | AH20: Punkte | AI20: Note
C21: =IF(Klasse!B21="","",Klasse!B21) -> 9 | D21: =IF(Klasse!C21="","",Klasse!C21) -> Siglinde | AH21: =(IF(F13=0,"",F13)) -> 70 | AI21: =IF(AH21="","",IF(AH21>$AA$13-$AA$14,6,VLOOKUP(AH21,$AC$22:$AD$200,2,0))) -> 4.572867244
C22: =IF(Klasse!B22="","",Klasse!B22) -> 10 | D22: =IF(Klasse!C22="","",Klasse!C22) -> Kunibert | F22: 85 | H22: 5.25 | K22: 5.371079994 | R22: 5.371079994 | S22: 5.25 | U22: 5.4 | V22: 5.25 | W22: 5.5 | X22: 5 | Z22: =AA18-AB15 -> 38 | AA22: =(2/(1-$AA$16^(-1)))*(1-$AA$16^((-1*Z22)/($AA$18-$AB$15))) -> 2 | AC22: =$AB$15+Z22 -> 95 | AD22: =4+AA22 -> 6 | AH22: =(IF(F14=0,"",F14)) -> 48 | AI22: =IF(AH22="","",IF(AH22>$AA$13-$AA$14,6,VLOOKUP(AH22,$AC$22:$AD$200,2,0))) -> 3.658141708 | AL22: Punkte | AN22: Note: | AW22: Punkte | AX22: Note | AZ22: 1/2 Note | BA22: u3 | BE22: Anzahl
C23: =IF(Klasse!B23="","",Klasse!B23) -> 11 | D23: =IF(Klasse!C23="","",Klasse!C23) -> Albertine | F23: 79 | H23: 5 | K23: 5.03236656 | R23: 5.03236656 | S23: 5 | U23: 5 | V23: 5 | W23: 5 | X23: 5 | Z23: =Z22-0.5 -> 37.5 | AA23: =(2/(1-$AA$16^(-1)))*(1-$AA$16^((-1*Z23)/($AA$18-$AB$15))) -> 1.966505741 | AC23: =IF(OR(AC22=0,AC22=""),"",$AB$15+Z23) -> 94.5 | AD23: =IF(AC23="","",4+AA23) -> 5.966505741 | AH23: 92 | AI23: =IF(AH23="","",IF(AH23>$AA$13-$AA$14,6,VLOOKUP(AH23,$AC$22:$AD$200,2,0))) -> 5.802370133 | AL23: =AM14-AM15 -> 95 | AN23: =6-($AM$17*(($AL$23-AL23)*2)) -> 6 | AW23: =IF(F13="","",F13) -> 70 | AX23: =IF(AW23="","",IF(AW23>$AL$23,6,ROUND(VLOOKUP(AW23,$AL$23:$AN$200,3,0),1))) -> 4.7 | AZ23: =W13 -> 4.5 | BA23: =IF(AZ23<3,1,0) -> 0 | BD23: u3 | BE23: =SUMIF(AZ23:AZ50,0-3) -> 0
C24: =IF(Klasse!B24="","",Klasse!B24) -> 12 | D24: =IF(Klasse!C24="","",Klasse!C24) -> Hagrid | F24: 79 | H24: 5 | K24: 5.03236656 | R24: 5.03236656 | S24: 5 | U24: 5 | V24: 5 | W24: 5 | X24: 5 | Z24: 37 | AA24: 1.933235855 | AC24: =IF(OR(AC23=0,AC23=""),"",$AB$15+Z24) -> 94 | AD24: =IF(AC24="","",4+AA24) -> 5.933235855 | AH24: 69 | AI24: 4.525159359 | AL24: =IF(OR(AL23=0,AL23=""),"",AL23-0.5) -> 94.5 | AN24: =IF(AL24="","",6-($AM$17*(($AL$23-AL24)*2))) -> 5.973684211 | AW24: =IF(F14="","",F14) -> 48 | AX24: =IF(AW24="","",IF(AW24>$AL$23,6,ROUND(VLOOKUP(AW24,$AL$23:$AN$200,3,0),1))) -> 3.5 | AZ24: =W14 -> 3.5 | BA24: =IF(AZ24<3,1,0) -> 0 | BD24: 3 | BE24: =COUNTIF($AZ$23:$AZ$50,BD24) -> 0
C25: =IF(Klasse!B25="","",Klasse!B25) -> 13 | D25: =IF(Klasse!C25="","",Klasse!C25) -> Rosalinde | F25: 73 | H25: 4.75 | K25: 4.719899909 | R25: 4.719899909 | S25: 4.75 | U25: 4.7 | V25: 4.75 | W25: 4.5 | X25: 5 | Z25: 36.5 | AA25: 1.90018884 | AC25: 93.5 | AD25: 5.90018884 | AH25: =(IF(F17=0,"",F17)) -> 70 | AI25: 4.572867244 | AL25: =IF(OR(AL24=0,AL24=""),"",AL24-0.5) -> 94 | AN25: =IF(AL25="","",6-($AM$17*(($AL$23-AL25)*2))) -> 5.947368421 | AW25: 92 | AX25: 5.8 | AZ25: 6 | BA25: 0 | BD25: 3.5 | BE25: 2
C26: =IF(Klasse!B26="","",Klasse!B26) -> 14 | D26: =IF(Klasse!C26="","",Klasse!C26) -> Dagobert | F26: 66 | H26: 4.5 | K26: 4.385824004 | R26: 4.385824004 | S26: 4.5 | U26: 4.4 | V26: 4.5 | W26: 4.5 | X26: 4 | Z26: 36 | AA26: 1.867363201 | AC26: 93 | AD26: 5.867363201 | AH26: 92 | AI26: 5.802370133 | AL26: 93.5 | AN26: 5.921052632 | AW26: 69 | AX26: 4.6 | AZ26: 4.5 | BA26: 0 | BD26: 4 | BE26: 2
C27: =IF(Klasse!B27="","",Klasse!B27) -> 15 | D27: =IF(Klasse!C27="","",Klasse!C27) -> Gutemine | F27: 94 | H27: 6 | K27: 5.933235855 | R27: 5.933235855 | S27: 6 | U27: 5.9 | V27: 6 | W27: 6 | X27: 6 | Z27: 35.5 | AA27: 1.834757456 | AC27: 92.5 | AD27: 5.834757456 | AH27: 92 | AI27: 5.802370133 | AL27: 93 | AN27: 5.894736842 | AW27: 70 | AX27: 4.7 | AZ27: 4.5 | BA27: 0 | BD27: 4.5 | BE27: 5
C28: =IF(Klasse!B28="","",Klasse!B28) -> 16 | D28: =IF(Klasse!C28="","",Klasse!C28) -> Asterix | F28: 48 | H28: 3.75 | K28: 3.658141708 | R28: 3.658141708 | S28: 3.75 | U28: 3.7 | V28: 3.75 | W28: 3.5 | X28: 4 | Z28: 35 | AA28: 1.802370133 | AC28: 92 | AD28: 5.802370133 | AH28: 61 | AI28: 4.165729146 | AL28: 92.5 | AN28: 5.868421053 | AW28: 92 | AX28: 5.8 | AZ28: 6 | BA28: 0 | BD28: 5 | BE28: 2
C29: =IF(Klasse!B29="","",Klasse!B29) -> 17 | D29: =IF(Klasse!C29="","",Klasse!C29) -> Obelix | F29: 52 | H29: 3.75 | K29: 3.804985559 | R29: 3.804985559 | S29: 3.75 | U29: 3.8 | V29: 3.75 | W29: 4 | X29: 4 | Z29: 34.5 | AA29: 1.770199767 | AC29: 91.5 | AD29: 5.770199767 | AL29: 92 | AN29: 5.842105263 | AW29: 92 | AX29: 5.8 | AZ29: 6 | BA29: 0 | BD29: 5.5 | BE29: 2
C30: =IF(Klasse!B30="","",Klasse!B30) -> 18 | D30: =IF(Klasse!C30="","",Klasse!C30) -> Winnifred | F30: 87 | H30: 5.5 | K30: 5.490192958 | R30: 5.490192958 | S30: 5.5 | U30: 5.5 | V30: 5.5 | W30: 5.5 | X30: 5 | Z30: 34 | AA30: 1.738244906 | AC30: 91 | AD30: 5.738244906 | AH30: 85 | AI30: 5.371079994 | AL30: 91.5 | AN30: 5.815789474 | AW30: 61 | AX30: 4.2 | AZ30: 4 | BA30: 0 | BD30: 6 | BE30: 4
C31: =IF(Klasse!B31="","",Klasse!B31) ->  | D31: =IF(Klasse!C31="","",Klasse!C31) ->  | Z31: 33.5 | AA31: 1.706504106 | AC31: 90.5 | AD31: 5.706504106 | AH31: 79 | AI31: 5.03236656 | AL31: 91 | AN31: 5.789473684 | BA31: 0 | BE31: =SUM(BE23:BE30) -> 17
C32: =IF(Klasse!B32="","",Klasse!B32) ->  | D32: =IF(Klasse!C32="","",Klasse!C32) ->  | Z32: 33 | AA32: 1.674975932 | AC32: 90 | AD32: 5.674975932 | AH32: 79 | AI32: 5.03236656 | AL32: 90.5 | AN32: 5.763157895 | AW32: 85 | AX32: 5.5 | AZ32: 5.5 | BA32: 0
C33: =IF(Klasse!B33="","",Klasse!B33) ->  | D33: =IF(Klasse!C33="","",Klasse!C33) ->  | Z33: 32.5 | AA33: 1.643658962 | AC33: 89.5 | AD33: 5.643658962 | AH33: 73 | AI33: 4.719899909 | AL33: 90 | AN33: 5.736842105 | AW33: 79 | AX33: 5.2 | AZ33: 5 | BA33: 0
C34: =IF(Klasse!B34="","",Klasse!B34) ->  | D34: =IF(Klasse!C34="","",Klasse!C34) ->  | Z34: 32 | AA34: 1.612551779 | AC34: 89 | AD34: 5.612551779 | AH34: 66 | AI34: 4.385824004 | AL34: 89.5 | AN34: 5.710526316 | AW34: 79 | AX34: 5.2 | AZ34: 5 | BA34: 0
C35: =IF(Klasse!B35="","",Klasse!B35) ->  | D35: =IF(Klasse!C35="","",Klasse!C35) ->  | L35: =IF($L$12="","",AX45) ->  | Z35: 31.5 | AA35: 1.581652978 | AC35: 88.5 | AD35: 5.581652978 | AH35: 94 | AI35: 5.933235855 | AL35: 89 | AN35: 5.684210526 | AW35: 73 | AX35: 4.8 | AZ35: 4.5 | BA35: 0
C36: =IF(Klasse!B36="","",Klasse!B36) ->  | D36: =IF(C36="","",Klasse!C36) ->  | Z36: 31 | AA36: 1.550961164 | AC36: 88 | AD36: 5.550961164 | AH36: 48 | AI36: 3.658141708 | AL36: 88.5 | AN36: 5.657894737 | AW36: 66 | AX36: 4.5 | AZ36: 4.5 | BA36: 0
C37: =IF(Klasse!B37="","",Klasse!B37) ->  | D37: =IF(Klasse!C37="","",Klasse!C37) ->  | Z37: 30.5 | AA37: 1.520474949 | AC37: 87.5 | AD37: 5.520474949 | AH37: 52 | AI37: 3.804985559 | AL37: 88 | AN37: 5.631578947 | AW37: 94 | AX37: 5.9 | AZ37: 6 | BA37: 0
C38: =IF(Klasse!B38="","",Klasse!B38) ->  | D38: =IF(Klasse!C38="","",Klasse!C38) ->  | Z38: 30 | AA38: 1.490192958 | AC38: 87 | AD38: 5.490192958 | AH38: 87 | AI38: 5.490192958 | AL38: 87.5 | AN38: 5.605263158 | AW38: 48 | AX38: 3.5 | AZ38: 3.5 | BA38: 0
C39: =IF(Klasse!B39="","",Klasse!B39) ->  | D39: =IF(Klasse!C39="","",Klasse!C39) ->  | Z39: 29.5 | AA39: 1.460113821 | AC39: 86.5 | AD39: 5.460113821 | AL39: 87 | AN39: 5.578947368 | AW39: 52 | AX39: 3.7 | AZ39: 4 | BA39: 0
C40: =IF(Klasse!B40="","",Klasse!B40) ->  | D40: =IF(Klasse!C40="","",Klasse!C40) ->  | Z40: 29 | AA40: 1.430236179 | AC40: 86 | AD40: 5.430236179 | AL40: 86.5 | AN40: 5.552631579 | AW40: 87 | AX40: 5.6 | AZ40: 5.5 | BA40: 0
H41: =IF(C41="","",IF($F$12="Note",F41,IF(S41>0,S41,""))) ->  | Z41: 28.5 | AA41: 1.400558684 | AC41: 85.5 | AD41: 5.400558684 | AL41: 86 | AN41: 5.526315789 | BA41: 0
E42: Schnitt: | F42: =AVERAGE(F13:F40) -> 73.94117647 | H42: =AVERAGE(H13:H40) -> 4.838235294 | K42: =IF(K12="","",AVERAGE(K13:K40)) -> 4.842939306 | L42: =IF(L12="","",AVERAGE(L13:L40)) ->  | N42: =IF(N12="","",AVERAGE(N13:N40)) ->  | Z42: 28 | AA42: 1.371079994 | AC42: 85 | AD42: 5.371079994 | AL42: 85.5 | AN42: 5.5 | BA42: 0
Z43: 27.5 | AA43: 1.341798777 | AC43: 84.5 | AD43: 5.341798777 | AL43: 85 | AN43: 5.473684211 | BA43: 0
Z44: 27 | AA44: 1.31271371 | AC44: 84 | AD44: 5.31271371 | AL44: 84.5 | AN44: 5.447368421 | BA44: 0
Z45: 26.5 | AA45: 1.28382348 | AC45: 83.5 | AD45: 5.28382348 | AL45: 84 | AN45: 5.421052632 | BA45: 0
Z46: 26 | AA46: 1.255126782 | AC46: 83 | AD46: 5.255126782 | AL46: 83.5 | AN46: 5.394736842 | BA46: 0
Z47: 25.5 | AA47: 1.226622318 | AC47: 82.5 | AD47: 5.226622318 | AL47: 83 | AN47: 5.368421053 | BA47: 0
Z48: 25 | AA48: 1.198308802 | AC48: 82 | AD48: 5.198308802 | AL48: 82.5 | AN48: 5.342105263 | BA48: 0
Z49: 24.5 | AA49: 1.170184954 | AC49: 81.5 | AD49: 5.170184954 | AL49: 82 | AN49: 5.315789474 | BA49: 0
Z50: 24 | AA50: 1.142249503 | AC50: 81 | AD50: 5.142249503 | AG50: Schnitt: | AH50: =AVERAGE(AH21:AH48) -> 73.94117647 | AI50: =AVERAGE(AI21:AI48) -> 4.842939306 | AL50: 81.5 | AN50: 5.289473684 | BA50: 0
Z51: 23.5 | AA51: 1.114501187 | AC51: 80.5 | AD51: 5.114501187 | AL51: 81 | AN51: 5.263157895
Z52: 23 | AA52: 1.086938754 | AC52: 80 | AD52: 5.086938754 | AL52: 80.5 | AN52: 5.236842105
Z53: 22.5 | AA53: 1.059560957 | AC53: 79.5 | AD53: 5.059560957 | AL53: 80 | AN53: 5.210526316
Z54: 22 | AA54: 1.03236656 | AC54: 79 | AD54: 5.03236656 | AL54: 79.5 | AN54: 5.184210526 | AV54: Schnitt: | AW54: =AVERAGE(AW23:AW50) -> 73.94117647 | AX54: =AVERAGE(AX23:AX50) -> 4.882352941
Z55: 21.5 | AA55: 1.005354334 | AC55: 78.5 | AD55: 5.005354334 | AL55: 79 | AN55: 5.157894737
Z56: 21 | AA56: 0.9785230589 | AC56: 78 | AD56: 4.978523059 | AL56: 78.5 | AN56: 5.131578947
Z57: 20.5 | AA57: 0.9518715227 | AC57: 77.5 | AD57: 4.951871523 | AL57: 78 | AN57: 5.105263158
Z58: 20 | AA58: 0.9253985211 | AC58: 77 | AD58: 4.925398521 | AL58: 77.5 | AN58: 5.078947368
Z59: 19.5 | AA59: 0.8991028583 | AC59: 76.5 | AD59: 4.899102858 | AL59: 77 | AN59: 5.052631579
Z60: 19 | AA60: 0.8729833462 | AC60: 76 | AD60: 4.872983346 | AL60: 76.5 | AN60: 5.026315789
Z61: 18.5 | AA61: 0.8470388049 | AC61: 75.5 | AD61: 4.847038805 | AL61: 76 | AN61: 5
Z62: 18 | AA62: 0.8212680622 | AC62: 75 | AD62: 4.821268062 | AL62: 75.5 | AN62: 4.973684211
Z63: 17.5 | AA63: 0.7956699538 | AC63: 74.5 | AD63: 4.795669954 | AL63: 75 | AN63: 4.947368421
Z64: 17 | AA64: 0.7702433234 | AC64: 74 | AD64: 4.770243323 | AL64: 74.5 | AN64: 4.921052632
Z65: 16.5 | AA65: 0.7449870223 | AC65: 73.5 | AD65: 4.744987022 | AL65: 74 | AN65: 4.894736842
Z66: 16 | AA66: 0.7198999093 | AC66: 73 | AD66: 4.719899909 | AL66: 73.5 | AN66: 4.868421053
Z67: 15.5 | AA67: 0.6949808513 | AC67: 72.5 | AD67: 4.694980851 | AL67: 73 | AN67: 4.842105263
Z68: 15 | AA68: 0.6702287222 | AC68: 72 | AD68: 4.670228722 | AL68: 72.5 | AN68: 4.815789474
Z69: 14.5 | AA69: 0.6456424041 | AC69: 71.5 | AD69: 4.645642404 | AL69: 72 | AN69: 4.789473684
Z70: 14 | AA70: 0.621220786 | AC70: 71 | AD70: 4.621220786 | AL70: 71.5 | AN70: 4.763157895
Z71: 13.5 | AA71: 0.5969627647 | AC71: 70.5 | AD71: 4.596962765 | AL71: 71 | AN71: 4.736842105
Z72: 13 | AA72: 0.5728672443 | AC72: 70 | AD72: 4.572867244 | AL72: 70.5 | AN72: 4.710526316
Z73: 12.5 | AA73: 0.5489331363 | AC73: 69.5 | AD73: 4.548933136 | AL73: 70 | AN73: 4.684210526
Z74: 12 | AA74: 0.5251593593 | AC74: 69 | AD74: 4.525159359 | AL74: 69.5 | AN74: 4.657894737
Z75: 11.5 | AA75: 0.5015448392 | AC75: 68.5 | AD75: 4.501544839 | AL75: 69 | AN75: 4.631578947
Z76: 11 | AA76: 0.4780885094 | AC76: 68 | AD76: 4.478088509 | AL76: 68.5 | AN76: 4.605263158
Z77: 10.5 | AA77: 0.45478931 | AC77: 67.5 | AD77: 4.45478931 | AL77: 68 | AN77: 4.578947368
Z78: 10 | AA78: 0.4316461885 | AC78: 67 | AD78: 4.431646189 | AL78: 67.5 | AN78: 4.552631579
Z79: 9.5 | AA79: 0.4086580994 | AC79: 66.5 | AD79: 4.408658099 | AL79: 67 | AN79: 4.526315789
Z80: 9 | AA80: 0.3858240041 | AC80: 66 | AD80: 4.385824004 | AL80: 66.5 | AN80: 4.5
Z81: 8.5 | AA81: 0.3631428709 | AC81: 65.5 | AD81: 4.363142871 | AL81: 66 | AN81: 4.473684211
Z82: 8 | AA82: 0.3406136754 | AC82: 65 | AD82: 4.340613675 | AL82: 65.5 | AN82: 4.447368421
Z83: 7.5 | AA83: 0.3182353995 | AC83: 64.5 | AD83: 4.3182354 | AL83: 65 | AN83: 4.421052632
Z84: 7 | AA84: 0.2960070325 | AC84: 64 | AD84: 4.296007032 | AL84: 64.5 | AN84: 4.394736842
Z85: 6.5 | AA85: 0.2739275699 | AC85: 63.5 | AD85: 4.27392757 | AL85: 64 | AN85: 4.368421053
Z86: 6 | AA86: 0.2519960144 | AC86: 63 | AD86: 4.251996014 | AL86: 63.5 | AN86: 4.342105263
Z87: =Z86-0.5 -> 5.5 | AA87: =(2/(1-$AA$16^(-1)))*(1-$AA$16^((-1*Z87)/($AA$18-$AB$15))) -> 0.2302113752 | AC87: 62.5 | AD87: 4.230211375 | AL87: 63 | AN87: 4.315789474
Z88: 5 | AA88: 0.208572668 | AC88: =IF(OR(AC87=0,AC87=""),"",$AB$15+Z88) -> 62 | AD88: =IF(AC88="","",4+AA88) -> 4.208572668 | AL88: 62.5 | AN88: 4.289473684
Z89: 4.5 | AA89: 0.1870789153 | AC89: 61.5 | AD89: 4.187078915 | AL89: =IF(OR(AL88=0,AL88=""),"",AL88-0.5) -> 62 | AN89: =IF(AL89="","",6-($AM$17*(($AL$23-AL89)*2))) -> 4.263157895
Z90: 4 | AA90: 0.165729146 | AC90: 61 | AD90: 4.165729146 | AL90: 61.5 | AN90: 4.236842105
Z91: 3.5 | AA91: 0.1445223957 | AC91: 60.5 | AD91: 4.144522396 | AL91: 61 | AN91: 4.210526316
Z92: 3 | AA92: 0.1234577063 | AC92: 60 | AD92: 4.123457706 | AL92: 60.5 | AN92: 4.184210526
Z93: 2.5 | AA93: 0.1025341261 | AC93: 59.5 | AD93: 4.102534126 | AL93: 60 | AN93: 4.157894737
Z94: 2 | AA94: 0.08175070992 | AC94: 59 | AD94: 4.08175071 | AL94: 59.5 | AN94: 4.131578947
Z95: 1.5 | AA95: 0.06110651873 | AC95: 58.5 | AD95: 4.061106519 | AL95: 59 | AN95: 4.105263158
Z96: 1 | AA96: 0.04060061991 | AC96: 58 | AD96: 4.04060062 | AL96: 58.5 | AN96: 4.078947368
Z97: 0.5 | AA97: 0.02023208706 | AC97: 57.5 | AD97: 4.020232087 | AL97: 58 | AN97: 4.052631579
Z98: 0 | AA98: 0 | AC98: 57 | AD98: 4 | AL98: 57.5 | AN98: 4.026315789
Z99: -0.5 | AA99: -0.02009655531 | AC99: 56.5 | AD99: 3.979903445 | AL99: 57 | AN99: 4
Z100: -1 | AA100: -0.04005848677 | AC100: 56 | AD100: 3.959941513 | AL100: 56.5 | AN100: 3.973684211
Z101: -1.5 | AA101: -0.05988669622 | AC101: 55.5 | AD101: 3.940113304 | AL101: 56 | AN101: 3.947368421
Z102: -2 | AA102: -0.07958207943 | AC102: 55 | AD102: 3.920417921 | AL102: 55.5 | AN102: 3.921052632
Z103: -2.5 | AA103: -0.09914552618 | AC103: 54.5 | AD103: 3.900854474 | AL103: 55 | AN103: 3.894736842
Z104: -3 | AA104: -0.1185779203 | AC104: 54 | AD104: 3.88142208 | AL104: 54.5 | AN104: 3.868421053
Z105: -3.5 | AA105: -0.1378801397 | AC105: 53.5 | AD105: 3.86211986 | AL105: 54 | AN105: 3.842105263
Z106: -4 | AA106: -0.1570530564 | AC106: 53 | AD106: 3.842946944 | AL106: 53.5 | AN106: 3.815789474
Z107: -4.5 | AA107: -0.1760975366 | AC107: 52.5 | AD107: 3.823902463 | AL107: 53 | AN107: 3.789473684
Z108: -5 | AA108: -0.1950144406 | AC108: 52 | AD108: 3.804985559 | AL108: 52.5 | AN108: 3.763157895
Z109: -5.5 | AA109: -0.2138046231 | AC109: 51.5 | AD109: 3.786195377 | AL109: 52 | AN109: 3.736842105
Z110: -6 | AA110: -0.2324689329 | AC110: 51 | AD110: 3.767531067 | AL110: 51.5 | AN110: 3.710526316
Z111: -6.5 | AA111: -0.2510082133 | AC111: 50.5 | AD111: 3.748991787 | AL111: 51 | AN111: 3.684210526
Z112: -7 | AA112: -0.2694233018 | AC112: 50 | AD112: 3.730576698 | AL112: 50.5 | AN112: 3.657894737
Z113: -7.5 | AA113: -0.2877150303 | AC113: 49.5 | AD113: 3.71228497 | AL113: 50 | AN113: 3.631578947
Z114: -8 | AA114: -0.3058842253 | AC114: 49 | AD114: 3.694115775 | AL114: 49.5 | AN114: 3.605263158
Z115: -8.5 | AA115: -0.3239317075 | AC115: 48.5 | AD115: 3.676068292 | AL115: 49 | AN115: 3.578947368
Z116: -9 | AA116: -0.3418582923 | AC116: 48 | AD116: 3.658141708 | AL116: 48.5 | AN116: 3.552631579
Z117: -9.5 | AA117: -0.3596647896 | AC117: 47.5 | AD117: 3.64033521 | AL117: 48 | AN117: 3.526315789
Z118: -10 | AA118: -0.3773520038 | AC118: 47 | AD118: 3.622647996 | AL118: 47.5 | AN118: 3.5
Z119: -10.5 | AA119: -0.394920734 | AC119: 46.5 | AD119: 3.605079266 | AL119: 47 | AN119: 3.473684211
Z120: -11 | AA120: -0.4123717738 | AC120: 46 | AD120: 3.587628226 | AL120: 46.5 | AN120: 3.447368421
Z121: -11.5 | AA121: -0.4297059118 | AC121: 45.5 | AD121: 3.570294088 | AL121: 46 | AN121: 3.421052632
Z122: -12 | AA122: -0.4469239309 | AC122: 45 | AD122: 3.553076069 | AL122: 45.5 | AN122: 3.394736842
Z123: -12.5 | AA123: -0.464026609 | AC123: 44.5 | AD123: 3.535973391 | AL123: 45 | AN123: 3.368421053
Z124: -13 | AA124: -0.4810147188 | AC124: 44 | AD124: 3.518985281 | AL124: 44.5 | AN124: 3.342105263
D125: Elisabeth | E125: 3.75 | Z125: =Z124-0.5 -> -13.5 | AA125: =(2/(1-$AA$16^(-1)))*(1-$AA$16^((-1*Z125)/($AA$18-$AB$15))) -> -0.4978890279 | AC125: =IF(OR(AC124=0,AC124=""),"",$AB$15+Z125) -> 43.5 | AD125: =IF(AC125="","",4+AA125) -> 3.502110972 | AL125: =IF(OR(AL124=0,AL124=""),"",AL124-0.5) -> 44 | AN125: =IF(AL125="","",6-($AM$17*(($AL$23-AL125)*2))) -> 3.315789474
D126: Asterix | E126: 3.75 | Z126: -14 | AA126: -0.5146502984 | AC126: 43 | AD126: 3.485349702 | AL126: 43.5 | AN126: 3.289473684
D127: Obelix | E127: 3.75 | Z127: -14.5 | AA127: -0.5312992876 | AC127: 42.5 | AD127: 3.468700712 | AL127: 43 | AN127: 3.263157895
D128: Alfred | E128: 4.25 | Z128: -15 | AA128: -0.5478367478 | AC128: 42 | AD128: 3.452163252 | AL128: 42.5 | AN128: 3.236842105
D129: Hans | E129: 4.5 | Z129: -15.5 | AA129: -0.5642634259 | AC129: 41.5 | AD129: 3.435736574 | AL129: 42 | AN129: 3.210526316
D130: Adalbert | E130: 4.5 | Z130: -16 | AA130: -0.5805800642 | AC130: 41 | AD130: 3.419419936 | AL130: 41.5 | AN130: 3.184210526
D131: Lanzelot | E131: 4.5 | Z131: -16.5 | AA131: -0.5967873997 | AC131: 40.5 | AD131: 3.4032126 | AL131: 41 | AN131: 3.157894737
D132: Dagobert | E132: 4.5 | Z132: -17 | AA132: -0.6128861647 | AC132: 40 | AD132: 3.387113835 | AL132: 40.5 | AN132: 3.131578947
D133: Rosalinde | E133: 4.75 | Z133: -17.5 | AA133: -0.6288770864 | AC133: 39.5 | AD133: 3.371122914 | AL133: 40 | AN133: 3.105263158
D134: Albertine | E134: 5 | Z134: -18 | AA134: -0.6447608873 | AC134: 39 | AD134: 3.355239113 | AL134: 39.5 | AN134: 3.078947368
D135: Hagrid | E135: 5 | Z135: -18.5 | AA135: -0.660538285 | AC135: 38.5 | AD135: 3.339461715 | AL135: 39 | AN135: 3.052631579
D136: Kunibert | E136: 5.25 | Z136: -19 | AA136: -0.6762099923 | AC136: 38 | AD136: 3.323790008 | AL136: 38.5 | AN136: 3.026315789
D137: Winnifred | E137: 5.5 | Z137: -19.5 | AA137: -0.6917767171 | AC137: 37.5 | AD137: 3.308223283 | AL137: 38 | AN137: 3
D138: Kunigunde | E138: 5.75 | Z138: -20 | AA138: -0.7072391627 | AC138: 37 | AD138: 3.292760837 | AL138: 37.5 | AN138: 2.973684211
D139: Waltraud | E139: 5.75 | Z139: -20.5 | AA139: -0.7225980277 | AC139: 36.5 | AD139: 3.277401972 | AL139: 37 | AN139: 2.947368421
D140: Romeo | E140: 5.75 | Z140: -21 | AA140: -0.7378540059 | AC140: 36 | AD140: 3.262145994 | AL140: 36.5 | AN140: 2.921052632
D141: Gutemine | E141: 6 | Z141: -21.5 | AA141: -0.7530077866 | AC141: 35.5 | AD141: 3.246992213 | AL141: 36 | AN141: 2.894736842
D142: Siglinde | Z142: -22 | AA142: -0.7680600544 | AC142: 35 | AD142: 3.231939946 | AL142: 35.5 | AN142: 2.868421053
Z143: -22.5 | AA143: -0.7830114892 | AC143: 34.5 | AD143: 3.216988511 | AL143: 35 | AN143: 2.842105263
Z144: -23 | AA144: -0.7978627667 | AC144: 34 | AD144: 3.202137233 | AL144: 34.5 | AN144: 2.815789474
Z145: -23.5 | AA145: -0.8126145576 | AC145: 33.5 | AD145: 3.187385442 | AL145: 34 | AN145: 2.789473684
Z146: -24 | AA146: -0.8272675284 | AC146: 33 | AD146: 3.172732472 | AL146: 33.5 | AN146: 2.763157895
Z147: -24.5 | AA147: -0.8418223412 | AC147: 32.5 | AD147: 3.158177659 | AL147: 33 | AN147: 2.736842105
Z148: -25 | AA148: -0.8562796534 | AC148: 32 | AD148: 3.143720347 | AL148: 32.5 | AN148: 2.710526316
Z149: -25.5 | AA149: -0.8706401182 | AC149: 31.5 | AD149: 3.129359882 | AL149: 32 | AN149: 2.684210526
Z150: -26 | AA150: -0.8849043844 | AC150: 31 | AD150: 3.115095616 | AL150: 31.5 | AN150: 2.657894737
Z151: -26.5 | AA151: -0.8990730965 | AC151: 30.5 | AD151: 3.100926904 | AL151: 31 | AN151: 2.631578947
Z152: -27 | AA152: -0.9131468944 | AC152: 30 | AD152: 3.086853106 | AL152: 30.5 | AN152: 2.605263158
Z153: =Z152-0.5 -> -27.5 | AA153: =(2/(1-$AA$16^(-1)))*(1-$AA$16^((-1*Z153)/($AA$18-$AB$15))) -> -0.927126414 | AC153: =IF(OR(AC152=0,AC152=""),"",$AB$15+Z153) -> 29.5 | AD153: =IF(AC153="","",4+AA153) -> 3.072873586 | AL153: =IF(OR(AL152=0,AL152=""),"",AL152-0.5) -> 30 | AN153: =IF(AL153="","",6-($AM$17*(($AL$23-AL153)*2))) -> 2.578947368
Z154: -28 | AA154: -0.9410122869 | AC154: 29 | AD154: 3.058987713 | AL154: 29.5 | AN154: 2.552631579
Z155: -28.5 | AA155: -0.9548051404 | AC155: 28.5 | AD155: 3.04519486 | AL155: 29 | AN155: 2.526315789
Z156: -29 | AA156: -0.9685055976 | AC156: 28 | AD156: 3.031494402 | AL156: 28.5 | AN156: 2.5
Z157: -29.5 | AA157: -0.9821142774 | AC157: 27.5 | AD157: 3.017885723 | AL157: 28 | AN157: 2.473684211
Z158: -30 | AA158: -0.9956317948 | AC158: 27 | AD158: 3.004368205 | AL158: 27.5 | AN158: 2.447368421
Z159: -30.5 | AA159: -1.00905876 | AC159: 26.5 | AD159: 2.99094124 | AL159: 27 | AN159: 2.421052632
Z160: -31 | AA160: -1.022395781 | AC160: 26 | AD160: 2.977604219 | AL160: 26.5 | AN160: 2.394736842
Z161: -31.5 | AA161: -1.035643458 | AC161: 25.5 | AD161: 2.964356542 | AL161: 26 | AN161: 2.368421053
Z162: -32 | AA162: -1.048802391 | AC162: 25 | AD162: 2.951197609 | AL162: 25.5 | AN162: 2.342105263
Z163: -32.5 | AA163: -1.061873175 | AC163: 24.5 | AD163: 2.938126825 | AL163: 25 | AN163: 2.315789474
Z164: -33 | AA164: -1.074856399 | AC164: 24 | AD164: 2.925143601 | AL164: 24.5 | AN164: 2.289473684
Z165: -33.5 | AA165: -1.087752651 | AC165: 23.5 | AD165: 2.912247349 | AL165: 24 | AN165: 2.263157895
Z166: -34 | AA166: -1.100562512 | AC166: 23 | AD166: 2.899437488 | AL166: 23.5 | AN166: 2.236842105
Z167: -34.5 | AA167: -1.113286563 | AC167: 22.5 | AD167: 2.886713437 | AL167: 23 | AN167: 2.210526316
Z168: -35 | AA168: -1.125925376 | AC168: 22 | AD168: 2.874074624 | AL168: 22.5 | AN168: 2.184210526
Z169: -35.5 | AA169: -1.138479524 | AC169: 21.5 | AD169: 2.861520476 | AL169: 22 | AN169: 2.157894737
Z170: -36 | AA170: -1.150949574 | AC170: 21 | AD170: 2.849050426 | AL170: 21.5 | AN170: 2.131578947
Z171: -36.5 | AA171: -1.163336089 | AC171: 20.5 | AD171: 2.836663911 | AL171: 21 | AN171: 2.105263158
Z172: -37 | AA172: -1.175639628 | AC172: 20 | AD172: 2.824360372 | AL172: 20.5 | AN172: 2.078947368
Z173: -37.5 | AA173: -1.187860748 | AC173: 19.5 | AD173: 2.812139252 | AL173: 20 | AN173: 2.052631579
Z174: -38 | AA174: -1.2 | AC174: 19 | AD174: 2.8 | AL174: 19.5 | AN174: 2.026315789
Z175: -38.5 | AA175: -1.212057933 | AC175: 18.5 | AD175: 2.787942067 | AL175: 19 | AN175: 2
Z176: -39 | AA176: -1.224035092 | AC176: 18 | AD176: 2.775964908 | AL176: 18.5 | AN176: 1.973684211
Z177: -39.5 | AA177: -1.235932018 | AC177: 17.5 | AD177: 2.764067982 | AL177: 18 | AN177: 1.947368421
Z178: -40 | AA178: -1.247749248 | AC178: 17 | AD178: 2.752250752 | AL178: 17.5 | AN178: 1.921052632
Z179: -40.5 | AA179: -1.259487316 | AC179: 16.5 | AD179: 2.740512684 | AL179: 17 | AN179: 1.894736842
Z180: -41 | AA180: -1.271146752 | AC180: 16 | AD180: 2.728853248 | AL180: 16.5 | AN180: 1.868421053
Z181: -41.5 | AA181: -1.282728084 | AC181: 15.5 | AD181: 2.717271916 | AL181: 16 | AN181: 1.842105263
Z182: -42 | AA182: -1.294231834 | AC182: 15 | AD182: 2.705768166 | AL182: 15.5 | AN182: 1.815789474
Z183: -42.5 | AA183: -1.305658522 | AC183: 14.5 | AD183: 2.694341478 | AL183: 15 | AN183: 1.789473684
Z184: -43 | AA184: -1.317008664 | AC184: 14 | AD184: 2.682991336 | AL184: 14.5 | AN184: 1.763157895
Z185: -43.5 | AA185: -1.328282774 | AC185: 13.5 | AD185: 2.671717226 | AL185: 14 | AN185: 1.736842105
Z186: -44 | AA186: -1.33948136 | AC186: 13 | AD186: 2.66051864 | AL186: 13.5 | AN186: 1.710526316
Z187: -44.5 | AA187: -1.350604928 | AC187: 12.5 | AD187: 2.649395072 | AL187: 13 | AN187: 1.684210526
Z188: -45 | AA188: -1.361653981 | AC188: 12 | AD188: 2.638346019 | AL188: 12.5 | AN188: 1.657894737
Z189: -45.5 | AA189: -1.372629018 | AC189: 11.5 | AD189: 2.627370982 | AL189: 12 | AN189: 1.631578947
Z190: -46 | AA190: -1.383530535 | AC190: 11 | AD190: 2.616469465 | AL190: 11.5 | AN190: 1.605263158
Z191: -46.5 | AA191: -1.394359025 | AC191: 10.5 | AD191: 2.605640975 | AL191: 11 | AN191: 1.578947368
Z192: -47 | AA192: -1.405114975 | AC192: 10 | AD192: 2.594885025 | AL192: 10.5 | AN192: 1.552631579
Z193: -47.5 | AA193: -1.415798874 | AC193: 9.5 | AD193: 2.584201126 | AL193: 10 | AN193: 1.526315789
Z194: -48 | AA194: -1.426411202 | AC194: 9 | AD194: 2.573588798 | AL194: 9.5 | AN194: 1.5
Z195: -48.5 | AA195: -1.43695244 | AC195: 8.5 | AD195: 2.56304756 | AL195: 9 | AN195: 1.473684211
Z196: -49 | AA196: -1.447423064 | AC196: 8 | AD196: 2.552576936 | AL196: 8.5 | AN196: 1.447368421
Z197: -49.5 | AA197: -1.457823547 | AC197: 7.5 | AD197: 2.542176453 | AL197: 8 | AN197: 1.421052632
Z198: -50 | AA198: -1.468154359 | AC198: 7 | AD198: 2.531845641 | AL198: 7.5 | AN198: 1.394736842
Z199: -50.5 | AA199: -1.478415965 | AC199: 6.5 | AD199: 2.521584035 | AL199: 7 | AN199: 1.368421053
Z200: -51 | AA200: -1.488608831 | AC200: 6 | AD200: 2.511391169 | AL200: 6.5 | AN200: 1.342105263

Sheet Sportbewertung
A1: Sportbewertung | BV1: =Liste!I1&"_"&Liste!E1 &"_"&Liste!N1 -> 4. Klasse_Frau Muster_2017/18
D3: Leichtathletik | M3: Geraeteturnen | T3: Spiele
D4: Weitsprung | F4: Weitwurf (200g) | H4: 60m-Lauf | J4: Dauerlauf | M4: Ringturnen | O4: Stangen-klettern | T4: Fussball | U4: Handball | V4: Hockey | W4: Volleyball | X4: Fairness | AW4: gerechneter Wertfaktor
B5: Gewichtung: | E5: 1 | G5: 1 | I5: 1 | K5: 1 | N5: 1 | P5: 1 | R5: 1 | T5: 1 | U5: 1 | V5: 1 | W5: 1 | X5: 1 | AW5: =IF(ISNUMBER(E5),E5,"-") -> 1 | AX5: - | AY5: 1 | AZ5: - | BA5: 1 | BB5: - | BC5: 1 | BD5: - | BE5: - | BF5: 1 | BG5: - | BH5: 1 | BI5: - | BJ5: 1 | BK5: - | BL5: 1 | BM5: 1 | BN5: 1 | BO5: 1 | BP5: 1 | BT5: Ø | BV5: Note
B7: Masseinheit | D7: m | E7: Note | F7: m | G7: Note | H7: s | I7: Note | J7: s | K7: Note | M7: p | N7: Note | O7: s | P7: Note | Q7: s | R7: Note | T7: Note | U7: Note | V7: Note | W7: Note | X7: Note | AU7: Summe | BR7: Anzahl
A9: =IF(B9="","",A8+1) -> 1 | B9: =IF(Klasse!C13="","",Klasse!C13) -> Hans | E9: =IF(D9="","",IF(AND(D$7="s",D9<=D$40),6,IF(AND(OR(D$7="m",D$7="p"),D9>=D$40),6,IF(ISTEXT(D9),D$44,VLOOKUP(D9,D$51:E$303,2,0))))) ->  | G9: =IF(F9="","",IF(AND(F$7="s",F9<=F$40),6,IF(AND(OR(F$7="m",F$7="p"),F9>=F$40),6,IF(ISTEXT(F9),F$44,VLOOKUP(F9,F$51:G$303,2,0))))) ->  | I9: =IF(H9="","",IF(AND(H$7="s",H9<=H$40),6,IF(AND(OR(H$7="m",H$7="p"),H9>=H$40),6,IF(ISTEXT(H9),H$44,VLOOKUP(H9,H$51:I$303,2,0))))) ->  | K9: =IF(J9="","",IF(AND(J$7="s",J9<=J$40),6,IF(AND(OR(J$7="m",J$7="p"),J9>=J$40),6,VLOOKUP(J9,J$51:K$303,2,0)))) ->  | N9: =IF(M9="","",IF(AND(M$7="s",M9<=M$40),6,IF(AND(OR(M$7="m",M$7="p"),M9>=M$40),6,IF(ISTEXT(M9),M$44,VLOOKUP(M9,M$51:N$303,2,0))))) ->  | P9: =IF(O9="","",IF(AND(O$7="s",O9<=O$40),6,IF(AND(OR(O$7="m",O$7="p"),O9>=O$40),6,IF(ISTEXT(O9),O$44,VLOOKUP(O9,O$51:P$303,2,0))))) ->  | Z9: =IF(ISNUMBER(E9),E9*E$5,"-") -> - | AB9: =IF(ISNUMBER(G9),G9*G$5,"-") -> - | AD9: =IF(ISNUMBER(I9),I9*I$5,"-") -> - | AF9: =IF(ISNUMBER(K9),K9*K$5,"-") -> - | AI9: =IF(ISNUMBER(N9),N9*N$5,"-") -> - | AK9: =IF(ISNUMBER(P9),P9*P$5,"-") -> - | AM9: =IF(ISNUMBER(R9),R9*R$5,"-") -> - | AO9: =IF(ISNUMBER(T9),T9*T$5,"-") -> - | AP9: =IF(ISNUMBER(U9),U9*U$5,"-") -> - | AQ9: =IF(ISNUMBER(V9),V9*V$5,"-") -> - | AR9: =IF(ISNUMBER(W9),W9*W$5,"-") -> - | AS9: =IF(ISNUMBER(X9),X9*X$5,"-") -> - | AU9: =IF(B9="","",SUM(Z9:AS9)) -> 0 | AV9: / | AW9: =IF(Z9="-","-",AW$5) -> - | AY9: =IF(AB9="-","-",AY$5) -> - | BA9: =IF(AD9="-","-",BA$5) -> - | BC9: =IF(AF9="-","-",BC$5) -> - | BF9: =IF(AI9="-","-",BF$5) -> - | BH9: =IF(AK9="-","-",BH$5) -> - | BJ9: =IF(AM9="-","-",BJ$5) -> - | BL9: =IF(AO9="-","-",BL$5) -> - | BM9: =IF(AP9="-","-",BM$5) -> - | BN9: =IF(AQ9="-","-",BN$5) -> - | BO9: =IF(AR9="-","-",BO$5) -> - | BP9: =IF(AS9="-","-",BP$5) -> - | BR9: =IF(B9="","",SUM(AW9:BP9)) -> 0 | BS9: ≈ | BT9: =IF(OR(AU9=0,AU9=""),"",AU9/BR9) -> 
A10: 2 | B10: =IF(Klasse!C14="","",Klasse!C14) -> Elisabeth | G10: =IF(F10="","",IF(AND(F$7="s",F10<=F$40),6,IF(AND(OR(F$7="m",F$7="p"),F10>=F$40),6,IF(ISTEXT(F10),F$44,VLOOKUP(F10,F$51:G$303,2,0))))) ->  | I10: =IF(H10="","",IF(AND(H$7="s",H10<=H$40),6,IF(AND(OR(H$7="m",H$7="p"),H10>=H$40),6,IF(ISTEXT(H10),H$44,VLOOKUP(H10,H$51:I$303,2,0))))) ->  | R10: =IF(Q10="","",IF(AND(Q$7="s",Q10<=Q$40),6,IF(AND(OR(Q$7="m",Q$7="p"),Q10>=Q$40),6,IF(ISTEXT(Q10),Q$44,VLOOKUP(Q10,Q$51:R$303,2,0))))) ->  | Z10: - | AB10: - | AD10: - | AF10: - | AI10: - | AK10: - | AM10: - | AO10: - | AP10: - | AQ10: - | AR10: - | AS10: - | AU10: 0 | AV10: / | AW10: - | AY10: - | BA10: - | BC10: - | BF10: - | BH10: - | BJ10: - | BL10: - | BM10: - | BN10: - | BO10: - | BP10: - | BR10: 0 | BS10: ≈
A11: 3 | B11: =IF(Klasse!C15="","",Klasse!C15) -> Kunigunde | Z11: - | AB11: - | AD11: - | AF11: - | AI11: - | AK11: - | AM11: - | AO11: - | AP11: - | AQ11: - | AR11: - | AS11: - | AU11: 0 | AV11: / | AW11: - | AY11: - | BA11: - | BC11: - | BF11: - | BH11: - | BJ11: - | BL11: - | BM11: - | BN11: - | BO11: - | BP11: - | BR11: 0 | BS11: ≈
A12: 4 | B12: =IF(Klasse!C16="","",Klasse!C16) -> Adalbert | Z12: - | AB12: - | AD12: - | AF12: - | AI12: - | AK12: - | AM12: - | AO12: - | AP12: - | AQ12: - | AR12: - | AS12: - | AU12: 0 | AV12: / | AW12: - | AY12: - | BA12: - | BC12: - | BF12: - | BH12: - | BJ12: - | BL12: - | BM12: - | BN12: - | BO12: - | BP12: - | BR12: 0 | BS12: ≈
A13: 5 | B13: =IF(Klasse!C17="","",Klasse!C17) -> Lanzelot | Z13: - | AB13: - | AD13: - | AF13: - | AI13: - | AK13: - | AM13: - | AO13: - | AP13: - | AQ13: - | AR13: - | AS13: - | AU13: 0 | AV13: / | AW13: - | AY13: - | BA13: - | BC13: - | BF13: - | BH13: - | BJ13: - | BL13: - | BM13: - | BN13: - | BO13: - | BP13: - | BR13: 0 | BS13: ≈
A14: 6 | B14: =IF(Klasse!C18="","",Klasse!C18) -> Waltraud | Z14: - | AB14: - | AD14: - | AF14: - | AI14: - | AK14: - | AM14: - | AO14: - | AP14: - | AQ14: - | AR14: - | AS14: - | AU14: 0 | AV14: / | AW14: - | AY14: - | BA14: - | BC14: - | BF14: - | BH14: - | BJ14: - | BL14: - | BM14: - | BN14: - | BO14: - | BP14: - | BR14: 0 | BS14: ≈
A15: 7 | B15: =IF(Klasse!C19="","",Klasse!C19) -> Romeo | Z15: - | AB15: - | AD15: - | AF15: - | AI15: - | AK15: - | AM15: - | AO15: - | AP15: - | AQ15: - | AR15: - | AS15: - | AU15: 0 | AV15: / | AW15: - | AY15: - | BA15: - | BC15: - | BF15: - | BH15: - | BJ15: - | BL15: - | BM15: - | BN15: - | BO15: - | BP15: - | BR15: 0 | BS15: ≈
A16: 8 | B16: =IF(Klasse!C20="","",Klasse!C20) -> Alfred | Z16: - | AB16: - | AD16: - | AF16: - | AI16: - | AK16: - | AM16: - | AO16: - | AP16: - | AQ16: - | AR16: - | AS16: - | AU16: 0 | AV16: / | AW16: - | AY16: - | BA16: - | BC16: - | BF16: - | BH16: - | BJ16: - | BL16: - | BM16: - | BN16: - | BO16: - | BP16: - | BR16: 0 | BS16: ≈
A17: 9 | B17: =IF(Klasse!C21="","",Klasse!C21) -> Siglinde | I17: =IF(H17="","",IF(AND(H$7="s",H17<=H$40),6,IF(AND(OR(H$7="m",H$7="p"),H17>=H$40),6,IF(ISTEXT(H17),H$44,VLOOKUP(H17,H$51:I$303,2,0))))) ->  | Z17: - | AB17: - | AD17: - | AF17: - | AI17: - | AK17: - | AM17: - | AO17: - | AP17: - | AQ17: - | AR17: - | AS17: - | AU17: 0 | AV17: / | AW17: - | AY17: - | BA17: - | BC17: - | BF17: - | BH17: - | BJ17: - | BL17: - | BM17: - | BN17: - | BO17: - | BP17: - | BR17: 0 | BS17: ≈
A18: 10 | B18: =IF(Klasse!C22="","",Klasse!C22) -> Kunibert | I18: =IF(H18="","",IF(AND(H$7="s",H18<=H$40),6,IF(AND(OR(H$7="m",H$7="p"),H18>=H$40),6,IF(ISTEXT(H18),H$44,VLOOKUP(H18,H$51:I$303,2,0))))) ->  | Z18: - | AB18: - | AD18: - | AF18: - | AI18: - | AK18: - | AM18: - | AO18: - | AP18: - | AQ18: - | AR18: - | AS18: - | AU18: 0 | AV18: / | AW18: - | AY18: - | BA18: - | BC18: - | BF18: - | BH18: - | BJ18: - | BL18: - | BM18: - | BN18: - | BO18: - | BP18: - | BR18: 0 | BS18: ≈
A19: 11 | B19: =IF(Klasse!C23="","",Klasse!C23) -> Albertine | Z19: - | AB19: - | AD19: - | AF19: - | AI19: - | AK19: - | AM19: - | AO19: - | AP19: - | AQ19: - | AR19: - | AS19: - | AU19: 0 | AV19: / | AW19: - | AY19: - | BA19: - | BC19: - | BF19: - | BH19: - | BJ19: - | BL19: - | BM19: - | BN19: - | BO19: - | BP19: - | BR19: 0 | BS19: ≈
A20: 12 | B20: =IF(Klasse!C24="","",Klasse!C24) -> Hagrid | Z20: - | AB20: - | AD20: - | AF20: - | AI20: - | AK20: - | AM20: - | AO20: - | AP20: - | AQ20: - | AR20: - | AS20: - | AU20: 0 | AV20: / | AW20: - | AY20: - | BA20: - | BC20: - | BF20: - | BH20: - | BJ20: - | BL20: - | BM20: - | BN20: - | BO20: - | BP20: - | BR20: 0 | BS20: ≈
A21: 13 | B21: =IF(Klasse!C25="","",Klasse!C25) -> Rosalinde | Z21: - | AB21: - | AD21: - | AF21: - | AI21: - | AK21: - | AM21: - | AO21: - | AP21: - | AQ21: - | AR21: - | AS21: - | AU21: 0 | AV21: / | AW21: - | AY21: - | BA21: - | BC21: - | BF21: - | BH21: - | BJ21: - | BL21: - | BM21: - | BN21: - | BO21: - | BP21: - | BR21: 0 | BS21: ≈
A22: 14 | B22: =IF(Klasse!C26="","",Klasse!C26) -> Dagobert | Z22: - | AB22: - | AD22: - | AF22: - | AI22: - | AK22: - | AM22: - | AO22: - | AP22: - | AQ22: - | AR22: - | AS22: - | AU22: 0 | AV22: / | AW22: - | AY22: - | BA22: - | BC22: - | BF22: - | BH22: - | BJ22: - | BL22: - | BM22: - | BN22: - | BO22: - | BP22: - | BR22: 0 | BS22: ≈
A23: 15 | B23: =IF(Klasse!C27="","",Klasse!C27) -> Gutemine | I23: =IF(H23="","",IF(AND(H$7="s",H23<=H$40),6,IF(AND(OR(H$7="m",H$7="p"),H23>=H$40),6,IF(ISTEXT(H23),H$44,VLOOKUP(H23,H$51:I$303,2,0))))) ->  | Z23: - | AB23: - | AD23: - | AF23: - | AI23: - | AK23: - | AM23: - | AO23: - | AP23: - | AQ23: - | AR23: - | AS23: - | AU23: 0 | AV23: / | AW23: - | AY23: - | BA23: - | BC23: - | BF23: - | BH23: - | BJ23: - | BL23: - | BM23: - | BN23: - | BO23: - | BP23: - | BR23: 0 | BS23: ≈
A24: 16 | B24: =IF(Klasse!C28="","",Klasse!C28) -> Asterix | Z24: - | AB24: - | AD24: - | AF24: - | AI24: - | AK24: - | AM24: - | AO24: - | AP24: - | AQ24: - | AR24: - | AS24: - | AU24: 0 | AV24: / | AW24: - | AY24: - | BA24: - | BC24: - | BF24: - | BH24: - | BJ24: - | BL24: - | BM24: - | BN24: - | BO24: - | BP24: - | BR24: 0 | BS24: ≈
A25: 17 | B25: =IF(Klasse!C29="","",Klasse!C29) -> Obelix | Z25: - | AB25: - | AD25: - | AF25: - | AI25: - | AK25: - | AM25: - | AO25: - | AP25: - | AQ25: - | AR25: - | AS25: - | AU25: 0 | AV25: / | AW25: - | AY25: - | BA25: - | BC25: - | BF25: - | BH25: - | BJ25: - | BL25: - | BM25: - | BN25: - | BO25: - | BP25: - | BR25: 0 | BS25: ≈
A26: 18 | B26: =IF(Klasse!C30="","",Klasse!C30) -> Winnifred | Z26: - | AB26: - | AD26: - | AF26: - | AI26: - | AK26: - | AM26: - | AO26: - | AP26: - | AQ26: - | AR26: - | AS26: - | AU26: 0 | AV26: / | AW26: - | AY26: - | BA26: - | BC26: - | BF26: - | BH26: - | BJ26: - | BL26: - | BM26: - | BN26: - | BO26: - | BP26: - | BR26: 0 | BS26: ≈
B27: =IF(Klasse!C31="","",Klasse!C31) ->  | Z27: - | AB27: - | AD27: - | AF27: - | AI27: - | AK27: - | AM27: - | AO27: - | AP27: - | AQ27: - | AR27: - | AS27: - | AV27: / | AW27: - | AY27: - | BA27: - | BC27: - | BF27: - | BH27: - | BJ27: - | BL27: - | BM27: - | BN27: - | BO27: - | BP27: - | BS27: ≈
B28: =IF(Klasse!C32="","",Klasse!C32) ->  | Z28: - | AB28: - | AD28: - | AF28: - | AI28: - | AK28: - | AM28: - | AO28: - | AP28: - | AQ28: - | AR28: - | AS28: - | AV28: / | AW28: - | AY28: - | BA28: - | BC28: - | BF28: - | BH28: - | BJ28: - | BL28: - | BM28: - | BN28: - | BO28: - | BP28: - | BS28: ≈
B29: =IF(Klasse!C33="","",Klasse!C33) ->  | Z29: - | AB29: - | AD29: - | AF29: - | AI29: - | AK29: - | AM29: - | AO29: - | AP29: - | AQ29: - | AR29: - | AS29: - | AV29: / | AW29: - | AY29: - | BA29: - | BC29: - | BF29: - | BH29: - | BJ29: - | BL29: - | BM29: - | BN29: - | BO29: - | BP29: - | BS29: ≈
B30: =IF(Klasse!C34="","",Klasse!C34) ->  | Z30: - | AB30: - | AD30: - | AF30: - | AI30: - | AK30: - | AM30: - | AO30: - | AP30: - | AQ30: - | AR30: - | AS30: - | AV30: / | AW30: - | AY30: - | BA30: - | BC30: - | BF30: - | BH30: - | BJ30: - | BL30: - | BM30: - | BN30: - | BO30: - | BP30: - | BS30: ≈
B31: =IF(Klasse!C35="","",Klasse!C35) ->  | Z31: - | AB31: - | AD31: - | AF31: - | AI31: - | AK31: - | AM31: - | AO31: - | AP31: - | AQ31: - | AR31: - | AS31: - | AV31: / | AW31: - | AY31: - | BA31: - | BC31: - | BF31: - | BH31: - | BJ31: - | BL31: - | BM31: - | BN31: - | BO31: - | BP31: - | BS31: ≈
B32: =IF(Klasse!C36="","",Klasse!C36) ->  | Z32: - | AB32: - | AD32: - | AF32: - | AI32: - | AK32: - | AM32: - | AO32: - | AP32: - | AQ32: - | AR32: - | AS32: - | AV32: / | AW32: - | AY32: - | BA32: - | BC32: - | BF32: - | BH32: - | BJ32: - | BL32: - | BM32: - | BN32: - | BO32: - | BP32: - | BS32: ≈
B33: =IF(Klasse!C37="","",Klasse!C37) ->  | Z33: - | AB33: - | AD33: - | AF33: - | AI33: - | AK33: - | AM33: - | AO33: - | AP33: - | AQ33: - | AR33: - | AS33: - | AV33: / | AW33: - | AY33: - | BA33: - | BC33: - | BF33: - | BH33: - | BJ33: - | BL33: - | BM33: - | BN33: - | BO33: - | BP33: - | BS33: ≈
B34: =IF(Klasse!C38="","",Klasse!C38) ->  | Z34: - | AB34: - | AD34: - | AF34: - | AI34: - | AK34: - | AM34: - | AO34: - | AP34: - | AQ34: - | AR34: - | AS34: - | AV34: / | AW34: - | AY34: - | BA34: - | BC34: - | BF34: - | BH34: - | BJ34: - | BL34: - | BM34: - | BN34: - | BO34: - | BP34: - | BS34: ≈
B35: =IF(Klasse!C39="","",Klasse!C39) ->  | Z35: - | AB35: - | AD35: - | AF35: - | AI35: - | AK35: - | AM35: - | AO35: - | AP35: - | AQ35: - | AR35: - | AS35: - | AV35: / | AW35: - | AY35: - | BA35: - | BC35: - | BF35: - | BH35: - | BJ35: - | BL35: - | BM35: - | BN35: - | BO35: - | BP35: - | BS35: ≈
B36: =IF(Klasse!C40="","",Klasse!C40) ->  | Z36: - | AB36: - | AD36: - | AF36: - | AI36: - | AK36: - | AM36: - | AO36: - | AP36: - | AQ36: - | AR36: - | AS36: - | AV36: / | AW36: - | AY36: - | BA36: - | BC36: - | BF36: - | BH36: - | BJ36: - | BL36: - | BM36: - | BN36: - | BO36: - | BP36: - | BS36: ≈
D37: =IF(COUNT(D9:D33)=0,"",AVERAGE(D9:D33)) ->  | F37: =IF(COUNT(F9:F33)=0,"",AVERAGE(F9:F33)) ->  | M37: =IF(COUNT(M9:M33)=0,"",AVERAGE(M9:M33)) ->  | T37: =IF(COUNT(T9:T33)=0,"",AVERAGE(T9:T33)) ->  | U37: =IF(COUNT(U9:U33)=0,"",AVERAGE(U9:U33)) ->  | V37: =IF(COUNT(V9:V33)=0,"",AVERAGE(V9:V33)) ->  | W37: =IF(COUNT(W9:W33)=0,"",AVERAGE(W9:W33)) ->  | X37: =IF(COUNT(X9:X33)=0,"",AVERAGE(X9:X33)) ->  | BT37: =IF(COUNT(BT9:BT33)=0,"",AVERAGE(BT9:BT33)) ->  | BV37: =IF(COUNT(BV9:BV33)=0,"",AVERAGE(BV9:BV33)) -> 
B38: Messgenauigkeit: | D38: 0.05 | E38: =D7 -> m | F38: 0.1 | G38: =F7 -> m | H38: 0.1 | I38: =H7 -> s | J38: 0.1 | K38: =J7 -> s | M38: 0.5 | N38: =M7 -> p | O38: 0.1 | P38: =O7 -> s | Q38: 0.1 | R38: =Q7 -> s
B40: Bestnote bei | D40: 3.9 | E40: =E38 -> m | F40: 30 | G40: =G38 -> m | H40: 9.5 | I40: =I38 -> s | J40: 120 | K40: =K38 -> s | M40: 10 | N40: =N38 -> p | O40: 6 | P40: =P38 -> s | Q40: 6 | R40: =R38 -> s
B41: Genügend bei | D41: 2.5 | E41: =E38 -> m | F41: 15 | G41: =G38 -> m | H41: 16 | I41: =I38 -> s | J41: 160 | K41: =K38 -> s | M41: 6.5 | N41: =N38 -> p | O41: 25 | P41: =P38 -> s | Q41: 25 | R41: =R38 -> s
D42: =IF(D7="s",D40/D41,D41/D40) -> 0.641025641 | F42: =IF(F7="s",F40/F41,F41/F40) -> 0.5 | H42: =IF(H7="s",H40/H41,H41/H40) -> 0.59375 | J42: =IF(J7="s",J40/J41,J41/J40) -> 0.75 | M42: =IF(M7="s",M40/M41,M41/M40) -> 0.65 | O42: =IF(O7="s",O40/O41,O41/O40) -> 0.24 | Q42: =IF(Q7="s",Q40/Q41,Q41/Q40) -> 0.24
B44: tiefste Note: | D44: 3.5 | F44: 3.5 | H44: 3.5 | J44: 3.5 | M44: 3.5 | O44: 3.5 | Q44: 3.5
B47: rechnerischer Messschritt: | D47: =IF(E38="s",D38-D38-D38,D38) -> 0.05 | F47: =IF(G38="s",F38-F38-F38,F38) -> 0.1 | H47: =IF(I38="s",H38-H38-H38,H38) -> -0.1 | J47: =IF(K38="s",J38-J38-J38,J38) -> -0.1 | M47: =IF(N38="s",M38-M38-M38,M38) -> 0.5 | O47: =IF(P38="s",O38-O38-O38,O38) -> -0.1 | Q47: =IF(R38="s",Q38-Q38-Q38,Q38) -> -0.1
B48: Notenreduktion pro Messschritt: | D48: =IF(D7="s",2/((D41-D40)/D38),2/((D40-D41)/D38)) -> 0.07142857143 | F48: =IF(F7="s",2/((F41-F40)/F38),2/((F40-F41)/F38)) -> 0.01333333333 | H48: =IF(H7="s",2/((H41-H40)/H38),2/((H40-H41)/H38)) -> 0.03076923077 | J48: =IF(J7="s",2/((J41-J40)/J38),2/((J40-J41)/J38)) -> 0.005 | M48: =IF(M7="s",2/((M41-M40)/M38),2/((M40-M41)/M38)) -> 0.2857142857 | O48: =IF(O7="s",2/((O41-O40)/O38),2/((O40-O41)/O38)) -> 0.01052631579 | Q48: =IF(Q7="s",2/((Q41-Q40)/Q38),2/((Q40-Q41)/Q38)) -> 0.01052631579
D50: Berechnungen
D51: =D40 -> 3.9 | E51: 6 | F51: =F40 -> 30 | G51: 6 | H51: =H40 -> 9.5 | I51: 6 | J51: =J40 -> 120 | K51: 6 | M51: =M40 -> 10 | N51: 6 | O51: =O40 -> 6 | P51: 6 | Q51: =Q40 -> 6 | R51: 6
D52: =IF(D51="","",IF((D51-D$47)<0.05,"",ROUND((D51-D$47),2))) -> 3.85 | E52: =IF(E51="","",IF((E51-D$48)<D$44,$D$44,(E51-D$48))) -> 5.928571429 | F52: =IF(F51="","",IF((F51-F$47)<0.05,"",ROUND((F51-F$47),2))) -> 29.9 | G52: =IF(G51="","",IF((G51-F$48)<F$44,$F$44,(G51-F$48))) -> 5.986666667 | H52: =IF(H51="","",IF((H51-H$47)<0.05,"",ROUND((H51-H$47),2))) -> 9.6 | I52: =IF(I51="","",IF((I51-H$48)<H$44,$H$44,(I51-H$48))) -> 5.969230769 | J52: 120.1 | K52: =IF(K51="","",IF((K51-J$48)<J$44,$H$44,(K51-J$48))) -> 5.995 | M52: =IF(M51="","",IF((M51-M$47)<0.05,"",ROUND((M51-M$47),2))) -> 9.5 | N52: =IF(N51="","",IF((N51-M$48)<M$44,$M$44,(N51-M$48))) -> 5.714285714 | O52: =IF(O51="","",IF((O51-O$47)<0.05,"",ROUND((O51-O$47),2))) -> 6.1 | P52: =IF(P51="","",IF((P51-O$48)<O$44,$O$44,(P51-O$48))) -> 5.989473684 | Q52: =IF(Q51="","",IF((Q51-Q$47)<0.05,"",ROUND((Q51-Q$47),2))) -> 6.1 | R52: =IF(R51="","",IF((R51-Q$48)<Q$44,$Q$44,(R51-Q$48))) -> 5.989473684
D53: 3.8 | E53: =IF(E52="","",IF((E52-D$48)<D$44,$D$44,(E52-D$48))) -> 5.857142857 | F53: 29.8 | G53: =IF(G52="","",IF((G52-F$48)<F$44,$F$44,(G52-F$48))) -> 5.973333333 | H53: 9.7 | I53: =IF(I52="","",IF((I52-H$48)<H$44,$H$44,(I52-H$48))) -> 5.938461538 | J53: 120.2 | K53: =IF(K52="","",IF((K52-J$48)<J$44,$H$44,(K52-J$48))) -> 5.99 | M53: 9 | N53: =IF(N52="","",IF((N52-M$48)<M$44,$M$44,(N52-M$48))) -> 5.428571429 | O53: 6.2 | P53: =IF(P52="","",IF((P52-O$48)<O$44,$O$44,(P52-O$48))) -> 5.978947368 | Q53: 6.2 | R53: =IF(R52="","",IF((R52-Q$48)<Q$44,$Q$44,(R52-Q$48))) -> 5.978947368
D54: 3.75 | E54: 5.785714286 | F54: 29.7 | G54: 5.96 | H54: 9.8 | I54: 5.907692308 | J54: 120.3 | K54: 5.985 | M54: 8.5 | N54: 5.142857143 | O54: 6.3 | P54: 5.968421053 | Q54: 6.3 | R54: 5.968421053
D55: 3.7 | E55: 5.714285714 | F55: 29.6 | G55: 5.946666667 | H55: 9.9 | I55: 5.876923077 | J55: 120.4 | K55: 5.98 | M55: 8 | N55: 4.857142857 | O55: 6.4 | P55: 5.957894737 | Q55: 6.4 | R55: 5.957894737
D56: 3.65 | E56: 5.642857143 | F56: 29.5 | G56: 5.933333333 | H56: 10 | I56: 5.846153846 | J56: 120.5 | K56: 5.975 | M56: 7.5 | N56: 4.571428571 | O56: 6.5 | P56: 5.947368421 | Q56: 6.5 | R56: 5.947368421
D57: 3.6 | E57: 5.571428571 | F57: 29.4 | G57: 5.92 | H57: 10.1 | I57: 5.815384615 | J57: 120.6 | K57: 5.97 | M57: 7 | N57: 4.285714286 | O57: 6.6 | P57: 5.936842105 | Q57: 6.6 | R57: 5.936842105
D58: 3.55 | E58: 5.5 | F58: 29.3 | G58: 5.906666667 | H58: 10.2 | I58: 5.784615385 | J58: 120.7 | K58: 5.965 | M58: 6.5 | N58: 4 | O58: 6.7 | P58: 5.926315789 | Q58: 6.7 | R58: 5.926315789
D59: 3.5 | E59: 5.428571429 | F59: 29.2 | G59: 5.893333333 | H59: 10.3 | I59: 5.753846154 | J59: 120.8 | K59: 5.96 | M59: 6 | N59: 3.714285714 | O59: 6.8 | P59: 5.915789474 | Q59: 6.8 | R59: 5.915789474
D60: 3.45 | E60: 5.357142857 | F60: 29.1 | G60: 5.88 | H60: 10.4 | I60: 5.723076923 | J60: 120.9 | K60: 5.955 | M60: 5.5 | N60: 3.5 | O60: 6.9 | P60: 5.905263158 | Q60: 6.9 | R60: 5.905263158
D61: 3.4 | E61: 5.285714286 | F61: 29 | G61: 5.866666667 | H61: 10.5 | I61: 5.692307692 | J61: 121 | K61: 5.95 | M61: 5 | N61: 3.5 | O61: 7 | P61: 5.894736842 | Q61: 7 | R61: 5.894736842
D62: 3.35 | E62: 5.214285714 | F62: 28.9 | G62: 5.853333333 | H62: 10.6 | I62: 5.661538462 | J62: 121.1 | K62: 5.945 | M62: 4.5 | N62: 3.5 | O62: 7.1 | P62: 5.884210526 | Q62: 7.1 | R62: 5.884210526
D63: 3.3 | E63: 5.142857143 | F63: 28.8 | G63: 5.84 | H63: 10.7 | I63: 5.630769231 | J63: 121.2 | K63: 5.94 | M63: 4 | N63: 3.5 | O63: 7.2 | P63: 5.873684211 | Q63: 7.2 | R63: 5.873684211
D64: 3.25 | E64: 5.071428571 | F64: 28.7 | G64: 5.826666667 | H64: 10.8 | I64: 5.6 | J64: 121.3 | K64: 5.935 | M64: 3.5 | N64: 3.5 | O64: 7.3 | P64: 5.863157895 | Q64: 7.3 | R64: 5.863157895
D65: 3.2 | E65: 5 | F65: 28.6 | G65: 5.813333333 | H65: 10.9 | I65: 5.569230769 | J65: 121.4 | K65: 5.93 | M65: 3 | N65: 3.5 | O65: 7.4 | P65: 5.852631579 | Q65: 7.4 | R65: 5.852631579
D66: 3.15 | E66: 4.928571429 | F66: 28.5 | G66: 5.8 | H66: 11 | I66: 5.538461538 | J66: 121.5 | K66: 5.925 | M66: 2.5 | N66: 3.5 | O66: 7.5 | P66: 5.842105263 | Q66: 7.5 | R66: 5.842105263
D67: 3.1 | E67: 4.857142857 | F67: 28.4 | G67: 5.786666667 | H67: 11.1 | I67: 5.507692308 | J67: 121.6 | K67: 5.92 | M67: 2 | N67: 3.5 | O67: 7.6 | P67: 5.831578947 | Q67: 7.6 | R67: 5.831578947
D68: 3.05 | E68: 4.785714286 | F68: 28.3 | G68: 5.773333333 | H68: 11.2 | I68: 5.476923077 | J68: 121.7 | K68: 5.915 | M68: 1.5 | N68: 3.5 | O68: 7.7 | P68: 5.821052632 | Q68: 7.7 | R68: 5.821052632
D69: 3 | E69: 4.714285714 | F69: 28.2 | G69: 5.76 | H69: 11.3 | I69: 5.446153846 | J69: 121.8 | K69: 5.91 | M69: 1 | N69: 3.5 | O69: 7.8 | P69: 5.810526316 | Q69: 7.8 | R69: 5.810526316
D70: 2.95 | E70: 4.642857143 | F70: 28.1 | G70: 5.746666667 | H70: 11.4 | I70: 5.415384615 | J70: 121.9 | K70: 5.905 | M70: 0.5 | N70: 3.5 | O70: 7.9 | P70: 5.8 | Q70: 7.9 | R70: 5.8
D71: 2.9 | E71: 4.571428571 | F71: 28 | G71: 5.733333333 | H71: 11.5 | I71: 5.384615385 | J71: 122 | K71: 5.9 | N71: 3.5 | O71: 8 | P71: 5.789473684 | Q71: 8 | R71: 5.789473684
D72: 2.85 | E72: 4.5 | F72: 27.9 | G72: 5.72 | H72: 11.6 | I72: 5.353846154 | J72: 122.1 | K72: 5.895 | N72: 3.5 | O72: 8.1 | P72: 5.778947368 | Q72: 8.1 | R72: 5.778947368
D73: 2.8 | E73: 4.428571429 | F73: 27.8 | G73: 5.706666667 | H73: 11.7 | I73: 5.323076923 | J73: 122.2 | K73: 5.89 | N73: 3.5 | O73: 8.2 | P73: 5.768421053 | Q73: 8.2 | R73: 5.768421053
D74: 2.75 | E74: 4.357142857 | F74: 27.7 | G74: 5.693333333 | H74: 11.8 | I74: 5.292307692 | J74: 122.3 | K74: 5.885 | N74: 3.5 | O74: 8.3 | P74: 5.757894737 | Q74: 8.3 | R74: 5.757894737
D75: 2.7 | E75: 4.285714286 | F75: 27.6 | G75: 5.68 | H75: 11.9 | I75: 5.261538462 | J75: 122.4 | K75: 5.88 | N75: 3.5 | O75: 8.4 | P75: 5.747368421 | Q75: 8.4 | R75: 5.747368421
D76: 2.65 | E76: 4.214285714 | F76: 27.5 | G76: 5.666666667 | H76: 12 | I76: 5.230769231 | J76: 122.5 | K76: 5.875 | N76: 3.5 | O76: 8.5 | P76: 5.736842105 | Q76: 8.5 | R76: 5.736842105
D77: 2.6 | E77: 4.142857143 | F77: 27.4 | G77: 5.653333333 | H77: 12.1 | I77: 5.2 | J77: 122.6 | K77: 5.87 | N77: 3.5 | O77: 8.6 | P77: 5.726315789 | Q77: 8.6 | R77: 5.726315789
D78: 2.55 | E78: 4.071428571 | F78: 27.3 | G78: 5.64 | H78: 12.2 | I78: 5.169230769 | J78: 122.7 | K78: 5.865 | N78: 3.5 | O78: 8.7 | P78: 5.715789474 | Q78: 8.7 | R78: 5.715789474
D79: 2.5 | E79: 4 | F79: 27.2 | G79: 5.626666667 | H79: 12.3 | I79: 5.138461538 | J79: 122.8 | K79: 5.86 | N79: 3.5 | O79: 8.8 | P79: 5.705263158 | Q79: 8.8 | R79: 5.705263158
D80: 2.45 | E80: 3.928571429 | F80: 27.1 | G80: 5.613333333 | H80: 12.4 | I80: 5.107692308 | J80: 122.9 | K80: 5.855 | N80: 3.5 | O80: 8.9 | P80: 5.694736842 | Q80: 8.9 | R80: 5.694736842
D81: 2.4 | E81: 3.857142857 | F81: 27 | G81: 5.6 | H81: 12.5 | I81: 5.076923077 | J81: 123 | K81: 5.85 | N81: 3.5 | O81: 9 | P81: 5.684210526 | Q81: 9 | R81: 5.684210526
D82: 2.35 | E82: 3.785714286 | F82: 26.9 | G82: 5.586666667 | H82: 12.6 | I82: 5.046153846 | J82: 123.1 | K82: 5.845 | N82: 3.5 | O82: 9.1 | P82: 5.673684211 | Q82: 9.1 | R82: 5.673684211
D83: 2.3 | E83: 3.714285714 | F83: 26.8 | G83: 5.573333333 | H83: 12.7 | I83: 5.015384615 | J83: 123.2 | K83: 5.84 | N83: 3.5 | O83: 9.2 | P83: 5.663157895 | Q83: 9.2 | R83: 5.663157895
D84: 2.25 | E84: 3.642857143 | F84: 26.7 | G84: 5.56 | H84: 12.8 | I84: 4.984615385 | J84: 123.3 | K84: 5.835 | N84: 3.5 | O84: 9.3 | P84: 5.652631579 | Q84: 9.3 | R84: 5.652631579
D85: 2.2 | E85: 3.571428571 | F85: 26.6 | G85: 5.546666667 | H85: 12.9 | I85: 4.953846154 | J85: 123.4 | K85: 5.83 | N85: 3.5 | O85: 9.4 | P85: 5.642105263 | Q85: 9.4 | R85: 5.642105263
D86: 2.15 | E86: 3.5 | F86: 26.5 | G86: 5.533333333 | H86: 13 | I86: 4.923076923 | J86: 123.5 | K86: 5.825 | N86: 3.5 | O86: 9.5 | P86: 5.631578947 | Q86: 9.5 | R86: 5.631578947
D87: 2.1 | E87: 3.5 | F87: 26.4 | G87: 5.52 | H87: 13.1 | I87: 4.892307692 | J87: 123.6 | K87: 5.82 | N87: 3.5 | O87: 9.6 | P87: 5.621052632 | Q87: 9.6 | R87: 5.621052632
D88: 2.05 | E88: 3.5 | F88: 26.3 | G88: 5.506666667 | H88: 13.2 | I88: 4.861538462 | J88: 123.7 | K88: 5.815 | N88: 3.5 | O88: 9.7 | P88: 5.610526316 | Q88: 9.7 | R88: 5.610526316
D89: 2 | E89: 3.5 | F89: 26.2 | G89: 5.493333333 | H89: 13.3 | I89: 4.830769231 | J89: 123.8 | K89: 5.81 | N89: 3.5 | O89: 9.8 | P89: 5.6 | Q89: 9.8 | R89: 5.6
D90: 1.95 | E90: 3.5 | F90: 26.1 | G90: 5.48 | H90: 13.4 | I90: 4.8 | J90: 123.9 | K90: 5.805 | N90: 3.5 | O90: 9.9 | P90: 5.589473684 | Q90: 9.9 | R90: 5.589473684
D91: 1.9 | E91: 3.5 | F91: 26 | G91: 5.466666667 | H91: 13.5 | I91: 4.769230769 | J91: 124 | K91: 5.8 | N91: 3.5 | O91: 10 | P91: 5.578947368 | Q91: 10 | R91: 5.578947368
D92: 1.85 | E92: 3.5 | F92: 25.9 | G92: 5.453333333 | H92: 13.6 | I92: 4.738461538 | J92: 124.1 | K92: 5.795 | N92: 3.5 | O92: 10.1 | P92: 5.568421053 | Q92: 10.1 | R92: 5.568421053
D93: 1.8 | E93: 3.5 | F93: 25.8 | G93: 5.44 | H93: 13.7 | I93: 4.707692308 | J93: 124.2 | K93: 5.79 | N93: 3.5 | O93: 10.2 | P93: 5.557894737 | Q93: 10.2 | R93: 5.557894737
D94: 1.75 | E94: 3.5 | F94: 25.7 | G94: 5.426666667 | H94: 13.8 | I94: 4.676923077 | J94: 124.3 | K94: 5.785 | N94: 3.5 | O94: 10.3 | P94: 5.547368421 | Q94: 10.3 | R94: 5.547368421
D95: 1.7 | E95: 3.5 | F95: 25.6 | G95: 5.413333333 | H95: 13.9 | I95: 4.646153846 | J95: 124.4 | K95: 5.78 | N95: 3.5 | O95: 10.4 | P95: 5.536842105 | Q95: 10.4 | R95: 5.536842105
D96: 1.65 | E96: 3.5 | F96: 25.5 | G96: 5.4 | H96: 14 | I96: 4.615384615 | J96: 124.5 | K96: 5.775 | N96: 3.5 | O96: 10.5 | P96: 5.526315789 | Q96: 10.5 | R96: 5.526315789
D97: 1.6 | E97: 3.5 | F97: 25.4 | G97: 5.386666667 | H97: 14.1 | I97: 4.584615385 | J97: 124.6 | K97: 5.77 | N97: 3.5 | O97: 10.6 | P97: 5.515789474 | Q97: 10.6 | R97: 5.515789474
D98: 1.55 | E98: 3.5 | F98: 25.3 | G98: 5.373333333 | H98: 14.2 | I98: 4.553846154 | J98: 124.7 | K98: 5.765 | N98: 3.5 | O98: 10.7 | P98: 5.505263158 | Q98: 10.7 | R98: 5.505263158
D99: 1.5 | E99: 3.5 | F99: 25.2 | G99: 5.36 | H99: 14.3 | I99: 4.523076923 | J99: 124.8 | K99: 5.76 | N99: 3.5 | O99: 10.8 | P99: 5.494736842 | Q99: 10.8 | R99: 5.494736842
D100: 1.45 | E100: 3.5 | F100: 25.1 | G100: 5.346666667 | H100: 14.4 | I100: 4.492307692 | J100: 124.9 | K100: 5.755 | N100: 3.5 | O100: 10.9 | P100: 5.484210526 | Q100: 10.9 | R100: 5.484210526
D101: 1.4 | E101: 3.5 | F101: 25 | G101: 5.333333333 | H101: 14.5 | I101: 4.461538462 | J101: 125 | K101: 5.75 | N101: 3.5 | O101: 11 | P101: 5.473684211 | Q101: 11 | R101: 5.473684211
D102: 1.35 | E102: 3.5 | F102: 24.9 | G102: 5.32 | H102: 14.6 | I102: 4.430769231 | J102: 125.1 | K102: 5.745 | N102: 3.5 | O102: 11.1 | P102: 5.463157895 | Q102: 11.1 | R102: 5.463157895
D103: 1.3 | E103: 3.5 | F103: 24.8 | G103: 5.306666667 | H103: 14.7 | I103: 4.4 | J103: 125.2 | K103: 5.74 | N103: 3.5 | O103: 11.2 | P103: 5.452631579 | Q103: 11.2 | R103: 5.452631579
D104: 1.25 | E104: 3.5 | F104: 24.7 | G104: 5.293333333 | H104: 14.8 | I104: 4.369230769 | J104: 125.3 | K104: 5.735 | N104: 3.5 | O104: 11.3 | P104: 5.442105263 | Q104: 11.3 | R104: 5.442105263
D105: 1.2 | E105: 3.5 | F105: 24.6 | G105: 5.28 | H105: 14.9 | I105: 4.338461538 | J105: 125.4 | K105: 5.73 | N105: 3.5 | O105: 11.4 | P105: 5.431578947 | Q105: 11.4 | R105: 5.431578947
D106: 1.15 | E106: 3.5 | F106: 24.5 | G106: 5.266666667 | H106: 15 | I106: 4.307692308 | J106: 125.5 | K106: 5.725 | N106: 3.5 | O106: 11.5 | P106: 5.421052632 | Q106: 11.5 | R106: 5.421052632
D107: 1.1 | E107: 3.5 | F107: 24.4 | G107: 5.253333333 | H107: 15.1 | I107: 4.276923077 | J107: 125.6 | K107: 5.72 | N107: 3.5 | O107: 11.6 | P107: 5.410526316 | Q107: 11.6 | R107: 5.410526316
D108: 1.05 | E108: 3.5 | F108: 24.3 | G108: 5.24 | H108: 15.2 | I108: 4.246153846 | J108: 125.7 | K108: 5.715 | N108: 3.5 | O108: 11.7 | P108: 5.4 | Q108: 11.7 | R108: 5.4
D109: 1 | E109: 3.5 | F109: 24.2 | G109: 5.226666667 | H109: 15.3 | I109: 4.215384615 | J109: 125.8 | K109: 5.71 | N109: 3.5 | O109: 11.8 | P109: 5.389473684 | Q109: 11.8 | R109: 5.389473684
D110: 0.95 | E110: 3.5 | F110: 24.1 | G110: 5.213333333 | H110: 15.4 | I110: 4.184615385 | J110: 125.9 | K110: 5.705 | N110: 3.5 | O110: 11.9 | P110: 5.378947368 | Q110: 11.9 | R110: 5.378947368
D111: 0.9 | E111: 3.5 | F111: 24 | G111: 5.2 | H111: 15.5 | I111: 4.153846154 | J111: 126 | K111: 5.7 | N111: 3.5 | O111: 12 | P111: 5.368421053 | Q111: 12 | R111: 5.368421053
D112: 0.85 | E112: 3.5 | F112: 23.9 | G112: 5.186666667 | H112: 15.6 | I112: 4.123076923 | J112: 126.1 | K112: 5.695 | N112: 3.5 | O112: 12.1 | P112: 5.357894737 | Q112: 12.1 | R112: 5.357894737
D113: 0.8 | E113: 3.5 | F113: 23.8 | G113: 5.173333333 | H113: 15.7 | I113: 4.092307692 | J113: 126.2 | K113: 5.69 | N113: 3.5 | O113: 12.2 | P113: 5.347368421 | Q113: 12.2 | R113: 5.347368421
D114: 0.75 | E114: 3.5 | F114: 23.7 | G114: 5.16 | H114: 15.8 | I114: 4.061538462 | J114: 126.3 | K114: 5.685 | N114: 3.5 | O114: 12.3 | P114: 5.336842105 | Q114: 12.3 | R114: 5.336842105
D115: 0.7 | E115: 3.5 | F115: 23.6 | G115: 5.146666667 | H115: 15.9 | I115: 4.030769231 | J115: 126.4 | K115: 5.68 | N115: 3.5 | O115: 12.4 | P115: 5.326315789 | Q115: 12.4 | R115: 5.326315789
D116: =IF(D115="","",IF((D115-D$47)<0.05,"",ROUND((D115-D$47),2))) -> 0.65 | E116: 3.5 | F116: =IF(F115="","",IF((F115-F$47)<0.05,"",ROUND((F115-F$47),2))) -> 23.5 | G116: 5.133333333 | H116: =IF(H115="","",IF((H115-H$47)<0.05,"",ROUND((H115-H$47),2))) -> 16 | I116: 4 | J116: 126.5 | K116: 5.675 | M116: =IF(M115="","",IF((M115-M$47)<0.05,"",ROUND((M115-M$47),2))) ->  | N116: 3.5 | O116: =IF(O115="","",IF((O115-O$47)<0.05,"",ROUND((O115-O$47),2))) -> 12.5 | P116: 5.315789474 | Q116: =IF(Q115="","",IF((Q115-Q$47)<0.05,"",ROUND((Q115-Q$47),2))) -> 12.5 | R116: 5.315789474
D117: 0.6 | E117: =IF(E116="","",IF((E116-D$48)<D$44,$D$44,(E116-D$48))) -> 3.5 | F117: 23.4 | G117: =IF(G116="","",IF((G116-F$48)<F$44,$F$44,(G116-F$48))) -> 5.12 | H117: 16.1 | I117: =IF(I116="","",IF((I116-H$48)<H$44,$H$44,(I116-H$48))) -> 3.969230769 | J117: 126.6 | K117: =IF(K116="","",IF((K116-J$48)<J$44,$H$44,(K116-J$48))) -> 5.67 | N117: =IF(N116="","",IF((N116-M$48)<M$44,$M$44,(N116-M$48))) -> 3.5 | O117: 12.6 | P117: =IF(P116="","",IF((P116-O$48)<O$44,$O$44,(P116-O$48))) -> 5.305263158 | Q117: 12.6 | R117: =IF(R116="","",IF((R116-Q$48)<Q$44,$Q$44,(R116-Q$48))) -> 5.305263158
D118: 0.55 | E118: 3.5 | F118: 23.3 | G118: 5.106666667 | H118: 16.2 | I118: 3.938461538 | J118: 126.7 | K118: 5.665 | N118: 3.5 | O118: 12.7 | P118: 5.294736842 | Q118: 12.7 | R118: 5.294736842
D119: 0.5 | E119: 3.5 | F119: 23.2 | G119: 5.093333333 | H119: 16.3 | I119: 3.907692308 | J119: 126.8 | K119: 5.66 | N119: 3.5 | O119: 12.8 | P119: 5.284210526 | Q119: 12.8 | R119: 5.284210526
D120: 0.45 | E120: 3.5 | F120: 23.1 | G120: 5.08 | H120: 16.4 | I120: 3.876923077 | J120: 126.9 | K120: 5.655 | N120: 3.5 | O120: 12.9 | P120: 5.273684211 | Q120: 12.9 | R120: 5.273684211
D121: 0.4 | E121: 3.5 | F121: 23 | G121: 5.066666667 | H121: 16.5 | I121: 3.846153846 | J121: 127 | K121: 5.65 | N121: 3.5 | O121: 13 | P121: 5.263157895 | Q121: 13 | R121: 5.263157895
D122: 0.35 | E122: 3.5 | F122: 22.9 | G122: 5.053333333 | H122: 16.6 | I122: 3.815384615 | J122: 127.1 | K122: 5.645 | N122: 3.5 | O122: 13.1 | P122: 5.252631579 | Q122: 13.1 | R122: 5.252631579
D123: 0.3 | E123: 3.5 | F123: 22.8 | G123: 5.04 | H123: 16.7 | I123: 3.784615385 | J123: 127.2 | K123: 5.64 | N123: 3.5 | O123: 13.2 | P123: 5.242105263 | Q123: 13.2 | R123: 5.242105263
D124: 0.25 | E124: 3.5 | F124: 22.7 | G124: 5.026666667 | H124: 16.8 | I124: 3.753846154 | J124: 127.3 | K124: 5.635 | N124: 3.5 | O124: 13.3 | P124: 5.231578947 | Q124: 13.3 | R124: 5.231578947
D125: 0.2 | E125: 3.5 | F125: 22.6 | G125: 5.013333333 | H125: 16.9 | I125: 3.723076923 | J125: 127.4 | K125: 5.63 | N125: 3.5 | O125: 13.4 | P125: 5.221052632 | Q125: 13.4 | R125: 5.221052632
D126: 0.15 | E126: 3.5 | F126: 22.5 | G126: 5 | H126: 17 | I126: 3.692307692 | J126: 127.5 | K126: 5.625 | N126: 3.5 | O126: 13.5 | P126: 5.210526316 | Q126: 13.5 | R126: 5.210526316
D127: 0.1 | E127: 3.5 | F127: 22.4 | G127: 4.986666667 | H127: 17.1 | I127: 3.661538462 | J127: 127.6 | K127: 5.62 | N127: 3.5 | O127: 13.6 | P127: 5.2 | Q127: 13.6 | R127: 5.2
D128: 0.05 | E128: 3.5 | F128: 22.3 | G128: 4.973333333 | H128: 17.2 | I128: 3.630769231 | J128: 127.7 | K128: 5.615 | N128: 3.5 | O128: 13.7 | P128: 5.189473684 | Q128: 13.7 | R128: 5.189473684
E129: 3.5 | F129: 22.2 | G129: 4.96 | H129: 17.3 | I129: 3.6 | J129: 127.8 | K129: 5.61 | N129: 3.5 | O129: 13.8 | P129: 5.178947368 | Q129: 13.8 | R129: 5.178947368
E130: 3.5 | F130: 22.1 | G130: 4.946666667 | H130: 17.4 | I130: 3.569230769 | J130: 127.9 | K130: 5.605 | N130: 3.5 | O130: 13.9 | P130: 5.168421053 | Q130: 13.9 | R130: 5.168421053
E131: 3.5 | F131: 22 | G131: 4.933333333 | H131: 17.5 | I131: 3.538461538 | J131: 128 | K131: 5.6 | N131: 3.5 | O131: 14 | P131: 5.157894737 | Q131: 14 | R131: 5.157894737
E132: 3.5 | F132: 21.9 | G132: 4.92 | H132: 17.6 | I132: 3.507692308 | J132: 128.1 | K132: 5.595 | N132: 3.5 | O132: 14.1 | P132: 5.147368421 | Q132: 14.1 | R132: 5.147368421
E133: 3.5 | F133: 21.8 | G133: 4.906666667 | H133: 17.7 | I133: 3.5 | J133: 128.2 | K133: 5.59 | N133: 3.5 | O133: 14.2 | P133: 5.136842105 | Q133: 14.2 | R133: 5.136842105
E134: 3.5 | F134: 21.7 | G134: 4.893333333 | H134: 17.8 | I134: 3.5 | J134: 128.3 | K134: 5.585 | N134: 3.5 | O134: 14.3 | P134: 5.126315789 | Q134: 14.3 | R134: 5.126315789
E135: 3.5 | F135: 21.6 | G135: 4.88 | H135: 17.9 | I135: 3.5 | J135: 128.4 | K135: 5.58 | N135: 3.5 | O135: 14.4 | P135: 5.115789474 | Q135: 14.4 | R135: 5.115789474
E136: 3.5 | F136: 21.5 | G136: 4.866666667 | H136: 18 | I136: 3.5 | J136: 128.5 | K136: 5.575 | N136: 3.5 | O136: 14.5 | P136: 5.105263158 | Q136: 14.5 | R136: 5.105263158
E137: 3.5 | F137: 21.4 | G137: 4.853333333 | H137: 18.1 | I137: 3.5 | J137: 128.6 | K137: 5.57 | N137: 3.5 | O137: 14.6 | P137: 5.094736842 | Q137: 14.6 | R137: 5.094736842
E138: 3.5 | F138: 21.3 | G138: 4.84 | H138: 18.2 | I138: 3.5 | J138: 128.7 | K138: 5.565 | N138: 3.5 | O138: 14.7 | P138: 5.084210526 | Q138: 14.7 | R138: 5.084210526
E139: 3.5 | F139: 21.2 | G139: 4.826666667 | H139: 18.3 | I139: 3.5 | J139: 128.8 | K139: 5.56 | N139: 3.5 | O139: 14.8 | P139: 5.073684211 | Q139: 14.8 | R139: 5.073684211
E140: 3.5 | F140: 21.1 | G140: 4.813333333 | H140: 18.4 | I140: 3.5 | J140: 128.9 | K140: 5.555 | N140: 3.5 | O140: 14.9 | P140: 5.063157895 | Q140: 14.9 | R140: 5.063157895
E141: 3.5 | F141: 21 | G141: 4.8 | H141: 18.5 | I141: 3.5 | J141: 129 | K141: 5.55 | N141: 3.5 | O141: 15 | P141: 5.052631579 | Q141: 15 | R141: 5.052631579
E142: 3.5 | F142: 20.9 | G142: 4.786666667 | H142: 18.6 | I142: 3.5 | J142: 129.1 | K142: 5.545 | N142: 3.5 | O142: 15.1 | P142: 5.042105263 | Q142: 15.1 | R142: 5.042105263
E143: 3.5 | F143: 20.8 | G143: 4.773333333 | H143: 18.7 | I143: 3.5 | J143: 129.2 | K143: 5.54 | N143: 3.5 | O143: 15.2 | P143: 5.031578947 | Q143: 15.2 | R143: 5.031578947
E144: 3.5 | F144: 20.7 | G144: 4.76 | H144: 18.8 | I144: 3.5 | J144: 129.3 | K144: 5.535 | N144: 3.5 | O144: 15.3 | P144: 5.021052632 | Q144: 15.3 | R144: 5.021052632
E145: 3.5 | F145: 20.6 | G145: 4.746666667 | H145: 18.9 | I145: 3.5 | J145: 129.4 | K145: 5.53 | N145: 3.5 | O145: 15.4 | P145: 5.010526316 | Q145: 15.4 | R145: 5.010526316
E146: 3.5 | F146: 20.5 | G146: 4.733333333 | H146: 19 | I146: 3.5 | J146: 129.5 | K146: 5.525 | N146: 3.5 | O146: 15.5 | P146: 5 | Q146: 15.5 | R146: 5
E147: 3.5 | F147: 20.4 | G147: 4.72 | H147: 19.1 | I147: 3.5 | J147: 129.6 | K147: 5.52 | N147: 3.5 | O147: 15.6 | P147: 4.989473684 | Q147: 15.6 | R147: 4.989473684
E148: 3.5 | F148: 20.3 | G148: 4.706666667 | H148: 19.2 | I148: 3.5 | J148: 129.7 | K148: 5.515 | N148: 3.5 | O148: 15.7 | P148: 4.978947368 | Q148: 15.7 | R148: 4.978947368
E149: 3.5 | F149: 20.2 | G149: 4.693333333 | H149: 19.3 | I149: 3.5 | J149: 129.8 | K149: 5.51 | N149: 3.5 | O149: 15.8 | P149: 4.968421053 | Q149: 15.8 | R149: 4.968421053
E150: 3.5 | F150: 20.1 | G150: 4.68 | H150: 19.4 | I150: 3.5 | J150: 129.9 | K150: 5.505 | N150: 3.5 | O150: 15.9 | P150: 4.957894737 | Q150: 15.9 | R150: 4.957894737
E151: 3.5 | F151: 20 | G151: 4.666666667 | H151: 19.5 | I151: 3.5 | J151: 130 | K151: 5.5 | N151: 3.5 | O151: 16 | P151: 4.947368421 | Q151: 16 | R151: 4.947368421
E152: 3.5 | F152: 19.9 | G152: 4.653333333 | H152: 19.6 | I152: 3.5 | J152: 130.1 | K152: 5.495 | N152: 3.5 | O152: 16.1 | P152: 4.936842105 | Q152: 16.1 | R152: 4.936842105
E153: 3.5 | F153: 19.8 | G153: 4.64 | H153: 19.7 | I153: 3.5 | J153: 130.2 | K153: 5.49 | N153: 3.5 | O153: 16.2 | P153: 4.926315789 | Q153: 16.2 | R153: 4.926315789
E154: 3.5 | F154: 19.7 | G154: 4.626666667 | H154: 19.8 | I154: 3.5 | J154: 130.3 | K154: 5.485 | N154: 3.5 | O154: 16.3 | P154: 4.915789474 | Q154: 16.3 | R154: 4.915789474
E155: 3.5 | F155: 19.6 | G155: 4.613333333 | H155: 19.9 | I155: 3.5 | J155: 130.4 | K155: 5.48 | N155: 3.5 | O155: 16.4 | P155: 4.905263158 | Q155: 16.4 | R155: 4.905263158
E156: 3.5 | F156: 19.5 | G156: 4.6 | H156: 20 | I156: 3.5 | J156: 130.5 | K156: 5.475 | N156: 3.5 | O156: 16.5 | P156: 4.894736842 | Q156: 16.5 | R156: 4.894736842
E157: 3.5 | F157: 19.4 | G157: 4.586666667 | H157: 20.1 | I157: 3.5 | J157: 130.6 | K157: 5.47 | N157: 3.5 | O157: 16.6 | P157: 4.884210526 | Q157: 16.6 | R157: 4.884210526
E158: 3.5 | F158: 19.3 | G158: 4.573333333 | H158: 20.2 | I158: 3.5 | J158: 130.7 | K158: 5.465 | N158: 3.5 | O158: 16.7 | P158: 4.873684211 | Q158: 16.7 | R158: 4.873684211
E159: 3.5 | F159: 19.2 | G159: 4.56 | H159: 20.3 | I159: 3.5 | J159: 130.8 | K159: 5.46 | N159: 3.5 | O159: 16.8 | P159: 4.863157895 | Q159: 16.8 | R159: 4.863157895
E160: 3.5 | F160: 19.1 | G160: 4.546666667 | H160: 20.4 | I160: 3.5 | J160: 130.9 | K160: 5.455 | N160: 3.5 | O160: 16.9 | P160: 4.852631579 | Q160: 16.9 | R160: 4.852631579
E161: 3.5 | F161: 19 | G161: 4.533333333 | H161: 20.5 | I161: 3.5 | J161: 131 | K161: 5.45 | N161: 3.5 | O161: 17 | P161: 4.842105263 | Q161: 17 | R161: 4.842105263
E162: 3.5 | F162: 18.9 | G162: 4.52 | H162: 20.6 | I162: 3.5 | J162: 131.1 | K162: 5.445 | N162: 3.5 | O162: 17.1 | P162: 4.831578947 | Q162: 17.1 | R162: 4.831578947
E163: 3.5 | F163: 18.8 | G163: 4.506666667 | H163: 20.7 | I163: 3.5 | J163: 131.2 | K163: 5.44 | N163: 3.5 | O163: 17.2 | P163: 4.821052632 | Q163: 17.2 | R163: 4.821052632
E164: 3.5 | F164: 18.7 | G164: 4.493333333 | H164: 20.8 | I164: 3.5 | J164: 131.3 | K164: 5.435 | N164: 3.5 | O164: 17.3 | P164: 4.810526316 | Q164: 17.3 | R164: 4.810526316
E165: 3.5 | F165: 18.6 | G165: 4.48 | H165: 20.9 | I165: 3.5 | J165: 131.4 | K165: 5.43 | N165: 3.5 | O165: 17.4 | P165: 4.8 | Q165: 17.4 | R165: 4.8
E166: 3.5 | F166: 18.5 | G166: 4.466666667 | H166: 21 | I166: 3.5 | J166: 131.5 | K166: 5.425 | N166: 3.5 | O166: 17.5 | P166: 4.789473684 | Q166: 17.5 | R166: 4.789473684
E167: 3.5 | F167: 18.4 | G167: 4.453333333 | H167: 21.1 | I167: 3.5 | J167: 131.6 | K167: 5.42 | N167: 3.5 | O167: 17.6 | P167: 4.778947368 | Q167: 17.6 | R167: 4.778947368
E168: 3.5 | F168: 18.3 | G168: 4.44 | H168: 21.2 | I168: 3.5 | J168: 131.7 | K168: 5.415 | N168: 3.5 | O168: 17.7 | P168: 4.768421053 | Q168: 17.7 | R168: 4.768421053
E169: 3.5 | F169: 18.2 | G169: 4.426666667 | H169: 21.3 | I169: 3.5 | J169: 131.8 | K169: 5.41 | N169: 3.5 | O169: 17.8 | P169: 4.757894737 | Q169: 17.8 | R169: 4.757894737
E170: 3.5 | F170: 18.1 | G170: 4.413333333 | H170: 21.4 | I170: 3.5 | J170: 131.9 | K170: 5.405 | N170: 3.5 | O170: 17.9 | P170: 4.747368421 | Q170: 17.9 | R170: 4.747368421
E171: 3.5 | F171: 18 | G171: 4.4 | H171: 21.5 | I171: 3.5 | J171: 132 | K171: 5.4 | N171: 3.5 | O171: 18 | P171: 4.736842105 | Q171: 18 | R171: 4.736842105
E172: 3.5 | F172: 17.9 | G172: 4.386666667 | H172: 21.6 | I172: 3.5 | J172: 132.1 | K172: 5.395 | N172: 3.5 | O172: 18.1 | P172: 4.726315789 | Q172: 18.1 | R172: 4.726315789
E173: 3.5 | F173: 17.8 | G173: 4.373333333 | H173: 21.7 | I173: 3.5 | J173: 132.2 | K173: 5.39 | N173: 3.5 | O173: 18.2 | P173: 4.715789474 | Q173: 18.2 | R173: 4.715789474
E174: 3.5 | F174: 17.7 | G174: 4.36 | H174: 21.8 | I174: 3.5 | J174: 132.3 | K174: 5.385 | N174: 3.5 | O174: 18.3 | P174: 4.705263158 | Q174: 18.3 | R174: 4.705263158
E175: 3.5 | F175: 17.6 | G175: 4.346666667 | H175: 21.9 | I175: 3.5 | J175: 132.4 | K175: 5.38 | N175: 3.5 | O175: 18.4 | P175: 4.694736842 | Q175: 18.4 | R175: 4.694736842
E176: 3.5 | F176: 17.5 | G176: 4.333333333 | H176: 22 | I176: 3.5 | J176: 132.5 | K176: 5.375 | N176: 3.5 | O176: 18.5 | P176: 4.684210526 | Q176: 18.5 | R176: 4.684210526
E177: 3.5 | F177: 17.4 | G177: 4.32 | H177: 22.1 | I177: 3.5 | J177: 132.6 | K177: 5.37 | N177: 3.5 | O177: 18.6 | P177: 4.673684211 | Q177: 18.6 | R177: 4.673684211
E178: 3.5 | F178: 17.3 | G178: 4.306666667 | H178: 22.2 | I178: 3.5 | J178: 132.7 | K178: 5.365 | N178: 3.5 | O178: 18.7 | P178: 4.663157895 | Q178: 18.7 | R178: 4.663157895
E179: 3.5 | F179: 17.2 | G179: 4.293333333 | H179: 22.3 | I179: 3.5 | J179: 132.8 | K179: 5.36 | N179: 3.5 | O179: 18.8 | P179: 4.652631579 | Q179: 18.8 | R179: 4.652631579
D180: =IF(D179="","",IF((D179-D$47)<0.05,"",ROUND((D179-D$47),2))) ->  | E180: 3.5 | F180: =IF(F179="","",IF((F179-F$47)<0.05,"",ROUND((F179-F$47),2))) -> 17.1 | G180: 4.28 | H180: =IF(H179="","",IF((H179-H$47)<0.05,"",ROUND((H179-H$47),2))) -> 22.4 | I180: 3.5 | J180: 132.9 | K180: 5.355 | M180: =IF(M179="","",IF((M179-M$47)<0.05,"",ROUND((M179-M$47),2))) ->  | N180: 3.5 | O180: =IF(O179="","",IF((O179-O$47)<0.05,"",ROUND((O179-O$47),2))) -> 18.9 | P180: 4.642105263 | Q180: =IF(Q179="","",IF((Q179-Q$47)<0.05,"",ROUND((Q179-Q$47),2))) -> 18.9 | R180: 4.642105263
E181: =IF(E180="","",IF((E180-D$48)<D$44,$D$44,(E180-D$48))) -> 3.5 | F181: 17 | G181: =IF(G180="","",IF((G180-F$48)<F$44,$F$44,(G180-F$48))) -> 4.266666667 | H181: 22.5 | I181: =IF(I180="","",IF((I180-H$48)<H$44,$H$44,(I180-H$48))) -> 3.5 | J181: 133 | K181: =IF(K180="","",IF((K180-J$48)<J$44,$H$44,(K180-J$48))) -> 5.35 | N181: =IF(N180="","",IF((N180-M$48)<M$44,$M$44,(N180-M$48))) -> 3.5 | O181: 19 | P181: =IF(P180="","",IF((P180-O$48)<O$44,$O$44,(P180-O$48))) -> 4.631578947 | Q181: 19 | R181: =IF(R180="","",IF((R180-Q$48)<Q$44,$Q$44,(R180-Q$48))) -> 4.631578947
E182: 3.5 | F182: 16.9 | G182: 4.253333333 | H182: 22.6 | I182: 3.5 | J182: 133.1 | K182: 5.345 | N182: 3.5 | O182: 19.1 | P182: 4.621052632 | Q182: 19.1 | R182: 4.621052632
E183: 3.5 | F183: 16.8 | G183: 4.24 | H183: 22.7 | I183: 3.5 | J183: 133.2 | K183: 5.34 | N183: 3.5 | O183: 19.2 | P183: 4.610526316 | Q183: 19.2 | R183: 4.610526316
E184: 3.5 | F184: 16.7 | G184: 4.226666667 | H184: 22.8 | I184: 3.5 | J184: 133.3 | K184: 5.335 | N184: 3.5 | O184: 19.3 | P184: 4.6 | Q184: 19.3 | R184: 4.6
E185: 3.5 | F185: 16.6 | G185: 4.213333333 | H185: 22.9 | I185: 3.5 | J185: 133.4 | K185: 5.33 | N185: 3.5 | O185: 19.4 | P185: 4.589473684 | Q185: 19.4 | R185: 4.589473684
E186: 3.5 | F186: 16.5 | G186: 4.2 | H186: 23 | I186: 3.5 | J186: 133.5 | K186: 5.325 | N186: 3.5 | O186: 19.5 | P186: 4.578947368 | Q186: 19.5 | R186: 4.578947368
E187: 3.5 | F187: 16.4 | G187: 4.186666667 | H187: 23.1 | I187: 3.5 | J187: 133.6 | K187: 5.32 | N187: 3.5 | O187: 19.6 | P187: 4.568421053 | Q187: 19.6 | R187: 4.568421053
E188: 3.5 | F188: 16.3 | G188: 4.173333333 | H188: 23.2 | I188: 3.5 | J188: 133.7 | K188: 5.315 | N188: 3.5 | O188: 19.7 | P188: 4.557894737 | Q188: 19.7 | R188: 4.557894737
E189: 3.5 | F189: 16.2 | G189: 4.16 | H189: 23.3 | I189: 3.5 | J189: 133.8 | K189: 5.31 | N189: 3.5 | O189: 19.8 | P189: 4.547368421 | Q189: 19.8 | R189: 4.547368421
E190: 3.5 | F190: 16.1 | G190: 4.146666667 | H190: 23.4 | I190: 3.5 | J190: 133.9 | K190: 5.305 | N190: 3.5 | O190: 19.9 | P190: 4.536842105 | Q190: 19.9 | R190: 4.536842105
E191: 3.5 | F191: 16 | G191: 4.133333333 | H191: 23.5 | I191: 3.5 | J191: 134 | K191: 5.3 | N191: 3.5 | O191: 20 | P191: 4.526315789 | Q191: 20 | R191: 4.526315789
E192: 3.5 | F192: 15.9 | G192: 4.12 | H192: 23.6 | I192: 3.5 | J192: 134.1 | K192: 5.295 | N192: 3.5 | O192: 20.1 | P192: 4.515789474 | Q192: 20.1 | R192: 4.515789474
E193: 3.5 | F193: 15.8 | G193: 4.106666667 | H193: 23.7 | I193: 3.5 | J193: 134.2 | K193: 5.29 | N193: 3.5 | O193: 20.2 | P193: 4.505263158 | Q193: 20.2 | R193: 4.505263158
E194: 3.5 | F194: 15.7 | G194: 4.093333333 | H194: 23.8 | I194: 3.5 | J194: 134.3 | K194: 5.285 | N194: 3.5 | O194: 20.3 | P194: 4.494736842 | Q194: 20.3 | R194: 4.494736842
E195: 3.5 | F195: 15.6 | G195: 4.08 | H195: 23.9 | I195: 3.5 | J195: 134.4 | K195: 5.28 | N195: 3.5 | O195: 20.4 | P195: 4.484210526 | Q195: 20.4 | R195: 4.484210526
E196: 3.5 | F196: 15.5 | G196: 4.066666667 | H196: 24 | I196: 3.5 | J196: 134.5 | K196: 5.275 | N196: 3.5 | O196: 20.5 | P196: 4.473684211 | Q196: 20.5 | R196: 4.473684211
E197: 3.5 | F197: 15.4 | G197: 4.053333333 | H197: 24.1 | I197: 3.5 | J197: 134.6 | K197: 5.27 | N197: 3.5 | O197: 20.6 | P197: 4.463157895 | Q197: 20.6 | R197: 4.463157895
E198: 3.5 | F198: 15.3 | G198: 4.04 | H198: 24.2 | I198: 3.5 | J198: 134.7 | K198: 5.265 | N198: 3.5 | O198: 20.7 | P198: 4.452631579 | Q198: 20.7 | R198: 4.452631579
E199: 3.5 | F199: 15.2 | G199: 4.026666667 | H199: 24.3 | I199: 3.5 | J199: 134.8 | K199: 5.26 | N199: 3.5 | O199: 20.8 | P199: 4.442105263 | Q199: 20.8 | R199: 4.442105263
E200: 3.5 | F200: 15.1 | G200: 4.013333333 | H200: 24.4 | I200: 3.5 | J200: 134.9 | K200: 5.255 | N200: 3.5 | O200: 20.9 | P200: 4.431578947 | Q200: 20.9 | R200: 4.431578947
E201: 3.5 | F201: 15 | G201: 4 | H201: 24.5 | I201: 3.5 | J201: 135 | K201: 5.25 | N201: 3.5 | O201: 21 | P201: 4.421052632 | Q201: 21 | R201: 4.421052632
E202: 3.5 | F202: 14.9 | G202: 3.986666667 | H202: 24.6 | I202: 3.5 | J202: 135.1 | K202: 5.245 | N202: 3.5 | O202: 21.1 | P202: 4.410526316 | Q202: 21.1 | R202: 4.410526316
E203: 3.5 | F203: 14.8 | G203: 3.973333333 | H203: 24.7 | I203: 3.5 | J203: 135.2 | K203: 5.24 | N203: 3.5 | O203: 21.2 | P203: 4.4 | Q203: 21.2 | R203: 4.4
E204: 3.5 | F204: 14.7 | G204: 3.96 | H204: 24.8 | I204: 3.5 | J204: 135.3 | K204: 5.235 | N204: 3.5 | O204: 21.3 | P204: 4.389473684 | Q204: 21.3 | R204: 4.389473684
E205: 3.5 | F205: 14.6 | G205: 3.946666667 | H205: 24.9 | I205: 3.5 | J205: 135.4 | K205: 5.23 | N205: 3.5 | O205: 21.4 | P205: 4.378947368 | Q205: 21.4 | R205: 4.378947368
E206: 3.5 | F206: 14.5 | G206: 3.933333333 | H206: 25 | I206: 3.5 | J206: 135.5 | K206: 5.225 | N206: 3.5 | O206: 21.5 | P206: 4.368421053 | Q206: 21.5 | R206: 4.368421053
E207: 3.5 | F207: 14.4 | G207: 3.92 | H207: 25.1 | I207: 3.5 | J207: 135.6 | K207: 5.22 | N207: 3.5 | O207: 21.6 | P207: 4.357894737 | Q207: 21.6 | R207: 4.357894737
E208: 3.5 | F208: 14.3 | G208: 3.906666667 | H208: 25.2 | I208: 3.5 | J208: 135.7 | K208: 5.215 | N208: 3.5 | O208: 21.7 | P208: 4.347368421 | Q208: 21.7 | R208: 4.347368421
... 97 more rows

Sheet Spinne formativ
F1: =IF(Klasse!D7="","",Liste!K1) -> 2. Halbjahr | M1: =IF(Klasse!D9="","",Klasse!D9&"/"&Klasse!F9) -> 2017/18 | P1: Anzahl Netzlinien/Spalten | V1: formativ | AC1: =MID(CELL("Dateiname",A97),FIND("]",CELL("Dateiname",A97),1)+1,100) -> Spinne formativ | AD1: =R1 -> 0 | AE1: =COUNT(A4:A31) -> 18
N2: bisher | O2: Notizen | P2: Schüler/in einzeln: | S2: ganze Klasse:
A4: =IF(B4="","",A2+1) -> 1 | B4: =IF(Klasse!C13="","",Klasse!C13) -> Hans | N4: =N36 -> 0 | O4: =IF(AB4=0,"","ja") ->  | AB4: =COUNTA(AC4:AJ4) -> 0
A5: =IF(B5="","",A4+1) -> 2 | B5: =IF(Klasse!C14="","",Klasse!C14) -> Elisabeth | N5: =N37 -> 0 | O5: =IF(AB5=0,"","ja") ->  | AB5: =COUNTA(AC5:AJ5) -> 0
A6: 3 | B6: =IF(Klasse!C15="","",Klasse!C15) -> Kunigunde | N6: 0 | AB6: 0
A7: 4 | B7: =IF(Klasse!C16="","",Klasse!C16) -> Adalbert | N7: 0 | AB7: 0
A8: 5 | B8: =IF(Klasse!C17="","",Klasse!C17) -> Lanzelot | N8: 0 | AB8: 0
A9: 6 | B9: =IF(Klasse!C18="","",Klasse!C18) -> Waltraud | N9: 0 | AB9: 0
A10: 7 | B10: =IF(Klasse!C19="","",Klasse!C19) -> Romeo | N10: 0 | AB10: 0
A11: 8 | B11: =IF(Klasse!C20="","",Klasse!C20) -> Alfred | N11: 0 | AB11: 0
A12: 9 | B12: =IF(Klasse!C21="","",Klasse!C21) -> Siglinde | N12: 0 | AB12: 0
A13: 10 | B13: =IF(Klasse!C22="","",Klasse!C22) -> Kunibert | N13: 0 | AB13: 0
A14: 11 | B14: =IF(Klasse!C23="","",Klasse!C23) -> Albertine | N14: 0 | AB14: 0
A15: 12 | B15: =IF(Klasse!C24="","",Klasse!C24) -> Hagrid | N15: 0 | AB15: 0
A16: 13 | B16: =IF(Klasse!C25="","",Klasse!C25) -> Rosalinde | N16: 0 | AB16: 0
A17: 14 | B17: =IF(Klasse!C26="","",Klasse!C26) -> Dagobert | N17: 0 | AB17: 0
A18: 15 | B18: =IF(Klasse!C27="","",Klasse!C27) -> Gutemine | N18: 0 | AB18: 0
A19: 16 | B19: =IF(Klasse!C28="","",Klasse!C28) -> Asterix | N19: 0 | AB19: 0
A20: 17 | B20: =IF(Klasse!C29="","",Klasse!C29) -> Obelix | N20: 0 | AB20: 0
A21: 18 | B21: =IF(Klasse!C30="","",Klasse!C30) -> Winnifred | N21: 0 | AB21: 0
B22: =IF(Klasse!C31="","",Klasse!C31) ->  | N22: 0 | AB22: 0
B23: =IF(Klasse!C32="","",Klasse!C32) ->  | N23: 0 | AB23: 0
B24: =IF(Klasse!C33="","",Klasse!C33) ->  | N24: 0 | AB24: 0
B25: =IF(Klasse!C34="","",Klasse!C34) ->  | N25: 0 | AB25: 0
B26: =IF(Klasse!C35="","",Klasse!C35) ->  | N26: 0 | AB26: 0
B27: =IF(Klasse!C36="","",Klasse!C36) ->  | N27: 0 | AB27: 0
B28: =IF(Klasse!C37="","",Klasse!C37) ->  | N28: 0 | AB28: 0
B29: =IF(Klasse!C38="","",Klasse!C38) ->  | N29: 0 | AB29: 0
A30: =IF(B30="","",A29+1) ->  | B30: =IF(Klasse!C39="","",Klasse!C39) ->  | N30: 0 | AB30: 0
A31: =IF(B31="","",A30+1) ->  | B31: =IF(Klasse!C40="","",Klasse!C40) ->  | N31: 0 | AB31: 0
C32: Schnitt: | D32: =IF(COUNT(D4:D31)=0,"",AVERAGE(D4:D31)) ->  | E32: =IF(COUNT(E4:E31)=0,"",AVERAGE(E4:E31)) -> 
A34: bisher | N34: Anzahl Bewertungen
A36: =A4 -> 1 | B36: =B4 -> Hans
A37: =A5 -> 2 | B37: Elisabeth
A38: 3 | B38: Kunigunde
A39: 4 | B39: Adalbert
A40: 5 | B40: Lanzelot
A41: 6 | B41: Waltraud
A42: 7 | B42: Romeo
A43: 8 | B43: Alfred
A44: 9 | B44: Siglinde
A45: 10 | B45: Kunibert
A46: 11 | B46: Albertine
A47: 12 | B47: Hagrid
A48: 13 | B48: Rosalinde
A49: 14 | B49: Dagobert
A50: 15 | B50: Gutemine
A51: 16 | B51: Asterix
A52: 17 | B52: Obelix
A53: =A21 -> 18 | B53: Winnifred
N64: =IF(SUM(N36:N63)=0,0,ROUND(AVERAGE(N36:N63),1)) -> 0 | O64: Mittelwert
B68: =A1 -> 0 | F68: =F1 -> 2. Halbjahr | M68: =M1 -> 2017/18 | S68: formativ
D70: Inhalt | E70: Sprache/ Grammatik | F70: Rechtschreibung | G70: Schrift | H70: Formulierung/ Wortschatz | I70: Spontanes Fragen beantworten
B71: Lynn | C71: jetzt | D71: =D4 -> 0 | E71: =E4 -> 0 | F71: =F4 -> 0 | G71: =G4 -> 0 | H71: =H4 -> 0 | I71: =I4 -> 0 | AC71: 4
C72: bisher(2) | D72: 5.5 | E72: 4.75 | F72: 4.625 | G72: 5 | H72: 4.625
C73: genügend | D73: 4 | E73: 4 | F73: 4 | G73: 4 | H73: 4 | I73: 4 | J73: 4
D80: Inhalt | E80: Sprache/ Grammatik | F80: Rechtschreibung | G80: Schrift | H80: Formulierung/ Wortschatz | I80: Spontanes Fragen beantworten
B81: Lynn | C81: Lynn | D81: =D4 -> 0 | E81: =E4 -> 0 | F81: =F4 -> 0 | G81: =G4 -> 0 | H81: =H4 -> 0 | I81: =I4 -> 0 | K81: 0 | M81: =M4 -> 0
C82: genügend | D82: 4 | E82: 4 | F82: 4 | G82: 4 | H82: 4 | I82: 4 | J82: 4
AK110: Notizen Schreiben Lynn
AK112: Inhalt: | AL112: sehr präzise
AK114: Sprache/ Grammatik: | AL114: teilweise noch Schnursätze; verbessert sich
AK116: Rechtschreibung: | AL116: noch gemischte Fehler aber auch Vieles schon richtig
AK118: Schrift: | AL118: passt
AK120: Formulierung/ Wortschatz: | AL120: schon recht gut

Sheet Spinne summativ
P1: Anzahl Netzlinien/Spalten | V1: summativ | AC1: =MID(CELL("Dateiname",A97),FIND("]",CELL("Dateiname",A97),1)+1,100) -> Spinne summativ | AD1: =R1 -> 0 | AE1: =COUNT(A4:A31) -> 18
L2: Vorschlag | M2: Note | P2: Schüler/in einzeln: | S2: ganze Klasse
C3: Wert
A4: =IF(B4="","",A2+1) -> 1 | B4: =IF(Klasse!C13="","",Klasse!C13) -> Hans | L4: =IF(SUM(D4:H4)=0,"",((IF(ISNUMBER(D4),D$3,0)*D4)+(IF(ISNUMBER(E4),E$3,0)*E4)+(IF(ISNUMBER(F4),F$3,0)*F4)+(IF(ISNUMBER(G4),G$3,0)*G4)+(IF(ISNUMBER(H4),H$3,0)*H4)+(IF(ISNUMBER(I4),I$3,0)*I4)+(IF(ISNUMBER(J4),J$3,0)*J4)+(IF(ISNUMBER(K4),K$3,0)*K4))/((IF(ISNUMBER(D4),D$3,0))+(IF(ISNUMBER(E4),E$3,0))+(IF(ISNUMBER(F4),F$3,0))+(IF(ISNUMBER(G4),G$3,0))+(IF(ISNUMBER(H4),H$3,0))+(IF(ISNUMBER(I4),I$3,0))+(IF(ISNUMBER(J4),J$3,0))+(IF(ISNUMBER(K4),K$3,0)))) -> 
A5: =IF(B5="","",A4+1) -> 2 | B5: =IF(Klasse!C14="","",Klasse!C14) -> Elisabeth | L5: =IF(SUM(D5:H5)=0,"",((IF(ISNUMBER(D5),D$3,0)*D5)+(IF(ISNUMBER(E5),E$3,0)*E5)+(IF(ISNUMBER(F5),F$3,0)*F5)+(IF(ISNUMBER(G5),G$3,0)*G5)+(IF(ISNUMBER(H5),H$3,0)*H5)+(IF(ISNUMBER(I5),I$3,0)*I5)+(IF(ISNUMBER(J5),J$3,0)*J5)+(IF(ISNUMBER(K5),K$3,0)*K5))/((IF(ISNUMBER(D5),D$3,0))+(IF(ISNUMBER(E5),E$3,0))+(IF(ISNUMBER(F5),F$3,0))+(IF(ISNUMBER(G5),G$3,0))+(IF(ISNUMBER(H5),H$3,0))+(IF(ISNUMBER(I5),I$3,0))+(IF(ISNUMBER(J5),J$3,0))+(IF(ISNUMBER(K5),K$3,0)))) -> 
A6: 3 | B6: =IF(Klasse!C15="","",Klasse!C15) -> Kunigunde
A7: 4 | B7: =IF(Klasse!C16="","",Klasse!C16) -> Adalbert
A8: 5 | B8: =IF(Klasse!C17="","",Klasse!C17) -> Lanzelot
A9: 6 | B9: =IF(Klasse!C18="","",Klasse!C18) -> Waltraud
A10: 7 | B10: =IF(Klasse!C19="","",Klasse!C19) -> Romeo
A11: 8 | B11: =IF(Klasse!C20="","",Klasse!C20) -> Alfred
A12: 9 | B12: =IF(Klasse!C21="","",Klasse!C21) -> Siglinde
A13: 10 | B13: =IF(Klasse!C22="","",Klasse!C22) -> Kunibert
A14: 11 | B14: =IF(Klasse!C23="","",Klasse!C23) -> Albertine
A15: 12 | B15: =IF(Klasse!C24="","",Klasse!C24) -> Hagrid
A16: 13 | B16: =IF(Klasse!C25="","",Klasse!C25) -> Rosalinde
A17: 14 | B17: =IF(Klasse!C26="","",Klasse!C26) -> Dagobert
A18: 15 | B18: =IF(Klasse!C27="","",Klasse!C27) -> Gutemine
A19: 16 | B19: =IF(Klasse!C28="","",Klasse!C28) -> Asterix
A20: 17 | B20: =IF(Klasse!C29="","",Klasse!C29) -> Obelix
A21: 18 | B21: =IF(Klasse!C30="","",Klasse!C30) -> Winnifred
B22: =IF(Klasse!C31="","",Klasse!C31) -> 
B23: =IF(Klasse!C32="","",Klasse!C32) -> 
B24: =IF(Klasse!C33="","",Klasse!C33) -> 
B25: =IF(Klasse!C34="","",Klasse!C34) -> 
B26: =IF(Klasse!C35="","",Klasse!C35) -> 
B27: =IF(Klasse!C36="","",Klasse!C36) -> 
B28: =IF(Klasse!C37="","",Klasse!C37) -> 
B29: =IF(Klasse!C38="","",Klasse!C38) -> 
A30: =IF(B30="","",A29+1) ->  | B30: =IF(Klasse!C39="","",Klasse!C39) -> 
A31: =IF(B31="","",A30+1) ->  | B31: =IF(Klasse!C40="","",Klasse!C40) -> 
C32: Schnitt: | D32: =IF(COUNT(D4:D31)=0,"",AVERAGE(D4:D31)) ->  | E32: =IF(COUNT(E4:E31)=0,"",AVERAGE(E4:E31)) -> 
A34: bisher | N34: Anzahl Bewertungen
A36: =A4 -> 1 | B36: =B4 -> Hans
A37: =A5 -> 2 | B37: Elisabeth
A38: 3 | B38: Kunigunde
A39: 4 | B39: Adalbert
A40: 5 | B40: Lanzelot
A41: 6 | B41: Waltraud
A42: 7 | B42: Romeo
A43: 8 | B43: Alfred
A44: 9 | B44: Siglinde
A45: 10 | B45: Kunibert
A46: 11 | B46: Albertine
A47: 12 | B47: Hagrid
A48: 13 | B48: Rosalinde
A49: 14 | B49: Dagobert
A50: 15 | B50: Gutemine
A51: 16 | B51: Asterix
A52: 17 | B52: Obelix
A53: =A21 -> 18 | B53: Winnifred
N64: =IF(SUM(N36:N63)=0,0,ROUND(AVERAGE(N36:N63),1)) -> 0 | O64: Mittelwert
B68: =A1 -> 0 | F68: =F1 ->  | S68: summativ
D70: Inhalt | E70: Sprache, Grammatik | F70: Rechtschreibung | G70: Schrift | H70: Formulierung, Wortschatz | L70: Vorschlag | M70: Note
B71: Lynn | C71: jetzt | D71: =D4 -> 0 | E71: =E4 -> 0 | F71: =F4 -> 0 | G71: =G4 -> 0 | H71: =H4 -> 0 | L71: =IF(SUM(D71:H71)=0,"",((IF(ISNUMBER(D71),D$3,0)*D71)+(IF(ISNUMBER(E71),E$3,0)*E71)+(IF(ISNUMBER(F71),F$3,0)*F71)+(IF(ISNUMBER(G71),G$3,0)*G71)+(IF(ISNUMBER(H71),H$3,0)*H71)+(IF(ISNUMBER(I71),I$3,0)*I71)+(IF(ISNUMBER(J71),J$3,0)*J71)+(IF(ISNUMBER(K71),K$3,0)*K71))/((IF(ISNUMBER(D71),D$3,0))+(IF(ISNUMBER(E71),E$3,0))+(IF(ISNUMBER(F71),F$3,0))+(IF(ISNUMBER(G71),G$3,0))+(IF(ISNUMBER(H71),H$3,0))+(IF(ISNUMBER(I71),I$3,0))+(IF(ISNUMBER(J71),J$3,0))+(IF(ISNUMBER(K71),K$3,0)))) ->  | M71: 5 | AC71: 4
C72: bisher() | J72: 0
C73: genügend | D73: 4 | E73: 4 | F73: 4 | G73: 4 | H73: 4 | I73: 4 | J73: 4
D80: Inhalt | E80: Sprache, Grammatik | F80: Rechtschreibung | G80: Schrift | H80: Formulierung, Wortschatz | M80: Note
B81: Lynn | C81: Lynn | D81: =D4 -> 0 | E81: =E4 -> 0 | F81: =F4 -> 0 | G81: =G4 -> 0 | H81: =H4 -> 0 | K81: =K5 -> 0 | M81: =M4 -> 0
C82: genügend | D82: 4 | E82: 4 | F82: 4 | G82: 4 | H82: 4 | I82: 4 | J82: 4

Sheet Spinne smileys
F1: =IF(Klasse!D7="","",Liste!K1) -> 2. Halbjahr | M1: =IF(Klasse!D9="","",Klasse!D9&"/"&Klasse!F9) -> 2017/18 | P1: Anzahl Netzlinien/Spalten | V1: smileys | AC1: =MID(CELL("Dateiname",A97),FIND("]",CELL("Dateiname",A97),1)+1,100) -> Spinne smileys | AD1: =R1 -> 0 | AE1: =COUNT(A4:A31) -> 18
O2: Notizen | P2: Schüler/in einzeln: | S2: ganze Klasse:
A4: =IF(B4="","",A2+1) -> 1 | B4: =IF(Klasse!C13="","",Klasse!C13) -> Hans | N4: =N36 -> 0 | O4: =IF(AB4=0,"","Ja") ->  | AB4: =COUNTA(AC4:AJ4) -> 0
A5: =IF(B5="","",A4+1) -> 2 | B5: =IF(Klasse!C14="","",Klasse!C14) -> Elisabeth | N5: =N37 -> 0 | O5: =IF(AB5=0,"","Ja") ->  | AB5: =COUNTA(AC5:AJ5) -> 0
A6: 3 | B6: =IF(Klasse!C15="","",Klasse!C15) -> Kunigunde | N6: 0 | AB6: 0
A7: 4 | B7: =IF(Klasse!C16="","",Klasse!C16) -> Adalbert | N7: 0 | AB7: 0
A8: 5 | B8: =IF(Klasse!C17="","",Klasse!C17) -> Lanzelot | N8: 0 | AB8: 0
A9: 6 | B9: =IF(Klasse!C18="","",Klasse!C18) -> Waltraud | N9: 0 | AB9: 0
A10: 7 | B10: =IF(Klasse!C19="","",Klasse!C19) -> Romeo | N10: 0 | AB10: 0
A11: 8 | B11: =IF(Klasse!C20="","",Klasse!C20) -> Alfred | N11: 0 | AB11: 0
A12: 9 | B12: =IF(Klasse!C21="","",Klasse!C21) -> Siglinde | N12: 0 | AB12: 0
A13: 10 | B13: =IF(Klasse!C22="","",Klasse!C22) -> Kunibert | N13: 0 | AB13: 0
A14: 11 | B14: =IF(Klasse!C23="","",Klasse!C23) -> Albertine | N14: 0 | AB14: 0
A15: 12 | B15: =IF(Klasse!C24="","",Klasse!C24) -> Hagrid | N15: 0 | AB15: 0
A16: 13 | B16: =IF(Klasse!C25="","",Klasse!C25) -> Rosalinde | N16: 0 | AB16: 0
A17: 14 | B17: =IF(Klasse!C26="","",Klasse!C26) -> Dagobert | N17: 0 | AB17: 0
A18: 15 | B18: =IF(Klasse!C27="","",Klasse!C27) -> Gutemine | N18: 0 | AB18: 0
A19: 16 | B19: =IF(Klasse!C28="","",Klasse!C28) -> Asterix | N19: 0 | AB19: 0
A20: 17 | B20: =IF(Klasse!C29="","",Klasse!C29) -> Obelix | N20: 0 | AB20: 0
A21: 18 | B21: =IF(Klasse!C30="","",Klasse!C30) -> Winnifred | N21: 0 | AB21: 0
B22: =IF(Klasse!C31="","",Klasse!C31) ->  | N22: 0 | AB22: 0
B23: =IF(Klasse!C32="","",Klasse!C32) ->  | N23: 0 | AB23: 0
B24: =IF(Klasse!C33="","",Klasse!C33) ->  | N24: 0 | AB24: 0
B25: =IF(Klasse!C34="","",Klasse!C34) ->  | N25: 0 | AB25: 0
B26: =IF(Klasse!C35="","",Klasse!C35) ->  | N26: 0 | AB26: 0
B27: =IF(Klasse!C36="","",Klasse!C36) ->  | N27: 0 | AB27: 0
B28: =IF(Klasse!C37="","",Klasse!C37) ->  | N28: 0 | AB28: 0
B29: =IF(Klasse!C38="","",Klasse!C38) ->  | N29: 0 | AB29: 0
A30: =IF(B30="","",A29+1) ->  | B30: =IF(Klasse!C39="","",Klasse!C39) ->  | N30: 0 | AB30: 0
A31: =IF(B31="","",A30+1) ->  | B31: =IF(Klasse!C40="","",Klasse!C40) ->  | N31: 0 | AB31: 0
C32: Schnitt: | D32: =IF(COUNT(D4:D31)=0,"",AVERAGE(D4:D31)) ->  | E32: =IF(COUNT(E4:E31)=0,"",AVERAGE(E4:E31)) ->  | AB32: 0
A34: in Zahlen | N34: Anzahl Bewertungen
A36: =A4 -> 1 | B36: =B4 -> Hans
A37: =A5 -> 2 | B37: Elisabeth
A38: 3 | B38: Kunigunde
A39: 4 | B39: Adalbert
A40: 5 | B40: Lanzelot
A41: 6 | B41: Waltraud
A42: 7 | B42: Romeo
A43: 8 | B43: Alfred
A44: 9 | B44: Siglinde
A45: 10 | B45: Kunibert
A46: 11 | B46: Albertine
A47: 12 | B47: Hagrid
A48: 13 | B48: Rosalinde
A49: 14 | B49: Dagobert
A50: 15 | B50: Gutemine
A51: 16 | B51: Asterix
A52: 17 | B52: Obelix
A53: =A21 -> 18 | B53: Winnifred
N64: =IF(SUM(N36:N63)=0,0,ROUND(AVERAGE(N36:N63),1)) -> 0 | O64: Mittelwert
B68: =A1 -> 0 | F68: =F1 -> 2. Halbjahr | M68: =M1 -> 2017/18 | S68: =V1 -> smileys
D70: Wohlbefinden | E70: Umgang | F70: Leistungen | G70: Mitarbeit | H70: Selbstaendigkeit
B71: Lynn | C71: jetzt | D71: =D4 -> 0 | E71: =E4 -> 0 | F71: =F4 -> 0 | G71: =G4 -> 0 | H71: =H4 -> 0 | AC71: 4
C72: bisher(0)
C73: Grundforderung | D73: 3 | E73: 3 | F73: 3 | G73: 3 | H73: 3 | I73: 4 | J73: 4 | K73: 4
D80: Wohlbefinden | E80: Umgang | F80: Leistungen | G80: Mitarbeit | H80: Selbstaendigkeit
B81: Lynn | C81: du | D81: =D4 -> 0 | E81: =E4 -> 0 | F81: =F4 -> 0 | G81: =G4 -> 0 | H81: =H4 -> 0 | M81: =M4 -> 0
C82: Grundforderung | D82: 3 | E82: 3 | F82: 3 | G82: 3 | H82: 3 | I82: 4 | J82: 4 | K82: 4
AK110: Notizen Selbstkompetenzen Rafael
AK112: Zuverlässigkeit: | AL112: vergisst HA regelmässig

Sheet selbstsozial
C2: Selbständigkeit | E2: Ich bin an meiner Arbeit dran ohne durchwegs Kontakt mit anderen zu suchen. | H2: Rücksicht | J2: Ich verhalte mich so, dass auch andere ungestört arbeiten können.
C4: Zuverlässigkeit | E4: Meine Arbeit entspricht der Abmachung mit den Lehrpersonen. | H4: Zusammenarbeit | J4: Ich beteilige mich angemessen, ohne Chef zu spielen. | N4: Start: Jedes Kind bekommt einen "Pass" und 10 blassgrüne Smileys, die es nach dem Lesen der Sätze in die weissen Felder aufleimt. Dieser blassgrüne Smiley entspricht der Grunderwartung. Wenn die LP eine Beobachtung bewertet (siehe Spinnendiagramme zu Selbst-, Sozialkompetenzen) erhält das Kind den entsprechenden Smiley zum einkleben und weiss damit um die aktuelle Einschätzung der LP. Kommen im Unterricht Wahlmöglichkeiten vor (Arbeitsort etc.) können diese beispielsweise vom "Pass" abhängig gemacht werden. Idee: Wer alle Grunderwartungen erfüllt oder gar übertrifft, kann auch ohne enge Überwachung durch die LP individuell arbeiten - ein befreiender Umstand für alle Beteiligten mit grosser Ausstrahlungkraft. ---"Wieso darf sie/er und ich nicht?" "Schauen wir doch mal gemeinsam in deinen Arbeitspass."--- Ziel: Arbeit an Lernatmosphäre und Gerechtigkeitsempfinden. Vorbereitung für individualisierten Unterricht , z.B. Freiarbeit.
C6: Bemühen | E6: Ich bemühe mich erkennbar um eine gute Arbeitsqualität. | H6: Offenheit | J6: Ich kann mit allen Klassenkolleginnen und-Kollegen arbeiten
C8: Antrieb | E8: Ich schaffe es, Dinge anzupacken und sie durchzuziehen. | H8: Konflikte | J8: Ich bemühe mich um faire Lösungen zu einem passenden Zeitpunkt.
C10: Zeitgefühl | E10: Ich kann meine Zeit einteilen und komme voran. | H10: Umgangsformen | J10: Ich verhalte mich freundlich und anständig.

Sheet smileysdrucken

Sheet Lesebarometer
A1: Lesebarometer | N1: Schuljahr | O1: =Klasse!D9&"/"&Klasse!F9 -> 2017/18
C2: Total | D2: Schnitt | F2: =T4 -> Mai | G2: Jun | H2: Jul | I2: Aug | J2: Sep | K2: Okt | L2: Nov | M2: Dez | N2: Jan | O2: Feb | P2: Mrz | Q2: Apr | S2: ab
A3: =IF(B3="","",A2+1) -> 1 | B3: =IF(Klasse!C13="","",Klasse!C13) -> Hans | C3: =IF(A3="","",SUM(F3:Q3)) -> 0 | D3: =IF(A3="","",IF(C3=0,0,ROUND(SUM(F3:Q3)/COUNT(F3:Q3),0))) -> 0 | S3: Mai | U3: 2 | V3: 3 | W3: 4 | X3: 5 | Y3: 6 | Z3: 7 | AA3: 8 | AB3: 9 | AC3: 10 | AD3: 11 | AE3: 12
A4: =IF(B4="","",A3+1) -> 2 | B4: =IF(Klasse!C14="","",Klasse!C14) -> Elisabeth | C4: =IF(A4="","",SUM(F4:Q4)) -> 0 | D4: =IF(A4="","",IF(C4=0,0,ROUND(SUM(F4:Q4)/COUNT(F4:Q4),0))) -> 0 | T4: =S3 -> Mai | U4: =VLOOKUP($S$3,$T$5:$AE$16,U3,0) -> Jun | V4: =VLOOKUP($S$3,$T$5:$AE$16,V3,0) -> Jul | W4: Aug | X4: Sep | Y4: Okt | Z4: Nov | AA4: Dez | AB4: Jan | AC4: Feb | AD4: Mrz | AE4: Apr
A5: 3 | B5: =IF(Klasse!C15="","",Klasse!C15) -> Kunigunde | C5: 0 | D5: 0 | T5: Jan | U5: Feb | V5: Mrz | W5: Apr | X5: Mai | Y5: Jun | Z5: Jul | AA5: Aug | AB5: Sep | AC5: Okt | AD5: Nov | AE5: Dez | AF5: Jan | AG5: Feb | AH5: Mrz | AI5: Apr | AJ5: Mai | AK5: Jun | AL5: Jul | AM5: Aug | AN5: Sep | AO5: Okt | AP5: Nov | AQ5: Dez
A6: 4 | B6: =IF(Klasse!C16="","",Klasse!C16) -> Adalbert | C6: 0 | D6: 0 | T6: =U5 -> Feb | U6: =V5 -> Mrz | V6: Apr | W6: Mai | X6: Jun | Y6: Jul | Z6: Aug | AA6: Sep | AB6: Okt | AC6: Nov | AD6: Dez | AE6: Jan
A7: 5 | B7: =IF(Klasse!C17="","",Klasse!C17) -> Lanzelot | C7: 0 | D7: 0 | T7: =V5 -> Mrz | U7: =W5 -> Apr | V7: Mai | W7: Jun | X7: Jul | Y7: Aug | Z7: Sep | AA7: Okt | AB7: Nov | AC7: Dez | AD7: Jan | AE7: Feb
A8: 6 | B8: =IF(Klasse!C18="","",Klasse!C18) -> Waltraud | C8: 0 | D8: 0 | T8: =W5 -> Apr | U8: =X5 -> Mai | V8: Jun | W8: Jul | X8: Aug | Y8: Sep | Z8: Okt | AA8: Nov | AB8: Dez | AC8: Jan | AD8: Feb | AE8: Mrz
A9: 7 | B9: =IF(Klasse!C19="","",Klasse!C19) -> Romeo | C9: 0 | D9: 0 | T9: =X5 -> Mai | U9: =Y5 -> Jun | V9: Jul | W9: Aug | X9: Sep | Y9: Okt | Z9: Nov | AA9: Dez | AB9: Jan | AC9: Feb | AD9: Mrz | AE9: Apr
A10: 8 | B10: =IF(Klasse!C20="","",Klasse!C20) -> Alfred | C10: 0 | D10: 0 | T10: =Y5 -> Jun | U10: =Z5 -> Jul | V10: Aug | W10: Sep | X10: Okt | Y10: Nov | Z10: Dez | AA10: Jan | AB10: Feb | AC10: Mrz | AD10: Apr | AE10: Mai
A11: 9 | B11: =IF(Klasse!C21="","",Klasse!C21) -> Siglinde | C11: 0 | D11: 0 | T11: =Z5 -> Jul | U11: =AA5 -> Aug | V11: Sep | W11: Okt | X11: Nov | Y11: Dez | Z11: Jan | AA11: Feb | AB11: Mrz | AC11: Apr | AD11: Mai | AE11: Jun
A12: 10 | B12: =IF(Klasse!C22="","",Klasse!C22) -> Kunibert | C12: 0 | D12: 0 | T12: =AA5 -> Aug | U12: =AB5 -> Sep | V12: Okt | W12: Nov | X12: Dez | Y12: Jan | Z12: Feb | AA12: Mrz | AB12: Apr | AC12: Mai | AD12: Jun | AE12: Jul
A13: 11 | B13: =IF(Klasse!C23="","",Klasse!C23) -> Albertine | C13: 0 | D13: 0 | T13: =AB5 -> Sep | U13: =AC5 -> Okt | V13: Nov | W13: Dez | X13: Jan | Y13: Feb | Z13: Mrz | AA13: Apr | AB13: Mai | AC13: Jun | AD13: Jul | AE13: Aug
A14: 12 | B14: =IF(Klasse!C24="","",Klasse!C24) -> Hagrid | C14: 0 | D14: 0 | T14: =AC5 -> Okt | U14: =AD5 -> Nov | V14: Dez | W14: Jan | X14: Feb | Y14: Mrz | Z14: Apr | AA14: Mai | AB14: Jun | AC14: Jul | AD14: Aug | AE14: Sep
A15: 13 | B15: =IF(Klasse!C25="","",Klasse!C25) -> Rosalinde | C15: 0 | D15: 0 | T15: =AD5 -> Nov | U15: =AE5 -> Dez | V15: Jan | W15: Feb | X15: Mrz | Y15: Apr | Z15: Mai | AA15: Jun | AB15: Jul | AC15: Aug | AD15: Sep | AE15: Okt
A16: 14 | B16: =IF(Klasse!C26="","",Klasse!C26) -> Dagobert | C16: 0 | D16: 0 | T16: =AE5 -> Dez | U16: =AF5 -> Jan | V16: Feb | W16: Mrz | X16: Apr | Y16: Mai | Z16: Jun | AA16: Jul | AB16: Aug | AC16: Sep | AD16: Okt | AE16: Nov
A17: 15 | B17: =IF(Klasse!C27="","",Klasse!C27) -> Gutemine | C17: 0 | D17: 0
A18: 16 | B18: =IF(Klasse!C28="","",Klasse!C28) -> Asterix | C18: 0 | D18: 0
A19: 17 | B19: =IF(Klasse!C29="","",Klasse!C29) -> Obelix | C19: 0 | D19: 0
A20: 18 | B20: =IF(Klasse!C30="","",Klasse!C30) -> Winnifred | C20: 0 | D20: 0
B21: =IF(Klasse!C31="","",Klasse!C31) -> 
B22: =IF(Klasse!C32="","",Klasse!C32) -> 
B23: =IF(Klasse!C33="","",Klasse!C33) -> 
B24: =IF(Klasse!C34="","",Klasse!C34) -> 
B25: =IF(Klasse!C35="","",Klasse!C35) -> 
B26: =IF(Klasse!C36="","",Klasse!C36) -> 
B27: =IF(Klasse!C37="","",Klasse!C37) -> 
B28: =IF(Klasse!C38="","",Klasse!C38) -> 
A29: =IF(B29="","",A28+1) ->  | B29: =IF(Klasse!C39="","",Klasse!C39) ->  | C29: =IF(A29="","",SUM(F29:Q29)) ->  | D29: =IF(A29="","",IF(C29=0,0,ROUND(SUM(F29:Q29)/COUNT(F29:Q29),0))) -> 
A30: =IF(B30="","",A29+1) ->  | B30: =IF(Klasse!C40="","",Klasse!C40) ->  | C30: =IF(A30="","",SUM(F30:Q30)) ->  | D30: =IF(A30="","",IF(C30=0,0,ROUND(SUM(F30:Q30)/COUNT(F30:Q30),0))) -> 
C38: Lese-Monatsschnitt (Buchseiten)
B39: * | C39: 691
B40: * | C40: 666
B41: * | C41: 662
B42: * | C42: 645
B43: * | C43: 635
B44: * | C44: 544
B45: * | C45: 515
B46: * | C46: 452
B47: * | C47: 416
B48: * | C48: 374
B49: * | C49: 359
B50: Raphael H. | C50: 328
B51: * | C51: 318
B52: * | C52: 289
B53: * | C53: 288
B54: * | C54: 284
B55: * | C55: 282
B56: * | C56: 245

Sheet Quartalsüberblick
A1: Start | B1: Ende | E1: Übersicht | G1: 1.Quartal | M1: ="Schuljahr "&Klasse!D9&"/"&Klasse!F9 -> Schuljahr 2017/18 | O1: Schuljahr | P1: 2018/2019 | AF1: =Ferien!L7&"/"&Ferien!N7 -> 2018/2019
A2: =IF(G1="1.Quartal",Q3,IF(G1="2.Quartal",Q7,IF(G1="3.Quartal",Q15,IF(G1="4.Quartal",Q19)))) -> 2018-08-13 | B2: =IF(G1="1.Quartal",Q6,IF(G1="2.Quartal",Q14,IF(G1="3.Quartal",Q18,IF(G1="4.Quartal",Q22)))) -> 2018-09-29 | S2: Ferien | U2: Schule | AF2: =Ferien!N7&"/"&Ferien!P7 -> 2019/2020
A3: letzte zeile | B3: =IF(AND(D3>=$Q$14,D3<$Q$15),$O$14,IF(AND(D3>=$Q$6,D3<$Q$7),$O$6,IF(AND(D3>=$Q$10,D3<$Q$11),$O$10,IF(AND(D3>=$Q$18,D3<$Q$19),$O$18,"")))) ->  | C3: =IF(B3="sportwoche","",IF(E3="mo",MAX($C$2:C2)+1,"")) -> 1 | D3: =A2 -> 2018-08-13 | E3: =TEXT(A2,"TTT") -> Mo | F3: =D3 -> 2018-08-13 | K3: =IF(AND(E3="Mo",B3<>""),B3,IF(C3="","","Woche "&C3)) -> Woche 1 | O3: Sommerferien | P3: Schulbeginn: | Q3: =IF(P1=AF1,Ferien!L19,Ferien!N19) -> 2018-08-13 | S3: 5 | T3: W
A4: =COUNT(D3:D200)+2 -> 49 | C4: =IF(B4="sportwoche","",IF(E4="mo",MAX($C$2:C3)+1,"")) ->  | D4: =IF(D3<$B$2-1,D3+1,"") -> 2018-08-14 | E4: =TEXT(D4,"TTT") -> Di | F4: =IF(E4="mo",D4,"") ->  | U4: =ROUND(DATEDIF(Q3,Q6,"D")/7,0) -> 7 | V4: W
C5: =IF(B5="sportwoche","",IF(E5="mo",MAX($C$2:C4)+1,"")) ->  | D5: 2018-08-15 | E5: Mi
C6: =IF(B6="sportwoche","",IF(E6="mo",MAX($C$2:C5)+1,"")) ->  | D6: 2018-08-16 | E6: Do | O6: Herbstferien | P6: Ferienanfang: | Q6: =IF(P1=AF1,Ferien!L21,Ferien!N21) -> 2018-09-29
C7: =IF(B7="sportwoche","",IF(E7="mo",MAX($C$2:C6)+1,"")) ->  | D7: 2018-08-17 | E7: Fr | P7: Schulbeginn: | Q7: =IF(P1=AF1,Ferien!L22,Ferien!N22) -> 2018-10-22 | S7: =TRUNC(DATEDIF(Q6,Q7,"D")/7,0) -> 3 | T7: W
C8: =IF(B8="sportwoche","",IF(E8="mo",MAX($C$2:C7)+1,"")) ->  | D8: 2018-08-18 | E8: Sa | U8: =ROUND(DATEDIF(Q7,Q10,"D")/7,0) -> 9 | V8: W
C9: =IF(B9="sportwoche","",IF(E9="mo",MAX($C$2:C8)+1,"")) ->  | D9: 2018-08-19 | E9: So
C10: =IF(B10="sportwoche","",IF(E10="mo",MAX($C$2:C9)+1,"")) -> 2 | D10: 2018-08-20 | E10: Mo | F10: 2018-08-20 | K10: Woche 2 | O10: Weihnachtsferien | P10: Ferienanfang: | Q10: =IF(P1=AF1,Ferien!L24,Ferien!N24) -> 2018-12-22
C11: =IF(B11="sportwoche","",IF(E11="mo",MAX($C$2:C10)+1,"")) ->  | D11: 2018-08-21 | E11: Di | P11: Schulbeginn: | Q11: =IF(P1=AF1,Ferien!N9,Ferien!P9) -> 2019-01-07 | S11: =TRUNC(DATEDIF(Q10,Q11,"D")/7,0) -> 2 | T11: W
C12: =IF(B12="sportwoche","",IF(E12="mo",MAX($C$2:C11)+1,"")) ->  | D12: 2018-08-22 | E12: Mi | U12: =ROUND(DATEDIF(Q11,Q14,"D")/7,0) -> 3 | V12: W
C13: =IF(B13="sportwoche","",IF(E13="mo",MAX($C$2:C12)+1,"")) ->  | D13: 2018-08-23 | E13: Do
C14: =IF(B14="sportwoche","",IF(E14="mo",MAX($C$2:C13)+1,"")) ->  | D14: 2018-08-24 | E14: Fr | O14: Winterferien | P14: Ferienanfang: | Q14: =IF(P1=AF1,Ferien!N12,Ferien!P12) -> 2019-01-26
C15: =IF(B15="sportwoche","",IF(E15="mo",MAX($C$2:C14)+1,"")) ->  | D15: 2018-08-25 | E15: Sa | O15: (Sportwoche) | P15: Schulbeginn: | Q15: =IF(P1=AF1,Ferien!N13,Ferien!P13) -> 2019-02-04 | S15: =TRUNC(DATEDIF(Q14,Q15,"D")/7,0) -> 1 | T15: W
C16: =IF(B16="sportwoche","",IF(E16="mo",MAX($C$2:C15)+1,"")) ->  | D16: 2018-08-26 | E16: So | U16: =ROUND(DATEDIF(Q15,Q18,"D")/7,0) -> 9 | V16: W
C17: =IF(B17="sportwoche","",IF(E17="mo",MAX($C$2:C16)+1,"")) -> 3 | D17: 2018-08-27 | E17: Mo | F17: 2018-08-27 | K17: Woche 3
C18: =IF(B18="sportwoche","",IF(E18="mo",MAX($C$2:C17)+1,"")) ->  | D18: 2018-08-28 | E18: Di | O18: Frühlingsferien | P18: Ferienanfang: | Q18: =IF(P1=AF1,Ferien!N15,Ferien!P15) -> 2019-04-06
C19: =IF(B19="sportwoche","",IF(E19="mo",MAX($C$2:C18)+1,"")) ->  | D19: 2018-08-29 | E19: Mi | P19: Schulbeginn: | Q19: =IF(P1=AF1,Ferien!N16,Ferien!P16) -> 2019-04-23 | S19: =TRUNC(DATEDIF(Q18,Q19,"D")/7,0) -> 2 | T19: W
C20: =IF(B20="sportwoche","",IF(E20="mo",MAX($C$2:C19)+1,"")) ->  | D20: 2018-08-30 | E20: Do | U20: =ROUND(DATEDIF(Q19,Q22,"D")/7,0) -> 11 | V20: W
C21: =IF(B21="sportwoche","",IF(E21="mo",MAX($C$2:C20)+1,"")) ->  | D21: 2018-08-31 | E21: Fr
C22: =IF(B22="sportwoche","",IF(E22="mo",MAX($C$2:C21)+1,"")) ->  | D22: 2018-09-01 | E22: Sa | O22: Sommerferien | P22: Ferienanfang: | Q22: =IF(P1=AF1,Ferien!N18,Ferien!P18) -> 2019-07-06
C23: =IF(B23="sportwoche","",IF(E23="mo",MAX($C$2:C22)+1,"")) ->  | D23: 2018-09-02 | E23: So | S23: =SUM(S3:S22) -> 13 | T23: W
C24: =IF(B24="sportwoche","",IF(E24="mo",MAX($C$2:C23)+1,"")) -> 4 | D24: 2018-09-03 | E24: Mo | F24: 2018-09-03 | K24: Woche 4
C25: =IF(B25="sportwoche","",IF(E25="mo",MAX($C$2:C24)+1,"")) ->  | D25: 2018-09-04 | E25: Di
C26: =IF(B26="sportwoche","",IF(E26="mo",MAX($C$2:C25)+1,"")) ->  | D26: 2018-09-05 | E26: Mi
C27: =IF(B27="sportwoche","",IF(E27="mo",MAX($C$2:C26)+1,"")) ->  | D27: 2018-09-06 | E27: Do
C28: =IF(B28="sportwoche","",IF(E28="mo",MAX($C$2:C27)+1,"")) ->  | D28: 2018-09-07 | E28: Fr
C29: =IF(B29="sportwoche","",IF(E29="mo",MAX($C$2:C28)+1,"")) ->  | D29: 2018-09-08 | E29: Sa
C30: =IF(B30="sportwoche","",IF(E30="mo",MAX($C$2:C29)+1,"")) ->  | D30: 2018-09-09 | E30: So
C31: =IF(B31="sportwoche","",IF(E31="mo",MAX($C$2:C30)+1,"")) -> 5 | D31: 2018-09-10 | E31: Mo | F31: 2018-09-10 | K31: Woche 5
C32: =IF(B32="sportwoche","",IF(E32="mo",MAX($C$2:C31)+1,"")) ->  | D32: 2018-09-11 | E32: Di
C33: =IF(B33="sportwoche","",IF(E33="mo",MAX($C$2:C32)+1,"")) ->  | D33: 2018-09-12 | E33: Mi
C34: =IF(B34="sportwoche","",IF(E34="mo",MAX($C$2:C33)+1,"")) ->  | D34: 2018-09-13 | E34: Do
B35: =IF(AND(D35>=$Q$14,D35<$Q$15),$O$14,IF(AND(D35>=$Q$6,D35<$Q$7),$O$6,IF(AND(D35>=$Q$10,D35<$Q$11),$O$10,IF(AND(D35>=$Q$18,D35<$Q$19),$O$18,"")))) ->  | C35: =IF(B35="sportwoche","",IF(E35="mo",MAX($C$2:C34)+1,"")) ->  | D35: 2018-09-14 | E35: Fr | K35: =IF(AND(E35="Mo",B35<>""),B35,IF(C35="","","Woche "&C35)) -> 
C36: =IF(B36="sportwoche","",IF(E36="mo",MAX($C$2:C35)+1,"")) ->  | D36: =IF(D35<$B$2-1,D35+1,"") -> 2018-09-15 | E36: =TEXT(D36,"TTT") -> Sa | F36: =IF(E36="mo",D36,"") -> 
C37: =IF(B37="sportwoche","",IF(E37="mo",MAX($C$2:C36)+1,"")) ->  | D37: 2018-09-16 | E37: So
C38: =IF(B38="sportwoche","",IF(E38="mo",MAX($C$2:C37)+1,"")) -> 6 | D38: 2018-09-17 | E38: Mo | F38: 2018-09-17 | K38: Woche 6
C39: =IF(B39="sportwoche","",IF(E39="mo",MAX($C$2:C38)+1,"")) ->  | D39: 2018-09-18 | E39: Di
C40: =IF(B40="sportwoche","",IF(E40="mo",MAX($C$2:C39)+1,"")) ->  | D40: 2018-09-19 | E40: Mi
C41: =IF(B41="sportwoche","",IF(E41="mo",MAX($C$2:C40)+1,"")) ->  | D41: 2018-09-20 | E41: Do
C42: =IF(B42="sportwoche","",IF(E42="mo",MAX($C$2:C41)+1,"")) ->  | D42: 2018-09-21 | E42: Fr
C43: =IF(B43="sportwoche","",IF(E43="mo",MAX($C$2:C42)+1,"")) ->  | D43: 2018-09-22 | E43: Sa
C44: =IF(B44="sportwoche","",IF(E44="mo",MAX($C$2:C43)+1,"")) ->  | D44: 2018-09-23 | E44: So
C45: =IF(B45="sportwoche","",IF(E45="mo",MAX($C$2:C44)+1,"")) -> 7 | D45: 2018-09-24 | E45: Mo | F45: 2018-09-24 | K45: Woche 7
C46: =IF(B46="sportwoche","",IF(E46="mo",MAX($C$2:C45)+1,"")) ->  | D46: 2018-09-25 | E46: Di
C47: =IF(B47="sportwoche","",IF(E47="mo",MAX($C$2:C46)+1,"")) ->  | D47: 2018-09-26 | E47: Mi
C48: =IF(B48="sportwoche","",IF(E48="mo",MAX($C$2:C47)+1,"")) ->  | D48: 2018-09-27 | E48: Do
C49: =IF(B49="sportwoche","",IF(E49="mo",MAX($C$2:C48)+1,"")) ->  | D49: 2018-09-28 | E49: Fr
C50: =IF(B50="sportwoche","",IF(E50="mo",MAX($C$2:C49)+1,"")) -> 
C51: =IF(B51="sportwoche","",IF(E51="mo",MAX($C$2:C50)+1,"")) -> 
C52: =IF(B52="sportwoche","",IF(E52="mo",MAX($C$2:C51)+1,"")) -> 
C53: =IF(B53="sportwoche","",IF(E53="mo",MAX($C$2:C52)+1,"")) -> 
C54: =IF(B54="sportwoche","",IF(E54="mo",MAX($C$2:C53)+1,"")) -> 
C55: =IF(B55="sportwoche","",IF(E55="mo",MAX($C$2:C54)+1,"")) -> 
C56: =IF(B56="sportwoche","",IF(E56="mo",MAX($C$2:C55)+1,"")) -> 
C57: =IF(B57="sportwoche","",IF(E57="mo",MAX($C$2:C56)+1,"")) -> 
C58: =IF(B58="sportwoche","",IF(E58="mo",MAX($C$2:C57)+1,"")) -> 
C59: =IF(B59="sportwoche","",IF(E59="mo",MAX($C$2:C58)+1,"")) -> 
C60: =IF(B60="sportwoche","",IF(E60="mo",MAX($C$2:C59)+1,"")) -> 
C61: =IF(B61="sportwoche","",IF(E61="mo",MAX($C$2:C60)+1,"")) -> 
C62: =IF(B62="sportwoche","",IF(E62="mo",MAX($C$2:C61)+1,"")) -> 
C63: =IF(B63="sportwoche","",IF(E63="mo",MAX($C$2:C62)+1,"")) -> 
C64: =IF(B64="sportwoche","",IF(E64="mo",MAX($C$2:C63)+1,"")) -> 
C65: =IF(B65="sportwoche","",IF(E65="mo",MAX($C$2:C64)+1,"")) -> 
C66: =IF(B66="sportwoche","",IF(E66="mo",MAX($C$2:C65)+1,"")) -> 
B67: =IF(AND(D67>=$Q$14,D67<$Q$15),$O$14,IF(AND(D67>=$Q$6,D67<$Q$7),$O$6,IF(AND(D67>=$Q$10,D67<$Q$11),$O$10,IF(AND(D67>=$Q$18,D67<$Q$19),$O$18,"")))) ->  | C67: =IF(B67="sportwoche","",IF(E67="mo",MAX($C$2:C66)+1,"")) ->  | K67: =IF(AND(E67="Mo",B67<>""),B67,IF(C67="","","Woche "&C67)) -> 
C68: =IF(B68="sportwoche","",IF(E68="mo",MAX($C$2:C67)+1,"")) ->  | D68: =IF(D67<$B$2-1,D67+1,"") ->  | E68: =TEXT(D68,"TTT") ->  | F68: =IF(E68="mo",D68,"") -> 
C69: =IF(B69="sportwoche","",IF(E69="mo",MAX($C$2:C68)+1,"")) -> 
C70: =IF(B70="sportwoche","",IF(E70="mo",MAX($C$2:C69)+1,"")) -> 
C71: =IF(B71="sportwoche","",IF(E71="mo",MAX($C$2:C70)+1,"")) -> 
C72: =IF(B72="sportwoche","",IF(E72="mo",MAX($C$2:C71)+1,"")) -> 
C73: =IF(B73="sportwoche","",IF(E73="mo",MAX($C$2:C72)+1,"")) -> 
C74: =IF(B74="sportwoche","",IF(E74="mo",MAX($C$2:C73)+1,"")) -> 
C75: =IF(B75="sportwoche","",IF(E75="mo",MAX($C$2:C74)+1,"")) -> 
C76: =IF(B76="sportwoche","",IF(E76="mo",MAX($C$2:C75)+1,"")) -> 
C77: =IF(B77="sportwoche","",IF(E77="mo",MAX($C$2:C76)+1,"")) -> 
C78: =IF(B78="sportwoche","",IF(E78="mo",MAX($C$2:C77)+1,"")) -> 
C79: =IF(B79="sportwoche","",IF(E79="mo",MAX($C$2:C78)+1,"")) -> 
C80: =IF(B80="sportwoche","",IF(E80="mo",MAX($C$2:C79)+1,"")) -> 
C81: =IF(B81="sportwoche","",IF(E81="mo",MAX($C$2:C80)+1,"")) -> 
C82: =IF(B82="sportwoche","",IF(E82="mo",MAX($C$2:C81)+1,"")) -> 
C83: =IF(B83="sportwoche","",IF(E83="mo",MAX($C$2:C82)+1,"")) -> 
C84: =IF(B84="sportwoche","",IF(E84="mo",MAX($C$2:C83)+1,"")) -> 
C85: =IF(B85="sportwoche","",IF(E85="mo",MAX($C$2:C84)+1,"")) -> 
C86: =IF(B86="sportwoche","",IF(E86="mo",MAX($C$2:C85)+1,"")) -> 
C87: =IF(B87="sportwoche","",IF(E87="mo",MAX($C$2:C86)+1,"")) -> 
C88: =IF(B88="sportwoche","",IF(E88="mo",MAX($C$2:C87)+1,"")) -> 
C89: =IF(B89="sportwoche","",IF(E89="mo",MAX($C$2:C88)+1,"")) -> 
C90: =IF(B90="sportwoche","",IF(E90="mo",MAX($C$2:C89)+1,"")) -> 
C91: =IF(B91="sportwoche","",IF(E91="mo",MAX($C$2:C90)+1,"")) -> 
C92: =IF(B92="sportwoche","",IF(E92="mo",MAX($C$2:C91)+1,"")) -> 
C93: =IF(B93="sportwoche","",IF(E93="mo",MAX($C$2:C92)+1,"")) -> 
C94: =IF(B94="sportwoche","",IF(E94="mo",MAX($C$2:C93)+1,"")) -> 
C95: =IF(B95="sportwoche","",IF(E95="mo",MAX($C$2:C94)+1,"")) -> 
C96: =IF(B96="sportwoche","",IF(E96="mo",MAX($C$2:C95)+1,"")) -> 
C97: =IF(B97="sportwoche","",IF(E97="mo",MAX($C$2:C96)+1,"")) -> 
C98: =IF(B98="sportwoche","",IF(E98="mo",MAX($C$2:C97)+1,"")) -> 
B99: =IF(AND(D99>=$Q$14,D99<$Q$15),$O$14,IF(AND(D99>=$Q$6,D99<$Q$7),$O$6,IF(AND(D99>=$Q$10,D99<$Q$11),$O$10,IF(AND(D99>=$Q$18,D99<$Q$19),$O$18,"")))) ->  | C99: =IF(B99="sportwoche","",IF(E99="mo",MAX($C$2:C98)+1,"")) ->  | K99: =IF(AND(E99="Mo",B99<>""),B99,IF(C99="","","Woche "&C99)) -> 
C100: =IF(B100="sportwoche","",IF(E100="mo",MAX($C$2:C99)+1,"")) ->  | D100: =IF(D99<$B$2-1,D99+1,"") ->  | E100: =TEXT(D100,"TTT") ->  | F100: =IF(E100="mo",D100,"") -> 
C101: =IF(B101="sportwoche","",IF(E101="mo",MAX($C$2:C100)+1,"")) -> 
C102: =IF(B102="sportwoche","",IF(E102="mo",MAX($C$2:C101)+1,"")) -> 
C103: =IF(B103="sportwoche","",IF(E103="mo",MAX($C$2:C102)+1,"")) -> 
C104: =IF(B104="sportwoche","",IF(E104="mo",MAX($C$2:C103)+1,"")) -> 
C105: =IF(B105="sportwoche","",IF(E105="mo",MAX($C$2:C104)+1,"")) -> 
C106: =IF(B106="sportwoche","",IF(E106="mo",MAX($C$2:C105)+1,"")) -> 
C107: =IF(B107="sportwoche","",IF(E107="mo",MAX($C$2:C106)+1,"")) -> 
C108: =IF(B108="sportwoche","",IF(E108="mo",MAX($C$2:C107)+1,"")) -> 
C109: =IF(B109="sportwoche","",IF(E109="mo",MAX($C$2:C108)+1,"")) -> 
C110: =IF(B110="sportwoche","",IF(E110="mo",MAX($C$2:C109)+1,"")) -> 
C111: =IF(B111="sportwoche","",IF(E111="mo",MAX($C$2:C110)+1,"")) -> 
C112: =IF(B112="sportwoche","",IF(E112="mo",MAX($C$2:C111)+1,"")) -> 
C113: =IF(B113="sportwoche","",IF(E113="mo",MAX($C$2:C112)+1,"")) -> 
C114: =IF(B114="sportwoche","",IF(E114="mo",MAX($C$2:C113)+1,"")) -> 
C115: =IF(B115="sportwoche","",IF(E115="mo",MAX($C$2:C114)+1,"")) -> 
C116: =IF(B116="sportwoche","",IF(E116="mo",MAX($C$2:C115)+1,"")) -> 
C117: =IF(B117="sportwoche","",IF(E117="mo",MAX($C$2:C116)+1,"")) -> 
C118: =IF(B118="sportwoche","",IF(E118="mo",MAX($C$2:C117)+1,"")) -> 
C119: =IF(B119="sportwoche","",IF(E119="mo",MAX($C$2:C118)+1,"")) -> 
C120: =IF(B120="sportwoche","",IF(E120="mo",MAX($C$2:C119)+1,"")) -> 
C121: =IF(B121="sportwoche","",IF(E121="mo",MAX($C$2:C120)+1,"")) -> 
C122: =IF(B122="sportwoche","",IF(E122="mo",MAX($C$2:C121)+1,"")) -> 
C123: =IF(B123="sportwoche","",IF(E123="mo",MAX($C$2:C122)+1,"")) -> 
C124: =IF(B124="sportwoche","",IF(E124="mo",MAX($C$2:C123)+1,"")) -> 
C125: =IF(B125="sportwoche","",IF(E125="mo",MAX($C$2:C124)+1,"")) -> 
C126: =IF(B126="sportwoche","",IF(E126="mo",MAX($C$2:C125)+1,"")) -> 
C127: =IF(B127="sportwoche","",IF(E127="mo",MAX($C$2:C126)+1,"")) -> 
C128: =IF(B128="sportwoche","",IF(E128="mo",MAX($C$2:C127)+1,"")) -> 
C129: =IF(B129="sportwoche","",IF(E129="mo",MAX($C$2:C128)+1,"")) -> 
C130: =IF(B130="sportwoche","",IF(E130="mo",MAX($C$2:C129)+1,"")) -> 
B131: =IF(AND(D131>=$Q$14,D131<$Q$15),$O$14,IF(AND(D131>=$Q$6,D131<$Q$7),$O$6,IF(AND(D131>=$Q$10,D131<$Q$11),$O$10,IF(AND(D131>=$Q$18,D131<$Q$19),$O$18,"")))) ->  | C131: =IF(B131="sportwoche","",IF(E131="mo",MAX($C$2:C130)+1,"")) ->  | K131: =IF(AND(E131="Mo",B131<>""),B131,IF(C131="","","Woche "&C131)) -> 
C132: =IF(B132="sportwoche","",IF(E132="mo",MAX($C$2:C131)+1,"")) ->  | D132: =IF(D131<$B$2-1,D131+1,"") ->  | E132: =TEXT(D132,"TTT") ->  | F132: =IF(E132="mo",D132,"") -> 
C133: =IF(B133="sportwoche","",IF(E133="mo",MAX($C$2:C132)+1,"")) -> 
C134: =IF(B134="sportwoche","",IF(E134="mo",MAX($C$2:C133)+1,"")) -> 
C135: =IF(B135="sportwoche","",IF(E135="mo",MAX($C$2:C134)+1,"")) -> 
C136: =IF(B136="sportwoche","",IF(E136="mo",MAX($C$2:C135)+1,"")) -> 
C137: =IF(B137="sportwoche","",IF(E137="mo",MAX($C$2:C136)+1,"")) -> 
C138: =IF(B138="sportwoche","",IF(E138="mo",MAX($C$2:C137)+1,"")) -> 
C139: =IF(B139="sportwoche","",IF(E139="mo",MAX($C$2:C138)+1,"")) -> 
C140: =IF(B140="sportwoche","",IF(E140="mo",MAX($C$2:C139)+1,"")) -> 
C141: =IF(B141="sportwoche","",IF(E141="mo",MAX($C$2:C140)+1,"")) -> 
C142: =IF(B142="sportwoche","",IF(E142="mo",MAX($C$2:C141)+1,"")) -> 
C143: =IF(B143="sportwoche","",IF(E143="mo",MAX($C$2:C142)+1,"")) -> 
C144: =IF(B144="sportwoche","",IF(E144="mo",MAX($C$2:C143)+1,"")) -> 
C145: =IF(B145="sportwoche","",IF(E145="mo",MAX($C$2:C144)+1,"")) -> 
C146: =IF(B146="sportwoche","",IF(E146="mo",MAX($C$2:C145)+1,"")) -> 
C147: =IF(B147="sportwoche","",IF(E147="mo",MAX($C$2:C146)+1,"")) -> 
C148: =IF(B148="sportwoche","",IF(E148="mo",MAX($C$2:C147)+1,"")) -> 
C149: =IF(B149="sportwoche","",IF(E149="mo",MAX($C$2:C148)+1,"")) -> 
C150: =IF(B150="sportwoche","",IF(E150="mo",MAX($C$2:C149)+1,"")) -> 
C151: =IF(B151="sportwoche","",IF(E151="mo",MAX($C$2:C150)+1,"")) -> 
C152: =IF(B152="sportwoche","",IF(E152="mo",MAX($C$2:C151)+1,"")) -> 
C153: =IF(B153="sportwoche","",IF(E153="mo",MAX($C$2:C152)+1,"")) -> 
C154: =IF(B154="sportwoche","",IF(E154="mo",MAX($C$2:C153)+1,"")) -> 
C155: =IF(B155="sportwoche","",IF(E155="mo",MAX($C$2:C154)+1,"")) -> 
C156: =IF(B156="sportwoche","",IF(E156="mo",MAX($C$2:C155)+1,"")) -> 
C157: =IF(B157="sportwoche","",IF(E157="mo",MAX($C$2:C156)+1,"")) -> 
C158: =IF(B158="sportwoche","",IF(E158="mo",MAX($C$2:C157)+1,"")) -> 
C159: =IF(B159="sportwoche","",IF(E159="mo",MAX($C$2:C158)+1,"")) -> 
C160: =IF(B160="sportwoche","",IF(E160="mo",MAX($C$2:C159)+1,"")) -> 
C161: =IF(B161="sportwoche","",IF(E161="mo",MAX($C$2:C160)+1,"")) -> 
C162: =IF(B162="sportwoche","",IF(E162="mo",MAX($C$2:C161)+1,"")) -> 
B163: =IF(AND(D163>=$Q$14,D163<$Q$15),$O$14,IF(AND(D163>=$Q$6,D163<$Q$7),$O$6,IF(AND(D163>=$Q$10,D163<$Q$11),$O$10,IF(AND(D163>=$Q$18,D163<$Q$19),$O$18,"")))) ->  | C163: =IF(B163="sportwoche","",IF(E163="mo",MAX($C$2:C162)+1,"")) ->  | K163: =IF(AND(E163="Mo",B163<>""),B163,IF(C163="","","Woche "&C163)) -> 
C164: =IF(B164="sportwoche","",IF(E164="mo",MAX($C$2:C163)+1,"")) ->  | D164: =IF(D163<$B$2-1,D163+1,"") ->  | E164: =TEXT(D164,"TTT") ->  | F164: =IF(E164="mo",D164,"") -> 
C165: =IF(B165="sportwoche","",IF(E165="mo",MAX($C$2:C164)+1,"")) -> 
C166: =IF(B166="sportwoche","",IF(E166="mo",MAX($C$2:C165)+1,"")) -> 
C167: =IF(B167="sportwoche","",IF(E167="mo",MAX($C$2:C166)+1,"")) -> 
C168: =IF(B168="sportwoche","",IF(E168="mo",MAX($C$2:C167)+1,"")) -> 
C169: =IF(B169="sportwoche","",IF(E169="mo",MAX($C$2:C168)+1,"")) -> 
C170: =IF(B170="sportwoche","",IF(E170="mo",MAX($C$2:C169)+1,"")) -> 
C171: =IF(B171="sportwoche","",IF(E171="mo",MAX($C$2:C170)+1,"")) -> 
C172: =IF(B172="sportwoche","",IF(E172="mo",MAX($C$2:C171)+1,"")) -> 
C173: =IF(B173="sportwoche","",IF(E173="mo",MAX($C$2:C172)+1,"")) -> 
C174: =IF(B174="sportwoche","",IF(E174="mo",MAX($C$2:C173)+1,"")) -> 
C175: =IF(B175="sportwoche","",IF(E175="mo",MAX($C$2:C174)+1,"")) -> 
C176: =IF(B176="sportwoche","",IF(E176="mo",MAX($C$2:C175)+1,"")) -> 
C177: =IF(B177="sportwoche","",IF(E177="mo",MAX($C$2:C176)+1,"")) -> 
C178: =IF(B178="sportwoche","",IF(E178="mo",MAX($C$2:C177)+1,"")) -> 
C179: =IF(B179="sportwoche","",IF(E179="mo",MAX($C$2:C178)+1,"")) -> 
C180: =IF(B180="sportwoche","",IF(E180="mo",MAX($C$2:C179)+1,"")) -> 
C181: =IF(B181="sportwoche","",IF(E181="mo",MAX($C$2:C180)+1,"")) -> 
C182: =IF(B182="sportwoche","",IF(E182="mo",MAX($C$2:C181)+1,"")) -> 
C183: =IF(B183="sportwoche","",IF(E183="mo",MAX($C$2:C182)+1,"")) -> 
C184: =IF(B184="sportwoche","",IF(E184="mo",MAX($C$2:C183)+1,"")) -> 
C185: =IF(B185="sportwoche","",IF(E185="mo",MAX($C$2:C184)+1,"")) -> 
C186: =IF(B186="sportwoche","",IF(E186="mo",MAX($C$2:C185)+1,"")) -> 
C187: =IF(B187="sportwoche","",IF(E187="mo",MAX($C$2:C186)+1,"")) -> 
C188: =IF(B188="sportwoche","",IF(E188="mo",MAX($C$2:C187)+1,"")) -> 
C189: =IF(B189="sportwoche","",IF(E189="mo",MAX($C$2:C188)+1,"")) -> 
C190: =IF(B190="sportwoche","",IF(E190="mo",MAX($C$2:C189)+1,"")) -> 
C191: =IF(B191="sportwoche","",IF(E191="mo",MAX($C$2:C190)+1,"")) -> 
C192: =IF(B192="sportwoche","",IF(E192="mo",MAX($C$2:C191)+1,"")) -> 
C193: =IF(B193="sportwoche","",IF(E193="mo",MAX($C$2:C192)+1,"")) -> 
C194: =IF(B194="sportwoche","",IF(E194="mo",MAX($C$2:C193)+1,"")) -> 
B195: =IF(AND(D195>=$Q$14,D195<$Q$15),$O$14,IF(AND(D195>=$Q$6,D195<$Q$7),$O$6,IF(AND(D195>=$Q$10,D195<$Q$11),$O$10,IF(AND(D195>=$Q$18,D195<$Q$19),$O$18,"")))) ->  | C195: =IF(B195="sportwoche","",IF(E195="mo",MAX($C$2:C194)+1,"")) ->  | K195: =IF(AND(E195="Mo",B195<>""),B195,IF(C195="","","Woche "&C195)) -> 
C196: =IF(B196="sportwoche","",IF(E196="mo",MAX($C$2:C195)+1,"")) ->  | E196: =TEXT(D196,"TTT") ->  | F196: =IF(E196="mo",D196,"") -> 
C197: =IF(B197="sportwoche","",IF(E197="mo",MAX($C$2:C196)+1,"")) ->  | E197: =TEXT(D197,"TTT") ->  | F197: =IF(E197="mo",D197,"") -> 
C198: =IF(B198="sportwoche","",IF(E198="mo",MAX($C$2:C197)+1,"")) ->  | E198: =TEXT(D198,"TTT") ->  | F198: =IF(E198="mo",D198,"") -> 
C199: =IF(B199="sportwoche","",IF(E199="mo",MAX($C$2:C198)+1,"")) ->  | E199: =TEXT(D199,"TTT") ->  | F199: =IF(E199="mo",D199,"") -> 
C200: =IF(B200="sportwoche","",IF(E200="mo",MAX($C$2:C199)+1,"")) ->  | D200: =IF(D199<$B$2+1,D199+1,"") ->  | E200: =TEXT(D200,"TTT") ->  | F200: =IF(E200="mo",D200,"") -> 

Sheet Kalenderjahresüberblick
A1: Start | B1: Ende | C1: =COUNT(D2:D401)+1 -> 366 | E1: Übersicht | M1: ="Kalenderjahr "&YEAR(Q3) -> Kalenderjahr 2018 | O1: Kalenderjahr | P1: 2018 | X1: =Ferien!L7 -> 2018
A2: =Q3 -> 2018-01-01 | B2: =Q21 -> 2018-12-31 | D2: =A2-1 -> 2017-12-31 | X2: =Ferien!N7 -> 2019
A3: =TEXT(D3,"TTT") -> Mo | B3: =IF(AND(D3>=$Q$7,D3<$Q$8),$O$7,IF(AND(D3>=$Q$10,D3<$Q$11),$O$10,IF(AND(D3>=$Q$13,D3<$Q$14),$O$13,IF(AND(D3>=$Q$16,D3<$Q$17),$O$16,"")))) ->  | C3: =IF(A3="mo",MAX($C$2:C2)+1,"") -> 1 | D3: =IF(D2<$B$2-1,D2+1,"") -> 2018-01-01 | E3: =A3 -> Mo | F3: =IF(A3="mo",D3,"") -> 2018-01-01 | K3: =IF(C3="","","Woche "&C3) -> Woche 1 | M3: =IF(AND(A3="Mo",B4<>""),B3,"") ->  | Q3: =DATE(P1,1,1) -> 2018-01-01 | X3: =Ferien!P7 -> 2020
A4: =TEXT(D4,"TTT") -> Di | C4: =IF(A4="mo",MAX($C$2:C3)+1,"") ->  | D4: 2018-01-02 | E4: Di
A5: Mi | C5: =IF(A5="mo",MAX($C$2:C4)+1,"") ->  | D5: 2018-01-03 | E5: Mi | P5: Schulbeginn: | Q5: =IF(P1=X2,Ferien!N9,IF(P1=X3,Ferien!P9,Ferien!L9)) -> 2018-01-08
A6: Do | C6: =IF(A6="mo",MAX($C$2:C5)+1,"") ->  | D6: 2018-01-04 | E6: Do
A7: Fr | C7: =IF(A7="mo",MAX($C$2:C6)+1,"") ->  | D7: 2018-01-05 | E7: Fr | M7: =IF(AND(A7="Mo",B8<>""),B7,"") ->  | O7: Sportwoche | P7: Ferienanfang: | Q7: =IF(P1=X2,Ferien!N12,IF(P1=X3,Ferien!P12,Ferien!L12)) -> 2018-01-27
A8: Sa | C8: =IF(A8="mo",MAX($C$2:C7)+1,"") ->  | D8: 2018-01-06 | E8: Sa | P8: Schulbeginn: | Q8: =IF(P1=X2,Ferien!N13,IF(P1=X3,Ferien!P13,Ferien!L13)) -> 2018-02-05
A9: So | C9: =IF(A9="mo",MAX($C$2:C8)+1,"") ->  | D9: 2018-01-07 | E9: So
A10: Mo | C10: =IF(A10="mo",MAX($C$2:C9)+1,"") -> 2 | D10: 2018-01-08 | E10: Mo | F10: 2018-01-08 | K10: Woche 2 | O10: Frühlingsferien | P10: Ferienanfang: | Q10: =IF(P1=X2,Ferien!N15,IF(P1=X3,Ferien!P15,Ferien!L15)) -> 2018-04-07
A11: Di | C11: =IF(A11="mo",MAX($C$2:C10)+1,"") ->  | D11: 2018-01-09 | E11: Di | P11: Schulbeginn: | Q11: =IF(P1=X2,Ferien!N16,IF(P1=X3,Ferien!P16,Ferien!L16)) -> 2018-04-23
A12: Mi | C12: =IF(A12="mo",MAX($C$2:C11)+1,"") ->  | D12: 2018-01-10 | E12: Mi
A13: Do | C13: =IF(A13="mo",MAX($C$2:C12)+1,"") ->  | D13: 2018-01-11 | E13: Do | O13: Sommerferien | P13: Ferienanfang: | Q13: =IF(P1=X2,Ferien!N18,IF(P1=X3,Ferien!P18,Ferien!L18)) -> 2018-07-07
A14: Fr | C14: =IF(A14="mo",MAX($C$2:C13)+1,"") ->  | D14: 2018-01-12 | E14: Fr | P14: Schulbeginn: | Q14: =IF(P1=X2,Ferien!N19,IF(P1=X3,Ferien!P19,Ferien!L19)) -> 2018-08-13
A15: Sa | C15: =IF(A15="mo",MAX($C$2:C14)+1,"") ->  | D15: 2018-01-13 | E15: Sa
A16: So | C16: =IF(A16="mo",MAX($C$2:C15)+1,"") ->  | D16: 2018-01-14 | E16: So | O16: Herbstferien | P16: Ferienanfang: | Q16: =IF(P1=X2,Ferien!N21,IF(P1=X3,Ferien!P21,Ferien!L21)) -> 2018-09-29
A17: Mo | C17: =IF(A17="mo",MAX($C$2:C16)+1,"") -> 3 | D17: 2018-01-15 | E17: Mo | F17: 2018-01-15 | K17: Woche 3 | P17: Schulbeginn: | Q17: =IF(P1=X2,Ferien!N22,IF(P1=X3,Ferien!P22,Ferien!L22)) -> 2018-10-22
A18: Di | C18: =IF(A18="mo",MAX($C$2:C17)+1,"") ->  | D18: 2018-01-16 | E18: Di
A19: Mi | C19: =IF(A19="mo",MAX($C$2:C18)+1,"") ->  | D19: 2018-01-17 | E19: Mi | O19: Winterferien | P19: Ferienanfang: | Q19: =IF(P1=X2,Ferien!N24,IF(P1=X3,Ferien!P24,Ferien!L24)) -> 2018-12-22
A20: Do | C20: =IF(A20="mo",MAX($C$2:C19)+1,"") ->  | D20: 2018-01-18 | E20: Do
A21: Fr | C21: =IF(A21="mo",MAX($C$2:C20)+1,"") ->  | D21: 2018-01-19 | E21: Fr | P21: Ende: | Q21: =DATE(P1,12,31) -> 2018-12-31
A22: Sa | C22: =IF(A22="mo",MAX($C$2:C21)+1,"") ->  | D22: 2018-01-20 | E22: Sa
A23: So | C23: =IF(A23="mo",MAX($C$2:C22)+1,"") ->  | D23: 2018-01-21 | E23: So
A24: Mo | C24: =IF(A24="mo",MAX($C$2:C23)+1,"") -> 4 | D24: 2018-01-22 | E24: Mo | F24: 2018-01-22 | K24: Woche 4
A25: Di | C25: =IF(A25="mo",MAX($C$2:C24)+1,"") ->  | D25: 2018-01-23 | E25: Di
A26: Mi | C26: =IF(A26="mo",MAX($C$2:C25)+1,"") ->  | D26: 2018-01-24 | E26: Mi
A27: Do | C27: =IF(A27="mo",MAX($C$2:C26)+1,"") ->  | D27: 2018-01-25 | E27: Do
A28: Fr | C28: =IF(A28="mo",MAX($C$2:C27)+1,"") ->  | D28: 2018-01-26 | E28: Fr
A29: Sa | B29: Sportwoche | C29: =IF(A29="mo",MAX($C$2:C28)+1,"") ->  | D29: 2018-01-27 | E29: Sa
A30: So | B30: Sportwoche | C30: =IF(A30="mo",MAX($C$2:C29)+1,"") ->  | D30: 2018-01-28 | E30: So
A31: Mo | B31: Sportwoche | C31: =IF(A31="mo",MAX($C$2:C30)+1,"") -> 5 | D31: 2018-01-29 | E31: Mo | F31: 2018-01-29 | K31: Woche 5 | M31: Sportwoche
A32: Di | B32: Sportwoche | C32: =IF(A32="mo",MAX($C$2:C31)+1,"") ->  | D32: 2018-01-30 | E32: Di
A33: Mi | B33: Sportwoche | C33: =IF(A33="mo",MAX($C$2:C32)+1,"") ->  | D33: 2018-01-31 | E33: Mi
A34: Do | B34: Sportwoche | C34: =IF(A34="mo",MAX($C$2:C33)+1,"") ->  | D34: 2018-02-01 | E34: Do
A35: Fr | B35: Sportwoche | C35: =IF(A35="mo",MAX($C$2:C34)+1,"") ->  | D35: 2018-02-02 | E35: Fr
A36: Sa | B36: Sportwoche | C36: =IF(A36="mo",MAX($C$2:C35)+1,"") ->  | D36: 2018-02-03 | E36: Sa
A37: So | B37: Sportwoche | C37: =IF(A37="mo",MAX($C$2:C36)+1,"") ->  | D37: 2018-02-04 | E37: So
A38: Mo | C38: =IF(A38="mo",MAX($C$2:C37)+1,"") -> 6 | D38: 2018-02-05 | E38: Mo | F38: 2018-02-05 | K38: Woche 6
A39: Di | C39: =IF(A39="mo",MAX($C$2:C38)+1,"") ->  | D39: 2018-02-06 | E39: Di
A40: Mi | C40: =IF(A40="mo",MAX($C$2:C39)+1,"") ->  | D40: 2018-02-07 | E40: Mi
A41: Do | C41: =IF(A41="mo",MAX($C$2:C40)+1,"") ->  | D41: 2018-02-08 | E41: Do
A42: Fr | C42: =IF(A42="mo",MAX($C$2:C41)+1,"") ->  | D42: 2018-02-09 | E42: Fr
A43: Sa | C43: =IF(A43="mo",MAX($C$2:C42)+1,"") ->  | D43: 2018-02-10 | E43: Sa
A44: So | C44: =IF(A44="mo",MAX($C$2:C43)+1,"") ->  | D44: 2018-02-11 | E44: So
A45: Mo | C45: =IF(A45="mo",MAX($C$2:C44)+1,"") -> 7 | D45: 2018-02-12 | E45: Mo | F45: 2018-02-12 | K45: Woche 7
A46: Di | C46: =IF(A46="mo",MAX($C$2:C45)+1,"") ->  | D46: 2018-02-13 | E46: Di
A47: Mi | C47: =IF(A47="mo",MAX($C$2:C46)+1,"") ->  | D47: 2018-02-14 | E47: Mi
A48: Do | C48: =IF(A48="mo",MAX($C$2:C47)+1,"") ->  | D48: 2018-02-15 | E48: Do
A49: Fr | C49: =IF(A49="mo",MAX($C$2:C48)+1,"") ->  | D49: 2018-02-16 | E49: Fr
A50: Sa | C50: =IF(A50="mo",MAX($C$2:C49)+1,"") ->  | D50: 2018-02-17 | E50: Sa
A51: So | C51: =IF(A51="mo",MAX($C$2:C50)+1,"") ->  | D51: 2018-02-18 | E51: So
A52: Mo | C52: =IF(A52="mo",MAX($C$2:C51)+1,"") -> 8 | D52: 2018-02-19 | E52: Mo | F52: 2018-02-19 | K52: Woche 8
A53: Di | C53: =IF(A53="mo",MAX($C$2:C52)+1,"") ->  | D53: 2018-02-20 | E53: Di
A54: Mi | C54: =IF(A54="mo",MAX($C$2:C53)+1,"") ->  | D54: 2018-02-21 | E54: Mi
A55: Do | C55: =IF(A55="mo",MAX($C$2:C54)+1,"") ->  | D55: 2018-02-22 | E55: Do
A56: Fr | C56: =IF(A56="mo",MAX($C$2:C55)+1,"") ->  | D56: 2018-02-23 | E56: Fr
A57: Sa | C57: =IF(A57="mo",MAX($C$2:C56)+1,"") ->  | D57: 2018-02-24 | E57: Sa
A58: So | C58: =IF(A58="mo",MAX($C$2:C57)+1,"") ->  | D58: 2018-02-25 | E58: So
A59: Mo | C59: =IF(A59="mo",MAX($C$2:C58)+1,"") -> 9 | D59: 2018-02-26 | E59: Mo | F59: 2018-02-26 | K59: Woche 9
A60: Di | C60: =IF(A60="mo",MAX($C$2:C59)+1,"") ->  | D60: 2018-02-27 | E60: Di
A61: Mi | C61: =IF(A61="mo",MAX($C$2:C60)+1,"") ->  | D61: 2018-02-28 | E61: Mi
A62: Do | C62: =IF(A62="mo",MAX($C$2:C61)+1,"") ->  | D62: 2018-03-01 | E62: Do
A63: Fr | C63: =IF(A63="mo",MAX($C$2:C62)+1,"") ->  | D63: 2018-03-02 | E63: Fr
A64: Sa | C64: =IF(A64="mo",MAX($C$2:C63)+1,"") ->  | D64: 2018-03-03 | E64: Sa
A65: So | C65: =IF(A65="mo",MAX($C$2:C64)+1,"") ->  | D65: 2018-03-04 | E65: So
A66: Mo | C66: =IF(A66="mo",MAX($C$2:C65)+1,"") -> 10 | D66: 2018-03-05 | E66: Mo | F66: 2018-03-05 | K66: Woche 10
A67: =TEXT(D67,"TTT") -> Di | B67: =IF(AND(D67>=$Q$7,D67<$Q$8),$O$7,IF(AND(D67>=$Q$10,D67<$Q$11),$O$10,IF(AND(D67>=$Q$13,D67<$Q$14),$O$13,IF(AND(D67>=$Q$16,D67<$Q$17),$O$16,"")))) ->  | C67: =IF(A67="mo",MAX($C$2:C66)+1,"") ->  | D67: =IF(D66<$B$2-1,D66+1,"") -> 2018-03-06 | E67: =A67 -> Di | F67: =IF(A67="mo",D67,"") ->  | K67: =IF(C67="","","Woche "&C67) ->  | M67: =IF(AND(A67="Mo",B68<>""),B67,"") -> 
A68: Mi | C68: =IF(A68="mo",MAX($C$2:C67)+1,"") ->  | D68: 2018-03-07 | E68: Mi
A69: Do | C69: =IF(A69="mo",MAX($C$2:C68)+1,"") ->  | D69: 2018-03-08 | E69: Do
A70: Fr | C70: =IF(A70="mo",MAX($C$2:C69)+1,"") ->  | D70: 2018-03-09 | E70: Fr
A71: Sa | C71: =IF(A71="mo",MAX($C$2:C70)+1,"") ->  | D71: 2018-03-10 | E71: Sa
A72: So | C72: =IF(A72="mo",MAX($C$2:C71)+1,"") ->  | D72: 2018-03-11 | E72: So
A73: Mo | C73: =IF(A73="mo",MAX($C$2:C72)+1,"") -> 11 | D73: 2018-03-12 | E73: Mo | F73: 2018-03-12 | K73: Woche 11
A74: Di | C74: =IF(A74="mo",MAX($C$2:C73)+1,"") ->  | D74: 2018-03-13 | E74: Di
A75: Mi | C75: =IF(A75="mo",MAX($C$2:C74)+1,"") ->  | D75: 2018-03-14 | E75: Mi
A76: Do | C76: =IF(A76="mo",MAX($C$2:C75)+1,"") ->  | D76: 2018-03-15 | E76: Do
A77: Fr | C77: =IF(A77="mo",MAX($C$2:C76)+1,"") ->  | D77: 2018-03-16 | E77: Fr
A78: Sa | C78: =IF(A78="mo",MAX($C$2:C77)+1,"") ->  | D78: 2018-03-17 | E78: Sa
A79: So | C79: =IF(A79="mo",MAX($C$2:C78)+1,"") ->  | D79: 2018-03-18 | E79: So
A80: Mo | C80: =IF(A80="mo",MAX($C$2:C79)+1,"") -> 12 | D80: 2018-03-19 | E80: Mo | F80: 2018-03-19 | K80: Woche 12
A81: Di | C81: =IF(A81="mo",MAX($C$2:C80)+1,"") ->  | D81: 2018-03-20 | E81: Di
A82: Mi | C82: =IF(A82="mo",MAX($C$2:C81)+1,"") ->  | D82: 2018-03-21 | E82: Mi
A83: Do | C83: =IF(A83="mo",MAX($C$2:C82)+1,"") ->  | D83: 2018-03-22 | E83: Do
A84: Fr | C84: =IF(A84="mo",MAX($C$2:C83)+1,"") ->  | D84: 2018-03-23 | E84: Fr
A85: Sa | C85: =IF(A85="mo",MAX($C$2:C84)+1,"") ->  | D85: 2018-03-24 | E85: Sa
A86: So | C86: =IF(A86="mo",MAX($C$2:C85)+1,"") ->  | D86: 2018-03-25 | E86: So
A87: Mo | C87: =IF(A87="mo",MAX($C$2:C86)+1,"") -> 13 | D87: 2018-03-26 | E87: Mo | F87: 2018-03-26 | K87: Woche 13
A88: Di | C88: =IF(A88="mo",MAX($C$2:C87)+1,"") ->  | D88: 2018-03-27 | E88: Di
A89: Mi | C89: =IF(A89="mo",MAX($C$2:C88)+1,"") ->  | D89: 2018-03-28 | E89: Mi
A90: Do | C90: =IF(A90="mo",MAX($C$2:C89)+1,"") ->  | D90: 2018-03-29 | E90: Do
A91: Fr | C91: =IF(A91="mo",MAX($C$2:C90)+1,"") ->  | D91: 2018-03-30 | E91: Fr
A92: Sa | C92: =IF(A92="mo",MAX($C$2:C91)+1,"") ->  | D92: 2018-03-31 | E92: Sa
A93: So | C93: =IF(A93="mo",MAX($C$2:C92)+1,"") ->  | D93: 2018-04-01 | E93: So
A94: Mo | C94: =IF(A94="mo",MAX($C$2:C93)+1,"") -> 14 | D94: 2018-04-02 | E94: Mo | F94: 2018-04-02 | K94: Woche 14
A95: Di | C95: =IF(A95="mo",MAX($C$2:C94)+1,"") ->  | D95: 2018-04-03 | E95: Di
A96: Mi | C96: =IF(A96="mo",MAX($C$2:C95)+1,"") ->  | D96: 2018-04-04 | E96: Mi
A97: Do | C97: =IF(A97="mo",MAX($C$2:C96)+1,"") ->  | D97: 2018-04-05 | E97: Do
A98: Fr | C98: =IF(A98="mo",MAX($C$2:C97)+1,"") ->  | D98: 2018-04-06 | E98: Fr
A99: Sa | B99: Frühlingsferien | C99: =IF(A99="mo",MAX($C$2:C98)+1,"") ->  | D99: 2018-04-07 | E99: Sa
A100: So | B100: Frühlingsferien | C100: =IF(A100="mo",MAX($C$2:C99)+1,"") ->  | D100: 2018-04-08 | E100: So
A101: Mo | B101: Frühlingsferien | C101: =IF(A101="mo",MAX($C$2:C100)+1,"") -> 15 | D101: 2018-04-09 | E101: Mo | F101: 2018-04-09 | K101: Woche 15 | M101: Frühlingsferien
A102: Di | B102: Frühlingsferien | C102: =IF(A102="mo",MAX($C$2:C101)+1,"") ->  | D102: 2018-04-10 | E102: Di
A103: Mi | B103: Frühlingsferien | C103: =IF(A103="mo",MAX($C$2:C102)+1,"") ->  | D103: 2018-04-11 | E103: Mi
A104: Do | B104: Frühlingsferien | C104: =IF(A104="mo",MAX($C$2:C103)+1,"") ->  | D104: 2018-04-12 | E104: Do
A105: Fr | B105: Frühlingsferien | C105: =IF(A105="mo",MAX($C$2:C104)+1,"") ->  | D105: 2018-04-13 | E105: Fr
A106: Sa | B106: Frühlingsferien | C106: =IF(A106="mo",MAX($C$2:C105)+1,"") ->  | D106: 2018-04-14 | E106: Sa
A107: So | B107: Frühlingsferien | C107: =IF(A107="mo",MAX($C$2:C106)+1,"") ->  | D107: 2018-04-15 | E107: So
A108: Mo | B108: Frühlingsferien | C108: =IF(A108="mo",MAX($C$2:C107)+1,"") -> 16 | D108: 2018-04-16 | E108: Mo | F108: 2018-04-16 | K108: Woche 16 | M108: Frühlingsferien
A109: Di | B109: Frühlingsferien | C109: =IF(A109="mo",MAX($C$2:C108)+1,"") ->  | D109: 2018-04-17 | E109: Di
A110: Mi | B110: Frühlingsferien | C110: =IF(A110="mo",MAX($C$2:C109)+1,"") ->  | D110: 2018-04-18 | E110: Mi
A111: Do | B111: Frühlingsferien | C111: =IF(A111="mo",MAX($C$2:C110)+1,"") ->  | D111: 2018-04-19 | E111: Do
A112: Fr | B112: Frühlingsferien | C112: =IF(A112="mo",MAX($C$2:C111)+1,"") ->  | D112: 2018-04-20 | E112: Fr
A113: Sa | B113: Frühlingsferien | C113: =IF(A113="mo",MAX($C$2:C112)+1,"") ->  | D113: 2018-04-21 | E113: Sa
A114: So | B114: Frühlingsferien | C114: =IF(A114="mo",MAX($C$2:C113)+1,"") ->  | D114: 2018-04-22 | E114: So
A115: Mo | C115: =IF(A115="mo",MAX($C$2:C114)+1,"") -> 17 | D115: 2018-04-23 | E115: Mo | F115: 2018-04-23 | K115: Woche 17
A116: Di | C116: =IF(A116="mo",MAX($C$2:C115)+1,"") ->  | D116: 2018-04-24 | E116: Di
A117: Mi | C117: =IF(A117="mo",MAX($C$2:C116)+1,"") ->  | D117: 2018-04-25 | E117: Mi
A118: Do | C118: =IF(A118="mo",MAX($C$2:C117)+1,"") ->  | D118: 2018-04-26 | E118: Do
A119: Fr | C119: =IF(A119="mo",MAX($C$2:C118)+1,"") ->  | D119: 2018-04-27 | E119: Fr
A120: Sa | C120: =IF(A120="mo",MAX($C$2:C119)+1,"") ->  | D120: 2018-04-28 | E120: Sa
A121: So | C121: =IF(A121="mo",MAX($C$2:C120)+1,"") ->  | D121: 2018-04-29 | E121: So
A122: Mo | C122: =IF(A122="mo",MAX($C$2:C121)+1,"") -> 18 | D122: 2018-04-30 | E122: Mo | F122: 2018-04-30 | K122: Woche 18
A123: Di | C123: =IF(A123="mo",MAX($C$2:C122)+1,"") ->  | D123: 2018-05-01 | E123: Di
A124: Mi | C124: =IF(A124="mo",MAX($C$2:C123)+1,"") ->  | D124: 2018-05-02 | E124: Mi
A125: Do | C125: =IF(A125="mo",MAX($C$2:C124)+1,"") ->  | D125: 2018-05-03 | E125: Do
A126: Fr | C126: =IF(A126="mo",MAX($C$2:C125)+1,"") ->  | D126: 2018-05-04 | E126: Fr
A127: Sa | C127: =IF(A127="mo",MAX($C$2:C126)+1,"") ->  | D127: 2018-05-05 | E127: Sa
A128: So | C128: =IF(A128="mo",MAX($C$2:C127)+1,"") ->  | D128: 2018-05-06 | E128: So
A129: Mo | C129: =IF(A129="mo",MAX($C$2:C128)+1,"") -> 19 | D129: 2018-05-07 | E129: Mo | F129: 2018-05-07 | K129: Woche 19
A130: Di | C130: =IF(A130="mo",MAX($C$2:C129)+1,"") ->  | D130: 2018-05-08 | E130: Di
A131: =TEXT(D131,"TTT") -> Mi | B131: =IF(AND(D131>=$Q$7,D131<$Q$8),$O$7,IF(AND(D131>=$Q$10,D131<$Q$11),$O$10,IF(AND(D131>=$Q$13,D131<$Q$14),$O$13,IF(AND(D131>=$Q$16,D131<$Q$17),$O$16,"")))) ->  | C131: =IF(A131="mo",MAX($C$2:C130)+1,"") ->  | D131: =IF(D130<$B$2-1,D130+1,"") -> 2018-05-09 | E131: =A131 -> Mi | F131: =IF(A131="mo",D131,"") ->  | K131: =IF(C131="","","Woche "&C131) ->  | M131: =IF(AND(A131="Mo",B132<>""),B131,"") -> 
A132: Do | C132: =IF(A132="mo",MAX($C$2:C131)+1,"") ->  | D132: 2018-05-10 | E132: Do
A133: Fr | C133: =IF(A133="mo",MAX($C$2:C132)+1,"") ->  | D133: 2018-05-11 | E133: Fr
A134: Sa | C134: =IF(A134="mo",MAX($C$2:C133)+1,"") ->  | D134: 2018-05-12 | E134: Sa
A135: So | C135: =IF(A135="mo",MAX($C$2:C134)+1,"") ->  | D135: 2018-05-13 | E135: So
A136: Mo | C136: =IF(A136="mo",MAX($C$2:C135)+1,"") -> 20 | D136: 2018-05-14 | E136: Mo | F136: 2018-05-14 | K136: Woche 20
A137: Di | C137: =IF(A137="mo",MAX($C$2:C136)+1,"") ->  | D137: 2018-05-15 | E137: Di
A138: Mi | C138: =IF(A138="mo",MAX($C$2:C137)+1,"") ->  | D138: 2018-05-16 | E138: Mi
A139: Do | C139: =IF(A139="mo",MAX($C$2:C138)+1,"") ->  | D139: 2018-05-17 | E139: Do
A140: Fr | C140: =IF(A140="mo",MAX($C$2:C139)+1,"") ->  | D140: 2018-05-18 | E140: Fr
A141: Sa | C141: =IF(A141="mo",MAX($C$2:C140)+1,"") ->  | D141: 2018-05-19 | E141: Sa
A142: So | C142: =IF(A142="mo",MAX($C$2:C141)+1,"") ->  | D142: 2018-05-20 | E142: So
A143: Mo | C143: =IF(A143="mo",MAX($C$2:C142)+1,"") -> 21 | D143: 2018-05-21 | E143: Mo | F143: 2018-05-21 | K143: Woche 21
A144: Di | C144: =IF(A144="mo",MAX($C$2:C143)+1,"") ->  | D144: 2018-05-22 | E144: Di
A145: Mi | C145: =IF(A145="mo",MAX($C$2:C144)+1,"") ->  | D145: 2018-05-23 | E145: Mi
A146: Do | C146: =IF(A146="mo",MAX($C$2:C145)+1,"") ->  | D146: 2018-05-24 | E146: Do
A147: Fr | C147: =IF(A147="mo",MAX($C$2:C146)+1,"") ->  | D147: 2018-05-25 | E147: Fr
A148: Sa | C148: =IF(A148="mo",MAX($C$2:C147)+1,"") ->  | D148: 2018-05-26 | E148: Sa
A149: So | C149: =IF(A149="mo",MAX($C$2:C148)+1,"") ->  | D149: 2018-05-27 | E149: So
A150: Mo | C150: =IF(A150="mo",MAX($C$2:C149)+1,"") -> 22 | D150: 2018-05-28 | E150: Mo | F150: 2018-05-28 | K150: Woche 22
A151: Di | C151: =IF(A151="mo",MAX($C$2:C150)+1,"") ->  | D151: 2018-05-29 | E151: Di
A152: Mi | C152: =IF(A152="mo",MAX($C$2:C151)+1,"") ->  | D152: 2018-05-30 | E152: Mi
A153: Do | C153: =IF(A153="mo",MAX($C$2:C152)+1,"") ->  | D153: 2018-05-31 | E153: Do
A154: Fr | C154: =IF(A154="mo",MAX($C$2:C153)+1,"") ->  | D154: 2018-06-01 | E154: Fr
A155: Sa | C155: =IF(A155="mo",MAX($C$2:C154)+1,"") ->  | D155: 2018-06-02 | E155: Sa
A156: So | C156: =IF(A156="mo",MAX($C$2:C155)+1,"") ->  | D156: 2018-06-03 | E156: So
A157: Mo | C157: =IF(A157="mo",MAX($C$2:C156)+1,"") -> 23 | D157: 2018-06-04 | E157: Mo | F157: 2018-06-04 | K157: Woche 23
A158: Di | C158: =IF(A158="mo",MAX($C$2:C157)+1,"") ->  | D158: 2018-06-05 | E158: Di
A159: Mi | C159: =IF(A159="mo",MAX($C$2:C158)+1,"") ->  | D159: 2018-06-06 | E159: Mi
A160: Do | C160: =IF(A160="mo",MAX($C$2:C159)+1,"") ->  | D160: 2018-06-07 | E160: Do
A161: Fr | C161: =IF(A161="mo",MAX($C$2:C160)+1,"") ->  | D161: 2018-06-08 | E161: Fr
A162: Sa | C162: =IF(A162="mo",MAX($C$2:C161)+1,"") ->  | D162: 2018-06-09 | E162: Sa
A163: So | C163: =IF(A163="mo",MAX($C$2:C162)+1,"") ->  | D163: 2018-06-10 | E163: So
A164: Mo | C164: =IF(A164="mo",MAX($C$2:C163)+1,"") -> 24 | D164: 2018-06-11 | E164: Mo | F164: 2018-06-11 | K164: Woche 24
A165: Di | C165: =IF(A165="mo",MAX($C$2:C164)+1,"") ->  | D165: 2018-06-12 | E165: Di
A166: Mi | C166: =IF(A166="mo",MAX($C$2:C165)+1,"") ->  | D166: 2018-06-13 | E166: Mi
A167: Do | C167: =IF(A167="mo",MAX($C$2:C166)+1,"") ->  | D167: 2018-06-14 | E167: Do
A168: Fr | C168: =IF(A168="mo",MAX($C$2:C167)+1,"") ->  | D168: 2018-06-15 | E168: Fr
A169: Sa | C169: =IF(A169="mo",MAX($C$2:C168)+1,"") ->  | D169: 2018-06-16 | E169: Sa
A170: So | C170: =IF(A170="mo",MAX($C$2:C169)+1,"") ->  | D170: 2018-06-17 | E170: So
A171: Mo | C171: =IF(A171="mo",MAX($C$2:C170)+1,"") -> 25 | D171: 2018-06-18 | E171: Mo | F171: 2018-06-18 | K171: Woche 25
A172: Di | C172: =IF(A172="mo",MAX($C$2:C171)+1,"") ->  | D172: 2018-06-19 | E172: Di
A173: Mi | C173: =IF(A173="mo",MAX($C$2:C172)+1,"") ->  | D173: 2018-06-20 | E173: Mi
A174: Do | C174: =IF(A174="mo",MAX($C$2:C173)+1,"") ->  | D174: 2018-06-21 | E174: Do
A175: Fr | C175: =IF(A175="mo",MAX($C$2:C174)+1,"") ->  | D175: 2018-06-22 | E175: Fr
A176: Sa | C176: =IF(A176="mo",MAX($C$2:C175)+1,"") ->  | D176: 2018-06-23 | E176: Sa
A177: So | C177: =IF(A177="mo",MAX($C$2:C176)+1,"") ->  | D177: 2018-06-24 | E177: So
A178: Mo | C178: =IF(A178="mo",MAX($C$2:C177)+1,"") -> 26 | D178: 2018-06-25 | E178: Mo | F178: 2018-06-25 | K178: Woche 26
A179: Di | C179: =IF(A179="mo",MAX($C$2:C178)+1,"") ->  | D179: 2018-06-26 | E179: Di
A180: Mi | C180: =IF(A180="mo",MAX($C$2:C179)+1,"") ->  | D180: 2018-06-27 | E180: Mi
A181: Do | C181: =IF(A181="mo",MAX($C$2:C180)+1,"") ->  | D181: 2018-06-28 | E181: Do
A182: Fr | C182: =IF(A182="mo",MAX($C$2:C181)+1,"") ->  | D182: 2018-06-29 | E182: Fr
A183: Sa | C183: =IF(A183="mo",MAX($C$2:C182)+1,"") ->  | D183: 2018-06-30 | E183: Sa
A184: So | C184: =IF(A184="mo",MAX($C$2:C183)+1,"") ->  | D184: 2018-07-01 | E184: So
A185: Mo | C185: =IF(A185="mo",MAX($C$2:C184)+1,"") -> 27 | D185: 2018-07-02 | E185: Mo | F185: 2018-07-02 | K185: Woche 27
A186: Di | C186: =IF(A186="mo",MAX($C$2:C185)+1,"") ->  | D186: 2018-07-03 | E186: Di
A187: Mi | C187: =IF(A187="mo",MAX($C$2:C186)+1,"") ->  | D187: 2018-07-04 | E187: Mi
A188: Do | C188: =IF(A188="mo",MAX($C$2:C187)+1,"") ->  | D188: 2018-07-05 | E188: Do
A189: Fr | C189: =IF(A189="mo",MAX($C$2:C188)+1,"") ->  | D189: 2018-07-06 | E189: Fr
A190: Sa | B190: Sommerferien | C190: =IF(A190="mo",MAX($C$2:C189)+1,"") ->  | D190: 2018-07-07 | E190: Sa
A191: So | B191: Sommerferien | C191: =IF(A191="mo",MAX($C$2:C190)+1,"") ->  | D191: 2018-07-08 | E191: So
A192: Mo | B192: Sommerferien | C192: =IF(A192="mo",MAX($C$2:C191)+1,"") -> 28 | D192: 2018-07-09 | E192: Mo | F192: 2018-07-09 | K192: Woche 28 | M192: Sommerferien
A193: Di | B193: Sommerferien | C193: =IF(A193="mo",MAX($C$2:C192)+1,"") ->  | D193: 2018-07-10 | E193: Di
A194: Mi | B194: Sommerferien | C194: =IF(A194="mo",MAX($C$2:C193)+1,"") ->  | D194: 2018-07-11 | E194: Mi
A195: =TEXT(D195,"TTT") -> Do | B195: =IF(AND(D195>=$Q$7,D195<$Q$8),$O$7,IF(AND(D195>=$Q$10,D195<$Q$11),$O$10,IF(AND(D195>=$Q$13,D195<$Q$14),$O$13,IF(AND(D195>=$Q$16,D195<$Q$17),$O$16,"")))) -> Sommerferien | C195: =IF(A195="mo",MAX($C$2:C194)+1,"") ->  | D195: =IF(D194<$B$2-1,D194+1,"") -> 2018-07-12 | E195: =A195 -> Do | F195: =IF(A195="mo",D195,"") ->  | K195: =IF(C195="","","Woche "&C195) ->  | M195: =IF(AND(A195="Mo",B196<>""),B195,"") -> 
A196: Fr | B196: Sommerferien | C196: =IF(A196="mo",MAX($C$2:C195)+1,"") ->  | D196: 2018-07-13 | E196: Fr
A197: Sa | B197: Sommerferien | C197: =IF(A197="mo",MAX($C$2:C196)+1,"") ->  | D197: 2018-07-14 | E197: Sa
A198: So | B198: Sommerferien | C198: =IF(A198="mo",MAX($C$2:C197)+1,"") ->  | D198: 2018-07-15 | E198: So
A199: Mo | B199: Sommerferien | C199: =IF(A199="mo",MAX($C$2:C198)+1,"") -> 29 | D199: 2018-07-16 | E199: Mo | F199: 2018-07-16 | K199: Woche 29 | M199: Sommerferien
A200: Di | B200: Sommerferien | C200: =IF(A200="mo",MAX($C$2:C199)+1,"") ->  | D200: 2018-07-17 | E200: Di
... 200 more rows

Sheet strichliste
A2: Strichliste | G2: =TODAY() -> 2018-12-08 | L2: Woche | M2: =TRUNC((G2-WEEKDAY(G2,2)-DATE(YEAR(G2+4-WEEKDAY(G2,2)),1,-10))/7) -> 49 | V2: Aktueller Stand nach Wochenschritt | W2: Start (alles neu) | X2: =MAX(A7:A34) -> 18
L3: Aktueller Stand
C4: -6 W. | D4: -5 W. | E4: -4 W. | F4: -3 W. | G4: -2 W. | H4: letzte Woche | J4: aktuelle Woche | O4: Strichlimit (Ärger): | P4: 5 | Q4: =IF(P4=1,"Strich","Striche") -> Striche
O5: Würdigung nach [1-6]: | P5: 2 | Q5: Wochen
C6: 10 | D6: 10 | E6: 10 | F6: 10 | G6: 10 | H6: 10 | J6: 10 | O6: Reduktion bei Woche ohne Strich: | P6: 2 | Q6: =IF(P6=1,"Strich","Striche") -> Striche
A7: =IF(B7="","",A6+1) -> 1 | B7: =IF(Klasse!C13="","",Klasse!C13) -> Hans | V7: =IF(A7="","",IF(L7=0,0,IF(AND(J7>0,J7<100),L7,IF(L7-$P$6<0,0,L7-$P$6)))) -> 0 | W7: =IF(B7="","","Start") -> Start
A8: =IF(B8="","",A7+1) -> 2 | B8: =IF(Klasse!C14="","",Klasse!C14) -> Elisabeth | N8: Idee: - Striche verschwinden nicht einfach. - Wer die aktuelle Woche ohne Strich schafft, reduziert seinen Strichstand. - Wer über eine bestimmte Wochenzahl keinen Strich hat, verdient eine Würdigung. (z.B. Briefli...) - Wer das Strichlimit erreicht, muss abarbeiten. | V8: =IF(A8="","",IF(L8=0,0,IF(AND(J8>0,J8<100),L8,IF(L8-$P$6<0,0,L8-$P$6)))) -> 0 | W8: =IF(B8="","","Start") -> Start
A9: 3 | B9: =IF(Klasse!C15="","",Klasse!C15) -> Kunigunde | V9: 0 | W9: Start
A10: 4 | B10: =IF(Klasse!C16="","",Klasse!C16) -> Adalbert | V10: 0 | W10: Start
A11: 5 | B11: =IF(Klasse!C17="","",Klasse!C17) -> Lanzelot | V11: 0 | W11: Start
A12: 6 | B12: =IF(Klasse!C18="","",Klasse!C18) -> Waltraud | V12: 0 | W12: Start
A13: 7 | B13: =IF(Klasse!C19="","",Klasse!C19) -> Romeo | V13: 0 | W13: Start
A14: 8 | B14: =IF(Klasse!C20="","",Klasse!C20) -> Alfred | V14: 0 | W14: Start
A15: 9 | B15: =IF(Klasse!C21="","",Klasse!C21) -> Siglinde | V15: 0 | W15: Start
A16: 10 | B16: =IF(Klasse!C22="","",Klasse!C22) -> Kunibert | N16: Anwendungsbeispiel: - z.B. Hausaufgaben-Zuverlässigkeit 4.Klasse | V16: 0 | W16: Start
A17: 11 | B17: =IF(Klasse!C23="","",Klasse!C23) -> Albertine | V17: 0 | W17: Start
A18: 12 | B18: =IF(Klasse!C24="","",Klasse!C24) -> Hagrid | V18: 0 | W18: Start
A19: 13 | B19: =IF(Klasse!C25="","",Klasse!C25) -> Rosalinde | N19: So funktioniert es: - Klassenliste definieren - Starten (Neustart-Knopf) - Markierung auf ein Feld der Zeile der/des betreffenden Sch., Funktionstaste klicken (z.B. neuer Strich) - Wochenschritt z.B. am Montagmorgen manuell klicken (Zum Nullstellen mehrfach den Wochenwechsel drücken) | V19: 0 | W19: Start
A20: 14 | B20: =IF(Klasse!C26="","",Klasse!C26) -> Dagobert | V20: 0 | W20: Start
A21: 15 | B21: =IF(Klasse!C27="","",Klasse!C27) -> Gutemine | V21: 0 | W21: Start
A22: 16 | B22: =IF(Klasse!C28="","",Klasse!C28) -> Asterix | V22: 0 | W22: Start
A23: 17 | B23: =IF(Klasse!C29="","",Klasse!C29) -> Obelix | V23: 0 | W23: Start
A24: 18 | B24: =IF(Klasse!C30="","",Klasse!C30) -> Winnifred | V24: 0 | W24: Start
B25: =IF(Klasse!C31="","",Klasse!C31) -> 
B26: =IF(Klasse!C32="","",Klasse!C32) -> 
B27: =IF(Klasse!C33="","",Klasse!C33) -> 
B28: =IF(Klasse!C34="","",Klasse!C34) -> 
B29: =IF(Klasse!C35="","",Klasse!C35) -> 
B30: =IF(Klasse!C36="","",Klasse!C36) -> 
B31: =IF(Klasse!C37="","",Klasse!C37) -> 
B32: =IF(Klasse!C38="","",Klasse!C38) -> 
B33: =IF(Klasse!C39="","",Klasse!C39) -> 
B34: =IF(Klasse!C40="","",Klasse!C40) -> 

Sheet 4a
Z1: Serie | AA1: erste Blättli-Nr.
B2: ="Blitzrechnen "&$Z$2&"."&$AA$2 -> Blitzrechnen 2.1 | U2: ="L"&$Z$2&"."&$AA$2 -> L2.1 | Z2: 2 | AA2: 1
B4: =S4*D4 -> 90 | C4: : | D4: =INT(RAND()*(12-3)+3) -> 10 | E4: = | I4: =U4*K4 -> 12 | J4: : | K4: =INT(RAND()*(12-3)+3) -> 4 | L4: = | S4: =INT(RAND()*(12-3)+3) -> 9 | U4: =INT(RAND()*(12-3)+3) -> 3
B5: =S5*D5 -> 28 | C5: : | D5: =INT(RAND()*(12-3)+3) -> 4 | E5: = | I5: =U5*K5 -> 90 | J5: : | K5: =INT(RAND()*(12-3)+3) -> 9 | L5: = | S5: =INT(RAND()*(12-3)+3) -> 7 | U5: =INT(RAND()*(12-3)+3) -> 10
B6: =INT(RAND()*(10-3)+3) -> 4 | C6: * | D6: =INT(RAND()*(100-10)+10) -> 79 | E6: = | I6: =INT(RAND()*(10-3)+3) -> 8 | J6: * | K6: =INT(RAND()*(100-10)+10) -> 19 | L6: = | S6: =B6*D6 -> 316 | U6: =I6*K6 -> 152
B7: =INT(RAND()*(10-3)+3) -> 5 | C7: * | D7: =INT(RAND()*(100-10)+10) -> 26 | E7: = | I7: =INT(RAND()*(10-3)+3) -> 4 | J7: * | K7: =INT(RAND()*(100-10)+10) -> 60 | L7: = | S7: =B7*D7 -> 130 | U7: =I7*K7 -> 240 | Z7: ...für Fortgeschrittene, die die Formeln im gelben Bereich verändern möchten:
B8: =(INT(RAND()*(1000-500)+500)) -> 915 | C8: - | D8: =INT(RAND()*(500-100)+100) -> 362 | E8: = | I8: =(INT(RAND()*(1000-500)+500)) -> 649 | J8: - | K8: =INT(RAND()*(500-100)+100) -> 192 | L8: = | S8: =B8-D8 -> 553 | U8: =I8-K8 -> 457
B9: =(INT(RAND()*(1000-500)+500)) -> 545 | C9: - | D9: =INT(RAND()*(500-100)+100) -> 164 | E9: = | I9: =(INT(RAND()*(1000-500)+500)) -> 750 | J9: - | K9: =INT(RAND()*(500-100)+100) -> 221 | L9: = | S9: =B9-D9 -> 381 | U9: =I9-K9 -> 529
B11: ="Blitzrechnen "&$Z$2&"."&$AA$2+1 -> Blitzrechnen 2.2 | U11: ="L"&$Z$2&"."&$AA$2+1 -> L2.2
B13: =S13*D13 -> 70 | C13: : | D13: =INT(RAND()*(12-3)+3) -> 10 | E13: = | I13: =U13*K13 -> 21 | J13: : | K13: =INT(RAND()*(12-3)+3) -> 3 | L13: = | S13: =INT(RAND()*(12-3)+3) -> 7 | U13: =INT(RAND()*(12-3)+3) -> 7
B14: =S14*D14 -> 30 | C14: : | D14: =INT(RAND()*(12-3)+3) -> 10 | E14: = | I14: =U14*K14 -> 35 | J14: : | K14: =INT(RAND()*(12-3)+3) -> 7 | L14: = | S14: =INT(RAND()*(12-3)+3) -> 3 | U14: =INT(RAND()*(12-3)+3) -> 5
B15: =INT(RAND()*(10-3)+3) -> 3 | C15: * | D15: =INT(RAND()*(100-10)+10) -> 13 | E15: = | I15: =INT(RAND()*(10-3)+3) -> 4 | J15: * | K15: =INT(RAND()*(100-10)+10) -> 51 | L15: = | S15: =B15*D15 -> 39 | U15: =I15*K15 -> 204
B16: =INT(RAND()*(10-3)+3) -> 4 | C16: * | D16: =INT(RAND()*(100-10)+10) -> 47 | E16: = | I16: =INT(RAND()*(10-3)+3) -> 9 | J16: * | K16: =INT(RAND()*(100-10)+10) -> 69 | L16: = | S16: =B16*D16 -> 188 | U16: =I16*K16 -> 621
B17: =(INT(RAND()*(1000-500)+500)) -> 983 | C17: - | D17: =INT(RAND()*(500-100)+100) -> 234 | E17: = | I17: =(INT(RAND()*(1000-500)+500)) -> 644 | J17: - | K17: =INT(RAND()*(500-100)+100) -> 437 | L17: = | S17: =B17-D17 -> 749 | U17: =I17-K17 -> 207
B18: =(INT(RAND()*(1000-500)+500)) -> 725 | C18: - | D18: =INT(RAND()*(500-100)+100) -> 328 | E18: = | I18: =(INT(RAND()*(1000-500)+500)) -> 939 | J18: - | K18: =INT(RAND()*(500-100)+100) -> 109 | L18: = | S18: =B18-D18 -> 397 | U18: =I18-K18 -> 830
B20: ="Blitzrechnen "&$Z$2&"."&$AA$2+2 -> Blitzrechnen 2.3 | U20: ="L"&$Z$2&"."&$AA$2+2 -> L2.3
B22: =S22*D22 -> 21 | C22: : | D22: =INT(RAND()*(12-3)+3) -> 7 | E22: = | I22: =U22*K22 -> 72 | J22: : | K22: =INT(RAND()*(12-3)+3) -> 9 | L22: = | S22: =INT(RAND()*(12-3)+3) -> 3 | U22: =INT(RAND()*(12-3)+3) -> 8
B23: =S23*D23 -> 49 | C23: : | D23: =INT(RAND()*(12-3)+3) -> 7 | E23: = | I23: =U23*K23 -> 54 | J23: : | K23: =INT(RAND()*(12-3)+3) -> 9 | L23: = | S23: =INT(RAND()*(12-3)+3) -> 7 | U23: =INT(RAND()*(12-3)+3) -> 6
B24: =INT(RAND()*(10-3)+3) -> 5 | C24: * | D24: =INT(RAND()*(100-10)+10) -> 47 | E24: = | I24: =INT(RAND()*(10-3)+3) -> 4 | J24: * | K24: =INT(RAND()*(100-10)+10) -> 16 | L24: = | S24: =B24*D24 -> 235 | U24: =I24*K24 -> 64
B25: =INT(RAND()*(10-3)+3) -> 9 | C25: * | D25: =INT(RAND()*(100-10)+10) -> 59 | E25: = | I25: =INT(RAND()*(10-3)+3) -> 8 | J25: * | K25: =INT(RAND()*(100-10)+10) -> 58 | L25: = | S25: =B25*D25 -> 531 | U25: =I25*K25 -> 464
B26: =(INT(RAND()*(1000-500)+500)) -> 767 | C26: - | D26: =INT(RAND()*(500-100)+100) -> 258 | E26: = | I26: =(INT(RAND()*(1000-500)+500)) -> 831 | J26: - | K26: =INT(RAND()*(500-100)+100) -> 343 | L26: = | S26: =B26-D26 -> 509 | U26: =I26-K26 -> 488
B27: =(INT(RAND()*(1000-500)+500)) -> 907 | C27: - | D27: =INT(RAND()*(500-100)+100) -> 290 | E27: = | I27: =(INT(RAND()*(1000-500)+500)) -> 775 | J27: - | K27: =INT(RAND()*(500-100)+100) -> 151 | L27: = | S27: =B27-D27 -> 617 | U27: =I27-K27 -> 624

Sheet 4b
C1: Längenmasse | Q1: Längenmasse
J2: ="Nr. "&INT(RAND()*(10000-1000)+1000)&" " -> Nr. 5542 | M2: =J2 -> Nr. 5542 | X2: ="Nr. "&INT(RAND()*(10000-1000)+1000)&" " -> Nr. 3721 | AA2: =X2 -> Nr. 3721
A4: 19 | B4: =INT(RAND()*(100-1)+1) -> 79 | C4: =INT(RAND()*(100-1)+1) -> 7 | D4: m | E4: =INT(RAND()*(300-1)+1) -> 155 | F4: mm | G4: = | I4: mm | L4: =C4*VLOOKUP(D4,$AD$25:$AT$40,VLOOKUP(I4,$AD$25:$AE$40,2,0),0)+E4 -> 7155 | M4: =I4 -> mm | Q4: =INT(RAND()*(100-1)+1) -> 82 | R4: m | S4: =INT(RAND()*(300-1)+1) -> 150 | T4: mm | U4: = | W4: mm | Z4: =Q4*VLOOKUP(R4,$AD$25:$AT$40,VLOOKUP(W4,$AD$25:$AE$40,2,0),0)+S4 -> 82150 | AA4: =W4 -> mm
A5: 12 | B5: =INT(RAND()*(100-1)+1) -> 86 | C5: =INT(RAND()*(100-1)+1) -> 86 | D5: m | G5: = | I5: cm | L5: =C5*VLOOKUP(D5,$AD$25:$AT$40,VLOOKUP(I5,$AD$25:$AE$40,2,0),0) -> 8600 | M5: cm | Q5: =INT(RAND()*(100-1)+1) -> 79 | R5: m | U5: = | W5: cm | Z5: =Q5*VLOOKUP(R5,$AD$25:$AT$40,VLOOKUP(W5,$AD$25:$AE$40,2,0),0) -> 7900 | AA5: cm
A6: 5 | B6: =INT(RAND()*(100-1)+1) -> 11 | C6: =INT(RAND()*(100-1)+1)*1000 -> 9000 | D6: mm | G6: = | I6: dm | L6: =C6*VLOOKUP(D6,$AD$25:$AT$40,VLOOKUP(I6,$AD$25:$AE$40,2,0),0) -> 90 | M6: dm | Q6: =INT(RAND()*(100-1)+1)*1000 -> 24000 | R6: mm | U6: = | W6: dm | Z6: =Q6*VLOOKUP(R6,$AD$25:$AT$40,VLOOKUP(W6,$AD$25:$AE$40,2,0),0) -> 240 | AA6: dm
A7: 13 | B7: 85 | C7: =INT(RAND()*(100-1)+1) -> 4 | D7: cm | E7: =INT(RAND()*(9-1)+1) -> 8 | F7: mm | G7: = | I7: mm | L7: =C7*VLOOKUP(D7,$AD$25:$AT$40,VLOOKUP(I7,$AD$25:$AE$40,2,0),0)+E7 -> 48 | M7: mm | Q7: =INT(RAND()*(100-1)+1) -> 36 | R7: cm | S7: =INT(RAND()*(15-1)+1) -> 11 | T7: mm | U7: = | W7: mm | Z7: =Q7*VLOOKUP(R7,$AD$25:$AT$40,VLOOKUP(W7,$AD$25:$AE$40,2,0),0)+S7 -> 371 | AA7: mm
A8: 2 | B8: 60 | C8: =INT(RAND()*(100-1)+1)*1000 -> 4000 | D8: cm | G8: = | I8: m | L8: =C8*VLOOKUP(D8,$AD$25:$AT$40,VLOOKUP(I8,$AD$25:$AE$40,2,0),0) -> 40 | M8: m | Q8: =INT(RAND()*(100-1)+1)*1000 -> 56000 | R8: mm | U8: = | W8: m | Z8: =Q8*VLOOKUP(R8,$AD$25:$AT$40,VLOOKUP(W8,$AD$25:$AE$40,2,0),0) -> 56 | AA8: m
A9: 9 | B9: 79 | C9: =INT(RAND()*(100-1)+1) -> 21 | D9: m | E9: =INT(RAND()*(5-1)+1) -> 3 | F9: cm | G9: = | I9: cm | L9: =C9*VLOOKUP(D9,$AD$25:$AT$40,VLOOKUP(I9,$AD$25:$AE$40,2,0),0)+E9 -> 2103 | M9: cm | Q9: =INT(RAND()*(100-1)+1) -> 22 | R9: m | S9: =INT(RAND()*(10-1)+1) -> 5 | T9: cm | U9: = | W9: cm | Z9: =Q9*VLOOKUP(R9,$AD$25:$AT$40,VLOOKUP(W9,$AD$25:$AE$40,2,0),0)+S9 -> 2205 | AA9: cm
A10: 17 | B10: 7 | C10: 85 | D10: m | E10: =INT(RAND()*(9-1)+1) -> 7 | F10: dm | G10: = | I10: dm | L10: =C10*VLOOKUP(D10,$AD$25:$AT$40,VLOOKUP(I10,$AD$25:$AE$40,2,0),0)+E10 -> 857 | M10: dm | Q10: 41 | R10: m | S10: =INT(RAND()*(9)+1) -> 1 | T10: dm | U10: = | W10: dm | Z10: =Q10*VLOOKUP(R10,$AD$25:$AT$40,VLOOKUP(W10,$AD$25:$AE$40,2,0),0)+S10 -> 411 | AA10: dm
A11: 3 | B11: 98 | C11: 81 | D11: km | E11: =INT(RAND()*(100-1)+1) -> 86 | F11: m | G11: = | I11: m | L11: =C11*VLOOKUP(D11,$AD$25:$AT$40,VLOOKUP(I11,$AD$25:$AE$40,2,0),0)+E11 -> 81086 | M11: m | Q11: 94 | R11: km | S11: =INT(RAND()*(100-1)+1) -> 18 | T11: m | U11: = | W11: m | Z11: =Q11*VLOOKUP(R11,$AD$25:$AT$40,VLOOKUP(W11,$AD$25:$AE$40,2,0),0)+S11 -> 94018 | AA11: m
A12: 11 | B12: 59 | C12: 84 | D12: m | E12: =INT(RAND()*(100-1)+1) -> 59 | F12: mm | G12: = | I12: mm | L12: =C12*VLOOKUP(D12,$AD$25:$AT$40,VLOOKUP(I12,$AD$25:$AE$40,2,0),0)+E12 -> 84059 | M12: mm | Q12: 70 | R12: m | S12: =INT(RAND()*(100-1)+1) -> 86 | T12: mm | U12: = | W12: mm | Z12: =Q12*VLOOKUP(R12,$AD$25:$AT$40,VLOOKUP(W12,$AD$25:$AE$40,2,0),0)+S12 -> 70086 | AA12: mm
A13: 8 | B13: 81 | C13: 19 | D13: m | E13: =INT(RAND()*(100-1)+1) -> 84 | F13: cm | G13: = | I13: cm | L13: =C13*VLOOKUP(D13,$AD$25:$AT$40,VLOOKUP(I13,$AD$25:$AE$40,2,0),0)+E13 -> 1984 | M13: cm | Q13: 72 | R13: m | S13: =INT(RAND()*(100-1)+1) -> 56 | T13: cm | U13: = | W13: cm | Z13: =Q13*VLOOKUP(R13,$AD$25:$AT$40,VLOOKUP(W13,$AD$25:$AE$40,2,0),0)+S13 -> 7256 | AA13: cm
A14: 16 | B14: 88 | C14: 42 | D14: dm | G14: = | I14: mm | L14: =C14*VLOOKUP(D14,$AD$25:$AT$40,VLOOKUP(I14,$AD$25:$AE$40,2,0),0) -> 4200 | M14: mm | Q14: 11 | R14: dm | U14: = | W14: mm | Z14: =Q14*VLOOKUP(R14,$AD$25:$AT$40,VLOOKUP(W14,$AD$25:$AE$40,2,0),0) -> 1100 | AA14: mm
A15: 6 | B15: 85 | C15: =INT(RAND()*(100-1)+1)*1000 -> 64000 | D15: m | G15: = | I15: km | L15: =C15*VLOOKUP(D15,$AD$25:$AT$40,VLOOKUP(I15,$AD$25:$AE$40,2,0),0) -> 64 | M15: km | Q15: =INT(RAND()*(100-1)+1)*1000 -> 89000 | R15: m | U15: = | W15: km | Z15: =Q15*VLOOKUP(R15,$AD$25:$AT$40,VLOOKUP(W15,$AD$25:$AE$40,2,0),0) -> 89 | AA15: km
A16: 14 | B16: 76 | C16: =INT(RAND()*(100-1)+1) -> 51 | D16: km | E16: =INT(RAND()*(100-1)+1) -> 6 | F16: m | G16: = | I16: m | L16: =C16*VLOOKUP(D16,$AD$25:$AT$40,VLOOKUP(I16,$AD$25:$AE$40,2,0),0)+E16 -> 51006 | M16: m | Q16: =INT(RAND()*(100-1)+1) -> 56 | R16: km | S16: =INT(RAND()*(100-1)+1) -> 19 | T16: m | U16: = | W16: m | Z16: =Q16*VLOOKUP(R16,$AD$25:$AT$40,VLOOKUP(W16,$AD$25:$AE$40,2,0),0)+S16 -> 56019 | AA16: m
A17: 18 | B17: 90 | C17: =INT(RAND()*(100-1)+1)*1000 -> 90000 | D17: mm | G17: = | I17: m | L17: =C17*VLOOKUP(D17,$AD$25:$AT$40,VLOOKUP(I17,$AD$25:$AE$40,2,0),0) -> 90 | M17: m | Q17: =INT(RAND()*(100-1)+1)*1000 -> 55000 | R17: mm | U17: = | W17: m | Z17: =Q17*VLOOKUP(R17,$AD$25:$AT$40,VLOOKUP(W17,$AD$25:$AE$40,2,0),0) -> 55 | AA17: m
A18: 15 | B18: 63 | C18: =INT(RAND()*(100-1)+1) -> 50 | D18: km | G18: = | I18: m | L18: =C18*VLOOKUP(D18,$AD$25:$AT$40,VLOOKUP(I18,$AD$25:$AE$40,2,0),0) -> 50000 | M18: m | Q18: =INT(RAND()*(100-1)+1) -> 55 | R18: km | U18: = | W18: m | Z18: =Q18*VLOOKUP(R18,$AD$25:$AT$40,VLOOKUP(W18,$AD$25:$AE$40,2,0),0) -> 55000 | AA18: m
A19: 20 | B19: 65 | C19: =INT(RAND()*(100-1)+1) -> 47 | D19: cm | G19: = | I19: mm | L19: =C19*VLOOKUP(D19,$AD$25:$AT$40,VLOOKUP(I19,$AD$25:$AE$40,2,0),0) -> 470 | M19: mm | Q19: =INT(RAND()*(100-1)+1) -> 18 | R19: cm | U19: = | W19: mm | Z19: =Q19*VLOOKUP(R19,$AD$25:$AT$40,VLOOKUP(W19,$AD$25:$AE$40,2,0),0) -> 180 | AA19: mm
A20: 4 | B20: 37 | C20: =INT(RAND()*(100-1)+1) -> 8 | D20: cm | G20: = | I20: mm | L20: =C20*VLOOKUP(D20,$AD$25:$AT$40,VLOOKUP(I20,$AD$25:$AE$40,2,0),0) -> 80 | M20: mm | Q20: =INT(RAND()*(100-1)+1) -> 84 | R20: cm | U20: = | W20: mm | Z20: =Q20*VLOOKUP(R20,$AD$25:$AT$40,VLOOKUP(W20,$AD$25:$AE$40,2,0),0) -> 840 | AA20: mm
A21: 7 | B21: 26 | C21: =INT(RAND()*(100-1)+1) -> 41 | D21: km | E21: =INT(RAND()*(100-1)+1) -> 95 | F21: m | G21: = | I21: m | L21: =C21*VLOOKUP(D21,$AD$25:$AT$40,VLOOKUP(I21,$AD$25:$AE$40,2,0),0)+E21 -> 41095 | M21: m | Q21: =INT(RAND()*(100-1)+1) -> 13 | R21: km | S21: =INT(RAND()*(100-1)+1) -> 74 | T21: m | U21: = | W21: m | Z21: =Q21*VLOOKUP(R21,$AD$25:$AT$40,VLOOKUP(W21,$AD$25:$AE$40,2,0),0)+S21 -> 13074 | AA21: m
A22: 1 | B22: 84 | C22: =INT(RAND()*(100-1)+1)*1000 -> 3000 | D22: mm | G22: = | I22: m | L22: =C22*VLOOKUP(D22,$AD$25:$AT$40,VLOOKUP(I22,$AD$25:$AE$40,2,0),0) -> 3 | M22: m | Q22: =INT(RAND()*(100-1)+1)*1000 -> 96000 | R22: cm | U22: = | W22: m | Z22: =Q22*VLOOKUP(R22,$AD$25:$AT$40,VLOOKUP(W22,$AD$25:$AE$40,2,0),0) -> 960 | AA22: m
A23: 10 | B23: 60 | C23: =INT(RAND()*(100-1)+1) -> 91 | D23: km | E23: =INT(RAND()*(100-1)+1) -> 23 | F23: m | G23: = | I23: m | L23: =C23*VLOOKUP(D23,$AD$25:$AT$40,VLOOKUP(I23,$AD$25:$AE$40,2,0),0)+E23 -> 91023 | M23: m | Q23: =INT(RAND()*(100-1)+1) -> 2 | R23: km | S23: =INT(RAND()*(100-1)+1) -> 99 | T23: m | U23: = | W23: m | Z23: =Q23*VLOOKUP(R23,$AD$25:$AT$40,VLOOKUP(W23,$AD$25:$AE$40,2,0),0)+S23 -> 2099 | AA23: m
AF24: 10 | AG24: 10 | AH24: 10 | AI24: 1000
AF25: mm | AG25: cm | AH25: dm | AI25: m | AJ25: km
AD26: mm | AE26: 3 | AF26: 1 | AG26: =AF26/AF$24 -> 0.1 | AH26: 0.01 | AI26: 0.001 | AJ26: 1e-06
AD27: cm | AE27: 4 | AF27: 10 | AG27: 1 | AH27: 0.1 | AI27: 0.01 | AJ27: 1e-05
AD28: dm | AE28: 5 | AF28: 100 | AG28: 10 | AH28: 1 | AI28: 0.1 | AJ28: 0.0001
AD29: m | AE29: 6 | AF29: 1000 | AG29: 100 | AH29: 10 | AI29: 1 | AJ29: 0.001
AD30: km | AE30: 7 | AF30: 1000000 | AG30: 100000 | AH30: 10000 | AI30: 1000 | AJ30: 1

Sheet 4c
C1: Gewichte umrechnen | Q1: Gewichte umrechnen
J2: ="Nr. "&INT(RAND()*(10000-1000)+1000)&" " -> Nr. 4820 | M2: =J2 -> Nr. 4820 | X2: ="Nr. "&INT(RAND()*(10000-1000)+1000)&" " -> Nr. 5573 | AA2: =X2 -> Nr. 5573
A4: 7 | B4: =INT(RAND()*(100-1)+1) -> 93 | C4: 36 | D4: t | E4: =INT(RAND()*(100-1)+1) -> 64 | F4: kg | G4: = | I4: kg | L4: =C4*VLOOKUP(D4,$AD$25:$AT$40,VLOOKUP(I4,$AD$25:$AE$40,2,0),0)+E4 -> 36064 | M4: =I4 -> kg | Q4: =INT(RAND()*(100-1)+1) -> 88 | R4: t | S4: =INT(RAND()*(100-1)+1) -> 39 | T4: kg | U4: = | W4: kg | Z4: =Q4*VLOOKUP(R4,$AD$25:$AT$40,VLOOKUP(W4,$AD$25:$AE$40,2,0),0)+S4 -> 88039 | AA4: =W4 -> kg
A5: 20 | B5: 38 | C5: 60 | D5: kg | G5: = | I5: g | L5: =C5*VLOOKUP(D5,$AD$25:$AT$40,VLOOKUP(I5,$AD$25:$AE$40,2,0),0) -> 60000 | M5: g | Q5: =INT(RAND()*(100-1)+1) -> 99 | R5: kg | U5: = | W5: g | Z5: =Q5*VLOOKUP(R5,$AD$25:$AT$40,VLOOKUP(W5,$AD$25:$AE$40,2,0),0) -> 99000 | AA5: g
A6: 10 | B6: 38 | C6: 17 | D6: t | E6: =INT(RAND()*(100-1)+1) -> 70 | F6: kg | G6: = | I6: kg | L6: =C6*VLOOKUP(D6,$AD$25:$AT$40,VLOOKUP(I6,$AD$25:$AE$40,2,0),0)+E6 -> 17070 | M6: kg | Q6: =INT(RAND()*(100-1)+1) -> 61 | R6: t | S6: =INT(RAND()*(100-1)+1) -> 95 | T6: kg | U6: = | W6: kg | Z6: =Q6*VLOOKUP(R6,$AD$25:$AT$40,VLOOKUP(W6,$AD$25:$AE$40,2,0),0)+S6 -> 61095 | AA6: kg
A7: 14 | B7: 83 | C7: 75 | D7: t | E7: =INT(RAND()*(100-1)+1) -> 39 | F7: kg | G7: = | I7: kg | L7: =C7*VLOOKUP(D7,$AD$25:$AT$40,VLOOKUP(I7,$AD$25:$AE$40,2,0),0)+E7 -> 75039 | M7: kg | Q7: =INT(RAND()*(100-1)+1) -> 2 | R7: t | S7: =INT(RAND()*(100-1)+1) -> 22 | T7: kg | U7: = | W7: kg | Z7: =Q7*VLOOKUP(R7,$AD$25:$AT$40,VLOOKUP(W7,$AD$25:$AE$40,2,0),0)+S7 -> 2022 | AA7: kg
A8: 4 | B8: 60 | C8: 83 | D8: kg | G8: = | I8: g | L8: =C8*VLOOKUP(D8,$AD$25:$AT$40,VLOOKUP(I8,$AD$25:$AE$40,2,0),0) -> 83000 | M8: g | Q8: =INT(RAND()*(100-1)+1) -> 11 | R8: kg | U8: = | W8: g | Z8: =Q8*VLOOKUP(R8,$AD$25:$AT$40,VLOOKUP(W8,$AD$25:$AE$40,2,0),0) -> 11000 | AA8: g
A9: 18 | B9: =INT(RAND()*(100-1)+1) -> 99 | C9: =INT(RAND()*(100-1)+1)*1000 -> 23000 | D9: kg | G9: = | I9: t | L9: =C9*VLOOKUP(D9,$AD$25:$AT$40,VLOOKUP(I9,$AD$25:$AE$40,2,0),0) -> 23 | M9: t | Q9: =INT(RAND()*(100-1)+1)*1000 -> 5000 | R9: kg | U9: = | W9: t | Z9: =Q9*VLOOKUP(R9,$AD$25:$AT$40,VLOOKUP(W9,$AD$25:$AE$40,2,0),0) -> 5 | AA9: t
A10: 11 | B10: 45 | C10: =INT(RAND()*(100-1)+1) -> 81 | D10: t | E10: =INT(RAND()*(100-1)+1) -> 57 | F10: kg | G10: = | I10: kg | L10: =C10*VLOOKUP(D10,$AD$25:$AT$40,VLOOKUP(I10,$AD$25:$AE$40,2,0),0)+E10 -> 81057 | M10: kg | Q10: =INT(RAND()*(100-1)+1) -> 17 | R10: t | S10: =INT(RAND()*(100-1)+1) -> 95 | T10: kg | U10: = | W10: kg | Z10: =Q10*VLOOKUP(R10,$AD$25:$AT$40,VLOOKUP(W10,$AD$25:$AE$40,2,0),0)+S10 -> 17095 | AA10: kg
A11: 2 | B11: 64 | C11: =INT(RAND()*(100-1)+1)*1000 -> 98000 | D11: kg | G11: = | I11: t | L11: =C11*VLOOKUP(D11,$AD$25:$AT$40,VLOOKUP(I11,$AD$25:$AE$40,2,0),0) -> 98 | M11: t | Q11: =INT(RAND()*(100-1)+1)*1000 -> 31000 | R11: kg | U11: = | W11: t | Z11: =Q11*VLOOKUP(R11,$AD$25:$AT$40,VLOOKUP(W11,$AD$25:$AE$40,2,0),0) -> 31 | AA11: t
A12: 8 | B12: 46 | C12: =INT(RAND()*(100-1)+1) -> 59 | D12: kg | E12: =INT(RAND()*(200-1)+1) -> 195 | F12: g | G12: = | I12: g | L12: =C12*VLOOKUP(D12,$AD$25:$AT$40,VLOOKUP(I12,$AD$25:$AE$40,2,0),0)+E12 -> 59195 | M12: g | Q12: =INT(RAND()*(100-1)+1) -> 21 | R12: kg | S12: =INT(RAND()*(200-1)+1) -> 57 | T12: g | U12: = | W12: g | Z12: =Q12*VLOOKUP(R12,$AD$25:$AT$40,VLOOKUP(W12,$AD$25:$AE$40,2,0),0)+S12 -> 21057 | AA12: g
A13: 16 | B13: 29 | C13: 35 | D13: kg | G13: = | I13: g | L13: =C13*VLOOKUP(D13,$AD$25:$AT$40,VLOOKUP(I13,$AD$25:$AE$40,2,0),0) -> 35000 | M13: g | Q13: 11 | R13: kg | U13: = | W13: g | Z13: =Q13*VLOOKUP(R13,$AD$25:$AT$40,VLOOKUP(W13,$AD$25:$AE$40,2,0),0) -> 11000 | AA13: g
A14: 15 | B14: 2 | C14: 35 | D14: t | G14: = | I14: kg | L14: =C14*VLOOKUP(D14,$AD$25:$AT$40,VLOOKUP(I14,$AD$25:$AE$40,2,0),0) -> 35000 | M14: kg | Q14: 69 | R14: t | U14: = | W14: kg | Z14: =Q14*VLOOKUP(R14,$AD$25:$AT$40,VLOOKUP(W14,$AD$25:$AE$40,2,0),0) -> 69000 | AA14: kg
A15: 9 | B15: 50 | C15: 17 | D15: t | E15: =INT(RAND()*(5-1)+1) -> 3 | F15: kg | G15: = | I15: kg | L15: =C15*VLOOKUP(D15,$AD$25:$AT$40,VLOOKUP(I15,$AD$25:$AE$40,2,0),0)+E15 -> 17003 | M15: kg | Q15: 1 | R15: t | S15: =INT(RAND()*(10-1)+1) -> 8 | T15: kg | U15: = | W15: kg | Z15: =Q15*VLOOKUP(R15,$AD$25:$AT$40,VLOOKUP(W15,$AD$25:$AE$40,2,0),0)+S15 -> 1008 | AA15: kg
A16: 12 | B16: 14 | C16: 83 | D16: kg | G16: = | I16: g | L16: =C16*VLOOKUP(D16,$AD$25:$AT$40,VLOOKUP(I16,$AD$25:$AE$40,2,0),0) -> 83000 | M16: g | Q16: 5 | R16: kg | U16: = | W16: g | Z16: =Q16*VLOOKUP(R16,$AD$25:$AT$40,VLOOKUP(W16,$AD$25:$AE$40,2,0),0) -> 5000 | AA16: g
A17: 17 | B17: 55 | C17: 69 | D17: kg | E17: =INT(RAND()*(150-1)+1) -> 6 | F17: g | G17: = | I17: g | L17: =C17*VLOOKUP(D17,$AD$25:$AT$40,VLOOKUP(I17,$AD$25:$AE$40,2,0),0)+E17 -> 69006 | M17: g | Q17: 83 | R17: kg | S17: =INT(RAND()*(150-1)+1) -> 49 | T17: g | U17: = | W17: g | Z17: =Q17*VLOOKUP(R17,$AD$25:$AT$40,VLOOKUP(W17,$AD$25:$AE$40,2,0),0)+S17 -> 83049 | AA17: g
A18: 1 | B18: 68 | C18: =INT(RAND()*(100-1)+1)*1000 -> 58000 | D18: g | G18: = | I18: kg | L18: =C18*VLOOKUP(D18,$AD$25:$AT$40,VLOOKUP(I18,$AD$25:$AE$40,2,0),0) -> 58 | M18: kg | Q18: =INT(RAND()*(100-1)+1)*1000 -> 59000 | R18: g | U18: = | W18: kg | Z18: =Q18*VLOOKUP(R18,$AD$25:$AT$40,VLOOKUP(W18,$AD$25:$AE$40,2,0),0) -> 59 | AA18: kg
A19: 19 | B19: 25 | C19: =INT(RAND()*(100-1)+1) -> 82 | D19: kg | E19: =INT(RAND()*(300-1)+1) -> 52 | F19: g | G19: = | I19: g | L19: =C19*VLOOKUP(D19,$AD$25:$AT$40,VLOOKUP(I19,$AD$25:$AE$40,2,0),0)+E19 -> 82052 | M19: g | Q19: =INT(RAND()*(100-1)+1) -> 5 | R19: kg | S19: =INT(RAND()*(300-1)+1) -> 278 | T19: g | U19: = | W19: g | Z19: =Q19*VLOOKUP(R19,$AD$25:$AT$40,VLOOKUP(W19,$AD$25:$AE$40,2,0),0)+S19 -> 5278 | AA19: g
A20: 13 | B20: 4 | C20: =INT(RAND()*(100-1)+1) -> 94 | D20: kg | E20: =INT(RAND()*(15-1)+1) -> 8 | F20: g | G20: = | I20: g | L20: =C20*VLOOKUP(D20,$AD$25:$AT$40,VLOOKUP(I20,$AD$25:$AE$40,2,0),0)+E20 -> 94008 | M20: g | Q20: =INT(RAND()*(100-1)+1) -> 38 | R20: kg | S20: =INT(RAND()*(15-1)+1) -> 7 | T20: g | U20: = | W20: g | Z20: =Q20*VLOOKUP(R20,$AD$25:$AT$40,VLOOKUP(W20,$AD$25:$AE$40,2,0),0)+S20 -> 38007 | AA20: g
A21: 6 | B21: 16 | C21: =INT(RAND()*(100-1)+1)*1000 -> 13000 | D21: kg | G21: = | I21: t | L21: =C21*VLOOKUP(D21,$AD$25:$AT$40,VLOOKUP(I21,$AD$25:$AE$40,2,0),0) -> 13 | M21: t | Q21: =INT(RAND()*(100-1)+1)*1000 -> 86000 | R21: kg | U21: = | W21: t | Z21: =Q21*VLOOKUP(R21,$AD$25:$AT$40,VLOOKUP(W21,$AD$25:$AE$40,2,0),0) -> 86 | AA21: t
A22: 3 | B22: 66 | C22: =INT(RAND()*(100-1)+1) -> 22 | D22: t | E22: =INT(RAND()*(100-1)+1) -> 80 | F22: kg | G22: = | I22: kg | L22: =C22*VLOOKUP(D22,$AD$25:$AT$40,VLOOKUP(I22,$AD$25:$AE$40,2,0),0)+E22 -> 22080 | M22: kg | Q22: =INT(RAND()*(100-1)+1) -> 69 | R22: t | S22: =INT(RAND()*(100-1)+1) -> 83 | T22: kg | U22: = | W22: kg | Z22: =Q22*VLOOKUP(R22,$AD$25:$AT$40,VLOOKUP(W22,$AD$25:$AE$40,2,0),0)+S22 -> 69083 | AA22: kg
A23: 5 | B23: 35 | C23: =INT(RAND()*(100-1)+1)*1000 -> 42000 | D23: g | G23: = | I23: kg | L23: =C23*VLOOKUP(D23,$AD$25:$AT$40,VLOOKUP(I23,$AD$25:$AE$40,2,0),0) -> 42 | M23: kg | Q23: =INT(RAND()*(100-1)+1)*1000 -> 97000 | R23: g | U23: = | W23: kg | Z23: =Q23*VLOOKUP(R23,$AD$25:$AT$40,VLOOKUP(W23,$AD$25:$AE$40,2,0),0) -> 97 | AA23: kg
AF24: 1000 | AG24: 1000
AF25: g | AG25: kg | AH25: t
AD26: g | AE26: 3 | AF26: 1 | AG26: =AF26/AF$24 -> 0.001 | AH26: 1e-06
AD27: kg | AE27: 4 | AF27: 1000 | AG27: 1 | AH27: 0.001
AD28: t | AE28: 5 | AF28: 1000000 | AG28: 1000 | AH28: 1

Sheet 4d
B1: Einmaleins
B2: 2 | C2: 3 | D2: 4 | E2: 5 | F2: 6 | G2: 7 | H2: 8 | I2: 9
A3: 2 | B3: =B$2*$A3 -> 4 | C3: 6 | D3: 8 | E3: 10 | F3: 12 | G3: 14 | H3: 16 | I3: 18
A4: 3 | B4: 6 | C4: 9 | D4: 12 | E4: 15 | F4: 18 | G4: 21 | H4: 24 | I4: 27
A5: 4 | B5: 8 | C5: 12 | D5: 16 | E5: 20 | F5: 24 | G5: 28 | H5: 32 | I5: 36
A6: 5 | B6: 10 | C6: 15 | D6: 20 | E6: 25 | F6: 30 | G6: 35 | H6: 40 | I6: 45
A7: 6 | B7: 12 | C7: 18 | D7: 24 | E7: 30 | F7: 36 | G7: 42 | H7: 48 | I7: 54
A8: 7 | B8: 14 | C8: 21 | D8: 28 | E8: 35 | F8: 42 | G8: 49 | H8: 56 | I8: 63
A9: 8 | B9: 16 | C9: 24 | D9: 32 | E9: 40 | F9: 48 | G9: 56 | H9: 64 | I9: 72
A10: 9 | B10: 18 | C10: 27 | D10: 36 | E10: 45 | F10: 54 | G10: 63 | H10: 72 | I10: 81

Sheet 5a
A1: Kopfrechnungs-Maraton
A2: Name: | L2: Blatt-Nr.:
A4: =P4*C4 -> 380 | B4: : | C4: =INT(RAND()*(12-3)+3) -> 10 | D4: = | H4: =S4*J4 -> 513 | I4: : | J4: =INT(RAND()*(12-3)+3) -> 9 | K4: = | P4: =INT(RAND()*(110-30)+30) -> 38 | S4: =INT(RAND()*(110-30)+30) -> 57
A5: =(INT(RAND()*(20-5)+5))*1000 -> 15000 | B5: - | C5: =INT(RAND()*(5000-100)+100) -> 3177 | D5: = | H5: =(INT(RAND()*(20-5)+5))*1000 -> 14000 | I5: - | J5: =INT(RAND()*(5000-100)+100) -> 2232 | K5: = | P5: =A5-C5 -> 11823 | S5: =H5-J5 -> 11768
A6: =INT(RAND()*(10-2)+2) -> 6 | B6: * | C6: =INT(RAND()*(100-10)+10) -> 14 | D6: = | H6: =INT(RAND()*(10-2)+2) -> 6 | I6: * | J6: =INT(RAND()*(100-10)+10) -> 73 | K6: = | P6: =A6*C6 -> 84 | S6: =H6*J6 -> 438
A7: =INT(RAND()*(10000-999)+999) -> 6247 | B7: + | C7: =INT(RAND()*(5000-100)+100) -> 3127 | D7: = | H7: =INT(RAND()*(10000-999)+999) -> 5878 | I7: + | J7: =INT(RAND()*(5000-100)+100) -> 2067 | K7: = | P7: =A7+C7 -> 9374 | S7: =H7+J7 -> 7945
A8: =(INT(RAND()*(20-5)+5))*1000 -> 14000 | B8: - | C8: =INT(RAND()*(5000-100)+100) -> 1283 | D8: = | H8: =(INT(RAND()*(20-5)+5))*1000 -> 15000 | I8: - | J8: =INT(RAND()*(5000-100)+100) -> 185 | K8: = | P8: =A8-C8 -> 12717 | S8: =H8-J8 -> 14815
A9: =INT(RAND()*(99-30)+30) -> 49 | B9: : | C9: =INT(RAND()*(9-3)+3) -> 4 | D9: = | F9: =IF(R9=0,"","R") -> R | H9: =INT(RAND()*(99-30)+30) -> 37 | I9: : | J9: =INT(RAND()*(9-3)+3) -> 7 | K9: = | M9: =IF(U9=0,"","R") -> R | P9: =INT(A9/C9) -> 12 | Q9: R | R9: =A9-(P9*C9) -> 1 | S9: =INT(H9/J9) -> 5 | T9: R | U9: =H9-(S9*J9) -> 2
A10: =INT(RAND()*(10000-999)+999) -> 3543 | B10: + | C10: =INT(RAND()*(5000-100)+100) -> 4938 | D10: = | H10: =INT(RAND()*(10000-999)+999) -> 5866 | I10: + | J10: =INT(RAND()*(5000-100)+100) -> 1421 | K10: = | P10: =A10+C10 -> 8481 | S10: =H10+J10 -> 7287
A11: =INT(RAND()*(10-2)+2) -> 7 | B11: * | C11: =INT(RAND()*(100-10)+10) -> 62 | D11: = | H11: =INT(RAND()*(10-2)+2) -> 9 | I11: * | J11: =INT(RAND()*(100-10)+10) -> 35 | K11: = | P11: =A11*C11 -> 434 | S11: =H11*J11 -> 315
A12: =P12*C12 -> 324 | B12: : | C12: =INT(RAND()*(12-3)+3) -> 6 | D12: = | H12: =S12*J12 -> 315 | I12: : | J12: =INT(RAND()*(12-3)+3) -> 5 | K12: = | P12: =INT(RAND()*(110-30)+30) -> 54 | S12: =INT(RAND()*(110-30)+30) -> 63
A13: =(INT(RAND()*(20-5)+5))*1000 -> 13000 | B13: - | C13: =INT(RAND()*(5000-100)+100) -> 3067 | D13: = | H13: =(INT(RAND()*(20-5)+5))*1000 -> 12000 | I13: - | J13: =INT(RAND()*(5000-100)+100) -> 4324 | K13: = | P13: =A13-C13 -> 9933 | S13: =H13-J13 -> 7676
A14: =INT(RAND()*(10-2)+2) -> 4 | B14: * | C14: =INT(RAND()*(100-10)+10) -> 92 | D14: = | H14: =INT(RAND()*(10-2)+2) -> 7 | I14: * | J14: =INT(RAND()*(100-10)+10) -> 13 | K14: = | P14: =A14*C14 -> 368 | S14: =H14*J14 -> 91
A15: =INT(RAND()*(10000-999)+999) -> 1593 | B15: + | C15: =INT(RAND()*(5000-100)+100) -> 4337 | D15: = | H15: =INT(RAND()*(10000-999)+999) -> 8539 | I15: + | J15: =INT(RAND()*(5000-100)+100) -> 4873 | K15: = | P15: =A15+C15 -> 5930 | S15: =H15+J15 -> 13412
A16: =INT(RAND()*(99-30)+30) -> 55 | B16: : | C16: =INT(RAND()*(9-3)+3) -> 8 | D16: = | F16: =IF(R16=0,"","R") -> R | H16: =INT(RAND()*(99-30)+30) -> 36 | I16: : | J16: =INT(RAND()*(9-3)+3) -> 5 | K16: = | M16: =IF(U16=0,"","R") -> R | P16: =INT(A16/C16) -> 6 | Q16: R | R16: =A16-(P16*C16) -> 7 | S16: =INT(H16/J16) -> 7 | T16: R | U16: =H16-(S16*J16) -> 1
A17: =(INT(RAND()*(20-5)+5))*1000 -> 11000 | B17: - | C17: =INT(RAND()*(5000-100)+100) -> 3752 | D17: = | H17: =(INT(RAND()*(20-5)+5))*1000 -> 18000 | I17: - | J17: =INT(RAND()*(5000-100)+100) -> 3596 | K17: = | P17: =A17-C17 -> 7248 | S17: =H17-J17 -> 14404
A18: =INT(RAND()*(10-2)+2) -> 7 | B18: * | C18: =INT(RAND()*(100-10)+10) -> 60 | D18: = | H18: =INT(RAND()*(10-2)+2) -> 6 | I18: * | J18: =INT(RAND()*(100-10)+10) -> 29 | K18: = | P18: =A18*C18 -> 420 | S18: =H18*J18 -> 174
A19: =INT(RAND()*(10000-999)+999) -> 4508 | B19: + | C19: =INT(RAND()*(5000-100)+100) -> 4867 | D19: = | H19: =INT(RAND()*(10000-999)+999) -> 7712 | I19: + | J19: =INT(RAND()*(5000-100)+100) -> 4141 | K19: = | P19: =A19+C19 -> 9375 | S19: =H19+J19 -> 11853
A20: =(INT(RAND()*(20-5)+5))*1000 -> 11000 | B20: - | C20: =INT(RAND()*(5000-100)+100) -> 166 | D20: = | H20: =(INT(RAND()*(20-5)+5))*1000 -> 15000 | I20: - | J20: =INT(RAND()*(5000-100)+100) -> 1923 | K20: = | P20: =A20-C20 -> 10834 | S20: =H20-J20 -> 13077
A21: =P21*C21 -> 1177 | B21: : | C21: =INT(RAND()*(12-3)+3) -> 11 | D21: = | H21: =S21*J21 -> 564 | I21: : | J21: =INT(RAND()*(12-3)+3) -> 6 | K21: = | P21: =INT(RAND()*(110-30)+30) -> 107 | S21: =INT(RAND()*(110-30)+30) -> 94
A22: =INT(RAND()*(10000-999)+999) -> 6868 | B22: + | C22: =INT(RAND()*(5000-100)+100) -> 1395 | D22: = | H22: =INT(RAND()*(10000-999)+999) -> 8825 | I22: + | J22: =INT(RAND()*(5000-100)+100) -> 1898 | K22: = | P22: =A22+C22 -> 8263 | S22: =H22+J22 -> 10723
A23: =INT(RAND()*(10-2)+2) -> 6 | B23: * | C23: =INT(RAND()*(100-10)+10) -> 77 | D23: = | H23: =INT(RAND()*(10-2)+2) -> 3 | I23: * | J23: =INT(RAND()*(100-10)+10) -> 78 | K23: = | P23: =A23*C23 -> 462 | S23: =H23*J23 -> 234
A24: =INT(RAND()*(99-30)+30) -> 82 | B24: : | C24: =INT(RAND()*(9-3)+3) -> 4 | D24: = | F24: =IF(R24=0,"","R") -> R | H24: =INT(RAND()*(99-30)+30) -> 45 | I24: : | J24: =INT(RAND()*(9-3)+3) -> 8 | K24: = | M24: =IF(U24=0,"","R") -> R | P24: =INT(A24/C24) -> 20 | Q24: R | R24: =A24-(P24*C24) -> 2 | S24: =INT(H24/J24) -> 5 | T24: R | U24: =H24-(S24*J24) -> 5
A25: =(INT(RAND()*(20-5)+5))*1000 -> 18000 | B25: - | C25: =INT(RAND()*(5000-100)+100) -> 2388 | D25: = | H25: =(INT(RAND()*(20-5)+5))*1000 -> 5000 | I25: - | J25: =INT(RAND()*(5000-100)+100) -> 4647 | K25: = | P25: =A25-C25 -> 15612 | S25: =H25-J25 -> 353
A26: =INT(RAND()*(10-2)+2) -> 6 | B26: * | C26: =INT(RAND()*(100-10)+10) -> 31 | D26: = | H26: =INT(RAND()*(10-2)+2) -> 4 | I26: * | J26: =INT(RAND()*(100-10)+10) -> 91 | K26: = | P26: =A26*C26 -> 186 | S26: =H26*J26 -> 364
A27: =INT(RAND()*(10000-999)+999) -> 7599 | B27: + | C27: =INT(RAND()*(5000-100)+100) -> 1568 | D27: = | H27: =INT(RAND()*(10000-999)+999) -> 6142 | I27: + | J27: =INT(RAND()*(5000-100)+100) -> 4213 | K27: = | P27: =A27+C27 -> 9167 | S27: =H27+J27 -> 10355
A28: =P28*C28 -> 216 | B28: : | C28: =INT(RAND()*(12-3)+3) -> 4 | D28: = | H28: =S28*J28 -> 968 | I28: : | J28: =INT(RAND()*(12-3)+3) -> 11 | K28: = | P28: =INT(RAND()*(110-30)+30) -> 54 | S28: =INT(RAND()*(110-30)+30) -> 88

Sheet 5b
A1: Schriftliches Rechnen
A2: Name: | L2: Blatt-Nr.:
A4: =P4*C4 -> 55932 | B4: : | C4: =INT(RAND()*(12-2)+2) -> 6 | D4: = | H4: =S4*J4 -> 43632 | I4: : | J4: =INT(RAND()*(12-3)+3) -> 6 | K4: = | P4: =INT(RAND()*(9900-3000)+3000) -> 9322 | S4: =INT(RAND()*(9900-3000)+3000) -> 7272
A5: =(INT(RAND()*(90000-40000)+40000)) -> 77573 | B5: - | C5: =INT(RAND()*(39000-9999)+9999) -> 28378 | D5: = | H5: =(INT(RAND()*(90000-40000)+40000)) -> 86901 | I5: - | J5: =INT(RAND()*(39000-9999)+9999) -> 34479 | K5: = | P5: =A5-C5 -> 49195 | S5: =H5-J5 -> 52422
A6: =INT(RAND()*(10-2)+2) -> 2 | B6: * | C6: =INT(RAND()*(50000-10000)+10000) -> 17952 | D6: = | H6: =INT(RAND()*(10-2)+2) -> 5 | I6: * | J6: =INT(RAND()*(50000-10000)+10000) -> 26655 | K6: = | P6: =A6*C6 -> 35904 | S6: =H6*J6 -> 133275
A7: =INT(RAND()*(99999-9999)+9999) -> 92782 | B7: + | C7: =INT(RAND()*(99999-9999)+9999) -> 64384 | D7: = | H7: =INT(RAND()*(99999-9999)+9999) -> 46897 | I7: + | J7: =INT(RAND()*(99999-9999)+9999) -> 94381 | K7: = | P7: =A7+C7 -> 157166 | S7: =H7+J7 -> 141278
A8: =(INT(RAND()*(90000-40000)+40000)) -> 54488 | B8: - | C8: =INT(RAND()*(39000-9999)+9999) -> 18768 | D8: = | H8: =(INT(RAND()*(90000-40000)+40000)) -> 47642 | I8: - | J8: =INT(RAND()*(39000-9999)+9999) -> 20120 | K8: = | P8: =A8-C8 -> 35720 | S8: =H8-J8 -> 27522
A9: =INT(RAND()*(99999-30000)+30000) -> 88395 | B9: : | C9: =INT(RAND()*(9-3)+2) -> 7 | D9: = | F9: =IF(R9=0,"","R") -> R | H9: =INT(RAND()*(99999-30000)+30000) -> 65312 | I9: : | J9: =INT(RAND()*(9-3)+3) -> 4 | K9: = | M9: =IF(U9=0,"","R") ->  | P9: =INT(A9/C9) -> 12627 | Q9: R | R9: =A9-(P9*C9) -> 6 | S9: =INT(H9/J9) -> 16328 | T9: R | U9: =H9-(S9*J9) -> 0
A10: =INT(RAND()*(99999-9999)+9999) -> 59757 | B10: + | C10: =INT(RAND()*(99999-9999)+9999) -> 87349 | D10: = | H10: =INT(RAND()*(99999-9999)+9999) -> 31272 | I10: + | J10: =INT(RAND()*(99999-9999)+9999) -> 43228 | K10: = | P10: =A10+C10 -> 147106 | S10: =H10+J10 -> 74500
A11: =INT(RAND()*(10-2)+2) -> 4 | B11: * | C11: =INT(RAND()*(50000-10000)+10000) -> 46280 | D11: = | H11: =INT(RAND()*(10-2)+2) -> 7 | I11: * | J11: =INT(RAND()*(50000-10000)+10000) -> 11301 | K11: = | P11: =A11*C11 -> 185120 | S11: =H11*J11 -> 79107
A12: =P12*C12 -> 35144 | B12: : | C12: =INT(RAND()*(12-2)+2) -> 8 | D12: = | H12: =S12*J12 -> 43794 | I12: : | J12: =INT(RAND()*(12-3)+3) -> 6 | K12: = | P12: =INT(RAND()*(9900-3000)+3000) -> 4393 | S12: =INT(RAND()*(9900-3000)+3000) -> 7299
A13: =(INT(RAND()*(90000-40000)+40000)) -> 52528 | B13: - | C13: =INT(RAND()*(39000-9999)+9999) -> 26753 | D13: = | H13: =(INT(RAND()*(90000-40000)+40000)) -> 60060 | I13: - | J13: =INT(RAND()*(39000-9999)+9999) -> 12659 | K13: = | P13: =A13-C13 -> 25775 | S13: =H13-J13 -> 47401
A15: Schriftliches Rechnen
A16: Name: | L16: Blatt-Nr.:
A18: =P18*C18 -> 39384 | B18: : | C18: =INT(RAND()*(12-2)+2) -> 6 | D18: = | H18: =S18*J18 -> 60808 | I18: : | J18: =INT(RAND()*(12-3)+3) -> 11 | K18: = | P18: =INT(RAND()*(9900-3000)+3000) -> 6564 | S18: =INT(RAND()*(9900-3000)+3000) -> 5528
A19: =(INT(RAND()*(90000-40000)+40000)) -> 49919 | B19: - | C19: =INT(RAND()*(39000-9999)+9999) -> 32787 | D19: = | H19: =(INT(RAND()*(90000-40000)+40000)) -> 61526 | I19: - | J19: =INT(RAND()*(39000-9999)+9999) -> 13305 | K19: = | P19: =A19-C19 -> 17132 | S19: =H19-J19 -> 48221
A20: =INT(RAND()*(10-2)+2) -> 3 | B20: * | C20: =INT(RAND()*(50000-10000)+10000) -> 31372 | D20: = | H20: =INT(RAND()*(10-2)+2) -> 3 | I20: * | J20: =INT(RAND()*(50000-10000)+10000) -> 23548 | K20: = | P20: =A20*C20 -> 94116 | S20: =H20*J20 -> 70644
A21: =INT(RAND()*(99999-9999)+9999) -> 62800 | B21: + | C21: =INT(RAND()*(99999-9999)+9999) -> 92297 | D21: = | H21: =INT(RAND()*(99999-9999)+9999) -> 66739 | I21: + | J21: =INT(RAND()*(99999-9999)+9999) -> 53390 | K21: = | P21: =A21+C21 -> 155097 | S21: =H21+J21 -> 120129
A22: =(INT(RAND()*(90000-40000)+40000)) -> 65855 | B22: - | C22: =INT(RAND()*(39000-9999)+9999) -> 30366 | D22: = | H22: =(INT(RAND()*(90000-40000)+40000)) -> 43113 | I22: - | J22: =INT(RAND()*(39000-9999)+9999) -> 37955 | K22: = | P22: =A22-C22 -> 35489 | S22: =H22-J22 -> 5158
A23: =INT(RAND()*(99999-30000)+30000) -> 31452 | B23: : | C23: =INT(RAND()*(9-3)+2) -> 5 | D23: = | F23: =IF(R23=0,"","R") -> R | H23: =INT(RAND()*(99999-30000)+30000) -> 80430 | I23: : | J23: =INT(RAND()*(9-3)+3) -> 4 | K23: = | M23: =IF(U23=0,"","R") -> R | P23: =INT(A23/C23) -> 6290 | Q23: R | R23: =A23-(P23*C23) -> 2 | S23: =INT(H23/J23) -> 20107 | T23: R | U23: =H23-(S23*J23) -> 2
A24: =INT(RAND()*(99999-9999)+9999) -> 78613 | B24: + | C24: =INT(RAND()*(99999-9999)+9999) -> 10662 | D24: = | H24: =INT(RAND()*(99999-9999)+9999) -> 26091 | I24: + | J24: =INT(RAND()*(99999-9999)+9999) -> 86427 | K24: = | P24: =A24+C24 -> 89275 | S24: =H24+J24 -> 112518
A25: =INT(RAND()*(10-2)+2) -> 3 | B25: * | C25: =INT(RAND()*(50000-10000)+10000) -> 45060 | D25: = | H25: =INT(RAND()*(10-2)+2) -> 2 | I25: * | J25: =INT(RAND()*(50000-10000)+10000) -> 26282 | K25: = | P25: =A25*C25 -> 135180 | S25: =H25*J25 -> 52564
A26: =P26*C26 -> 24644 | B26: : | C26: =INT(RAND()*(12-2)+2) -> 4 | D26: = | H26: =S26*J26 -> 32025 | I26: : | J26: =INT(RAND()*(12-3)+3) -> 5 | K26: = | P26: =INT(RAND()*(9900-3000)+3000) -> 6161 | S26: =INT(RAND()*(9900-3000)+3000) -> 6405
A27: =(INT(RAND()*(90000-40000)+40000)) -> 71049 | B27: - | C27: =INT(RAND()*(39000-9999)+9999) -> 20346 | D27: = | H27: =(INT(RAND()*(90000-40000)+40000)) -> 67206 | I27: - | J27: =INT(RAND()*(39000-9999)+9999) -> 32595 | K27: = | P27: =A27-C27 -> 50703 | S27: =H27-J27 -> 34611

Sheet 5c
C1: Gewichte umrechnen | Q1: Gewichte umrechnen
J2: ="Nr. "&INT(RAND()*(10000-1000)+1000)&" " -> Nr. 8201 | M2: =J2 -> Nr. 8201 | X2: ="Nr. "&INT(RAND()*(10000-1000)+1000)&" " -> Nr. 6890 | AA2: =X2 -> Nr. 6890
A4: 13 | B4: =INT(RAND()*(100-1)+1) -> 46 | C4: =INT(RAND()*(100-1)+1) -> 76 | D4: kg | E4: =INT(RAND()*(15-1)+1) -> 2 | F4: g | G4: = | I4: g | L4: =C4*VLOOKUP(D4,$AD$25:$AT$40,VLOOKUP(I4,$AD$25:$AE$40,2,0),0)+E4 -> 76002 | M4: =I4 -> g | Q4: =INT(RAND()*(100-1)+1) -> 68 | R4: kg | S4: =INT(RAND()*(15-1)+1) -> 6 | T4: g | U4: = | W4: g | Z4: =Q4*VLOOKUP(R4,$AD$25:$AT$40,VLOOKUP(W4,$AD$25:$AE$40,2,0),0)+S4 -> 68006 | AA4: =W4 -> g
A5: 18 | B5: =INT(RAND()*(100-1)+1) -> 10 | C5: =INT(RAND()*(100-1)+1)*1000 -> 29000 | D5: kg | G5: = | I5: t | L5: =C5*VLOOKUP(D5,$AD$25:$AT$40,VLOOKUP(I5,$AD$25:$AE$40,2,0),0) -> 29 | M5: t | Q5: =INT(RAND()*(100-1)+1)*1000 -> 36000 | R5: kg | U5: = | W5: t | Z5: =Q5*VLOOKUP(R5,$AD$25:$AT$40,VLOOKUP(W5,$AD$25:$AE$40,2,0),0) -> 36 | AA5: t
A6: 8 | B6: 2 | C6: =INT(RAND()*(100-1)+1) -> 94 | D6: kg | E6: =INT(RAND()*(200-1)+1) -> 6 | F6: g | G6: = | I6: g | L6: =C6*VLOOKUP(D6,$AD$25:$AT$40,VLOOKUP(I6,$AD$25:$AE$40,2,0),0)+E6 -> 94006 | M6: g | Q6: =INT(RAND()*(100-1)+1) -> 84 | R6: kg | S6: =INT(RAND()*(200-1)+1) -> 122 | T6: g | U6: = | W6: g | Z6: =Q6*VLOOKUP(R6,$AD$25:$AT$40,VLOOKUP(W6,$AD$25:$AE$40,2,0),0)+S6 -> 84122 | AA6: g
A7: 1 | B7: 4 | C7: =INT(RAND()*(100-1)+1)*1000 -> 16000 | D7: g | G7: = | I7: kg | L7: =C7*VLOOKUP(D7,$AD$25:$AT$40,VLOOKUP(I7,$AD$25:$AE$40,2,0),0) -> 16 | M7: kg | Q7: =INT(RAND()*(100-1)+1)*1000 -> 89000 | R7: g | U7: = | W7: kg | Z7: =Q7*VLOOKUP(R7,$AD$25:$AT$40,VLOOKUP(W7,$AD$25:$AE$40,2,0),0) -> 89 | AA7: kg
A8: 12 | B8: 9 | C8: 43 | D8: kg | G8: = | I8: g | L8: =C8*VLOOKUP(D8,$AD$25:$AT$40,VLOOKUP(I8,$AD$25:$AE$40,2,0),0) -> 43000 | M8: g | Q8: =INT(RAND()*(100-1)+1) -> 77 | R8: kg | U8: = | W8: g | Z8: =Q8*VLOOKUP(R8,$AD$25:$AT$40,VLOOKUP(W8,$AD$25:$AE$40,2,0),0) -> 77000 | AA8: g
A9: 11 | B9: 6 | C9: 85 | D9: t | E9: =INT(RAND()*(100-1)+1) -> 6 | F9: kg | G9: = | I9: kg | L9: =C9*VLOOKUP(D9,$AD$25:$AT$40,VLOOKUP(I9,$AD$25:$AE$40,2,0),0)+E9 -> 85006 | M9: kg | Q9: 82 | R9: t | S9: =INT(RAND()*(100-1)+1) -> 62 | T9: kg | U9: = | W9: kg | Z9: =Q9*VLOOKUP(R9,$AD$25:$AT$40,VLOOKUP(W9,$AD$25:$AE$40,2,0),0)+S9 -> 82062 | AA9: kg
A10: 14 | B10: 88 | C10: 31 | D10: t | E10: =INT(RAND()*(100-1)+1) -> 62 | F10: kg | G10: = | I10: kg | L10: =C10*VLOOKUP(D10,$AD$25:$AT$40,VLOOKUP(I10,$AD$25:$AE$40,2,0),0)+E10 -> 31062 | M10: kg | Q10: 90 | R10: t | S10: =INT(RAND()*(100-1)+1) -> 96 | T10: kg | U10: = | W10: kg | Z10: =Q10*VLOOKUP(R10,$AD$25:$AT$40,VLOOKUP(W10,$AD$25:$AE$40,2,0),0)+S10 -> 90096 | AA10: kg
A11: 3 | B11: 83 | C11: 32 | D11: t | E11: =INT(RAND()*(100-1)+1) -> 81 | F11: kg | G11: = | I11: kg | L11: =C11*VLOOKUP(D11,$AD$25:$AT$40,VLOOKUP(I11,$AD$25:$AE$40,2,0),0)+E11 -> 32081 | M11: kg | Q11: 35 | R11: t | S11: =INT(RAND()*(100-1)+1) -> 57 | T11: kg | U11: = | W11: kg | Z11: =Q11*VLOOKUP(R11,$AD$25:$AT$40,VLOOKUP(W11,$AD$25:$AE$40,2,0),0)+S11 -> 35057 | AA11: kg
A12: 15 | B12: 15 | C12: 29 | D12: t | G12: = | I12: kg | L12: =C12*VLOOKUP(D12,$AD$25:$AT$40,VLOOKUP(I12,$AD$25:$AE$40,2,0),0) -> 29000 | M12: kg | Q12: 59 | R12: t | U12: = | W12: kg | Z12: =Q12*VLOOKUP(R12,$AD$25:$AT$40,VLOOKUP(W12,$AD$25:$AE$40,2,0),0) -> 59000 | AA12: kg
A13: 19 | B13: 94 | C13: 23 | D13: kg | E13: =INT(RAND()*(300-1)+1) -> 18 | F13: g | G13: = | I13: g | L13: =C13*VLOOKUP(D13,$AD$25:$AT$40,VLOOKUP(I13,$AD$25:$AE$40,2,0),0)+E13 -> 23018 | M13: g | Q13: 79 | R13: kg | S13: =INT(RAND()*(300-1)+1) -> 219 | T13: g | U13: = | W13: g | Z13: =Q13*VLOOKUP(R13,$AD$25:$AT$40,VLOOKUP(W13,$AD$25:$AE$40,2,0),0)+S13 -> 79219 | AA13: g
A14: 7 | B14: 67 | C14: 4 | D14: t | E14: =INT(RAND()*(100-1)+1) -> 74 | F14: kg | G14: = | I14: kg | L14: =C14*VLOOKUP(D14,$AD$25:$AT$40,VLOOKUP(I14,$AD$25:$AE$40,2,0),0)+E14 -> 4074 | M14: kg | Q14: 75 | R14: t | S14: =INT(RAND()*(100-1)+1) -> 60 | T14: kg | U14: = | W14: kg | Z14: =Q14*VLOOKUP(R14,$AD$25:$AT$40,VLOOKUP(W14,$AD$25:$AE$40,2,0),0)+S14 -> 75060 | AA14: kg
A15: 17 | B15: 80 | C15: 99 | D15: kg | E15: =INT(RAND()*(150-1)+1) -> 110 | F15: g | G15: = | I15: g | L15: =C15*VLOOKUP(D15,$AD$25:$AT$40,VLOOKUP(I15,$AD$25:$AE$40,2,0),0)+E15 -> 99110 | M15: g | Q15: 61 | R15: kg | S15: =INT(RAND()*(150-1)+1) -> 46 | T15: g | U15: = | W15: g | Z15: =Q15*VLOOKUP(R15,$AD$25:$AT$40,VLOOKUP(W15,$AD$25:$AE$40,2,0),0)+S15 -> 61046 | AA15: g
A16: 9 | B16: 66 | C16: 74 | D16: t | E16: =INT(RAND()*(5-1)+1) -> 1 | F16: kg | G16: = | I16: kg | L16: =C16*VLOOKUP(D16,$AD$25:$AT$40,VLOOKUP(I16,$AD$25:$AE$40,2,0),0)+E16 -> 74001 | M16: kg | Q16: 68 | R16: t | S16: =INT(RAND()*(10-1)+1) -> 8 | T16: kg | U16: = | W16: kg | Z16: =Q16*VLOOKUP(R16,$AD$25:$AT$40,VLOOKUP(W16,$AD$25:$AE$40,2,0),0)+S16 -> 68008 | AA16: kg
A17: 2 | B17: 4 | C17: =INT(RAND()*(100-1)+1)*1000 -> 59000 | D17: kg | G17: = | I17: t | L17: =C17*VLOOKUP(D17,$AD$25:$AT$40,VLOOKUP(I17,$AD$25:$AE$40,2,0),0) -> 59 | M17: t | Q17: =INT(RAND()*(100-1)+1)*1000 -> 28000 | R17: kg | U17: = | W17: t | Z17: =Q17*VLOOKUP(R17,$AD$25:$AT$40,VLOOKUP(W17,$AD$25:$AE$40,2,0),0) -> 28 | AA17: t
A18: 4 | B18: 13 | C18: =INT(RAND()*(100-1)+1) -> 59 | D18: kg | G18: = | I18: g | L18: 59000 | M18: g | Q18: =INT(RAND()*(100-1)+1) -> 64 | R18: kg | U18: = | W18: g | Z18: 64000 | AA18: g
A19: 6 | B19: 11 | C19: =INT(RAND()*(100-1)+1)*1000 -> 26000 | D19: kg | G19: = | I19: t | L19: 26 | M19: t | Q19: =INT(RAND()*(100-1)+1)*1000 -> 32000 | R19: kg | U19: = | W19: t | Z19: 32 | AA19: t
A20: 20 | B20: 99 | C20: =INT(RAND()*(100-1)+1) -> 1 | D20: kg | G20: = | I20: g | L20: 1000 | M20: g | Q20: =INT(RAND()*(100-1)+1) -> 22 | R20: kg | U20: = | W20: g | Z20: 22000 | AA20: g
A21: 16 | B21: 35 | C21: =INT(RAND()*(100-1)+1) -> 63 | D21: kg | G21: = | I21: g | L21: 63000 | M21: g | Q21: =INT(RAND()*(100-1)+1) -> 96 | R21: kg | U21: = | W21: g | Z21: 96000 | AA21: g
A22: 5 | B22: 80 | C22: =INT(RAND()*(100-1)+1)*1000 -> 98000 | D22: g | G22: = | I22: kg | L22: 98 | M22: kg | Q22: =INT(RAND()*(100-1)+1)*1000 -> 57000 | R22: g | U22: = | W22: kg | Z22: 57 | AA22: kg
A23: 10 | B23: 83 | C23: =INT(RAND()*(100-1)+1) -> 80 | D23: t | E23: =INT(RAND()*(100-1)+1) -> 20 | F23: kg | G23: = | I23: kg | L23: =C23*VLOOKUP(D23,$AD$25:$AT$40,VLOOKUP(I23,$AD$25:$AE$40,2,0),0)+E23 -> 80020 | M23: kg | Q23: =INT(RAND()*(100-1)+1) -> 78 | R23: t | S23: =INT(RAND()*(100-1)+1) -> 32 | T23: kg | U23: = | W23: kg | Z23: =Q23*VLOOKUP(R23,$AD$25:$AT$40,VLOOKUP(W23,$AD$25:$AE$40,2,0),0)+S23 -> 78032 | AA23: kg
AF24: 1000 | AG24: 1000
AF25: g | AG25: kg | AH25: t
AD26: g | AE26: 3 | AF26: 1 | AG26: =AF26/AF$24 -> 0.001 | AH26: 1e-06
AD27: kg | AE27: 4 | AF27: 1000 | AG27: 1 | AH27: 0.001
AD28: t | AE28: 5 | AF28: 1000000 | AG28: 1000 | AH28: 1

Sheet 5d
C1: Längenmasse umrechnen | Q1: Längenmasse umrechnen
J2: ="Nr. "&INT(RAND()*(10000-1000)+1000)&" " -> Nr. 3683 | M2: =J2 -> Nr. 3683 | X2: ="Nr. "&INT(RAND()*(10000-1000)+1000)&" " -> Nr. 9903 | AA2: =X2 -> Nr. 9903
A4: 9 | B4: =INT(RAND()*(100-1)+1) -> 29 | C4: 38 | D4: km | E4: =INT(RAND()*(99-1)+1) -> 28 | F4: m | G4: = | I4: m | L4: =C4*VLOOKUP(D4,$AD$25:$AT$40,VLOOKUP(I4,$AD$25:$AE$40,2,0),0)+E4 -> 38028 | M4: =I4 -> m | Q4: =INT(RAND()*(100-1)+1) -> 46 | R4: km | S4: =INT(RAND()*(99-1)+1) -> 40 | T4: m | U4: = | W4: m | Z4: =Q4*VLOOKUP(R4,$AD$25:$AT$40,VLOOKUP(W4,$AD$25:$AE$40,2,0),0)+S4 -> 46040 | AA4: =W4 -> m
A5: 14 | B5: 36 | C5: 40 | D5: m | E5: =INT(RAND()*(100-1)+1) -> 58 | F5: cm | G5: = | I5: cm | L5: =C5*VLOOKUP(D5,$AD$25:$AT$40,VLOOKUP(I5,$AD$25:$AE$40,2,0),0)+E5 -> 4058 | M5: cm | Q5: 25 | R5: m | S5: =INT(RAND()*(100-1)+1) -> 37 | T5: cm | U5: = | W5: cm | Z5: =Q5*VLOOKUP(R5,$AD$25:$AT$40,VLOOKUP(W5,$AD$25:$AE$40,2,0),0)+S5 -> 2537 | AA5: cm
A6: 16 | B6: 96 | C6: 34 | D6: m | G6: = | I6: cm | L6: =C6*VLOOKUP(D6,$AD$25:$AT$40,VLOOKUP(I6,$AD$25:$AE$40,2,0),0) -> 3400 | M6: cm | Q6: 25 | R6: m | U6: = | W6: cm | Z6: =Q6*VLOOKUP(R6,$AD$25:$AT$40,VLOOKUP(W6,$AD$25:$AE$40,2,0),0) -> 2500 | AA6: cm
A7: 10 | B7: 70 | C7: 80 | D7: m | E7: =INT(RAND()*(30-1)+1) -> 9 | F7: cm | G7: = | I7: cm | L7: =C7*VLOOKUP(D7,$AD$25:$AT$40,VLOOKUP(I7,$AD$25:$AE$40,2,0),0)+E7 -> 8009 | M7: cm | Q7: 52 | R7: m | S7: =INT(RAND()*(30-1)+1) -> 19 | T7: cm | U7: = | W7: cm | Z7: =Q7*VLOOKUP(R7,$AD$25:$AT$40,VLOOKUP(W7,$AD$25:$AE$40,2,0),0)+S7 -> 5219 | AA7: cm
A8: 19 | B8: 15 | C8: 63 | D8: m | E8: =INT(RAND()*(9-1)+1) -> 6 | F8: cm | G8: = | I8: cm | L8: =C8*VLOOKUP(D8,$AD$25:$AT$40,VLOOKUP(I8,$AD$25:$AE$40,2,0),0)+E8 -> 6306 | M8: cm | Q8: 65 | R8: m | S8: =INT(RAND()*(9-1)+1) -> 3 | T8: cm | U8: = | W8: cm | Z8: =Q8*VLOOKUP(R8,$AD$25:$AT$40,VLOOKUP(W8,$AD$25:$AE$40,2,0),0)+S8 -> 6503 | AA8: cm
A9: 3 | B9: 51 | C9: 33 | D9: dm | E9: =INT(RAND()*(9-1)+1) -> 4 | F9: cm | G9: = | I9: cm | L9: =C9*VLOOKUP(D9,$AD$25:$AT$40,VLOOKUP(I9,$AD$25:$AE$40,2,0),0)+E9 -> 334 | M9: cm | Q9: 44 | R9: dm | S9: =INT(RAND()*(9-1)+1) -> 8 | T9: cm | U9: = | W9: cm | Z9: =Q9*VLOOKUP(R9,$AD$25:$AT$40,VLOOKUP(W9,$AD$25:$AE$40,2,0),0)+S9 -> 448 | AA9: cm
A10: 11 | B10: 15 | C10: 82 | D10: km | E10: =INT(RAND()*(999-1)+1) -> 998 | F10: m | G10: = | I10: m | L10: =C10*VLOOKUP(D10,$AD$25:$AT$40,VLOOKUP(I10,$AD$25:$AE$40,2,0),0)+E10 -> 82998 | M10: m | Q10: 35 | R10: km | S10: =INT(RAND()*(999-1)+1) -> 102 | T10: m | U10: = | W10: m | Z10: =Q10*VLOOKUP(R10,$AD$25:$AT$40,VLOOKUP(W10,$AD$25:$AE$40,2,0),0)+S10 -> 35102 | AA10: m
A11: 4 | B11: 75 | C11: 93 | D11: mm | G11: = | I11: cm | L11: =C11*VLOOKUP(D11,$AD$25:$AT$40,VLOOKUP(I11,$AD$25:$AE$40,2,0),0) -> 9.3 | M11: cm | Q11: 29 | R11: mm | U11: = | W11: cm | Z11: =Q11*VLOOKUP(R11,$AD$25:$AT$40,VLOOKUP(W11,$AD$25:$AE$40,2,0),0) -> 2.9 | AA11: cm
A12: 5 | B12: 25 | C12: =INT(RAND()*(100-1)+1)*10 -> 960 | D12: mm | G12: = | I12: cm | L12: =C12*VLOOKUP(D12,$AD$25:$AT$40,VLOOKUP(I12,$AD$25:$AE$40,2,0),0) -> 96 | M12: cm | Q12: =INT(RAND()*(100-1)+1)*10 -> 80 | R12: mm | U12: = | W12: cm | Z12: =Q12*VLOOKUP(R12,$AD$25:$AT$40,VLOOKUP(W12,$AD$25:$AE$40,2,0),0) -> 8 | AA12: cm
A13: 12 | B13: 48 | C13: =INT(RAND()*(100-1)+1)*10 -> 10 | D13: mm | G13: = | I13: cm | L13: =C13*VLOOKUP(D13,$AD$25:$AT$40,VLOOKUP(I13,$AD$25:$AE$40,2,0),0) -> 1 | M13: cm | Q13: =INT(RAND()*(100-1)+1)*10 -> 310 | R13: mm | U13: = | W13: cm | Z13: =Q13*VLOOKUP(R13,$AD$25:$AT$40,VLOOKUP(W13,$AD$25:$AE$40,2,0),0) -> 31 | AA13: cm
A14: 17 | B14: 22 | C14: =INT(RAND()*(100-1)+1) -> 35 | D14: km | E14: =INT(RAND()*(150-1)+1) -> 78 | F14: m | G14: = | I14: m | L14: =C14*VLOOKUP(D14,$AD$25:$AT$40,VLOOKUP(I14,$AD$25:$AE$40,2,0),0)+E14 -> 35078 | M14: m | Q14: =INT(RAND()*(100-1)+1) -> 99 | R14: km | S14: =INT(RAND()*(150-1)+1) -> 5 | T14: m | U14: = | W14: m | Z14: =Q14*VLOOKUP(R14,$AD$25:$AT$40,VLOOKUP(W14,$AD$25:$AE$40,2,0),0)+S14 -> 99005 | AA14: m
A15: 7 | B15: 39 | C15: =INT(RAND()*(100-1)+1) -> 48 | D15: m | E15: =INT(RAND()*(10-1)+1) -> 3 | F15: cm | G15: = | I15: cm | L15: =C15*VLOOKUP(D15,$AD$25:$AT$40,VLOOKUP(I15,$AD$25:$AE$40,2,0),0)+E15 -> 4803 | M15: cm | Q15: =INT(RAND()*(100-1)+1) -> 91 | R15: m | S15: =INT(RAND()*(10-1)+1) -> 7 | T15: cm | U15: = | W15: cm | Z15: =Q15*VLOOKUP(R15,$AD$25:$AT$40,VLOOKUP(W15,$AD$25:$AE$40,2,0),0)+S15 -> 9107 | AA15: cm
A16: 6 | B16: 65 | C16: =INT(RAND()*(100-1)+1)*1000 -> 98000 | D16: cm | G16: = | I16: m | L16: =C16*VLOOKUP(D16,$AD$25:$AT$40,VLOOKUP(I16,$AD$25:$AE$40,2,0),0) -> 980 | M16: m | Q16: =INT(RAND()*(100-1)+1)*1000 -> 80000 | R16: cm | U16: = | W16: m | Z16: =Q16*VLOOKUP(R16,$AD$25:$AT$40,VLOOKUP(W16,$AD$25:$AE$40,2,0),0) -> 800 | AA16: m
A17: 18 | B17: 10 | C17: =INT(RAND()*(100-1)+1)*1000 -> 36000 | D17: mm | G17: = | I17: m | L17: =C17*VLOOKUP(D17,$AD$25:$AT$40,VLOOKUP(I17,$AD$25:$AE$40,2,0),0) -> 36 | M17: m | Q17: =INT(RAND()*(100-1)+1)*1000 -> 6000 | R17: mm | U17: = | W17: m | Z17: =Q17*VLOOKUP(R17,$AD$25:$AT$40,VLOOKUP(W17,$AD$25:$AE$40,2,0),0) -> 6 | AA17: m
A18: 8 | B18: 29 | C18: =INT(RAND()*(100-1)+1) -> 35 | D18: km | E18: =INT(RAND()*(200-1)+1) -> 52 | F18: m | G18: = | I18: m | L18: =C18*VLOOKUP(D18,$AD$25:$AT$40,VLOOKUP(I18,$AD$25:$AE$40,2,0),0)+E18 -> 35052 | M18: m | Q18: =INT(RAND()*(100-1)+1) -> 5 | R18: km | S18: =INT(RAND()*(200-1)+1) -> 152 | T18: m | U18: = | W18: m | Z18: =Q18*VLOOKUP(R18,$AD$25:$AT$40,VLOOKUP(W18,$AD$25:$AE$40,2,0),0)+S18 -> 5152 | AA18: m
A19: 20 | B19: 12 | C19: =INT(RAND()*(1000-1)+1) -> 488 | D19: km | G19: = | I19: m | L19: =C19*VLOOKUP(D19,$AD$25:$AT$40,VLOOKUP(I19,$AD$25:$AE$40,2,0),0) -> 488000 | M19: m | Q19: =INT(RAND()*(1000-1)+1) -> 646 | R19: km | U19: = | W19: m | Z19: =Q19*VLOOKUP(R19,$AD$25:$AT$40,VLOOKUP(W19,$AD$25:$AE$40,2,0),0) -> 646000 | AA19: m
A20: 2 | B20: =INT(RAND()*(100-1)+1) -> 89 | C20: =INT(RAND()*(100-1)+1)*1000 -> 92000 | D20: m | G20: = | I20: km | L20: =C20*VLOOKUP(D20,$AD$25:$AT$40,VLOOKUP(I20,$AD$25:$AE$40,2,0),0) -> 92 | M20: km | Q20: =INT(RAND()*(100-1)+1)*1000 -> 78000 | R20: m | U20: = | W20: km | Z20: =Q20*VLOOKUP(R20,$AD$25:$AT$40,VLOOKUP(W20,$AD$25:$AE$40,2,0),0) -> 78 | AA20: km
A21: 15 | B21: =INT(RAND()*(100-1)+1) -> 17 | C21: =INT(RAND()*(10-1)+1) -> 6 | D21: m | G21: = | I21: mm | L21: =C21*VLOOKUP(D21,$AD$25:$AT$40,VLOOKUP(I21,$AD$25:$AE$40,2,0),0) -> 6000 | M21: mm | Q21: =INT(RAND()*(10-1)+1) -> 6 | R21: m | U21: = | W21: mm | Z21: =Q21*VLOOKUP(R21,$AD$25:$AT$40,VLOOKUP(W21,$AD$25:$AE$40,2,0),0) -> 6000 | AA21: mm
A22: 1 | B22: =INT(RAND()*(100-1)+1) -> 85 | C22: =INT(RAND()*(100-1)+1)*1000 -> 59000 | D22: mm | G22: = | I22: m | L22: =C22*VLOOKUP(D22,$AD$25:$AT$40,VLOOKUP(I22,$AD$25:$AE$40,2,0),0) -> 59 | M22: m | Q22: =INT(RAND()*(100-1)+1)*1000 -> 3000 | R22: mm | U22: = | W22: m | Z22: =Q22*VLOOKUP(R22,$AD$25:$AT$40,VLOOKUP(W22,$AD$25:$AE$40,2,0),0) -> 3 | AA22: m
A23: 13 | B23: =INT(RAND()*(100-1)+1) -> 61 | C23: =INT(RAND()*(100-1)+1) -> 11 | D23: dm | E23: =INT(RAND()*(9-1)+1) -> 3 | F23: cm | G23: = | I23: cm | L23: =C23*VLOOKUP(D23,$AD$25:$AT$40,VLOOKUP(I23,$AD$25:$AE$40,2,0),0)+E23 -> 113 | M23: cm | Q23: =INT(RAND()*(100-1)+1) -> 59 | R23: dm | S23: =INT(RAND()*(9-1)+1) -> 5 | T23: cm | U23: = | W23: cm | Z23: =Q23*VLOOKUP(R23,$AD$25:$AT$40,VLOOKUP(W23,$AD$25:$AE$40,2,0),0)+S23 -> 595 | AA23: cm
AF24: 10 | AG24: 10 | AH24: 10 | AI24: 1000
AF25: mm | AG25: cm | AH25: dm | AI25: m | AJ25: km
AD26: mm | AE26: 3 | AF26: 1 | AG26: =AF26/AF$24 -> 0.1 | AH26: 0.01 | AI26: 0.001 | AJ26: 1e-06
AD27: cm | AE27: 4 | AF27: 10 | AG27: 1 | AH27: 0.1 | AI27: 0.01 | AJ27: 1e-05
AD28: dm | AE28: 5 | AF28: 100 | AG28: 10 | AH28: 1 | AI28: 0.1 | AJ28: 0.0001
AD29: m | AE29: 6 | AF29: 1000 | AG29: 100 | AH29: 10 | AI29: 1 | AJ29: 0.001
AD30: km | AE30: 7 | AF30: 1000000 | AG30: 100000 | AH30: 10000 | AI30: 1000 | AJ30: 1

Sheet 5e
C1: Hohlmasse umrechnen | Q1: Hohlmasse umrechnen
J2: ="Nr. "&INT(RAND()*(10000-1000)+1000)&" " -> Nr. 7521 | M2: =J2 -> Nr. 7521 | X2: ="Nr. "&INT(RAND()*(10000-1000)+1000)&" " -> Nr. 4653 | AA2: =X2 -> Nr. 4653
A4: 20 | B4: =INT(RAND()*(100-1)+1) -> 74 | C4: =INT(RAND()*(100-1)+1) -> 94 | D4: l | E4: =INT(RAND()*(9-1)+1) -> 8 | F4: ml | G4: = | I4: ml | L4: =C4*VLOOKUP(D4,$AD$25:$AT$40,VLOOKUP(I4,$AD$25:$AE$40,2,0),0)+E4 -> 94008 | M4: =I4 -> ml | Q4: =INT(RAND()*(100-1)+1) -> 50 | R4: l | S4: =INT(RAND()*(9-1)+1) -> 6 | T4: ml | U4: = | W4: ml | Z4: =Q4*VLOOKUP(R4,$AD$25:$AT$40,VLOOKUP(W4,$AD$25:$AE$40,2,0),0)+S4 -> 50006 | AA4: =W4 -> ml
A5: 6 | B5: =INT(RAND()*(100-1)+1) -> 93 | C5: =INT(RAND()*(100-1)+1) -> 44 | D5: cl | G5: = | I5: ml | L5: =C5*VLOOKUP(D5,$AD$25:$AT$40,VLOOKUP(I5,$AD$25:$AE$40,2,0),0) -> 440 | M5: ml | Q5: =INT(RAND()*(100-1)+1) -> 87 | R5: cl | U5: = | W5: ml | Z5: =Q5*VLOOKUP(R5,$AD$25:$AT$40,VLOOKUP(W5,$AD$25:$AE$40,2,0),0) -> 870 | AA5: ml
A6: 15 | B6: =INT(RAND()*(100-1)+1) -> 75 | C6: =INT(RAND()*(100-1)+1)*10 -> 490 | D6: ml | G6: = | I6: cl | L6: =C6*VLOOKUP(D6,$AD$25:$AT$40,VLOOKUP(I6,$AD$25:$AE$40,2,0),0) -> 49 | M6: cl | Q6: =INT(RAND()*(100-1)+1)*10 -> 640 | R6: ml | U6: = | W6: cl | Z6: =Q6*VLOOKUP(R6,$AD$25:$AT$40,VLOOKUP(W6,$AD$25:$AE$40,2,0),0) -> 64 | AA6: cl
A7: 2 | B7: 15 | C7: 15 | D7: l | E7: =INT(RAND()*(999-100)+100) -> 570 | F7: ml | G7: = | I7: ml | L7: =C7*VLOOKUP(D7,$AD$25:$AT$40,VLOOKUP(I7,$AD$25:$AE$40,2,0),0)+E7 -> 15570 | M7: ml | Q7: =INT(RAND()*(100-1)+1) -> 93 | R7: l | S7: =INT(RAND()*(999-100)+100) -> 859 | T7: ml | U7: = | W7: ml | Z7: =Q7*VLOOKUP(R7,$AD$25:$AT$40,VLOOKUP(W7,$AD$25:$AE$40,2,0),0)+S7 -> 93859 | AA7: ml
A8: 16 | B8: 62 | C8: 5 | D8: cl | G8: = | I8: ml | L8: =C8*VLOOKUP(D8,$AD$25:$AT$40,VLOOKUP(I8,$AD$25:$AE$40,2,0),0) -> 50 | M8: ml | Q8: 26 | R8: cl | U8: = | W8: ml | Z8: =Q8*VLOOKUP(R8,$AD$25:$AT$40,VLOOKUP(W8,$AD$25:$AE$40,2,0),0) -> 260 | AA8: ml
A9: 1 | B9: 87 | C9: 30 | D9: dl | G9: = | I9: cl | L9: =C9*VLOOKUP(D9,$AD$25:$AT$40,VLOOKUP(I9,$AD$25:$AE$40,2,0),0) -> 300 | M9: cl | Q9: 2 | R9: dl | U9: = | W9: cl | Z9: =Q9*VLOOKUP(R9,$AD$25:$AT$40,VLOOKUP(W9,$AD$25:$AE$40,2,0),0) -> 20 | AA9: cl
A10: 19 | B10: 31 | C10: 29 | D10: l | E10: =INT(RAND()*(99-1)+1) -> 79 | F10: cl | G10: = | I10: cl | L10: =C10*VLOOKUP(D10,$AD$25:$AT$40,VLOOKUP(I10,$AD$25:$AE$40,2,0),0)+E10 -> 2979 | M10: cl | Q10: 30 | R10: l | S10: =INT(RAND()*(99-1)+1) -> 88 | T10: cl | U10: = | W10: cl | Z10: =Q10*VLOOKUP(R10,$AD$25:$AT$40,VLOOKUP(W10,$AD$25:$AE$40,2,0),0)+S10 -> 3088 | AA10: cl
A11: 11 | B11: 57 | C11: 35 | D11: l | E11: =INT(RAND()*(999-100)+100) -> 590 | F11: ml | G11: = | I11: ml | L11: 35590 | M11: ml | Q11: 21 | R11: l | S11: =INT(RAND()*(999-100)+100) -> 170 | T11: ml | U11: = | W11: ml | Z11: 21170 | AA11: ml
A12: 8 | B12: 47 | C12: 26 | D12: l | E12: =INT(RAND()*(99-1)+1) -> 97 | F12: cl | G12: = | I12: cl | L12: 2697 | M12: cl | Q12: 76 | R12: l | S12: =INT(RAND()*(99-1)+1) -> 11 | T12: cl | U12: = | W12: cl | Z12: 7611 | AA12: cl
A13: 17 | B13: 31 | C13: 88 | D13: l | E13: =INT(RAND()*(99-1)+1) -> 32 | F13: ml | G13: = | I13: ml | L13: 88032 | M13: ml | Q13: 66 | R13: l | S13: =INT(RAND()*(99-1)+1) -> 27 | T13: ml | U13: = | W13: ml | Z13: 66027 | AA13: ml
A14: 13 | B14: 61 | C14: 11 | D14: l | G14: = | I14: ml | L14: 11000 | M14: ml | Q14: 5 | R14: l | U14: = | W14: ml | Z14: 5000 | AA14: ml
A15: 18 | B15: 19 | C15: 85 | D15: dl | E15: =INT(RAND()*(15-1)+1) -> 2 | F15: ml | G15: = | I15: ml | L15: 8502 | M15: ml | Q15: 70 | R15: dl | S15: =INT(RAND()*(15-1)+1) -> 13 | T15: ml | U15: = | W15: ml | Z15: 7013 | AA15: ml
A16: 5 | B16: 11 | C16: 55 | D16: dl | G16: = | I16: cl | L16: =C16*VLOOKUP(D16,$AD$25:$AT$40,VLOOKUP(I16,$AD$25:$AE$40,2,0),0) -> 550 | M16: cl | Q16: 63 | R16: dl | U16: = | W16: cl | Z16: =Q16*VLOOKUP(R16,$AD$25:$AT$40,VLOOKUP(W16,$AD$25:$AE$40,2,0),0) -> 630 | AA16: cl
A17: 9 | B17: 85 | C17: 88 | D17: l | E17: =INT(RAND()*(99-1)+1) -> 16 | F17: ml | G17: = | I17: ml | L17: =C17*VLOOKUP(D17,$AD$25:$AT$40,VLOOKUP(I17,$AD$25:$AE$40,2,0),0)+E17 -> 88016 | M17: ml | Q17: 78 | R17: l | S17: =INT(RAND()*(99-1)+1) -> 50 | T17: ml | U17: = | W17: ml | Z17: =Q17*VLOOKUP(R17,$AD$25:$AT$40,VLOOKUP(W17,$AD$25:$AE$40,2,0),0)+S17 -> 78050 | AA17: ml
A18: 4 | B18: 4 | C18: =INT(RAND()*(100-1)+1)*10 -> 160 | D18: ml | G18: = | I18: cl | L18: =C18*VLOOKUP(D18,$AD$25:$AT$40,VLOOKUP(I18,$AD$25:$AE$40,2,0),0) -> 16 | M18: cl | Q18: =INT(RAND()*(100-1)+1)*10 -> 260 | R18: ml | U18: = | W18: cl | Z18: =Q18*VLOOKUP(R18,$AD$25:$AT$40,VLOOKUP(W18,$AD$25:$AE$40,2,0),0) -> 26 | AA18: cl
A19: 10 | B19: 28 | C19: =INT(RAND()*(100-1)+1) -> 41 | D19: dl | E19: =INT(RAND()*(15-1)+1) -> 5 | F19: ml | G19: = | I19: ml | L19: =C19*VLOOKUP(D19,$AD$25:$AT$40,VLOOKUP(I19,$AD$25:$AE$40,2,0),0)+E19 -> 4105 | M19: ml | Q19: =INT(RAND()*(100-1)+1) -> 90 | R19: dl | S19: =INT(RAND()*(15-1)+1) -> 3 | T19: ml | U19: = | W19: ml | Z19: =Q19*VLOOKUP(R19,$AD$25:$AT$40,VLOOKUP(W19,$AD$25:$AE$40,2,0),0)+S19 -> 9003 | AA19: ml
A20: 12 | B20: 70 | C20: =INT(RAND()*(100-1)+1) -> 24 | D20: l | G20: = | I20: ml | L20: =C20*VLOOKUP(D20,$AD$25:$AT$40,VLOOKUP(I20,$AD$25:$AE$40,2,0),0) -> 24000 | M20: ml | Q20: =INT(RAND()*(100-1)+1) -> 98 | R20: l | U20: = | W20: ml | Z20: =Q20*VLOOKUP(R20,$AD$25:$AT$40,VLOOKUP(W20,$AD$25:$AE$40,2,0),0) -> 98000 | AA20: ml
A21: 7 | B21: 73 | C21: =INT(RAND()*(100-1)+1) -> 20 | D21: hl | E21: =INT(RAND()*(100-1)+1) -> 42 | F21: l | G21: = | I21: l | L21: =C21*VLOOKUP(D21,$AD$25:$AT$40,VLOOKUP(I21,$AD$25:$AE$40,2,0),0)+E21 -> 2042 | M21: l | Q21: =INT(RAND()*(100-1)+1) -> 82 | R21: hl | S21: =INT(RAND()*(100-1)+1) -> 7 | T21: l | U21: = | W21: l | Z21: =Q21*VLOOKUP(R21,$AD$25:$AT$40,VLOOKUP(W21,$AD$25:$AE$40,2,0),0)+S21 -> 8207 | AA21: l
A22: 3 | B22: 69 | C22: =INT(RAND()*(100-1)+1) -> 10 | D22: l | E22: =INT(RAND()*(9-1)+1) -> 8 | F22: ml | G22: = | I22: ml | L22: =C22*VLOOKUP(D22,$AD$25:$AT$40,VLOOKUP(I22,$AD$25:$AE$40,2,0),0)+E22 -> 10008 | M22: ml | Q22: =INT(RAND()*(100-1)+1) -> 5 | R22: l | S22: =INT(RAND()*(9-1)+1) -> 7 | T22: ml | U22: = | W22: ml | Z22: =Q22*VLOOKUP(R22,$AD$25:$AT$40,VLOOKUP(W22,$AD$25:$AE$40,2,0),0)+S22 -> 5007 | AA22: ml
A23: 14 | B23: 89 | C23: =INT(RAND()*(100-1)+1) -> 53 | D23: hl | E23: =INT(RAND()*(100-1)+1) -> 60 | F23: l | G23: = | I23: l | L23: =C23*VLOOKUP(D23,$AD$25:$AT$40,VLOOKUP(I23,$AD$25:$AE$40,2,0),0)+E23 -> 5360 | M23: l | Q23: =INT(RAND()*(100-1)+1) -> 61 | R23: hl | S23: =INT(RAND()*(100-1)+1) -> 14 | T23: l | U23: = | W23: l | Z23: =Q23*VLOOKUP(R23,$AD$25:$AT$40,VLOOKUP(W23,$AD$25:$AE$40,2,0),0)+S23 -> 6114 | AA23: l
AF24: 10 | AG24: 10 | AH24: 10 | AI24: 100
AF25: ml | AG25: cl | AH25: dl | AI25: l | AJ25: hl
AD26: ml | AE26: 3 | AF26: 1 | AG26: =AF26/AF$24 -> 0.1 | AH26: 0.01 | AI26: 0.001 | AJ26: 1e-05
AD27: cl | AE27: 4 | AF27: 10 | AG27: 1 | AH27: 0.1 | AI27: 0.01 | AJ27: 0.0001
AD28: dl | AE28: 5 | AF28: 100 | AG28: 10 | AH28: 1 | AI28: 0.1 | AJ28: 0.001
AD29: l | AE29: 6 | AF29: 1000 | AG29: 100 | AH29: 10 | AI29: 1 | AJ29: 0.01
AD30: hl | AE30: 7 | AF30: 100000 | AG30: 10000 | AH30: 1000 | AI30: 100 | AJ30: 1

Sheet 6a
A1: Kopfrechnen | L1: ="Blatt Nr. "&INT(RAND()*(10000-1000)+1000)&" " -> Blatt Nr. 3751 | S1: =L1 -> Blatt Nr. 3751
A2: Name:
A4: =P4*C4 -> 585 | B4: : | C4: =INT(RAND()*(12-3)+3) -> 9 | D4: = | H4: =S4*J4 -> 357 | I4: : | J4: =INT(RAND()*(12-3)+3) -> 7 | K4: = | P4: =INT(RAND()*(110-30)+30) -> 65 | S4: =INT(RAND()*(110-30)+30) -> 51
A5: =(INT(RAND()*(1000-5)+5))*1000 -> 563000 | B5: - | C5: =INT(RAND()*(5000-100)+100) -> 3299 | D5: = | H5: =(INT(RAND()*(1000-5)+5))*1000 -> 627000 | I5: - | J5: =INT(RAND()*(5000-100)+100) -> 495 | K5: = | P5: =A5-C5 -> 559701 | S5: =H5-J5 -> 626505
A6: =INT(RAND()*(10-2)+2) -> 8 | B6: * | C6: =INT(RAND()*(100-10)+10) -> 37 | D6: = | H6: =INT(RAND()*(10-2)+2) -> 6 | I6: * | J6: =INT(RAND()*(100-10)+10) -> 78 | K6: = | P6: =A6*C6 -> 296 | S6: =H6*J6 -> 468
A7: =INT(RAND()*(1000000-999)+999) -> 121996 | B7: + | C7: =INT(RAND()*(5000-100)+100) -> 4816 | D7: = | H7: =INT(RAND()*(1000000-999)+999) -> 318486 | I7: + | J7: =INT(RAND()*(5000-100)+100) -> 4852 | K7: = | P7: =A7+C7 -> 126812 | S7: =H7+J7 -> 323338
A8: =(INT(RAND()*(1000-5)+5))*1000 -> 416000 | B8: - | C8: =INT(RAND()*(5000-100)+100) -> 516 | D8: = | H8: =(INT(RAND()*(1000-5)+5))*1000 -> 386000 | I8: - | J8: =INT(RAND()*(5000-100)+100) -> 1172 | K8: = | P8: =A8-C8 -> 415484 | S8: =H8-J8 -> 384828
A9: =INT(RAND()*(999-111)+111) -> 552 | B9: : | C9: =INT(RAND()*(9-3)+3) -> 3 | D9: = | F9: R | H9: =INT(RAND()*(999-111)+111) -> 732 | I9: : | J9: =INT(RAND()*(9-3)+3) -> 8 | K9: = | M9: R | P9: =INT(A9/C9) -> 184 | Q9: R | R9: =A9-(P9*C9) -> 0 | S9: =INT(H9/J9) -> 91 | T9: R | U9: =H9-(S9*J9) -> 4
A10: =INT(RAND()*(1000000-999)+999) -> 636703 | B10: + | C10: =INT(RAND()*(5000-100)+100) -> 4866 | D10: = | H10: =INT(RAND()*(1000000-999)+999) -> 825648 | I10: + | J10: =INT(RAND()*(5000-100)+100) -> 814 | K10: = | P10: =A10+C10 -> 641569 | S10: =H10+J10 -> 826462
A11: =INT(RAND()*(10-2)+2) -> 7 | B11: * | C11: =INT(RAND()*(1000-10)+10) -> 537 | D11: = | H11: =INT(RAND()*(10-2)+2) -> 3 | I11: * | J11: =INT(RAND()*(1000-10)+10) -> 843 | K11: = | P11: =A11*C11 -> 3759 | S11: =H11*J11 -> 2529
A12: =P12*C12 -> 1950 | B12: : | C12: =INT(RAND()*(12-3)+3) -> 6 | D12: = | H12: =S12*J12 -> 1239 | I12: : | J12: =INT(RAND()*(12-3)+3) -> 3 | K12: = | P12: =INT(RAND()*(1100-30)+30) -> 325 | S12: =INT(RAND()*(1100-30)+30) -> 413
A13: =(INT(RAND()*(1000-5)+5))*1000 -> 838000 | B13: - | C13: =INT(RAND()*(5000-100)+100) -> 1692 | D13: = | H13: =(INT(RAND()*(1000-5)+5))*1000 -> 666000 | I13: - | J13: =INT(RAND()*(5000-100)+100) -> 1667 | K13: = | P13: =A13-C13 -> 836308 | S13: =H13-J13 -> 664333
A14: =INT(RAND()*(10-2)+2) -> 9 | B14: * | C14: =INT(RAND()*(1000-10)+10) -> 528 | D14: = | H14: =INT(RAND()*(10-2)+2) -> 8 | I14: * | J14: =INT(RAND()*(1000-10)+10) -> 966 | K14: = | P14: =A14*C14 -> 4752 | S14: =H14*J14 -> 7728
A15: =INT(RAND()*(1000000-999)+999) -> 357320 | B15: + | C15: =INT(RAND()*(5000-100)+100) -> 931 | D15: = | H15: =INT(RAND()*(1000000-999)+999) -> 951539 | I15: + | J15: =INT(RAND()*(5000-100)+100) -> 3013 | K15: = | P15: =A15+C15 -> 358251 | S15: =H15+J15 -> 954552
A16: =INT(RAND()*(999-111)+111) -> 236 | B16: : | C16: =INT(RAND()*(9-3)+3) -> 8 | D16: = | F16: R | H16: =INT(RAND()*(999-111)+111) -> 910 | I16: : | J16: =INT(RAND()*(9-3)+3) -> 4 | K16: = | M16: R | P16: =INT(A16/C16) -> 29 | Q16: R | R16: =A16-(P16*C16) -> 4 | S16: =INT(H16/J16) -> 227 | T16: R | U16: =H16-(S16*J16) -> 2
A17: =(INT(RAND()*(1000-5)+5))*1000 -> 941000 | B17: - | C17: =INT(RAND()*(5000-100)+100) -> 3040 | D17: = | H17: =(INT(RAND()*(1000-5)+5))*1000 -> 592000 | I17: - | J17: =INT(RAND()*(5000-100)+100) -> 1389 | K17: = | P17: =A17-C17 -> 937960 | S17: =H17-J17 -> 590611
A18: =INT(RAND()*(10-2)+2) -> 3 | B18: * | C18: =INT(RAND()*(100-10)+10) -> 30 | D18: = | H18: =INT(RAND()*(10-2)+2) -> 3 | I18: * | J18: =INT(RAND()*(100-10)+10) -> 49 | K18: = | P18: =A18*C18 -> 90 | S18: =H18*J18 -> 147
A19: =INT(RAND()*(10000-999)+999) -> 8525 | B19: + | C19: =INT(RAND()*(5000-100)+100) -> 4228 | D19: = | H19: =INT(RAND()*(10000-999)+999) -> 6175 | I19: + | J19: =INT(RAND()*(5000-100)+100) -> 2995 | K19: = | P19: =A19+C19 -> 12753 | S19: =H19+J19 -> 9170
A20: =(INT(RAND()*(1000-5)+5))*1000 -> 938000 | B20: - | C20: =INT(RAND()*(5000-100)+100) -> 2367 | D20: = | H20: =(INT(RAND()*(1000-5)+5))*1000 -> 774000 | I20: - | J20: =INT(RAND()*(5000-100)+100) -> 2336 | K20: = | P20: =A20-C20 -> 935633 | S20: =H20-J20 -> 771664
A21: =P21*C21 -> 484 | B21: : | C21: =INT(RAND()*(12-3)+3) -> 11 | D21: = | H21: =S21*J21 -> 400 | I21: : | J21: =INT(RAND()*(12-3)+3) -> 4 | K21: = | P21: =INT(RAND()*(110-30)+30) -> 44 | S21: =INT(RAND()*(110-30)+30) -> 100
A22: =INT(RAND()*(1000000-999)+999) -> 45667 | B22: + | C22: =INT(RAND()*(5000-100)+100) -> 645 | D22: = | H22: =INT(RAND()*(1000000-999)+999) -> 585989 | I22: + | J22: =INT(RAND()*(5000-100)+100) -> 2206 | K22: = | P22: =A22+C22 -> 46312 | S22: =H22+J22 -> 588195
A23: =INT(RAND()*(10-2)+2) -> 3 | B23: * | C23: =INT(RAND()*(100-10)+10) -> 47 | D23: = | H23: =INT(RAND()*(10-2)+2) -> 7 | I23: * | J23: =INT(RAND()*(100-10)+10) -> 70 | K23: = | P23: =A23*C23 -> 141 | S23: =H23*J23 -> 490
A24: =INT(RAND()*(999-111)+111) -> 887 | B24: : | C24: =INT(RAND()*(9-3)+3) -> 4 | D24: = | F24: R | H24: =INT(RAND()*(999-111)+111) -> 224 | I24: : | J24: =INT(RAND()*(9-3)+3) -> 6 | K24: = | M24: R | P24: =INT(A24/C24) -> 221 | Q24: R | R24: =A24-(P24*C24) -> 3 | S24: =INT(H24/J24) -> 37 | T24: R | U24: =H24-(S24*J24) -> 2
A25: =(INT(RAND()*(1000-5)+5))*1000 -> 825000 | B25: - | C25: =INT(RAND()*(5000-100)+100) -> 2731 | D25: = | H25: =(INT(RAND()*(1000-5)+5))*1000 -> 772000 | I25: - | J25: =INT(RAND()*(5000-100)+100) -> 2705 | K25: = | P25: =A25-C25 -> 822269 | S25: =H25-J25 -> 769295
A26: =INT(RAND()*(10-2)+2) -> 2 | B26: * | C26: =INT(RAND()*(100-10)+10) -> 64 | D26: = | H26: =INT(RAND()*(10-2)+2) -> 4 | I26: * | J26: =INT(RAND()*(100-10)+10) -> 99 | K26: = | P26: =A26*C26 -> 128 | S26: =H26*J26 -> 396
A27: =INT(RAND()*(1000000-999)+999) -> 640830 | B27: + | C27: =INT(RAND()*(5000-100)+100) -> 3413 | D27: = | H27: =INT(RAND()*(1000000-999)+999) -> 185529 | I27: + | J27: =INT(RAND()*(5000-100)+100) -> 4654 | K27: = | P27: =A27+C27 -> 644243 | S27: =H27+J27 -> 190183
A28: =INT(RAND()*(999-111)+111) -> 948 | B28: : | C28: =INT(RAND()*(9-3)+3) -> 7 | D28: = | F28: R | H28: =INT(RAND()*(999-111)+111) -> 202 | I28: : | J28: =INT(RAND()*(9-3)+3) -> 6 | K28: = | M28: R | P28: =INT(A28/C28) -> 135 | Q28: R | R28: =A28-(P28*C28) -> 3 | S28: =INT(H28/J28) -> 33 | T28: R | U28: =H28-(S28*J28) -> 4

Sheet 6b
A1: Halbschriftliches Rechnen | O1: ...mit Dezimalzahlen
A2: Name: | L2: ="Blatt Nr. "&INT(RAND()*(10000-1000)+1000)&" " -> Blatt Nr. 2784 | S2: =L2 -> Blatt Nr. 2784
A4: =P4*C4 -> 43.5 | B4: : | C4: =INT(RAND()*(12-3)+3) -> 5 | D4: = | H4: =S4*J4 -> 6.6 | I4: : | J4: =INT(RAND()*(12-3)+3) -> 3 | K4: = | P4: =(INT(RAND()*((110-30)+30)))/10 -> 8.7 | S4: =(INT(RAND()*((110-30)+30)))/10 -> 2.2
A5: =(INT(RAND()*(1000-5)+5))*1000 -> 837000 | B5: - | C5: =(INT(RAND()*(5000-100)+100)/10) -> 468.4 | D5: = | H5: =(INT(RAND()*(1000-5)+5))*1000 -> 142000 | I5: - | J5: =(INT(RAND()*(5000-100)+100)/10) -> 346 | K5: = | P5: =A5-C5 -> 836531.6 | S5: =H5-J5 -> 141654
A6: =INT(RAND()*(10-2)+2) -> 3 | B6: * | C6: =(INT(RAND()*(1000-100)+100))/10 -> 15.5 | D6: = | H6: =INT(RAND()*(10-2)+2) -> 2 | I6: * | J6: =(INT(RAND()*(1000-100)+100))/10 -> 63.9 | K6: = | P6: =A6*C6 -> 46.5 | S6: =H6*J6 -> 127.8
A7: =(INT(RAND()*(1000000-999)+999))/10 -> 81381.2 | B7: + | C7: =(INT(RAND()*(5000-100)+100))/10 -> 92.5 | D7: = | H7: =(INT(RAND()*(1000000-999)+999))/10 -> 10247.6 | I7: + | J7: =(INT(RAND()*(5000-100)+100))/10 -> 440.5 | K7: = | P7: =A7+C7 -> 81473.7 | S7: =H7+J7 -> 10688.1
A8: =(INT(RAND()*(1000-5)+5))*1000 -> 35000 | B8: - | C8: =(INT(RAND()*(5000-100)+100)/10) -> 50.9 | D8: = | H8: =(INT(RAND()*(1000-5)+5))*1000 -> 556000 | I8: - | J8: =(INT(RAND()*(5000-100)+100)/10) -> 231.5 | K8: = | P8: =A8-C8 -> 34949.1 | S8: =H8-J8 -> 555768.5
A9: =P9*C9 -> 42.5 | B9: : | C9: =INT(RAND()*(12-3)+3) -> 5 | D9: = | H9: =S9*J9 -> 68 | I9: : | J9: =INT(RAND()*(12-3)+3) -> 8 | K9: = | P9: =(INT(RAND()*((110-30)+30)))/10 -> 8.5 | S9: =(INT(RAND()*((110-30)+30)))/10 -> 8.5
A10: =(INT(RAND()*(1000000-999)+999))/10 -> 79723 | B10: + | C10: =(INT(RAND()*(5000-100)+100))/10 -> 123.1 | D10: = | H10: =(INT(RAND()*(1000000-999)+999))/10 -> 54679.1 | I10: + | J10: =(INT(RAND()*(5000-100)+100))/10 -> 461.4 | K10: = | P10: =A10+C10 -> 79846.1 | S10: =H10+J10 -> 55140.5
A11: =INT(RAND()*(10-2)+2) -> 6 | B11: * | C11: =(INT(RAND()*(1000-100)+100))/10 -> 40.1 | D11: = | H11: =INT(RAND()*(10-2)+2) -> 2 | I11: * | J11: =(INT(RAND()*(1000-100)+100))/10 -> 71.6 | K11: = | P11: =A11*C11 -> 240.6 | S11: =H11*J11 -> 143.2
A12: =P12*C12 -> 38.5 | B12: : | C12: =INT(RAND()*(12-3)+3) -> 5 | D12: = | H12: =S12*J12 -> 16.2 | I12: : | J12: =INT(RAND()*(12-3)+3) -> 6 | K12: = | P12: =(INT(RAND()*((110-30)+30)))/10 -> 7.7 | S12: =(INT(RAND()*((110-30)+30)))/10 -> 2.7
A13: =(INT(RAND()*(1000-5)+5))*1000 -> 204000 | B13: - | C13: =(INT(RAND()*(5000-100)+100)/10) -> 70.5 | D13: = | H13: =(INT(RAND()*(1000-5)+5))*1000 -> 380000 | I13: - | J13: =(INT(RAND()*(5000-100)+100)/10) -> 148.3 | K13: = | P13: =A13-C13 -> 203929.5 | S13: =H13-J13 -> 379851.7
A14: =INT(RAND()*(10-2)+2) -> 7 | B14: * | C14: =(INT(RAND()*(1000-100)+100))/10 -> 29.2 | D14: = | H14: =INT(RAND()*(10-2)+2) -> 2 | I14: * | J14: =(INT(RAND()*(1000-100)+100))/10 -> 81.9 | K14: = | P14: =A14*C14 -> 204.4 | S14: =H14*J14 -> 163.8
A15: =(INT(RAND()*(1000000-999)+999))/10 -> 23883.4 | B15: + | C15: =(INT(RAND()*(5000-100)+100))/10 -> 117.4 | D15: = | H15: =(INT(RAND()*(1000000-999)+999))/10 -> 72353.3 | I15: + | J15: =(INT(RAND()*(5000-100)+100))/10 -> 156.9 | K15: = | P15: =A15+C15 -> 24000.8 | S15: =H15+J15 -> 72510.2
A16: =P16*C16 -> 38.7 | B16: : | C16: =INT(RAND()*(12-3)+3) -> 9 | D16: = | H16: =S16*J16 -> 39 | I16: : | J16: =INT(RAND()*(12-3)+3) -> 6 | K16: = | P16: =(INT(RAND()*((110-30)+30)))/10 -> 4.3 | S16: =(INT(RAND()*((110-30)+30)))/10 -> 6.5
A17: =(INT(RAND()*(1000-5)+5))*1000 -> 669000 | B17: - | C17: =(INT(RAND()*(5000-100)+100)/10) -> 311.6 | D17: = | H17: =(INT(RAND()*(1000-5)+5))*1000 -> 348000 | I17: - | J17: =(INT(RAND()*(5000-100)+100)/10) -> 10.9 | K17: = | P17: =A17-C17 -> 668688.4 | S17: =H17-J17 -> 347989.1
A18: =INT(RAND()*(10-2)+2) -> 8 | B18: * | C18: =(INT(RAND()*(1000-100)+100))/10 -> 76.6 | D18: = | H18: =INT(RAND()*(10-2)+2) -> 2 | I18: * | J18: =(INT(RAND()*(1000-100)+100))/10 -> 41.5 | K18: = | P18: =A18*C18 -> 612.8 | S18: =H18*J18 -> 83
A19: =(INT(RAND()*(1000000-999)+999))/10 -> 89874.5 | B19: + | C19: =(INT(RAND()*(5000-100)+100))/10 -> 331 | D19: = | H19: =(INT(RAND()*(1000000-999)+999))/10 -> 47056.8 | I19: + | J19: =(INT(RAND()*(5000-100)+100))/10 -> 70.9 | K19: = | P19: =A19+C19 -> 90205.5 | S19: =H19+J19 -> 47127.7
A20: =(INT(RAND()*(1000-5)+5))*1000 -> 295000 | B20: - | C20: =(INT(RAND()*(5000-100)+100)/10) -> 169 | D20: = | H20: =(INT(RAND()*(1000-5)+5))*1000 -> 95000 | I20: - | J20: =(INT(RAND()*(5000-100)+100)/10) -> 235.7 | K20: = | P20: =A20-C20 -> 294831 | S20: =H20-J20 -> 94764.3
A21: =P21*C21 -> 27 | B21: : | C21: =INT(RAND()*(12-3)+3) -> 5 | D21: = | H21: =S21*J21 -> 30 | I21: : | J21: =INT(RAND()*(12-3)+3) -> 10 | K21: = | P21: =(INT(RAND()*((110-30)+30)))/10 -> 5.4 | S21: =(INT(RAND()*((110-30)+30)))/10 -> 3
A22: =(INT(RAND()*(1000000-999)+999))/10 -> 94873.4 | B22: + | C22: =(INT(RAND()*(5000-100)+100))/10 -> 156.1 | D22: = | H22: =(INT(RAND()*(1000000-999)+999))/10 -> 39979.6 | I22: + | J22: =(INT(RAND()*(5000-100)+100))/10 -> 214.6 | K22: = | P22: =A22+C22 -> 95029.5 | S22: =H22+J22 -> 40194.2
A23: =INT(RAND()*(10-2)+2) -> 9 | B23: * | C23: =(INT(RAND()*(1000-100)+100))/10 -> 67.8 | D23: = | H23: =INT(RAND()*(10-2)+2) -> 4 | I23: * | J23: =(INT(RAND()*(1000-100)+100))/10 -> 62.4 | K23: = | P23: =A23*C23 -> 610.2 | S23: =H23*J23 -> 249.6
A24: =P24*C24 -> 6 | B24: : | C24: =INT(RAND()*(12-3)+3) -> 3 | D24: = | H24: =S24*J24 -> 53.9 | I24: : | J24: =INT(RAND()*(12-3)+3) -> 11 | K24: = | P24: =(INT(RAND()*((110-30)+30)))/10 -> 2 | S24: =(INT(RAND()*((110-30)+30)))/10 -> 4.9
A25: =(INT(RAND()*(1000-5)+5))*1000 -> 647000 | B25: - | C25: =(INT(RAND()*(5000-100)+100)/10) -> 325 | D25: = | H25: =(INT(RAND()*(1000-5)+5))*1000 -> 455000 | I25: - | J25: =(INT(RAND()*(5000-100)+100)/10) -> 444.5 | K25: = | P25: =A25-C25 -> 646675 | S25: =H25-J25 -> 454555.5
A26: =INT(RAND()*(10-2)+2) -> 2 | B26: * | C26: =(INT(RAND()*(1000-100)+100))/10 -> 70.2 | D26: = | H26: =INT(RAND()*(10-2)+2) -> 9 | I26: * | J26: =(INT(RAND()*(1000-100)+100))/10 -> 48.4 | K26: = | P26: =A26*C26 -> 140.4 | S26: =H26*J26 -> 435.6
A27: =(INT(RAND()*(1000000-999)+999))/10 -> 62189.6 | B27: + | C27: =(INT(RAND()*(5000-100)+100))/10 -> 386.2 | D27: = | H27: =(INT(RAND()*(1000000-999)+999))/10 -> 65317.2 | I27: + | J27: =(INT(RAND()*(5000-100)+100))/10 -> 61.7 | K27: = | P27: =A27+C27 -> 62575.8 | S27: =H27+J27 -> 65378.9
A28: =P28*C28 -> 26 | B28: : | C28: =INT(RAND()*(12-3)+3) -> 4 | D28: = | H28: =S28*J28 -> 4 | I28: : | J28: =INT(RAND()*(12-3)+3) -> 8 | K28: = | P28: =(INT(RAND()*((110-30)+30)))/10 -> 6.5 | S28: =(INT(RAND()*((110-30)+30)))/10 -> 0.5

Sheet 6c
A1: Schriftliche Operationen | O1: ...mit Dezimalzahlen
A2: Name: | L2: ="Blatt Nr. "&INT(RAND()*(10000-1000)+1000)&" " -> Blatt Nr. 6234 | S2: =L2 -> Blatt Nr. 6234
A4: =P4*C4 -> 5002.14 | B4: : | C4: =IF(V4=ROUNDDOWN(V4,0),W4,V4) -> 7.8 | D4: = | H4: =S4*J4 -> 3110.06 | I4: : | J4: =IF(Y4=ROUNDDOWN(Y4,0),Z4,Y4) -> 4.6 | K4: = | P4: =(INT(RAND()*((11000-30)+30)))/10 -> 641.3 | S4: =(INT(RAND()*((11000-30)+30)))/10 -> 676.1 | V4: =(INT(RAND()*(120-30)+30))/10 -> 7.8 | W4: =(INT(RAND()*(120-30)+30))/10 -> 5 | Y4: =(INT(RAND()*(120-30)+30))/10 -> 4.6 | Z4: =(INT(RAND()*(120-30)+30))/10 -> 7.8
A5: =IF(V5>X5,V5,X5) -> 8179.1 | B5: - | C5: =IF(A5=V5,X5,V5) -> 123.39 | D5: = | H5: =IF(Y5>AA5,Y5,AA5) -> 4631.92 | I5: - | J5: =IF(H5=Y5,AA5,Y5) -> 378.3 | K5: = | P5: =A5-C5 -> 8055.71 | S5: =H5-J5 -> 4253.62 | V5: =((INT(RAND()*(100000-999)+999))/100) -> 123.39 | W5: - | X5: =(INT(RAND()*(100000-999)+999)/10) -> 8179.1 | Y5: =((INT(RAND()*(1000000-999)+999))/100) -> 4631.92 | Z5: - | AA5: =(INT(RAND()*(5000-1000)+1000)/10) -> 378.3
A6: =IF(V6=ROUNDDOWN(V6,0),W6,V6) -> 6.4 | B6: * | C6: =(INT(RAND()*(10000-1000)+1000))/100 -> 71.22 | D6: = | H6: =IF(X6=ROUNDDOWN(X6,0),Y6,X6) -> 56.3 | I6: * | J6: =IF(AA6=ROUNDDOWN(AA6,0),AB6,AA6) -> 3.5 | K6: = | P6: =A6*C6 -> 455.808 | S6: =H6*J6 -> 197.05 | V6: =(INT(RAND()*(100-10)+10))/10 -> 9 | W6: =(INT(RAND()*(100-10)+10))/10 -> 6.4 | X6: =(INT(RAND()*(1000-100)+100))/10 -> 41 | Y6: =(INT(RAND()*(1000-100)+100))/10 -> 56.3 | AA6: =(INT(RAND()*(100-10)+10))/10 -> 3.5 | AB6: =(INT(RAND()*(100-10)+10))/10 -> 1.2
A7: =IF(V7=ROUNDDOWN(V7,0),W7,V7) -> 65880.9 | B7: + | C7: =(INT(RAND()*(50000-1000)+1000))/100 -> 91.96 | D7: = | H7: =(INT(RAND()*(1000000-999)+999))/100 -> 6290.68 | I7: + | J7: =IF(Y7=ROUNDDOWN(Y7,0),Z7,Y7) -> 432.6 | K7: = | P7: =A7+C7 -> 65972.86 | S7: =H7+J7 -> 6723.28 | V7: =(INT(RAND()*(1000000-999)+999))/10 -> 65880.9 | W7: =(INT(RAND()*(1000000-999)+999))/10 -> 96024.7 | Y7: =(INT(RAND()*(5000-100)+100))/10 -> 432.6 | Z7: =(INT(RAND()*(5000-100)+100))/10 -> 493.7
A8: =P8*C8 -> 6239.87 | B8: : | C8: =IF(V8=ROUNDDOWN(V8,0),W8,V8) -> 9.1 | D8: = | H8: =S8*J8 -> 10278.72 | I8: : | J8: =IF(Y8=ROUNDDOWN(Y8,0),Z8,Y8) -> 9.6 | K8: = | P8: =(INT(RAND()*((11000-30)+30)))/10 -> 685.7 | S8: =(INT(RAND()*((11000-30)+30)))/10 -> 1070.7 | V8: =(INT(RAND()*(120-30)+30))/10 -> 9.1 | W8: =(INT(RAND()*(120-30)+30))/10 -> 7.3 | Y8: =(INT(RAND()*(120-30)+30))/10 -> 9.6 | Z8: =(INT(RAND()*(120-30)+30))/10 -> 11.1
A9: =IF(V9>X9,V9,X9) -> 8540.8 | B9: - | C9: =IF(A9=V9,X9,V9) -> 614.64 | D9: = | H9: =IF(Y9>AA9,Y9,AA9) -> 4166.79 | I9: - | J9: =IF(H9=Y9,AA9,Y9) -> 201.5 | K9: = | P9: =A9-C9 -> 7926.16 | S9: =H9-J9 -> 3965.29 | V9: =((INT(RAND()*(100000-999)+999))/100) -> 614.64 | W9: - | X9: =(INT(RAND()*(100000-999)+999)/10) -> 8540.8 | Y9: =((INT(RAND()*(1000000-999)+999))/100) -> 4166.79 | Z9: - | AA9: =(INT(RAND()*(5000-1000)+1000)/10) -> 201.5
A10: =IF(V10=ROUNDDOWN(V10,0),W10,V10) -> 9.6 | B10: * | C10: =(INT(RAND()*(10000-1000)+1000))/100 -> 80.84 | D10: = | H10: =IF(X10=ROUNDDOWN(X10,0),Y10,X10) -> 59.6 | I10: * | J10: =IF(AA10=ROUNDDOWN(AA10,0),AB10,AA10) -> 1.4 | K10: = | P10: =A10*C10 -> 776.064 | S10: =H10*J10 -> 83.44 | V10: =(INT(RAND()*(100-10)+10))/10 -> 9.6 | W10: =(INT(RAND()*(100-10)+10))/10 -> 3.2 | X10: =(INT(RAND()*(1000-100)+100))/10 -> 59.6 | Y10: =(INT(RAND()*(1000-100)+100))/10 -> 18.9 | AA10: =(INT(RAND()*(100-10)+10))/10 -> 1.4 | AB10: =(INT(RAND()*(100-10)+10))/10 -> 6.2
A11: =IF(V11=ROUNDDOWN(V11,0),W11,V11) -> 59670.8 | B11: + | C11: =(INT(RAND()*(50000-1000)+1000))/100 -> 495.23 | D11: = | H11: =(INT(RAND()*(1000000-999)+999))/100 -> 5147.88 | I11: + | J11: =IF(Y11=ROUNDDOWN(Y11,0),Z11,Y11) -> 227.7 | K11: = | P11: =A11+C11 -> 60166.03 | S11: =H11+J11 -> 5375.58 | V11: =(INT(RAND()*(1000000-999)+999))/10 -> 59670.8 | W11: =(INT(RAND()*(1000000-999)+999))/10 -> 8889.4 | Y11: =(INT(RAND()*(5000-100)+100))/10 -> 132 | Z11: =(INT(RAND()*(5000-100)+100))/10 -> 227.7
A12: =P12*C12 -> 3174.75 | B12: : | C12: =IF(V12=ROUNDDOWN(V12,0),W12,V12) -> 5.1 | D12: = | H12: =S12*J12 -> 4049.57 | I12: : | J12: =IF(Y12=ROUNDDOWN(Y12,0),Z12,Y12) -> 4.1 | K12: = | P12: =(INT(RAND()*((11000-30)+30)))/10 -> 622.5 | S12: =(INT(RAND()*((11000-30)+30)))/10 -> 987.7 | V12: =(INT(RAND()*(120-30)+30))/10 -> 6 | W12: =(INT(RAND()*(120-30)+30))/10 -> 5.1 | Y12: =(INT(RAND()*(120-30)+30))/10 -> 4.1 | Z12: =(INT(RAND()*(120-30)+30))/10 -> 6.4
A13: =IF(V13>X13,V13,X13) -> 3836.2 | B13: - | C13: =IF(A13=V13,X13,V13) -> 576.15 | D13: = | H13: =IF(Y13>AA13,Y13,AA13) -> 9023.37 | I13: - | J13: =IF(H13=Y13,AA13,Y13) -> 461.1 | K13: = | P13: =A13-C13 -> 3260.05 | S13: =H13-J13 -> 8562.27 | V13: =((INT(RAND()*(100000-999)+999))/100) -> 576.15 | W13: - | X13: =(INT(RAND()*(100000-999)+999)/10) -> 3836.2 | Y13: =((INT(RAND()*(1000000-999)+999))/100) -> 9023.37 | Z13: - | AA13: =(INT(RAND()*(5000-1000)+1000)/10) -> 461.1
A14: =IF(V14=ROUNDDOWN(V14,0),W14,V14) -> 7.2 | B14: * | C14: =(INT(RAND()*(10000-1000)+1000))/100 -> 32.37 | D14: = | H14: =IF(X14=ROUNDDOWN(X14,0),Y14,X14) -> 15.4 | I14: * | J14: =IF(AA14=ROUNDDOWN(AA14,0),AB14,AA14) -> 3.6 | K14: = | P14: =A14*C14 -> 233.064 | S14: =H14*J14 -> 55.44 | V14: =(INT(RAND()*(100-10)+10))/10 -> 6 | W14: =(INT(RAND()*(100-10)+10))/10 -> 7.2 | X14: =(INT(RAND()*(1000-100)+100))/10 -> 15.4 | Y14: =(INT(RAND()*(1000-100)+100))/10 -> 28.6 | AA14: =(INT(RAND()*(100-10)+10))/10 -> 3.6 | AB14: =(INT(RAND()*(100-10)+10))/10 -> 6
A15: =IF(V15=ROUNDDOWN(V15,0),W15,V15) -> 40396.8 | B15: + | C15: =(INT(RAND()*(50000-1000)+1000))/100 -> 453.92 | D15: = | H15: =(INT(RAND()*(1000000-999)+999))/100 -> 6776.03 | I15: + | J15: =IF(Y15=ROUNDDOWN(Y15,0),Z15,Y15) -> 53.3 | K15: = | P15: =A15+C15 -> 40850.72 | S15: =H15+J15 -> 6829.33 | V15: =(INT(RAND()*(1000000-999)+999))/10 -> 40396.8 | W15: =(INT(RAND()*(1000000-999)+999))/10 -> 9096.7 | Y15: =(INT(RAND()*(5000-100)+100))/10 -> 53.3 | Z15: =(INT(RAND()*(5000-100)+100))/10 -> 365.4
A16: =P16*C16 -> 2788.06 | B16: : | C16: =IF(V16=ROUNDDOWN(V16,0),W16,V16) -> 5.8 | D16: = | H16: =S16*J16 -> 1856 | I16: : | J16: =IF(Y16=ROUNDDOWN(Y16,0),Z16,Y16) -> 3.2 | K16: = | P16: =(INT(RAND()*((11000-30)+30)))/10 -> 480.7 | S16: =(INT(RAND()*((11000-30)+30)))/10 -> 580 | V16: =(INT(RAND()*(120-30)+30))/10 -> 5.8 | W16: =(INT(RAND()*(120-30)+30))/10 -> 8.4 | Y16: =(INT(RAND()*(120-30)+30))/10 -> 3.2 | Z16: =(INT(RAND()*(120-30)+30))/10 -> 6.9
A17: =IF(V17>X17,V17,X17) -> 6683 | B17: - | C17: =IF(A17=V17,X17,V17) -> 304.21 | D17: = | H17: =IF(Y17>AA17,Y17,AA17) -> 9815.91 | I17: - | J17: =IF(H17=Y17,AA17,Y17) -> 184.8 | K17: = | P17: =A17-C17 -> 6378.79 | S17: =H17-J17 -> 9631.11 | V17: =((INT(RAND()*(100000-999)+999))/100) -> 304.21 | W17: - | X17: =(INT(RAND()*(100000-999)+999)/10) -> 6683 | Y17: =((INT(RAND()*(1000000-999)+999))/100) -> 9815.91 | Z17: - | AA17: =(INT(RAND()*(5000-1000)+1000)/10) -> 184.8
A18: =IF(V18=ROUNDDOWN(V18,0),W18,V18) -> 7.9 | B18: * | C18: =(INT(RAND()*(10000-1000)+1000))/100 -> 15.73 | D18: = | H18: =IF(X18=ROUNDDOWN(X18,0),Y18,X18) -> 50.7 | I18: * | J18: =IF(AA18=ROUNDDOWN(AA18,0),AB18,AA18) -> 4.6 | K18: = | P18: =A18*C18 -> 124.267 | S18: =H18*J18 -> 233.22 | V18: =(INT(RAND()*(100-10)+10))/10 -> 7.9 | W18: =(INT(RAND()*(100-10)+10))/10 -> 2.7 | X18: =(INT(RAND()*(1000-100)+100))/10 -> 50.7 | Y18: =(INT(RAND()*(1000-100)+100))/10 -> 78.9 | AA18: =(INT(RAND()*(100-10)+10))/10 -> 4.6 | AB18: =(INT(RAND()*(100-10)+10))/10 -> 5.2
A19: =IF(V19=ROUNDDOWN(V19,0),W19,V19) -> 99377.2 | B19: + | C19: =(INT(RAND()*(50000-1000)+1000))/100 -> 278.04 | D19: = | H19: =(INT(RAND()*(1000000-999)+999))/100 -> 4430.47 | I19: + | J19: =IF(Y19=ROUNDDOWN(Y19,0),Z19,Y19) -> 230.3 | K19: = | P19: =A19+C19 -> 99655.24 | S19: =H19+J19 -> 4660.77 | V19: =(INT(RAND()*(1000000-999)+999))/10 -> 99377.2 | W19: =(INT(RAND()*(1000000-999)+999))/10 -> 16443.3 | Y19: =(INT(RAND()*(5000-100)+100))/10 -> 230.3 | Z19: =(INT(RAND()*(5000-100)+100))/10 -> 387.7
A20: =P20*C20 -> 4964.26 | B20: : | C20: =IF(V20=ROUNDDOWN(V20,0),W20,V20) -> 11.8 | D20: = | H20: =S20*J20 -> 2832.33 | I20: : | J20: =IF(Y20=ROUNDDOWN(Y20,0),Z20,Y20) -> 5.7 | K20: = | P20: =(INT(RAND()*((11000-30)+30)))/10 -> 420.7 | S20: =(INT(RAND()*((11000-30)+30)))/10 -> 496.9 | V20: =(INT(RAND()*(120-30)+30))/10 -> 11.8 | W20: =(INT(RAND()*(120-30)+30))/10 -> 9 | Y20: =(INT(RAND()*(120-30)+30))/10 -> 4 | Z20: =(INT(RAND()*(120-30)+30))/10 -> 5.7
A21: =IF(V21>X21,V21,X21) -> 3322 | B21: - | C21: =IF(A21=V21,X21,V21) -> 557.67 | D21: = | H21: =IF(Y21>AA21,Y21,AA21) -> 8933.32 | I21: - | J21: =IF(H21=Y21,AA21,Y21) -> 131.3 | K21: = | P21: =A21-C21 -> 2764.33 | S21: =H21-J21 -> 8802.02 | V21: =((INT(RAND()*(100000-999)+999))/100) -> 557.67 | W21: - | X21: =(INT(RAND()*(100000-999)+999)/10) -> 3322 | Y21: =((INT(RAND()*(1000000-999)+999))/100) -> 8933.32 | Z21: - | AA21: =(INT(RAND()*(5000-1000)+1000)/10) -> 131.3
A22: =IF(V22=ROUNDDOWN(V22,0),W22,V22) -> 5.6 | B22: * | C22: =(INT(RAND()*(10000-1000)+1000))/100 -> 41.87 | D22: = | H22: =IF(X22=ROUNDDOWN(X22,0),Y22,X22) -> 12.8 | I22: * | J22: =IF(AA22=ROUNDDOWN(AA22,0),AB22,AA22) -> 3.5 | K22: = | P22: =A22*C22 -> 234.472 | S22: =H22*J22 -> 44.8 | V22: =(INT(RAND()*(100-10)+10))/10 -> 5.6 | W22: =(INT(RAND()*(100-10)+10))/10 -> 2.4 | X22: =(INT(RAND()*(1000-100)+100))/10 -> 12.8 | Y22: =(INT(RAND()*(1000-100)+100))/10 -> 55.6 | AA22: =(INT(RAND()*(100-10)+10))/10 -> 3.5 | AB22: =(INT(RAND()*(100-10)+10))/10 -> 2.7
A23: =IF(V23=ROUNDDOWN(V23,0),W23,V23) -> 7221.8 | B23: + | C23: =(INT(RAND()*(50000-1000)+1000))/100 -> 105.8 | D23: = | H23: =(INT(RAND()*(1000000-999)+999))/100 -> 4239.47 | I23: + | J23: =IF(Y23=ROUNDDOWN(Y23,0),Z23,Y23) -> 85.3 | K23: = | P23: =A23+C23 -> 7327.6 | S23: =H23+J23 -> 4324.77 | V23: =(INT(RAND()*(1000000-999)+999))/10 -> 7221.8 | W23: =(INT(RAND()*(1000000-999)+999))/10 -> 88415 | Y23: =(INT(RAND()*(5000-100)+100))/10 -> 171 | Z23: =(INT(RAND()*(5000-100)+100))/10 -> 85.3
A24: =P24*C24 -> 8145.09 | B24: : | C24: =IF(V24=ROUNDDOWN(V24,0),W24,V24) -> 9.7 | D24: = | H24: =S24*J24 -> 2479.5 | I24: : | J24: =IF(Y24=ROUNDDOWN(Y24,0),Z24,Y24) -> 5.8 | K24: = | P24: =(INT(RAND()*((11000-30)+30)))/10 -> 839.7 | S24: =(INT(RAND()*((11000-30)+30)))/10 -> 427.5 | V24: =(INT(RAND()*(120-30)+30))/10 -> 9.7 | W24: =(INT(RAND()*(120-30)+30))/10 -> 9 | Y24: =(INT(RAND()*(120-30)+30))/10 -> 5.8 | Z24: =(INT(RAND()*(120-30)+30))/10 -> 11.6
A25: =IF(V25>X25,V25,X25) -> 1428 | B25: - | C25: =IF(A25=V25,X25,V25) -> 545.32 | D25: = | H25: =IF(Y25>AA25,Y25,AA25) -> 196.6 | I25: - | J25: =IF(H25=Y25,AA25,Y25) -> 106.2 | K25: = | P25: =A25-C25 -> 882.68 | S25: =H25-J25 -> 90.4 | V25: =((INT(RAND()*(100000-999)+999))/100) -> 545.32 | W25: - | X25: =(INT(RAND()*(100000-999)+999)/10) -> 1428 | Y25: =((INT(RAND()*(1000000-999)+999))/100) -> 196.6 | Z25: - | AA25: =(INT(RAND()*(5000-1000)+1000)/10) -> 106.2
A26: =IF(V26=ROUNDDOWN(V26,0),W26,V26) -> 9.5 | B26: * | C26: =(INT(RAND()*(10000-1000)+1000))/100 -> 66.93 | D26: = | H26: =IF(X26=ROUNDDOWN(X26,0),Y26,X26) -> 51.8 | I26: * | J26: =IF(AA26=ROUNDDOWN(AA26,0),AB26,AA26) -> 7.7 | K26: = | P26: =A26*C26 -> 635.835 | S26: =H26*J26 -> 398.86 | V26: =(INT(RAND()*(100-10)+10))/10 -> 9.5 | W26: =(INT(RAND()*(100-10)+10))/10 -> 1.7 | X26: =(INT(RAND()*(1000-100)+100))/10 -> 51.8 | Y26: =(INT(RAND()*(1000-100)+100))/10 -> 73.6 | AA26: =(INT(RAND()*(100-10)+10))/10 -> 7.7 | AB26: =(INT(RAND()*(100-10)+10))/10 -> 4.2
A27: =IF(V27=ROUNDDOWN(V27,0),W27,V27) -> 44950.1 | B27: + | C27: =(INT(RAND()*(50000-1000)+1000))/100 -> 412.52 | D27: = | H27: =(INT(RAND()*(1000000-999)+999))/100 -> 8804.29 | I27: + | J27: =IF(Y27=ROUNDDOWN(Y27,0),Z27,Y27) -> 279.6 | K27: = | P27: =A27+C27 -> 45362.62 | S27: =H27+J27 -> 9083.89 | V27: =(INT(RAND()*(1000000-999)+999))/10 -> 44950.1 | W27: =(INT(RAND()*(1000000-999)+999))/10 -> 35351.4 | Y27: =(INT(RAND()*(5000-100)+100))/10 -> 279.6 | Z27: =(INT(RAND()*(5000-100)+100))/10 -> 125
A28: =P28*C28 -> 2956.3 | B28: : | C28: =IF(V28=ROUNDDOWN(V28,0),W28,V28) -> 9.4 | D28: = | H28: =S28*J28 -> 1503.48 | I28: : | J28: =IF(Y28=ROUNDDOWN(Y28,0),Z28,Y28) -> 10.2 | K28: = | P28: =(INT(RAND()*((11000-30)+30)))/10 -> 314.5 | S28: =(INT(RAND()*((11000-30)+30)))/10 -> 147.4 | V28: =(INT(RAND()*(120-30)+30))/10 -> 9.4 | W28: =(INT(RAND()*(120-30)+30))/10 -> 3.9 | Y28: =(INT(RAND()*(120-30)+30))/10 -> 10.2 | Z28: =(INT(RAND()*(120-30)+30))/10 -> 5.9

Sheet 6d
A1: Rechnen mit Brüchen
A2: Name: | K2: ="Nr."&INT(RAND()*(100000-10000)+10000) -> Nr.57865 | Q2: =K2 -> Nr.57865
A4: =INT(RAND()*(10-1)+1) -> 8 | B4: + | C4: =INT(RAND()*(10-1)+1) -> 9 | D4: = | G4: =IF((U4/U5)>(W4/W5),U4,W4) -> 9 | H4: - | I4: =IF(G4=U4,W4,U4) -> 3 | J4: = | N4: =(A4/A5)+(C4/C5) -> 5.8 | Q4: =(G4/G5)-(I4/I5) -> 0.4 | U4: =INT(RAND()*(10-1)+1) -> 9 | V4: - | W4: =INT(RAND()*(10-1)+1) -> 3
A5: =INT(RAND()*(10-2)+2) -> 2 | C5: =INT(RAND()*(10-2)+2) -> 5 | G5: =IF((U4/U5)>(W4/W5),U5,W5) -> 9 | I5: =IF(G5=U5,W5,U5) -> 5 | U5: =INT(RAND()*(10-2)+2) -> 9 | W5: =INT(RAND()*(10-2)+2) -> 5
A7: =INT(RAND()*(10-1)+1) -> 4 | B7: + | C7: =INT(RAND()*(10-1)+1) -> 9 | D7: = | G7: =IF((U7/U8)>(W7/W8),U7,W7) -> 7 | H7: - | I7: =IF(G7=U7,W7,U7) -> 1 | J7: = | N7: =(A7/A8)+(C7/C8) -> 1.925 | Q7: =(G7/G8)-(I7/I8) -> 1.066666667 | U7: =INT(RAND()*(10-1)+1) -> 1 | V7: - | W7: =INT(RAND()*(10-1)+1) -> 7
A8: =INT(RAND()*(10-2)+2) -> 5 | C8: =INT(RAND()*(10-2)+2) -> 8 | G8: =IF((U7/U8)>(W7/W8),U8,W8) -> 5 | I8: =IF(G8=U8,W8,U8) -> 3 | U8: =INT(RAND()*(10-2)+2) -> 3 | W8: =INT(RAND()*(10-2)+2) -> 5
A10: =INT(RAND()*(10-1)+1) -> 7 | B10: + | C10: =INT(RAND()*(10-1)+1) -> 8 | D10: = | G10: =IF((U10/U11)>(W10/W11),U10,W10) -> 9 | H10: - | I10: =IF(G10=U10,W10,U10) -> 9 | J10: = | N10: =(A10/A11)+(C10/C11) -> 4.5 | Q10: =(G10/G11)-(I10/I11) -> 3.5 | U10: =INT(RAND()*(10-1)+1) -> 9 | V10: - | W10: =INT(RAND()*(10-1)+1) -> 9
A11: =INT(RAND()*(10-2)+2) -> 2 | C11: =INT(RAND()*(10-2)+2) -> 8 | G11: =IF((U10/U11)>(W10/W11),U11,W11) -> 2 | I11: =IF(G11=U11,W11,U11) -> 9 | U11: =INT(RAND()*(10-2)+2) -> 2 | W11: =INT(RAND()*(10-2)+2) -> 9
A13: =INT(RAND()*(10-1)+1) -> 6 | B13: + | C13: =INT(RAND()*(10-1)+1) -> 5 | D13: = | G13: =IF((U13/U14)>(W13/W14),U13,W13) -> 3 | H13: - | I13: =IF(G13=U13,W13,U13) -> 3 | J13: = | N13: =(A13/A14)+(C13/C14) -> 1.375 | Q13: =(G13/G14)-(I13/I14) -> 0.1666666667 | U13: =INT(RAND()*(10-1)+1) -> 3 | V13: - | W13: =INT(RAND()*(10-1)+1) -> 3
A14: =INT(RAND()*(10-2)+2) -> 8 | C14: =INT(RAND()*(10-2)+2) -> 8 | G14: =IF((U13/U14)>(W13/W14),U14,W14) -> 6 | I14: =IF(G14=U14,W14,U14) -> 9 | U14: =INT(RAND()*(10-2)+2) -> 9 | W14: =INT(RAND()*(10-2)+2) -> 6
A16: =INT(RAND()*(10-1)+1) -> 5 | B16: + | C16: =INT(RAND()*(10-1)+1) -> 1 | D16: = | G16: =IF((U16/U17)>(W16/W17),U16,W16) -> 8 | H16: - | I16: =IF(G16=U16,W16,U16) -> 1 | J16: = | N16: =(A16/A17)+(C16/C17) -> 0.7361111111 | Q16: =(G16/G17)-(I16/I17) -> 1.457142857 | U16: =INT(RAND()*(10-1)+1) -> 8 | V16: - | W16: =INT(RAND()*(10-1)+1) -> 1
A17: =INT(RAND()*(10-2)+2) -> 8 | C17: =INT(RAND()*(10-2)+2) -> 9 | G17: =IF((U16/U17)>(W16/W17),U17,W17) -> 5 | I17: =IF(G17=U17,W17,U17) -> 7 | U17: =INT(RAND()*(10-2)+2) -> 5 | W17: =INT(RAND()*(10-2)+2) -> 7
A19: =INT(RAND()*(10-1)+1) -> 5 | B19: + | C19: =INT(RAND()*(10-1)+1) -> 4 | D19: = | G19: =IF((U19/U20)>(W19/W20),U19,W19) -> 7 | H19: - | I19: =IF(G19=U19,W19,U19) -> 4 | J19: = | N19: =(A19/A20)+(C19/C20) -> 2 | Q19: =(G19/G20)-(I19/I20) -> 0.06666666667 | U19: =INT(RAND()*(10-1)+1) -> 4 | V19: - | W19: =INT(RAND()*(10-1)+1) -> 7
A20: =INT(RAND()*(10-2)+2) -> 5 | C20: =INT(RAND()*(10-2)+2) -> 4 | G20: =IF((U19/U20)>(W19/W20),U20,W20) -> 5 | I20: =IF(G20=U20,W20,U20) -> 3 | U20: =INT(RAND()*(10-2)+2) -> 3 | W20: =INT(RAND()*(10-2)+2) -> 5
A22: =INT(RAND()*(10-1)+1) -> 4 | B22: + | C22: =INT(RAND()*(10-1)+1) -> 4 | D22: = | G22: =IF((U22/U23)>(W22/W23),U22,W22) -> 9 | H22: - | I22: =IF(G22=U22,W22,U22) -> 4 | J22: = | N22: =(A22/A23)+(C22/C23) -> 3 | Q22: =(G22/G23)-(I22/I23) -> 0.9285714286 | U22: =INT(RAND()*(10-1)+1) -> 4 | V22: - | W22: =INT(RAND()*(10-1)+1) -> 9
A23: =INT(RAND()*(10-2)+2) -> 4 | C23: =INT(RAND()*(10-2)+2) -> 2 | G23: =IF((U22/U23)>(W22/W23),U23,W23) -> 6 | I23: =IF(G23=U23,W23,U23) -> 7 | U23: =INT(RAND()*(10-2)+2) -> 7 | W23: =INT(RAND()*(10-2)+2) -> 6
A25: =INT(RAND()*(10-1)+1) -> 8 | B25: + | C25: =INT(RAND()*(10-1)+1) -> 8 | D25: = | G25: =IF((U25/U26)>(W25/W26),U25,W25) -> 8 | H25: - | I25: =IF(G25=U25,W25,U25) -> 3 | J25: = | N25: =(A25/A26)+(C25/C26) -> 5.6 | Q25: =(G25/G26)-(I25/I26) -> 1.166666667 | U25: =INT(RAND()*(10-1)+1) -> 3 | V25: - | W25: =INT(RAND()*(10-1)+1) -> 8
A26: =INT(RAND()*(10-2)+2) -> 5 | C26: =INT(RAND()*(10-2)+2) -> 2 | G26: =IF((U25/U26)>(W25/W26),U26,W26) -> 3 | I26: =IF(G26=U26,W26,U26) -> 2 | U26: =INT(RAND()*(10-2)+2) -> 2 | W26: =INT(RAND()*(10-2)+2) -> 3
A28: =INT(RAND()*(10-1)+1) -> 6 | B28: + | C28: =INT(RAND()*(10-1)+1) -> 8 | D28: = | G28: =IF((U28/U29)>(W28/W29),U28,W28) -> 7 | H28: - | I28: =IF(G28=U28,W28,U28) -> 2 | J28: = | N28: =(A28/A29)+(C28/C29) -> 2.457142857 | Q28: =(G28/G29)-(I28/I29) -> 0.75 | U28: =INT(RAND()*(10-1)+1) -> 7 | V28: - | W28: =INT(RAND()*(10-1)+1) -> 2
A29: =INT(RAND()*(10-2)+2) -> 7 | C29: =INT(RAND()*(10-2)+2) -> 5 | G29: =IF((U28/U29)>(W28/W29),U29,W29) -> 7 | I29: =IF(G29=U29,W29,U29) -> 8 | U29: =INT(RAND()*(10-2)+2) -> 7 | W29: =INT(RAND()*(10-2)+2) -> 8
A31: =INT(RAND()*(10-1)+1) -> 5 | B31: + | C31: =INT(RAND()*(10-1)+1) -> 2 | D31: = | G31: =IF((U31/U32)>(W31/W32),U31,W31) -> 9 | H31: - | I31: =IF(G31=U31,W31,U31) -> 1 | J31: = | N31: =(A31/A32)+(C31/C32) -> 1.166666667 | Q31: =(G31/G32)-(I31/I32) -> 0.5 | U31: =INT(RAND()*(10-1)+1) -> 1 | V31: - | W31: =INT(RAND()*(10-1)+1) -> 9
A32: =INT(RAND()*(10-2)+2) -> 6 | C32: =INT(RAND()*(10-2)+2) -> 6 | G32: =IF((U31/U32)>(W31/W32),U32,W32) -> 9 | I32: =IF(G32=U32,W32,U32) -> 2 | U32: =INT(RAND()*(10-2)+2) -> 2 | W32: =INT(RAND()*(10-2)+2) -> 9
A34: =INT(RAND()*(10-1)+1) -> 6 | B34: + | C34: =INT(RAND()*(10-1)+1) -> 8 | D34: = | G34: =IF((U34/U35)>(W34/W35),U34,W34) -> 8 | H34: - | I34: =IF(G34=U34,W34,U34) -> 5 | J34: = | N34: =(A34/A35)+(C34/C35) -> 5 | Q34: =(G34/G35)-(I34/I35) -> 0.375 | U34: =INT(RAND()*(10-1)+1) -> 8 | V34: - | W34: =INT(RAND()*(10-1)+1) -> 5
A35: =INT(RAND()*(10-2)+2) -> 2 | C35: =INT(RAND()*(10-2)+2) -> 4 | G35: =IF((U34/U35)>(W34/W35),U35,W35) -> 8 | I35: =IF(G35=U35,W35,U35) -> 8 | U35: =INT(RAND()*(10-2)+2) -> 8 | W35: =INT(RAND()*(10-2)+2) -> 8
A37: =INT(RAND()*(10-1)+1) -> 1 | B37: + | C37: =INT(RAND()*(10-1)+1) -> 3 | D37: = | G37: =IF((U37/U38)>(W37/W38),U37,W37) -> 3 | H37: - | I37: =IF(G37=U37,W37,U37) -> 3 | J37: = | N37: =(A37/A38)+(C37/C38) -> 1.333333333 | Q37: =(G37/G38)-(I37/I38) -> 1.166666667 | U37: =INT(RAND()*(10-1)+1) -> 3 | V37: - | W37: =INT(RAND()*(10-1)+1) -> 3
A38: =INT(RAND()*(10-2)+2) -> 3 | C38: =INT(RAND()*(10-2)+2) -> 3 | G38: =IF((U37/U38)>(W37/W38),U38,W38) -> 2 | I38: =IF(G38=U38,W38,U38) -> 9 | U38: =INT(RAND()*(10-2)+2) -> 2 | W38: =INT(RAND()*(10-2)+2) -> 9

Sheet 6e
C1: Masseinheitenmix | O1: =C1 -> Masseinheitenmix
C2: Name: | H2: ="Nr. "&INT(RAND()*(10000-1000)+1000)&" " -> Nr. 2199 | K2: =H2 -> Nr. 2199 | O2: Name: | T2: ="Nr. "&INT(RAND()*(10000-1000)+1000)&" " -> Nr. 5689 | W2: =T2 -> Nr. 5689
A4: 1 | B4: =INT(RAND()*(100-1)+1) -> 6 | C4: =INT(RAND()*(10000-1000)+1000) -> 2480 | D4: cl | E4: = | G4: l | J4: =C4*VLOOKUP(D4,$Z$24:$AQ$40,VLOOKUP(G4,$Z$24:$AA$40,2,0),0) -> 24.8 | K4: =G4 -> l | O4: =INT(RAND()*(10000-1000)+1000) -> 9923 | P4: cl | Q4: = | S4: l | V4: =O4*VLOOKUP(P4,$Z$24:$AQ$40,VLOOKUP(S4,$Z$24:$AA$40,2,0),0) -> 99.23 | W4: =S4 -> l
A5: 17 | B5: 50 | C5: =INT(RAND()*(1000-10)+10)/10 -> 36.8 | D5: km | E5: = | G5: m | J5: 36800 | K5: m | O5: =INT(RAND()*(1000-10)+10)/10 -> 42.7 | P5: km | Q5: = | S5: m | V5: 42700 | W5: m
A6: 16 | B6: 69 | C6: =INT(RAND()*(1000-100)+100)/10 -> 85.8 | D6: m | E6: = | G6: cm | J6: 8580 | K6: cm | O6: =INT(RAND()*(1000-100)+100)/10 -> 39.5 | P6: m | Q6: = | S6: mm | V6: 39500 | W6: mm
A7: 13 | B7: 14 | C7: =INT(RAND()*(10000-1000)+1000) -> 6356 | D7: m | E7: = | G7: km | J7: 6.356 | K7: km | O7: =INT(RAND()*(10000-1000)+1000) -> 6622 | P7: m | Q7: = | S7: km | V7: 6.622 | W7: km
A8: 11 | B8: 35 | C8: =INT(RAND()*(1000-100)+100) -> 284 | D8: kg | E8: = | G8: g | J8: 284000 | K8: g | O8: =INT(RAND()*(1000-100)+100) -> 946 | P8: kg | Q8: = | S8: g | V8: 946000 | W8: g
A9: 2 | B9: 55 | C9: =INT(RAND()*(1000-10)+10)/10 -> 34.6 | D9: l | E9: = | G9: ml | J9: 34600 | K9: ml | O9: =INT(RAND()*(1000-10)+10)/10 -> 15 | P9: l | Q9: = | S9: ml | V9: 15000 | W9: ml
A10: 19 | B10: 26 | C10: =INT(RAND()*(1000-10)+10)/10 -> 6.2 | D10: km | E10: = | G10: m | J10: 6200 | K10: m | O10: =INT(RAND()*(1000-10)+10)/10 -> 2.8 | P10: km | Q10: = | S10: m | V10: 2800 | W10: m
A11: 3 | B11: 47 | C11: =INT(RAND()*(10000-1000)+1000) -> 2951 | D11: l | E11: = | G11: hl | J11: 29.51 | K11: hl | O11: =INT(RAND()*(10000-1000)+1000) -> 4944 | P11: l | Q11: = | S11: hl | V11: 49.44 | W11: hl
A12: 6 | B12: 59 | C12: =INT(RAND()*(1000-100)+100)*1000 -> 882000 | D12: g | E12: = | G12: kg | J12: 882 | K12: kg | O12: =INT(RAND()*(1000-100)+100)*100 -> 39600 | P12: g | Q12: = | S12: kg | V12: 39.6 | W12: kg
A13: 9 | B13: 57 | C13: =INT(RAND()*(1000-100)+100)*100 -> 64900 | D13: kg | E13: = | G13: t | J13: 64.9 | K13: t | O13: =INT(RAND()*(1000-100)+100)*100 -> 22200 | P13: kg | Q13: = | S13: t | V13: 22.2 | W13: t
A14: 5 | B14: 80 | C14: =INT(RAND()*(1000-100)+100)/10 -> 41.6 | D14: l | E14: = | G14: dl | J14: 416 | K14: dl | O14: =INT(RAND()*(999-100)+100)/10 -> 10.7 | P14: l | Q14: = | S14: dl | V14: 107 | W14: dl
A15: 7 | B15: 41 | C15: =INT(RAND()*(1000-9)+9)/10 -> 72.7 | D15: t | E15: = | G15: kg | J15: 72700 | K15: kg | O15: =INT(RAND()*(1000-9)+9)/10 -> 76.2 | P15: t | Q15: = | S15: kg | V15: 76200 | W15: kg
A16: 18 | B16: 24 | C16: =INT(RAND()*(100-10)+10)/10 -> 9.4 | D16: km | E16: = | G16: mm | J16: 9400000 | K16: mm | O16: =INT(RAND()*(100-10)+10)/10 -> 6.3 | P16: km | Q16: = | S16: mm | V16: 6300000 | W16: mm
A17: 8 | B17: 61 | C17: =INT(RAND()*(100-10)+10)/10 -> 9.7 | D17: kg | E17: = | G17: g | J17: 9700 | K17: g | O17: =INT(RAND()*(100-10)+10)/10 -> 4 | P17: kg | Q17: = | S17: g | V17: 4000 | W17: g
A18: 15 | B18: 88 | C18: =INT(RAND()*(10000-1000)+1000) -> 1956 | D18: g | E18: = | G18: kg | J18: 1.956 | K18: kg | O18: =INT(RAND()*(10000-1000)+1000) -> 4613 | P18: m | Q18: = | S18: km | V18: 4.613 | W18: km
A19: 14 | B19: 90 | C19: =INT(RAND()*(1000-100)+100)/10 -> 48.3 | D19: m | E19: = | G19: mm | J19: 48300 | K19: mm | O19: =INT(RAND()*(1000-100)+100)/10 -> 79.9 | P19: m | Q19: = | S19: mm | V19: 79900 | W19: mm
A20: 4 | B20: 87 | C20: =INT(RAND()*(1000-10)+10)*100 -> 29200 | D20: ml | E20: = | G20: l | J20: 29.2 | K20: l | O20: =INT(RAND()*(1000-100)+100)*10 -> 5050 | P20: ml | Q20: = | S20: l | V20: 5.05 | W20: l
A21: 12 | B21: 84 | C21: =INT(RAND()*(10000-1000)+1000) -> 1428 | D21: dm | E21: = | G21: m | J21: 142.8 | K21: m | O21: =INT(RAND()*(10000-1000)+1000) -> 6186 | P21: dm | Q21: = | S21: m | V21: 618.6 | W21: m
A22: 10 | B22: 29 | C22: =INT(RAND()*(1000-100)+100)*100 -> 47800 | D22: g | E22: = | G22: kg | J22: 47.8 | K22: kg | O22: =INT(RAND()*(1000-100)+100)*100 -> 94200 | P22: g | Q22: = | S22: kg | V22: 94.2 | W22: kg
AB23: 10 | AC23: 10 | AD23: 10 | AE23: 1000 | AG23: 1000 | AH23: 1000 | AJ23: 10 | AK23: 10 | AL23: 10 | AM23: 100
AB24: mm | AC24: cm | AD24: dm | AE24: m | AF24: km | AG24: g | AH24: kg | AI24: t | AJ24: ml | AK24: cl | AL24: dl | AM24: l | AN24: hl
Z25: mm | AA25: 3 | AB25: 1 | AC25: =AB25/AB$23 -> 0.1 | AD25: 0.01 | AE25: 0.001 | AF25: 1e-06
Z26: cm | AA26: 4 | AB26: 10 | AC26: 1 | AD26: 0.1 | AE26: 0.01 | AF26: 1e-05
Z27: dm | AA27: 5 | AB27: 100 | AC27: 10 | AD27: 1 | AE27: 0.1 | AF27: 0.0001
Z28: m | AA28: 6 | AB28: 1000 | AC28: 100 | AD28: 10 | AE28: 1 | AF28: 0.001
Z29: km | AA29: 7 | AB29: 1000000 | AC29: 100000 | AD29: 10000 | AE29: 1000 | AF29: 1
Z30: g | AA30: 8 | AG30: 1 | AH30: =AG30/AG$23 -> 0.001 | AI30: 1e-06
Z31: kg | AA31: 9 | AG31: 1000 | AH31: 1 | AI31: 0.001
Z32: t | AA32: 10 | AG32: 1000000 | AH32: 1000 | AI32: 1
Z33: ml | AA33: 11 | AJ33: 1 | AK33: =AJ33/AJ$23 -> 0.1 | AL33: 0.01 | AM33: 0.001 | AN33: 1e-05
Z34: cl | AA34: 12 | AJ34: 10 | AK34: 1 | AL34: 0.1 | AM34: 0.01 | AN34: 0.0001
Z35: dl | AA35: 13 | AJ35: 100 | AK35: 10 | AL35: 1 | AM35: 0.1 | AN35: 0.001
Z36: l | AA36: 14 | AJ36: 1000 | AK36: 100 | AL36: 10 | AM36: 1 | AN36: 0.01
Z37: hl | AA37: 15 | AJ37: 100000 | AK37: 10000 | AL37: 1000 | AM37: 100 | AN37: 1
AA38: 16
AA39: 17
AA40: 18

Sheet 6f
C1: Längen | O1: =C1 -> Längen
C2: Name: | H2: ="Nr. "&INT(RAND()*(10000-1000)+1000)&" " -> Nr. 5101 | K2: =H2 -> Nr. 5101 | O2: Name: | T2: ="Nr. "&INT(RAND()*(10000-1000)+1000)&" " -> Nr. 3923 | W2: =T2 -> Nr. 3923
A4: 3 | B4: =INT(RAND()*(100-1)+1) -> 67 | C4: =INT(RAND()*(10000-1000)+1000) -> 1035 | D4: mm | E4: = | G4: m | J4: =C4*VLOOKUP(D4,$Z$24:$AP$39,VLOOKUP(G4,$Z$24:$AA$39,2,0),0) -> 1.035 | K4: =G4 -> m | O4: =INT(RAND()*(10000-1000)+1000) -> 5932 | P4: mm | Q4: = | S4: m | V4: =O4*VLOOKUP(P4,$Z$24:$AP$39,VLOOKUP(S4,$Z$24:$AA$39,2,0),0) -> 5.932 | W4: =S4 -> m
A5: 4 | B5: 59 | C5: =INT(RAND()*(10000-100)+100) -> 4910 | D5: mm | E5: = | G5: cm | J5: 491 | K5: cm | O5: =INT(RAND()*(10000-100)+100) -> 8714 | P5: mm | Q5: = | S5: cm | V5: 871.4 | W5: cm
A6: 13 | B6: 53 | C6: =INT(RAND()*(10000-1000)+1000) -> 8478 | D6: m | E6: = | G6: km | J6: 8.478 | K6: km | O6: =INT(RAND()*(10000-1000)+1000) -> 9440 | P6: m | Q6: = | S6: km | V6: 9.44 | W6: km
A7: 2 | B7: 68 | C7: =INT(RAND()*(10000-100)+100) -> 3749 | D7: mm | E7: = | G7: cm | J7: 374.9 | K7: cm | O7: =INT(RAND()*(10000-100)+100) -> 6399 | P7: mm | Q7: = | S7: cm | V7: 639.9 | W7: cm
A8: 14 | B8: 64 | C8: =INT(RAND()*(1000-100)+100)/10 -> 67.4 | D8: m | E8: = | G8: mm | J8: 67400 | K8: mm | O8: =INT(RAND()*(1000-100)+100)/10 -> 82.4 | P8: m | Q8: = | S8: mm | V8: 82400 | W8: mm
A9: 5 | B9: 27 | C9: =INT(RAND()*(100000-100)+100)/10 -> 3051.7 | D9: cm | E9: = | G9: m | J9: 30.517 | K9: m | O9: =INT(RAND()*(100000-100)+100)/10 -> 5314.5 | P9: cm | Q9: = | S9: m | V9: 53.145 | W9: m
A10: 18 | B10: 62 | C10: =INT(RAND()*(100-10)+10)/10 -> 9.6 | D10: km | E10: = | G10: mm | J10: 9600000 | K10: mm | O10: =INT(RAND()*(100-10)+10)/10 -> 4.4 | P10: km | Q10: = | S10: mm | V10: 4400000 | W10: mm
A11: 16 | B11: 34 | C11: =INT(RAND()*(1000-100)+100)/10 -> 10.6 | D11: m | E11: = | G11: mm | J11: 10600 | K11: mm | O11: =INT(RAND()*(1000-100)+100)/10 -> 33.1 | P11: m | Q11: = | S11: mm | V11: 33100 | W11: mm
A12: 19 | B12: 72 | C12: =INT(RAND()*(1000-10)+10)/10 -> 73.8 | D12: km | E12: = | G12: m | J12: 73800 | K12: m | O12: =INT(RAND()*(1000-10)+10)/10 -> 22.8 | P12: km | Q12: = | S12: m | V12: 22800 | W12: m
A13: 15 | B13: 8 | C13: =INT(RAND()*(10000-1000)+1000) -> 2257 | D13: m | E13: = | G13: km | J13: 2.257 | K13: km | O13: =INT(RAND()*(10000-1000)+1000) -> 7252 | P13: m | Q13: = | S13: km | V13: 7.252 | W13: km
A14: 8 | B14: 57 | C14: =INT(RAND()*(100000-100)+100)/10 -> 3966.1 | D14: cm | E14: = | G14: dm | J14: 396.61 | K14: dm | O14: =INT(RAND()*(100000-100)+100)/10 -> 972 | P14: cm | Q14: = | S14: dm | V14: 97.2 | W14: dm
A15: 17 | B15: 80 | C15: =INT(RAND()*(1000-10)+10)/10 -> 39.6 | D15: km | E15: = | G15: m | J15: 39600 | K15: m | O15: =INT(RAND()*(1000-10)+10)/10 -> 47 | P15: km | Q15: = | S15: m | V15: 47000 | W15: m
A16: 1 | B16: 52 | C16: =INT(RAND()*(10000-1000)+1000) -> 6718 | D16: mm | E16: = | G16: m | J16: 6.718 | K16: m | O16: =INT(RAND()*(10000-1000)+1000) -> 1049 | P16: mm | Q16: = | S16: m | V16: 1.049 | W16: m
A17: 11 | B17: 5 | C17: =INT(RAND()*(10000-1000)+1000)/10 -> 744.9 | D17: dm | E17: = | G17: mm | J17: 74490 | K17: mm | O17: =INT(RAND()*(10000-1000)+1000)/10 -> 575.7 | P17: dm | Q17: = | S17: mm | V17: 57570 | W17: mm
A18: 6 | B18: 50 | C18: =INT(RAND()*(100000-100)+100)/10 -> 5493 | D18: cm | E18: = | G18: dm | J18: 549.3 | K18: dm | O18: =INT(RAND()*(100000-100)+100)/10 -> 5883.1 | P18: cm | Q18: = | S18: dm | V18: 588.31 | W18: dm
A19: 9 | B19: 35 | C19: =INT(RAND()*(10000-1000)+1000)/10 -> 101.6 | D19: dm | E19: = | G19: mm | J19: 10160 | K19: mm | O19: =INT(RAND()*(10000-1000)+1000)/10 -> 918.3 | P19: dm | Q19: = | S19: mm | V19: 91830 | W19: mm
A20: 7 | B20: 22 | C20: =INT(RAND()*(100000-100)+100)/10 -> 4291.7 | D20: cm | E20: = | G20: m | J20: 42.917 | K20: m | O20: =INT(RAND()*(100000-100)+100)/10 -> 1666.7 | P20: cm | Q20: = | S20: m | V20: 16.667 | W20: m
A21: 12 | B21: 61 | C21: =INT(RAND()*(10000-1000)+1000) -> 5215 | D21: dm | E21: = | G21: m | J21: 521.5 | K21: m | O21: =INT(RAND()*(10000-1000)+1000) -> 1748 | P21: dm | Q21: = | S21: m | V21: 174.8 | W21: m
A22: 10 | B22: 4 | C22: =INT(RAND()*(10000-1000)+1000) -> 2603 | D22: dm | E22: = | G22: m | J22: 260.3 | K22: m | O22: =INT(RAND()*(10000-1000)+1000) -> 6807 | P22: dm | Q22: = | S22: m | V22: 680.7 | W22: m
AB23: 10 | AC23: 10 | AD23: 10 | AE23: 1000 | AG23: =10*10 -> 100 | AH23: =10*10 -> 100 | AI23: =10*10 -> 100 | AJ23: =1000*1000 -> 1000000 | AL23: =10*10*10 -> 1000 | AM23: =10*10*10 -> 1000 | AN23: =10*10*10 -> 1000 | AO23: =1000*1000*1000 -> 1000000000
AB24: mm | AC24: cm | AD24: dm | AE24: m | AF24: km | AG24: mm2 | AH24: cm2 | AI24: dm2 | AJ24: m2 | AK24: km2 | AL24: mm3 | AM24: cm3 | AN24: dm3 | AO24: m3 | AP24: km3
Z25: mm | AA25: 3 | AB25: 1 | AC25: =AB25/AB$23 -> 0.1 | AD25: 0.01 | AE25: 0.001 | AF25: 1e-06
Z26: cm | AA26: 4 | AB26: 10 | AC26: 1 | AD26: 0.1 | AE26: 0.01 | AF26: 1e-05
Z27: dm | AA27: 5 | AB27: 100 | AC27: 10 | AD27: 1 | AE27: 0.1 | AF27: 0.0001
Z28: m | AA28: 6 | AB28: 1000 | AC28: 100 | AD28: 10 | AE28: 1 | AF28: 0.001
Z29: km | AA29: 7 | AB29: 1000000 | AC29: 100000 | AD29: 10000 | AE29: 1000 | AF29: 1
Z30: mm2 | AA30: 8 | AG30: 1 | AH30: =AG30/AG$23 -> 0.01 | AI30: 0.0001 | AJ30: 1e-06 | AK30: 1e-12
Z31: cm2 | AA31: 9 | AG31: =AB26*AB26 -> 100 | AH31: 1 | AI31: 0.01 | AJ31: 0.0001 | AK31: 1e-10
Z32: dm2 | AA32: 10 | AG32: =AB27*AB27 -> 10000 | AH32: 100 | AI32: 1 | AJ32: 0.01 | AK32: 1e-08
Z33: m2 | AA33: 11 | AG33: =AB28*AB28 -> 1000000 | AH33: 10000 | AI33: 100 | AJ33: 1 | AK33: 1e-06
Z34: km2 | AA34: 12 | AG34: =AB29*AB29 -> 1000000000000 | AH34: 10000000000 | AI34: 100000000 | AJ34: 1000000 | AK34: 1
Z35: mm3 | AA35: 13 | AL35: 1 | AM35: =AL35/AL$23 -> 0.001 | AN35: 1e-06 | AO35: 1e-09 | AP35: 1e-18
Z36: cm3 | AA36: 14 | AL36: =AB26*AB26*AB26 -> 1000 | AM36: 1 | AN36: 0.001 | AO36: 1e-06 | AP36: 1e-15
Z37: dm3 | AA37: 15 | AL37: =AB27*AB27*AB27 -> 1000000 | AM37: 1000 | AN37: 1 | AO37: 0.001 | AP37: 1e-12
Z38: m3 | AA38: 16 | AL38: =AB28*AB28*AB28 -> 1000000000 | AM38: 1000000 | AN38: 1000 | AO38: 1 | AP38: 1e-09
Z39: km3 | AA39: 17 | AL39: =AB29*AB29*AB29 -> 1e+18 | AM39: 1000000000000000 | AN39: 1000000000000 | AO39: 1000000000 | AP39: 1

Sheet 6g
C1: Längen und Flächen | O1: =C1 -> Längen und Flächen
C2: Name: | H2: ="Nr. "&INT(RAND()*(10000-1000)+1000)&" " -> Nr. 3019 | K2: =H2 -> Nr. 3019 | O2: Name: | T2: ="Nr. "&INT(RAND()*(10000-1000)+1000)&" " -> Nr. 7069 | W2: =T2 -> Nr. 7069
A4: 1 | B4: =INT(RAND()*(100-1)+1) -> 52 | C4: =INT(RAND()*(10000-1000)+1000) -> 5788 | D4: mm | E4: = | G4: m | J4: =C4*VLOOKUP(D4,$Z$24:$AP$39,VLOOKUP(G4,$Z$24:$AA$39,2,0),0) -> 5.788 | K4: =G4 -> m | O4: =INT(RAND()*(10000-1000)+1000) -> 1860 | P4: mm | Q4: = | S4: m | V4: =O4*VLOOKUP(P4,$Z$24:$AP$39,VLOOKUP(S4,$Z$24:$AA$39,2,0),0) -> 1.86 | W4: =S4 -> m
A5: 2 | B5: 83 | C5: =INT(RAND()*(10000-100)+100) -> 2801 | D5: mm | E5: = | G5: cm | J5: 280.1 | K5: cm | O5: =INT(RAND()*(10000-100)+100) -> 904 | P5: mm | Q5: = | S5: cm | V5: 90.4 | W5: cm
A6: 3 | B6: 97 | C6: =INT(RAND()*(100000-100)+100)/10 -> 1036.3 | D6: cm | E6: = | G6: m | J6: 10.363 | K6: m | O6: =INT(RAND()*(100000-100)+100)/10 -> 2128.2 | P6: cm | Q6: = | S6: m | V6: 21.282 | W6: m
A7: 4 | B7: 34 | C7: =INT(RAND()*(100000-100)+100)/10 -> 8693.2 | D7: cm | E7: = | G7: dm | J7: 869.32 | K7: dm | O7: =INT(RAND()*(100000-100)+100)/10 -> 6653.2 | P7: cm | Q7: = | S7: dm | V7: 665.32 | W7: dm
A8: 5 | B8: 38 | C8: =INT(RAND()*(10000-1000)+1000)/10 -> 221 | D8: dm | E8: = | G8: mm | J8: 22100 | K8: mm | O8: =INT(RAND()*(10000-1000)+1000)/10 -> 726.5 | P8: dm | Q8: = | S8: mm | V8: 72650 | W8: mm
A9: 6 | B9: 98 | C9: =INT(RAND()*(10000-1000)+1000) -> 4912 | D9: dm | E9: = | G9: m | J9: 491.2 | K9: m | O9: =INT(RAND()*(10000-1000)+1000) -> 8442 | P9: dm | Q9: = | S9: m | V9: 844.2 | W9: m
A10: 7 | B10: 71 | C10: =INT(RAND()*(10000-1000)+1000) -> 1593 | D10: m | E10: = | G10: km | J10: 1.593 | K10: km | O10: =INT(RAND()*(10000-1000)+1000) -> 5488 | P10: m | Q10: = | S10: km | V10: 5.488 | W10: km
A11: 8 | B11: 55 | C11: =INT(RAND()*(1000-100)+100)/10 -> 89.3 | D11: m | E11: = | G11: mm | J11: 89300 | K11: mm | O11: =INT(RAND()*(1000-100)+100)/10 -> 24.8 | P11: m | Q11: = | S11: mm | V11: 24800 | W11: mm
A12: 9 | B12: 71 | C12: =INT(RAND()*(1000-10)+10)/10 -> 75.6 | D12: km | E12: = | G12: m | J12: 75600 | K12: m | O12: =INT(RAND()*(1000-10)+10)/10 -> 14.5 | P12: km | Q12: = | S12: m | V12: 14500 | W12: m
A13: 10 | B13: 86 | C13: =INT(RAND()*(100-10)+10)/10 -> 4.9 | D13: km | E13: = | G13: mm | J13: 4900000 | K13: mm | O13: =INT(RAND()*(100-10)+10)/10 -> 4.2 | P13: km | Q13: = | S13: mm | V13: 4200000 | W13: mm
A14: 11 | B14: 97 | C14: =INT(RAND()*(100-10)+10)*100 -> 8100 | D14: mm2 | E14: = | G14: cm2 | J14: 81 | K14: cm2 | O14: =INT(RAND()*(100-10)+10)*100 -> 5300 | P14: mm2 | Q14: = | S14: cm2 | V14: 53 | W14: cm2
A15: 12 | B15: 91 | C15: =INT(RAND()*(100-10)+10)*100000 -> 2100000 | D15: mm2 | E15: = | G15: m2 | J15: 2.1 | K15: m2 | O15: =INT(RAND()*(100-10)+10)*100000 -> 7300000 | P15: mm2 | Q15: = | S15: m2 | V15: 7.3 | W15: m2
A16: 13 | B16: 75 | C16: =INT(RAND()*(1000-100)+100)/10 -> 56.5 | D16: cm2 | E16: = | G16: mm2 | J16: 5650 | K16: mm2 | O16: =INT(RAND()*(1000-100)+100)/10 -> 71.6 | P16: cm2 | Q16: = | S16: mm2 | V16: 7160 | W16: mm2
A17: 14 | B17: 28 | C17: =INT(RAND()*(100-10)+10)*100000 -> 3900000 | D17: cm2 | E17: = | G17: m2 | J17: 390 | K17: m2 | O17: =INT(RAND()*(100-10)+10)*100000 -> 2800000 | P17: cm2 | Q17: = | S17: m2 | V17: 280 | W17: m2
A18: 15 | B18: 49 | C18: =INT(RAND()*(1000-100)+100)/10 -> 36.2 | D18: dm2 | E18: = | G18: cm2 | J18: 3620 | K18: cm2 | O18: =INT(RAND()*(1000-100)+100)/10 -> 54.2 | P18: dm2 | Q18: = | S18: cm2 | V18: 5420 | W18: cm2
A19: 16 | B19: 48 | C19: =INT(RAND()*(10000-1000)+1000) -> 4541 | D19: dm2 | E19: = | G19: m2 | J19: 45.41 | K19: m2 | O19: =INT(RAND()*(10000-1000)+1000) -> 8109 | P19: dm2 | Q19: = | S19: m2 | V19: 81.09 | W19: m2
A20: 17 | B20: 61 | C20: =INT(RAND()*(1000-10)+10)*10000 -> 8190000 | D20: m2 | E20: = | G20: km2 | J20: 8.19 | K20: km2 | O20: =INT(RAND()*(1000-10)+10)*10000 -> 6870000 | P20: m2 | Q20: = | S20: km2 | V20: 6.87 | W20: km2
A21: 18 | B21: 56 | C21: =INT(RAND()*(1000-100)+100)/10 -> 39.5 | D21: m2 | E21: = | G21: cm2 | J21: 395000 | K21: cm2 | O21: =INT(RAND()*(1000-100)+100)/10 -> 91.5 | P21: m2 | Q21: = | S21: cm2 | V21: 915000 | W21: cm2
A22: 19 | B22: 74 | C22: =INT(RAND()*(100-1)+1)/100 -> 0.1 | D22: km2 | E22: = | G22: m2 | J22: 100000 | K22: m2 | O22: =INT(RAND()*(100-1)+1)/100 -> 0.65 | P22: km2 | Q22: = | S22: m2 | V22: 650000 | W22: m2
AB23: 10 | AC23: 10 | AD23: 10 | AE23: 1000 | AG23: =10*10 -> 100 | AH23: =10*10 -> 100 | AI23: =10*10 -> 100 | AJ23: =1000*1000 -> 1000000 | AL23: =10*10*10 -> 1000 | AM23: =10*10*10 -> 1000 | AN23: =10*10*10 -> 1000 | AO23: =1000*1000*1000 -> 1000000000
AB24: mm | AC24: cm | AD24: dm | AE24: m | AF24: km | AG24: mm2 | AH24: cm2 | AI24: dm2 | AJ24: m2 | AK24: km2 | AL24: mm3 | AM24: cm3 | AN24: dm3 | AO24: m3 | AP24: km3
Z25: mm | AA25: 3 | AB25: 1 | AC25: =AB25/AB$23 -> 0.1 | AD25: 0.01 | AE25: 0.001 | AF25: 1e-06
Z26: cm | AA26: 4 | AB26: 10 | AC26: 1 | AD26: 0.1 | AE26: 0.01 | AF26: 1e-05
Z27: dm | AA27: 5 | AB27: 100 | AC27: 10 | AD27: 1 | AE27: 0.1 | AF27: 0.0001
Z28: m | AA28: 6 | AB28: 1000 | AC28: 100 | AD28: 10 | AE28: 1 | AF28: 0.001
Z29: km | AA29: 7 | AB29: 1000000 | AC29: 100000 | AD29: 10000 | AE29: 1000 | AF29: 1
Z30: mm2 | AA30: 8 | AG30: 1 | AH30: =AG30/AG$23 -> 0.01 | AI30: 0.0001 | AJ30: 1e-06 | AK30: 1e-12
Z31: cm2 | AA31: 9 | AG31: =AB26*AB26 -> 100 | AH31: 1 | AI31: 0.01 | AJ31: 0.0001 | AK31: 1e-10
Z32: dm2 | AA32: 10 | AG32: =AB27*AB27 -> 10000 | AH32: 100 | AI32: 1 | AJ32: 0.01 | AK32: 1e-08
Z33: m2 | AA33: 11 | AG33: =AB28*AB28 -> 1000000 | AH33: 10000 | AI33: 100 | AJ33: 1 | AK33: 1e-06
Z34: km2 | AA34: 12 | AG34: =AB29*AB29 -> 1000000000000 | AH34: 10000000000 | AI34: 100000000 | AJ34: 1000000 | AK34: 1
Z35: mm3 | AA35: 13 | AL35: 1 | AM35: =AL35/AL$23 -> 0.001 | AN35: 1e-06 | AO35: 1e-09 | AP35: 1e-18
Z36: cm3 | AA36: 14 | AL36: =AB26*AB26*AB26 -> 1000 | AM36: 1 | AN36: 0.001 | AO36: 1e-06 | AP36: 1e-15
Z37: dm3 | AA37: 15 | AL37: =AB27*AB27*AB27 -> 1000000 | AM37: 1000 | AN37: 1 | AO37: 0.001 | AP37: 1e-12
Z38: m3 | AA38: 16 | AL38: =AB28*AB28*AB28 -> 1000000000 | AM38: 1000000 | AN38: 1000 | AO38: 1 | AP38: 1e-09
Z39: km3 | AA39: 17 | AL39: =AB29*AB29*AB29 -> 1e+18 | AM39: 1000000000000000 | AN39: 1000000000000 | AO39: 1000000000 | AP39: 1

Sheet 6h
C1: Längen, Flächen und Raum | O1: =C1 -> Längen, Flächen und Raum
C2: Name: | H2: ="Nr. "&INT(RAND()*(10000-1000)+1000)&" " -> Nr. 4658 | K2: =H2 -> Nr. 4658 | O2: Name: | T2: ="Nr. "&INT(RAND()*(10000-1000)+1000)&" " -> Nr. 7221 | W2: =T2 -> Nr. 7221
A4: 8 | B4: =INT(RAND()*(100-1)+1) -> 48 | C4: =INT(RAND()*(1000-100)+100)/10 -> 58.4 | D4: cm2 | E4: = | G4: mm2 | J4: =C4*VLOOKUP(D4,$Z$24:$AP$39,VLOOKUP(G4,$Z$24:$AA$39,2,0),0) -> 5840 | K4: =G4 -> mm2 | O4: =INT(RAND()*(1000-100)+100)/10 -> 74.4 | P4: cm2 | Q4: = | S4: mm2 | V4: =O4*VLOOKUP(P4,$Z$24:$AP$39,VLOOKUP(S4,$Z$24:$AA$39,2,0),0) -> 7440 | W4: =S4 -> mm2
A5: 11 | B5: 77 | C5: =INT(RAND()*(1000-100)+100)/10 -> 20.1 | D5: m2 | E5: = | G5: cm2 | J5: 201000 | K5: cm2 | O5: =INT(RAND()*(1000-100)+100)/10 -> 54.7 | P5: m2 | Q5: = | S5: cm2 | V5: 547000 | W5: cm2
A6: 2 | B6: 50 | C6: =INT(RAND()*(100000-100)+100)/10 -> 4561.6 | D6: cm | E6: = | G6: m | J6: 45.616 | K6: m | O6: =INT(RAND()*(100000-100)+100)/10 -> 3824.4 | P6: cm | Q6: = | S6: m | V6: 38.244 | W6: m
A7: 19 | B7: 25 | C7: =INT(RAND()*(100-10)+10) -> 32 | D7: m3 | E7: = | G7: cm3 | J7: 32000000 | K7: cm3 | O7: =INT(RAND()*(100-10)+10) -> 14 | P7: m3 | Q7: = | S7: cm3 | V7: 14000000 | W7: cm3
A8: 1 | B8: 84 | C8: =INT(RAND()*(10000-1000)+1000) -> 7929 | D8: mm | E8: = | G8: m | J8: 7.929 | K8: m | O8: =INT(RAND()*(10000-1000)+1000) -> 8111 | P8: mm | Q8: = | S8: m | V8: 8.111 | W8: m
A9: 16 | B9: 10 | C9: =INT(RAND()*(100-10)+10)*1000000 -> 79000000 | D9: cm3 | E9: = | G9: m3 | J9: 79 | K9: m3 | O9: =INT(RAND()*(100-10)+10)*1000000 -> 61000000 | P9: cm3 | Q9: = | S9: m3 | V9: 61 | W9: m3
A10: 17 | B10: 71 | C10: =INT(RAND()*(100-10)+10)/10 -> 9.9 | D10: cm3 | E10: = | G10: mm3 | J10: 9900 | K10: mm3 | O10: =INT(RAND()*(100-10)+10)/10 -> 7.5 | P10: cm3 | Q10: = | S10: mm3 | V10: 7500 | W10: mm3
A11: 18 | B11: 46 | C11: =INT(RAND()*(1000-100)+100) -> 555 | D11: cm3 | E11: = | G11: mm3 | J11: 555000 | K11: mm3 | O11: =INT(RAND()*(1000-100)+100) -> 889 | P11: cm3 | Q11: = | S11: mm3 | V11: 889000 | W11: mm3
A12: 10 | B12: 53 | C12: =INT(RAND()*(1000-10)+10)*10000 -> 1330000 | D12: m2 | E12: = | G12: km2 | J12: 1.33 | K12: km2 | O12: =INT(RAND()*(1000-10)+10)*10000 -> 9570000 | P12: m2 | Q12: = | S12: km2 | V12: 9.57 | W12: km2
A13: 6 | B13: 47 | C13: =INT(RAND()*(1000-10)+10)/10 -> 28.7 | D13: km | E13: = | G13: m | J13: 28700 | K13: m | O13: =INT(RAND()*(1000-10)+10)/10 -> 96.3 | P13: km | Q13: = | S13: m | V13: 96300 | W13: m
A14: 14 | B14: 4 | C14: =INT(RAND()*(100-10)+10)*100 -> 9700 | D14: mm3 | E14: = | G14: cm3 | J14: 9.7 | K14: cm3 | O14: =INT(RAND()*(100-10)+10)*100 -> 5100 | P14: mm3 | Q14: = | S14: cm3 | V14: 5.1 | W14: cm3
A15: 9 | B15: 94 | C15: =INT(RAND()*(10000-1000)+1000) -> 7228 | D15: dm2 | E15: = | G15: m2 | J15: 72.28 | K15: m2 | O15: =INT(RAND()*(10000-1000)+1000) -> 9532 | P15: dm2 | Q15: = | S15: m2 | V15: 95.32 | W15: m2
A16: 4 | B16: 7 | C16: =INT(RAND()*(10000-1000)+1000) -> 8839 | D16: m | E16: = | G16: km | J16: 8.839 | K16: km | O16: =INT(RAND()*(10000-1000)+1000) -> 1095 | P16: m | Q16: = | S16: km | V16: 1.095 | W16: km
A17: 3 | B17: 26 | C17: =INT(RAND()*(10000-1000)+1000)/10 -> 769 | D17: dm | E17: = | G17: mm | J17: 76900 | K17: mm | O17: =INT(RAND()*(10000-1000)+1000)/10 -> 443.6 | P17: dm | Q17: = | S17: mm | V17: 44360 | W17: mm
A18: 7 | B18: 6 | C18: =INT(RAND()*(100-10)+10)*100 -> 5600 | D18: mm2 | E18: = | G18: cm2 | J18: 56 | K18: cm2 | O18: =INT(RAND()*(100-10)+10)*100 -> 3000 | P18: mm2 | Q18: = | S18: cm2 | V18: 30 | W18: cm2
A19: 5 | B19: 14 | C19: =INT(RAND()*(1000-100)+100)*100 -> 22000 | D19: m | E19: = | G19: km | J19: 22 | K19: km | O19: =INT(RAND()*(1000-100)+100)*100 -> 80900 | P19: m | Q19: = | S19: km | V19: 80.9 | W19: km
A20: 13 | B20: 83 | C20: =INT(RAND()*(100-1)+1)/100 -> 0.61 | D20: km2 | E20: = | G20: m2 | J20: 610000 | K20: m2 | O20: =INT(RAND()*(100-1)+1)/100 -> 0.46 | P20: km2 | Q20: = | S20: m2 | V20: 460000 | W20: m2
A21: 15 | B21: 18 | C21: =INT(RAND()*(100-10)+10)*100 -> 6800 | D21: mm3 | E21: = | G21: cm3 | J21: 6.8 | K21: cm3 | O21: =INT(RAND()*(100-10)+10)*100 -> 4100 | P21: mm3 | Q21: = | S21: cm3 | V21: 4.1 | W21: cm3
A22: 12 | B22: 24 | C22: =INT(RAND()*(100-1)+1)/100 -> 0.96 | D22: km2 | E22: = | G22: m2 | J22: 960000 | K22: m2 | O22: =INT(RAND()*(100-1)+1)/100 -> 0.06 | P22: km2 | Q22: = | S22: m2 | V22: 60000 | W22: m2
AB23: 10 | AC23: 10 | AD23: 10 | AE23: 1000 | AG23: =10*10 -> 100 | AH23: =10*10 -> 100 | AI23: =10*10 -> 100 | AJ23: =1000*1000 -> 1000000 | AL23: =10*10*10 -> 1000 | AM23: =10*10*10 -> 1000 | AN23: =10*10*10 -> 1000 | AO23: =1000*1000*1000 -> 1000000000
AB24: mm | AC24: cm | AD24: dm | AE24: m | AF24: km | AG24: mm2 | AH24: cm2 | AI24: dm2 | AJ24: m2 | AK24: km2 | AL24: mm3 | AM24: cm3 | AN24: dm3 | AO24: m3 | AP24: km3
Z25: mm | AA25: 3 | AB25: 1 | AC25: =AB25/AB$23 -> 0.1 | AD25: 0.01 | AE25: 0.001 | AF25: 1e-06
Z26: cm | AA26: 4 | AB26: 10 | AC26: 1 | AD26: 0.1 | AE26: 0.01 | AF26: 1e-05
Z27: dm | AA27: 5 | AB27: 100 | AC27: 10 | AD27: 1 | AE27: 0.1 | AF27: 0.0001
Z28: m | AA28: 6 | AB28: 1000 | AC28: 100 | AD28: 10 | AE28: 1 | AF28: 0.001
Z29: km | AA29: 7 | AB29: 1000000 | AC29: 100000 | AD29: 10000 | AE29: 1000 | AF29: 1
Z30: mm2 | AA30: 8 | AG30: 1 | AH30: =AG30/AG$23 -> 0.01 | AI30: 0.0001 | AJ30: 1e-06 | AK30: 1e-12
Z31: cm2 | AA31: 9 | AG31: =AB26*AB26 -> 100 | AH31: 1 | AI31: 0.01 | AJ31: 0.0001 | AK31: 1e-10
Z32: dm2 | AA32: 10 | AG32: =AB27*AB27 -> 10000 | AH32: 100 | AI32: 1 | AJ32: 0.01 | AK32: 1e-08
Z33: m2 | AA33: 11 | AG33: =AB28*AB28 -> 1000000 | AH33: 10000 | AI33: 100 | AJ33: 1 | AK33: 1e-06
Z34: km2 | AA34: 12 | AG34: =AB29*AB29 -> 1000000000000 | AH34: 10000000000 | AI34: 100000000 | AJ34: 1000000 | AK34: 1
Z35: mm3 | AA35: 13 | AL35: 1 | AM35: =AL35/AL$23 -> 0.001 | AN35: 1e-06 | AO35: 1e-09 | AP35: 1e-18
Z36: cm3 | AA36: 14 | AL36: =AB26*AB26*AB26 -> 1000 | AM36: 1 | AN36: 0.001 | AO36: 1e-06 | AP36: 1e-15
Z37: dm3 | AA37: 15 | AL37: =AB27*AB27*AB27 -> 1000000 | AM37: 1000 | AN37: 1 | AO37: 0.001 | AP37: 1e-12
Z38: m3 | AA38: 16 | AL38: =AB28*AB28*AB28 -> 1000000000 | AM38: 1000000 | AN38: 1000 | AO38: 1 | AP38: 1e-09
Z39: km3 | AA39: 17 | AL39: =AB29*AB29*AB29 -> 1e+18 | AM39: 1000000000000000 | AN39: 1000000000000 | AO39: 1000000000 | AP39: 1

Sheet 6i
C1: Volumen und Hohlmasse | O1: =C1 -> Volumen und Hohlmasse
C2: Name: | H2: ="Nr. "&INT(RAND()*(10000-1000)+1000)&" " -> Nr. 4259 | K2: =H2 -> Nr. 4259 | O2: Name: | T2: ="Nr. "&INT(RAND()*(10000-1000)+1000)&" " -> Nr. 6605 | W2: =T2 -> Nr. 6605
A4: 10 | B4: =INT(RAND()*(100-1)+1) -> 19 | C4: =INT(RAND()*(100000-10000)+10000)/10 -> 5342.6 | D4: l | E4: = | G4: m3 | J4: =C4*VLOOKUP(D4,$Z$24:$AQ$40,VLOOKUP(G4,$Z$24:$AA$40,2,0),0) -> 5.3426 | K4: =G4 -> m3 | O4: =INT(RAND()*(100000-10000)+10000)/10 -> 6824.6 | P4: l | Q4: = | S4: m3 | V4: =O4*VLOOKUP(P4,$Z$24:$AQ$40,VLOOKUP(S4,$Z$24:$AA$40,2,0),0) -> 6.8246 | W4: =S4 -> m3
A5: 9 | B5: 85 | C5: =INT(RAND()*(100-10)+10)*100 -> 1000 | D5: mm3 | E5: = | G5: cm3 | J5: 1 | K5: cm3 | O5: =INT(RAND()*(100-10)+10)*100 -> 7800 | P5: mm3 | Q5: = | S5: cm3 | V5: 7.8 | W5: cm3
A6: 17 | B6: 80 | C6: =INT(RAND()*(100-10)+10)/10 -> 8.9 | D6: cm3 | E6: = | G6: mm3 | J6: 8900 | K6: mm3 | O6: =INT(RAND()*(100-10)+10)/10 -> 9.2 | P6: cm3 | Q6: = | S6: mm3 | V6: 9200 | W6: mm3
A7: 18 | B7: 31 | C7: =INT(RAND()*(100000-1000)+1000)/100 -> 237.91 | D7: m3 | E7: = | G7: l | J7: 237910 | K7: l | O7: =INT(RAND()*(1000-100)+100) -> 289 | P7: cm3 | Q7: = | S7: mm3 | V7: 289000 | W7: mm3
A8: 14 | B8: 4 | C8: =INT(RAND()*(100-10)+10)*100 -> 8200 | D8: mm3 | E8: = | G8: cm3 | J8: 8.2 | K8: cm3 | O8: =INT(RAND()*(100-10)+10)*100 -> 7200 | P8: mm3 | Q8: = | S8: cm3 | V8: 7.2 | W8: cm3
A9: 15 | B9: 6 | C9: =INT(RAND()*(100-10)+10)/100 -> 0.81 | D9: m3 | E9: = | G9: l | J9: 810 | K9: l | O9: =INT(RAND()*(100-10)+10)/100 -> 0.21 | P9: m3 | Q9: = | S9: l | V9: 210 | W9: l
A10: 3 | B10: 18 | C10: =INT(RAND()*(100-10)+10)*1000000 -> 65000000 | D10: cm3 | E10: = | G10: m3 | J10: 65 | K10: m3 | O10: =INT(RAND()*(100-10)+10)*10000 -> 580000 | P10: cm3 | Q10: = | S10: m3 | V10: 0.58 | W10: m3
A11: 7 | B11: 99 | C11: =INT(RAND()*(100-10)+10) -> 65 | D11: l | E11: = | G11: cm3 | J11: 65000 | K11: cm3 | O11: =INT(RAND()*(100-10)+10)*100 -> 5600 | P11: mm3 | Q11: = | S11: cm3 | V11: 5.6 | W11: cm3
A12: 8 | B12: 40 | C12: =INT(RAND()*(100-10)+10)*10000 -> 850000 | D12: mm3 | E12: = | G12: m3 | J12: 0.00085 | K12: m3 | O12: =INT(RAND()*(100-10)+10)*10000 -> 920000 | P12: mm3 | Q12: = | S12: m3 | V12: 0.00092 | W12: m3
A13: 5 | B13: 80 | C13: =INT(RAND()*(1000-100)+100) -> 244 | D13: cm3 | E13: = | G13: mm3 | J13: 244000 | K13: mm3 | O13: =INT(RAND()*(1000-100)+100) -> 323 | P13: cm3 | Q13: = | S13: mm3 | V13: 323000 | W13: mm3
A14: 16 | B14: 14 | C14: =INT(RAND()*(100000-10000)+10000)/10 -> 9863.2 | D14: l | E14: = | G14: m3 | J14: 9.8632 | K14: m3 | O14: =INT(RAND()*(100000-10000)+10000)/10 -> 8396.1 | P14: l | Q14: = | S14: m3 | V14: 8.3961 | W14: m3
A15: 11 | B15: 96 | C15: =INT(RAND()*(100-10)+10)/10 -> 1.3 | D15: cm3 | E15: = | G15: mm3 | J15: 1300 | K15: mm3 | O15: =INT(RAND()*(100-10)+10)/10 -> 1.1 | P15: cm3 | Q15: = | S15: mm3 | V15: 1100 | W15: mm3
A16: 6 | B16: 50 | C16: =INT(RAND()*(1000-100)+100)/10 -> 71.3 | D16: m3 | E16: = | G16: cm3 | J16: 71300000 | K16: cm3 | O16: =INT(RAND()*(1000-100)+100)/10 -> 15.4 | P16: m3 | Q16: = | S16: cm3 | V16: 15400000 | W16: cm3
A17: 19 | B17: 43 | C17: =INT(RAND()*(100-10)+10) -> 14 | D17: m3 | E17: = | G17: cm3 | J17: 14000000 | K17: cm3 | O17: =INT(RAND()*(100-10)+10) -> 88 | P17: m3 | Q17: = | S17: cm3 | V17: 88000000 | W17: cm3
A18: 2 | B18: 96 | C18: =INT(RAND()*(1000-100)+100)/10 -> 16.9 | D18: m3 | E18: = | G18: l | J18: 16900 | K18: l | O18: =INT(RAND()*(100000-1000)+1000)/100 -> 625.79 | P18: m3 | Q18: = | S18: l | V18: 625790 | W18: l
A19: 13 | B19: 16 | C19: =INT(RAND()*(100-10)+10) -> 26 | D19: m3 | E19: = | G19: cm3 | J19: 26000000 | K19: cm3 | O19: =INT(RAND()*(100-10)+10)/10 -> 4.9 | P19: m3 | Q19: = | S19: cm3 | V19: 4900000 | W19: cm3
A20: 12 | B20: 37 | C20: =INT(RAND()*(100000-1000)+1000)/100 -> 944.85 | D20: m3 | E20: = | G20: l | J20: 944850 | K20: l | O20: =INT(RAND()*(1000-100)+100) -> 993 | P20: cm3 | Q20: = | S20: mm3 | V20: 993000 | W20: mm3
A21: 4 | B21: 12 | C21: =INT(RAND()*(1000000-100000)+100000)/10 -> 48814.7 | D21: cm3 | E21: = | G21: m3 | J21: 0.0488147 | K21: m3 | O21: =INT(RAND()*(1000000-100000)+100000)/10 -> 89647.4 | P21: cm3 | Q21: = | S21: m3 | V21: 0.0896474 | W21: m3
A22: 1 | B22: 56 | C22: =INT(RAND()*(100-10)+10)*100 -> 7300 | D22: l | E22: = | G22: m3 | J22: 7.3 | K22: m3 | O22: =INT(RAND()*(100-10)+10)*100 -> 1500 | P22: mm3 | Q22: = | S22: cm3 | V22: 1.5 | W22: cm3
AB23: 10 | AC23: 10 | AD23: 10 | AE23: 1000 | AG23: =10*10 -> 100 | AH23: =10*10 -> 100 | AI23: =10*10 -> 100 | AJ23: =1000*1000 -> 1000000 | AL23: =10*10*10 -> 1000 | AM23: =10*10*10 -> 1000 | AN23: =10*10*10 -> 1000 | AO23: =1000*1000*1000 -> 1000000000
AB24: mm | AC24: cm | AD24: dm | AE24: m | AF24: km | AG24: mm2 | AH24: cm2 | AI24: dm2 | AJ24: m2 | AK24: km2 | AL24: mm3 | AM24: cm3 | AN24: dm3 | AO24: m3 | AP24: km3 | AQ24: l
Z25: mm | AA25: 3 | AB25: 1 | AC25: =AB25/AB$23 -> 0.1 | AD25: 0.01 | AE25: 0.001 | AF25: 1e-06
Z26: cm | AA26: 4 | AB26: 10 | AC26: 1 | AD26: 0.1 | AE26: 0.01 | AF26: 1e-05
Z27: dm | AA27: 5 | AB27: 100 | AC27: 10 | AD27: 1 | AE27: 0.1 | AF27: 0.0001
Z28: m | AA28: 6 | AB28: 1000 | AC28: 100 | AD28: 10 | AE28: 1 | AF28: 0.001
Z29: km | AA29: 7 | AB29: 1000000 | AC29: 100000 | AD29: 10000 | AE29: 1000 | AF29: 1
Z30: mm2 | AA30: 8 | AG30: 1 | AH30: =AG30/AG$23 -> 0.01 | AI30: 0.0001 | AJ30: 1e-06 | AK30: 1e-12
Z31: cm2 | AA31: 9 | AG31: =AB26*AB26 -> 100 | AH31: 1 | AI31: 0.01 | AJ31: 0.0001 | AK31: 1e-10
Z32: dm2 | AA32: 10 | AG32: =AB27*AB27 -> 10000 | AH32: 100 | AI32: 1 | AJ32: 0.01 | AK32: 1e-08
Z33: m2 | AA33: 11 | AG33: =AB28*AB28 -> 1000000 | AH33: 10000 | AI33: 100 | AJ33: 1 | AK33: 1e-06
Z34: km2 | AA34: 12 | AG34: =AB29*AB29 -> 1000000000000 | AH34: 10000000000 | AI34: 100000000 | AJ34: 1000000 | AK34: 1
Z35: mm3 | AA35: 13 | AL35: 1 | AM35: =AL35/AL$23 -> 0.001 | AN35: 1e-06 | AO35: 1e-09 | AP35: 1e-18 | AQ35: =AN35 -> 1e-06
Z36: cm3 | AA36: 14 | AL36: =AB26*AB26*AB26 -> 1000 | AM36: 1 | AN36: 0.001 | AO36: 1e-06 | AP36: 1e-15 | AQ36: =AN36 -> 0.001
Z37: dm3 | AA37: 15 | AL37: =AB27*AB27*AB27 -> 1000000 | AM37: 1000 | AN37: 1 | AO37: 0.001 | AP37: 1e-12 | AQ37: =AN37 -> 1
Z38: m3 | AA38: 16 | AL38: =AB28*AB28*AB28 -> 1000000000 | AM38: 1000000 | AN38: 1000 | AO38: 1 | AP38: 1e-09 | AQ38: =AN38 -> 1000
Z39: km3 | AA39: 17 | AL39: =AB29*AB29*AB29 -> 1e+18 | AM39: 1000000000000000 | AN39: 1000000000000 | AO39: 1000000000 | AP39: 1 | AQ39: =AN39 -> 1000000000000
Z40: l | AA40: 18 | AL40: =AL37 -> 1000000 | AM40: 1000 | AN40: 1 | AO40: 0.001 | AP40: 1e-12 | AQ40: 1

Sheet Eingabe
J1: 1 | K1: 2 | L1: 3 | M1: =L1+1 -> 4 | N1: 5 | O1: 6 | P1: 7 | Q1: 8 | R1: 9 | S1: 10 | T1: 11 | U1: 12 | V1: 13 | W1: 14 | X1: 15 | Y1: 16 | Z1: 17 | AA1: 18
A2: filename | D2: Gruppeneinteilung nach Interesse | J2: =IF(J1>$E$5,"",J1) ->  | U2: =IF(U1>$E$5,"",U1) ->  | V2: =IF(V1>$E$5,"",V1) ->  | AO2: userform-übergabe | AS2: importfile | AT2: Eingabeart | AU2: Reduzieren | AV2: w/m mischen
A3: =MID(CELL("Dateiname"),FIND("[",CELL("Dateiname"))+1,FIND("]",CELL("Dateiname"))-FIND("[",CELL("Dateiname"))-1) -> schuelfix.xlsm | AO3: 4 | AS3: liste_r | AT3: Prioritäten | AU3: On | AV3: mix
D4: Anzahl Kinder (2-500): | I4: Anzahl Plätze | AP4: Prioritäten | AT4: Bildschirm
D5: Anzahl Angebote (2-18): | I5: =IF(AT3="Wünsche","Anz. Wünsche","Anz. Wünsche 1.P.") -> Anz. Wünsche 1.P. | J5: =IF($AT$3="Wünsche",COUNTA(J$13:J$512),COUNTIF(J$13:J$512,1)) -> 0 | K5: =IF($AT$3="Wünsche",COUNTA(K$13:K$512),COUNTIF(K$13:K$512,1)) -> 0 | L5: =IF($AT$3="Wünsche",COUNTA(L$13:L$512),COUNTIF(L$13:L$512,1)) -> 0 | M5: 0 | N5: 0 | O5: 0 | P5: 0 | Q5: 0 | R5: 0 | S5: 0 | T5: 0 | U5: 0 | V5: 0 | W5: 0 | X5: 0 | Y5: 0 | Z5: 0 | AA5: 0 | AO5: ja | AP5: =1 -> 1 | AQ5: =IF(E6>1,2,1) -> 1 | AR5: =IF(E6=3,3,1) -> 1 | AT5: 1920 | AU5: w | AV5: =COUNTIF(F13:F512,"w") -> 0
